Workbook

Sheet About JEDI
A2: JEDI - PETROLEUM
A4: Jobs and Economic Development Impact Model (JEDI)
A6: Release Number: P12.23.16

Sheet FAQ
A2: JEDI - PETROLEUM
A4: Jobs and Economic Development Model (JEDI)
A6: Frequently Asked Questions (FAQ)

Sheet Start
A3: JEDI - PETROLEUM
A4: Jobs and Economic Development Impact Model

Sheet ProjectData
A1: Petroleum Refinery Project Data | AE1: AnalysisType | AF1: H
X2: 2002 | AB2: BPCD | AE2: Simple | AF2: O
A3: INSTRUCTIONS: | X3: =X2+1 -> 2003 | AB3: BPSD | AE3: Advanced
A4: 1. Begin by entering Project Descriptive Data. Choose Project Location (from pull-down list) and other parameters relevant to your project. After inputting each parameter press enter (or cursor to the next cell) to continue. | X4: 2004
A5: 2. Once Project parameters are entered (lines 16-32), you may choose to perform a "Simple" analysis or an "Advanced" analysis. | X5: 2005
A6: Choosing "Simple" Analysis indicates use of Model defaults, no review or editing of detailed cost data and other inputs. | X6: 2006
A7: Choosing "Advanced" Analysis allows user to review and edit detailed cost data and inputs. | X7: 2007
A8: If Simple Analysis is chosen, go directly to Summary Results; if Advanced Analysis is choosen, review/edit detailed cost data and other inputs. | X8: 2008
X9: 2009
A10: NOTE: Additional information is available by pointing to the red triangles located in cell corners. Only those cells with a white background can accept new values. | X10: 2010
X11: 2011
X12: 2012
X13: 2013
X14: 2014
A15: Project Descriptive Data | T15: =IF(B16="MYCOUNTY",IF(B17="",2,1),IF(B16="MYREGION",IF(B17="",2,1),0)) -> 0 | X15: 2015
A16: Project Location | B16: Arizona | C16: =IF(B16="MYREGION",IF('User Add-in Location'!F23=0," Error - No Regional multiplier data in User Add-in Location",""),IF(B16="MYCOUNTY",IF('User Add-in Location'!E23=0," Error - No County multiplier data in User Add-in Location",""),"")) ->  | X16: 2016
A17: Population | C17: =IF(B16="MYREGION",IF('User Add-in Location'!F23=0,"",IF(B16="MYREGION"," Enter Region Population","")),IF(B16="MYCOUNTY",IF('User Add-in Location'!E23=0,"",IF(B16="MYCOUNTY"," Enter County Population","")),"")) ->  | X17: 2017 | AF17: RefineryComplexity
A18: Year Construction Starts | B18: 2014 | C18: =IF(B18>2030," **Error - Year of Construction exceeds 2030 - please revise**","") ->  | X18: 2018 | AF18: Simple
A19: Construction Period (Months) | B19: =DefaultData!F2 -> 48 | X19: 2019 | AF19: Complex
A20: Location Adjustment Factor | B20: =DefaultData!AN18 -> 1.18 | X20: 2020 | AF20: Very Complex
A21: Refinery Complexity (Simple, Complex, Very Complex) | B21: Simple | X21: 2021
A22: Crude Capacity Input Type (BPCD or BPSD) | B22: BPCD | C22: Service Factor | D22: =DefaultData!E2 -> 0.9315 | T22: Y | X22: 2022
A23: =CONCATENATE(" Crude Oil Charge Rate (",$B$22,")") -> Crude Oil Charge Rate (BPCD) | B23: 30000 | T23: N | X23: 2023
X24: 2024
A25: Crude Storage Capacity (Days) | B25: 12 | X25: 2025
A26: Finished Product Storage Capacity (Days) | B26: 25 | X26: 2026
A27: Total Storage Capacity (Barrels) | B27: =IF(B22="BPCD",(B23/D22)*(B25+B26),(B23*(B25+B26))) -> 1191626.409 | X27: 2027
X28: 2028
A29: Cost of Crude Oil ($/barrel) | B29: 95.98 | X29: 2029
A30: =CONCATENATE(" Crude Oil Produced in ",$B$16," (Percent)") -> Crude Oil Produced in Arizona (Percent) | B30: 0 | X30: 2030
A32: Money Value (Dollar Year) | B32: 2012
C34: =IF(B32>2030," **Error - Money Value (Dollar Year) Exceeds 2030 - please revise**",IF(B32<2002," **Error - Money Value (Dollar Year) is Below 2002 - please revise**","")) -> 
T35: =IF(T36="Simple","Y","N") -> N
A36: Select Model Analysis Type (Simple or Advanced) | B36: Advanced | C36: =IF(B36="Simple"," Press 'Go To Summary Impacts' Button",IF(B36="Advanced"," Review/Edit Values below","Error - Re-enter 'Y' or 'N'")) -> Review/Edit Values below | T36: =B36 -> Advanced
E37: =IF(C17="","",IF(B17<1,"**Error - Population Data Missing**","")) -> 
A39: If desired, default values (in cells below - based on Project Descriptive Data entered above) may be restored by pressing the 'Restore Default Values' button below data. Note: it is not necessary to restore defaults to incorporate default Project Cost Data in system analysis. Choosing "simple" analysis in cell B36 above will direct model to utilize default cost data in the analysis).
A41: =DefaultData!C13 -> Project Cost Data - Default Values
A42: =DefaultData!C14 -> Construction Costs | B42: Cost | C42: Cost | D42: Percent of | E42: Local Share
A43: =DefaultData!C16 -> Process Units | B43: (Millions) | C43: =CONCATENATE("$/", $B$22) -> $/BPCD | D43: Total Cost | E43: (Percentage)
A44: =DefaultData!C17 -> Atmospheric Distillation | B44: =DefaultData!$D17 -> 18.58270689 | C44: =B44*10^6/(B$23) -> 619.4235631 | D44: =B44/B$77 -> 0.02671036128 | E44: =$T44 -> 0 | T44: =IF($T$15=0,DefaultData!$G17,IF($T$15=2,"Error",IF($B$17<DefaultData!$H$13,DefaultData!$H17,IF($B$17<DefaultData!$I$13,DefaultData!$O17,IF($B$17<DefaultData!$J$13,DefaultData!$R17,DefaultData!$U17))))) -> 0 | AE44: =DefaultData!$D17 -> 18.58270689 | AH44: =$T44 -> 0
A45: =DefaultData!C18 -> Catalytic Reforming | B45: =DefaultData!$D18 -> 31.32941723 | C45: =B45*10^6/(B$23) -> 1044.313908 | D45: =B45/B$77 -> 0.04503219352 | E45: =$T45 -> 0 | T45: =IF($T$15=0,DefaultData!$G18,IF($T$15=2,"Error",IF($B$17<DefaultData!$H$13,DefaultData!$H18,IF($B$17<DefaultData!$I$13,DefaultData!$O18,IF($B$17<DefaultData!$J$13,DefaultData!$R18,DefaultData!$U18))))) -> 0 | AE45: =DefaultData!$D18 -> 31.32941723 | AH45: =$T45 -> 0
A46: =DefaultData!C19 -> Catalytic Hydrotreatment | B46: =DefaultData!$D19 -> 24.4507617 | C46: 815.0253901 | D46: 0.03514497013 | E46: 0 | T46: =IF($T$15=0,DefaultData!$G19,IF($T$15=2,"Error",IF($B$17<DefaultData!$H$13,DefaultData!$H19,IF($B$17<DefaultData!$I$13,DefaultData!$O19,IF($B$17<DefaultData!$J$13,DefaultData!$R19,DefaultData!$U19))))) -> 0 | AE46: =DefaultData!$D19 -> 24.4507617 | AH46: 0
A47: =DefaultData!C20 -> FCC, visbreaker and associated plant | B47: =DefaultData!$D20 -> 0 | C47: 0 | D47: 0 | E47: 0 | T47: =IF($T$15=0,DefaultData!$G20,IF($T$15=2,"Error",IF($B$17<DefaultData!$H$13,DefaultData!$H20,IF($B$17<DefaultData!$I$13,DefaultData!$O20,IF($B$17<DefaultData!$J$13,DefaultData!$R20,DefaultData!$U20))))) -> 0 | AE47: =DefaultData!$D20 -> 0 | AH47: 0
A48: =DefaultData!C21 -> Vacuum distillation for FCC | B48: =DefaultData!$D21 -> 0 | C48: 0 | D48: 0 | E48: 0 | T48: =IF($T$15=0,DefaultData!$G21,IF($T$15=2,"Error",IF($B$17<DefaultData!$H$13,DefaultData!$H21,IF($B$17<DefaultData!$I$13,DefaultData!$O21,IF($B$17<DefaultData!$J$13,DefaultData!$R21,DefaultData!$U21))))) -> 0 | AE48: =DefaultData!$D21 -> 0 | AH48: 0
A49: =DefaultData!C22 -> Deep Conversion units | B49: =DefaultData!$D22 -> 0 | C49: 0 | D49: 0 | E49: 0 | T49: =IF($T$15=0,DefaultData!$G22,IF($T$15=2,"Error",IF($B$17<DefaultData!$H$13,DefaultData!$H22,IF($B$17<DefaultData!$I$13,DefaultData!$O22,IF($B$17<DefaultData!$J$13,DefaultData!$R22,DefaultData!$U22))))) -> 0 | AE49: =DefaultData!$D22 -> 0 | AH49: 0
A50: =DefaultData!C23 -> Other units | B50: =DefaultData!$D23 -> 1.162032454 | C50: 38.73441512 | D50: 0.001670279085 | E50: 0 | T50: =IF($T$15=0,DefaultData!$G23,IF($T$15=2,"Error",IF($B$17<DefaultData!$H$13,DefaultData!$H23,IF($B$17<DefaultData!$I$13,DefaultData!$O23,IF($B$17<DefaultData!$J$13,DefaultData!$R23,DefaultData!$U23))))) -> 0 | AE50: =DefaultData!$D23 -> 1.162032454 | AH50: 0
A51: =DefaultData!C24 -> Subtotal | B51: =SUM(B44:B50) -> 75.52491827 | C51: =SUM(C44:C50) -> 2517.497276 | D51: =SUM(D44:D50) -> 0.108557804
A52: =DefaultData!C25 -> Utilities
A53: =DefaultData!C26 -> Steam and/or electricity production | B53: =DefaultData!$D26 -> 32.38295864 | C53: =B53*10^6/(B$23) -> 1079.431955 | D53: =B53/B$77 -> 0.04654653004 | E53: =$T53 -> 0 | T53: =IF($T$15=0,DefaultData!$G26,IF($T$15=2,"Error",IF($B$17<DefaultData!$H$13,DefaultData!$H26,IF($B$17<DefaultData!$I$13,DefaultData!$O26,IF($B$17<DefaultData!$J$13,DefaultData!$R26,DefaultData!$U26))))) -> 0 | AE53: =DefaultData!$D26 -> 32.38295864 | AH53: =$T53 -> 0
A54: =DefaultData!C27 -> Steam and utilities distribution | B54: =DefaultData!$D27 -> 21.76614568 | C54: 725.5381894 | D54: 0.03128616397 | E54: 0 | T54: =IF($T$15=0,DefaultData!$G27,IF($T$15=2,"Error",IF($B$17<DefaultData!$H$13,DefaultData!$H27,IF($B$17<DefaultData!$I$13,DefaultData!$O27,IF($B$17<DefaultData!$J$13,DefaultData!$R27,DefaultData!$U27))))) -> 0 | AE54: =DefaultData!$D27 -> 21.76614568 | AH54: 0
A55: =DefaultData!C28 -> Production and/or distribution of other utilities | B55: =DefaultData!$D28 -> 5.022956696 | C55: 167.4318899 | D55: 0.007219883993 | E55: 0 | T55: =IF($T$15=0,DefaultData!$G28,IF($T$15=2,"Error",IF($B$17<DefaultData!$H$13,DefaultData!$H28,IF($B$17<DefaultData!$I$13,DefaultData!$O28,IF($B$17<DefaultData!$J$13,DefaultData!$R28,DefaultData!$U28))))) -> 0 | AE55: =DefaultData!$D28 -> 5.022956696 | AH55: 0
A56: =DefaultData!C29 -> Cooling Water system | B56: =DefaultData!$D29 -> 10.79431955 | C56: 359.8106515 | D56: 0.01551551001 | E56: 0 | T56: =IF($T$15=0,DefaultData!$G29,IF($T$15=2,"Error",IF($B$17<DefaultData!$H$13,DefaultData!$H29,IF($B$17<DefaultData!$I$13,DefaultData!$O29,IF($B$17<DefaultData!$J$13,DefaultData!$R29,DefaultData!$U29))))) -> 0 | AE56: =DefaultData!$D29 -> 10.79431955 | AH56: 0
A57: =DefaultData!C30 -> Subtotal | B57: =SUM(B53:B56) -> 69.96638056 | C57: =SUM(C53:C56) -> 2332.212685 | D57: =SUM(D53:D56) -> 0.100568088
A58: =DefaultData!C31 -> Security and Environmental Installations
A59: =DefaultData!C32 -> Fire fighting system | B59: =DefaultData!$D32 -> 6.671431897 | C59: =B59*10^6/(B$23) -> 222.3810632 | D59: =B59/B$77 -> 0.009589364847 | E59: =$T59 -> 0 | T59: =IF($T$15=0,DefaultData!$G32,IF($T$15=2,"Error",IF($B$17<DefaultData!$H$13,DefaultData!$H32,IF($B$17<DefaultData!$I$13,DefaultData!$O32,IF($B$17<DefaultData!$J$13,DefaultData!$R32,DefaultData!$U32))))) -> 0 | AE59: =DefaultData!$D32 -> 6.671431897 | AH59: =$T59 -> 0
A60: =DefaultData!C33 -> Flare and liquid effluent treatment systems | B60: =DefaultData!$D33 -> 22.87348079 | C60: 762.4493597 | D60: 0.03287782233 | E60: 0 | T60: =IF($T$15=0,DefaultData!$G33,IF($T$15=2,"Error",IF($B$17<DefaultData!$H$13,DefaultData!$H33,IF($B$17<DefaultData!$I$13,DefaultData!$O33,IF($B$17<DefaultData!$J$13,DefaultData!$R33,DefaultData!$U33))))) -> 0 | AE60: =DefaultData!$D33 -> 22.87348079 | AH60: 0
A61: =DefaultData!C34 -> Subtotal | B61: =SUM(B59:B60) -> 29.54491269 | C61: =SUM(C59:C60) -> 984.8304229 | D61: =SUM(D59:D60) -> 0.04246718718
A62: =DefaultData!C35 -> Storage and Dispatch
A63: =DefaultData!C36 -> Storage of liquid products and LPG (if applicable) | B63: =DefaultData!$D36 -> 149.7409003 | C63: =B63*10^6/(B$23) -> 4991.363343 | D63: =B63/B$77 -> 0.2152341728 | E63: =$T63 -> 0.75 | T63: =IF($T$15=0,DefaultData!$G36,IF($T$15=2,"Error",IF($B$17<DefaultData!$H$13,DefaultData!$H36,IF($B$17<DefaultData!$I$13,DefaultData!$O36,IF($B$17<DefaultData!$J$13,DefaultData!$R36,DefaultData!$U36))))) -> 0.75 | AE63: =DefaultData!$D36 -> 149.7409003 | AH63: =$T63 -> 0.75
A64: =DefaultData!C37 -> Subtotal | B64: =SUM(B63) -> 149.7409003 | C64: =SUM(C63) -> 4991.363343 | D64: =SUM(D63) -> 0.2152341728
A65: =DefaultData!C38 -> Infrastructure
A66: =DefaultData!C39 -> Site prep, roads, general infrastructure | B66: =DefaultData!$D39 -> 14.05015119 | C66: =B66*10^6/(B$23) -> 468.3383729 | D66: =B66/B$77 -> 0.02019536854 | E66: =$T66 -> 1 | T66: =IF($T$15=0,DefaultData!$G39,IF($T$15=2,"Error",IF($B$17<DefaultData!$H$13,DefaultData!$H39,IF($B$17<DefaultData!$I$13,DefaultData!$O39,IF($B$17<DefaultData!$J$13,DefaultData!$R39,DefaultData!$U39))))) -> 1 | AE66: =DefaultData!$D39 -> 14.05015119 | AH66: =$T66 -> 1
A67: =DefaultData!C40 -> Buildings | B67: =DefaultData!$D40 -> 11.94262851 | C67: =B67*10^6/(B$23) -> 398.0876169 | D67: 0.01716606326 | E67: 1 | T67: =IF($T$15=0,DefaultData!$G40,IF($T$15=2,"Error",IF($B$17<DefaultData!$H$13,DefaultData!$H40,IF($B$17<DefaultData!$I$13,DefaultData!$O40,IF($B$17<DefaultData!$J$13,DefaultData!$R40,DefaultData!$U40))))) -> 1 | AE67: =DefaultData!$D40 -> 11.94262851 | AH67: 1
A68: =DefaultData!C41 -> Subtotal | B68: =SUM(B66:B67) -> 25.99277969 | C68: =SUM(C66:C67) -> 866.4259898 | D68: =SUM(D66:D67) -> 0.03736143181
A69: =DefaultData!C42 -> Labor
A70: =DefaultData!C43 -> All construction | B70: =DefaultData!$D43 -> 208.687413 | C70: =B70*10^6/(B$23) -> 6956.247099 | D70: =B70/B$77 -> 0.2999625527 | E70: =$T70 -> 0.5 | T70: =IF($T$15=0,DefaultData!$G43,IF($T$15=2,"Error",IF($B$17<DefaultData!$H$13,DefaultData!$H43,IF($B$17<DefaultData!$I$13,DefaultData!$O43,IF($B$17<DefaultData!$J$13,DefaultData!$R43,DefaultData!$U43))))) -> 0.5 | AE70: =DefaultData!$D43 -> 208.687413 | AH70: =$T70 -> 0.5
A71: =DefaultData!C45 -> Subtotal | B71: =SUM(B70:B70) -> 208.687413 | C71: =SUM(C70:C70) -> 6956.247099 | D71: =SUM(D70:D70) -> 0.2999625527
A72: =DefaultData!C46 -> Other Costs
A73: =DefaultData!C47 -> Engineering/Design Services | B73: =DefaultData!$D47 -> 70.47633474 | C73: =B73*10^6/(B$23) -> 2349.211158 | D73: =B73/B$77 -> 0.1013010846 | E73: =$T73 -> 0 | T73: =IF($T$15=0,DefaultData!$G47,IF($T$15=2,"Error",IF($B$17<DefaultData!$H$13,DefaultData!$H47,IF($B$17<DefaultData!$I$13,DefaultData!$O47,IF($B$17<DefaultData!$J$13,DefaultData!$R47,DefaultData!$U47))))) -> 0 | AE73: =DefaultData!$D47 -> 70.47633474 | AH73: =$T73 -> 0
A74: =DefaultData!C48 -> Construction Services | B74: =DefaultData!$D48 -> 1.174605579 | C74: 39.1535193 | D74: 0.00168835141 | E74: 0 | T74: =IF($T$15=0,DefaultData!$G48,IF($T$15=2,"Error",IF($B$17<DefaultData!$H$13,DefaultData!$H48,IF($B$17<DefaultData!$I$13,DefaultData!$O48,IF($B$17<DefaultData!$J$13,DefaultData!$R48,DefaultData!$U48))))) -> 0 | AE74: =DefaultData!$D48 -> 1.174605579 | AH74: 0
A75: =DefaultData!C49 -> Project Management | B75: =DefaultData!$D49 -> 64.60330685 | C75: 2153.443562 | D75: 0.09285932754 | E75: 0 | T75: =IF($T$15=0,DefaultData!$G49,IF($T$15=2,"Error",IF($B$17<DefaultData!$H$13,DefaultData!$H49,IF($B$17<DefaultData!$I$13,DefaultData!$O49,IF($B$17<DefaultData!$J$13,DefaultData!$R49,DefaultData!$U49))))) -> 0 | AE75: =DefaultData!$D49 -> 64.60330685 | AH75: 0
A76: =DefaultData!C50 -> Subtotal | B76: =SUM(B73:B75) -> 136.2542472 | C76: =SUM(C73:C75) -> 4541.808239 | D76: =SUM(D73:D75) -> 0.1958487635
A77: =DefaultData!C51 -> Total | B77: =B76+B71+B68+B64+B61+B57+B51 -> 695.7115516 | C77: =C76+C71+C68+C64+C61+C57+C51 -> 23190.38505 | D77: =D76+D71+D68+D64+D61+D57+D51 -> 1
A79: =DefaultData!C56 -> Annual Operating and Maintenance Costs | B79: Cost | C79: Cost | D79: Percent of | E79: Local Share
A80: =DefaultData!C57 -> Variable | B80: (Millions) | C80: =CONCATENATE("$/", $B$22) -> $/BPCD | D80: Total Cost | E80: (Percentage)
A81: =DefaultData!C58 -> Chemicals and Catalysts | B81: =DefaultData!D58 -> 3 | C81: =B81*10^6/(B$23) -> 100 | D81: =B81/B$93 -> 0.002739638478 | E81: =$T81 -> 0 | T81: =IF($T$15=0,DefaultData!$G58,IF($T$15=2,"Error",IF($B$17<DefaultData!$H$13,DefaultData!$H58,IF($B$17<DefaultData!$I$13,DefaultData!$O58,IF($B$17<DefaultData!$J$13,DefaultData!$R58,DefaultData!$U58))))) -> 0 | AE81: =DefaultData!AG58 -> 2 | AH81: =$T81 -> 0
A82: =DefaultData!C59 -> Utilities | B82: =DefaultData!D59 -> 4.2 | C82: =B82*10^6/(B$23) -> 140 | D82: =B82/B$93 -> 0.003835493869 | E82: =$T82 -> 1 | T82: =IF($T$15=0,DefaultData!$G59,IF($T$15=2,"Error",IF($B$17<DefaultData!$H$13,DefaultData!$H59,IF($B$17<DefaultData!$I$13,DefaultData!$O59,IF($B$17<DefaultData!$J$13,DefaultData!$R59,DefaultData!$U59))))) -> 1 | AE82: =DefaultData!AG59 -> 3 | AH82: =$T82 -> 1
A83: =DefaultData!C60 -> Subtotal | B83: =SUM(B81:B82) -> 7.2 | C83: 240 | D83: =SUM(D81:D82) -> 0.006575132346 | AE83: =SUM(AE81:AE82) -> 5
A84: =DefaultData!C61 -> Fixed
A85: =DefaultData!C62 -> Labor | B85: =DefaultData!D62 -> 3.987619486 | C85: =B85*10^6/(B$23) -> 132.9206495 | D85: =B85/B$93 -> 0.00364154526 | E85: =$T85 -> 1 | T85: =IF($T$15=0,DefaultData!$G62,IF($T$15=2,"Error",IF($B$17<DefaultData!$H$13,DefaultData!$H62,IF($B$17<DefaultData!$I$13,DefaultData!$O62,IF($B$17<DefaultData!$J$13,DefaultData!$R62,DefaultData!$U62))))) -> 1 | AE85: =DefaultData!AG62 -> 6 | AH85: =$T85 -> 1
A86: =DefaultData!C63 -> Maintenance | B86: =DefaultData!D63 -> 20.87134655 | C86: 695.7115516 | D86: =B86/B$93 -> 0.01905998136 | E86: 1 | T86: =IF($T$15=0,DefaultData!$G63,IF($T$15=2,"Error",IF($B$17<DefaultData!$H$13,DefaultData!$H63,IF($B$17<DefaultData!$I$13,DefaultData!$O63,IF($B$17<DefaultData!$J$13,DefaultData!$R63,DefaultData!$U63))))) -> 1 | AE86: =DefaultData!AG63 -> 7 | AH86: 1
A87: =DefaultData!C64 -> Other Costs
A88: =DefaultData!C65 -> Insurance | B88: =DefaultData!D65 -> 3.478557758 | C88: =B88*10^6/(B$23) -> 115.9519253 | D88: =B88/B$93 -> 0.00317666356 | E88: =$T88 -> 0 | T88: =IF($T$15=0,DefaultData!$G65,IF($T$15=2,"Error",IF($B$17<DefaultData!$H$13,DefaultData!$H65,IF($B$17<DefaultData!$I$13,DefaultData!$O65,IF($B$17<DefaultData!$J$13,DefaultData!$R65,DefaultData!$U65))))) -> 0 | AE88: =DefaultData!AG65 -> 9 | AH88: =$T88 -> 0
A89: =DefaultData!C66 -> Misc. Supplies | B89: =DefaultData!D66 -> 1.043567327 | C89: 34.78557758 | D89: 0.0009529990681 | E89: 0 | T89: =IF($T$15=0,DefaultData!$G66,IF($T$15=2,"Error",IF($B$17<DefaultData!$H$13,DefaultData!$H66,IF($B$17<DefaultData!$I$13,DefaultData!$O66,IF($B$17<DefaultData!$J$13,DefaultData!$R66,DefaultData!$U66))))) -> 0 | AE89: =DefaultData!AG66 -> 10 | AH89: 0
A90: =DefaultData!C67 -> Other Operating Costs | B90: =DefaultData!D67 -> 7.472901451 | C90: 249.096715 | D90: 0.006824349451 | E90: 0 | T90: =IF($T$15=0,DefaultData!$G67,IF($T$15=2,"Error",IF($B$17<DefaultData!$H$13,DefaultData!$H67,IF($B$17<DefaultData!$I$13,DefaultData!$O67,IF($B$17<DefaultData!$J$13,DefaultData!$R67,DefaultData!$U67))))) -> 0 | AE90: =DefaultData!AG67 -> 11 | AH90: 0
A91: =DefaultData!C68 -> Subtotal | B91: =SUM(B88:B90) -> 11.99502654 | C91: 399.8342179 | D91: =SUM(D88:D90) -> 0.01095401208 | AE91: =SUM(AE88:AE90) -> 30
A92: Feedstock (Crude Oil) | B92: =DefaultData!D69 -> 1050.981 | C92: 35032.7 | D92: =B92/B$93 -> 0.959769329 | E92: =B30 -> 0 | T92: =IF($T$15=0,DefaultData!$G69,IF($T$15=2,"Error",IF($B$17<DefaultData!$H$13,DefaultData!$H69,IF($B$17<DefaultData!$I$13,DefaultData!$O69,IF($B$17<DefaultData!$J$13,DefaultData!$R69,DefaultData!$U69))))) -> 0 | AE92: =DefaultData!AG69 -> 0 | AH92: =AE30 -> 0
A93: =DefaultData!C70 -> Total | B93: =B92+B91+B86+B85+B83 -> 1095.034993 | C93: 36501.16642 | D93: =D92+D91+D86+D85+D83 -> 1
AI95: =$T95 -> 0
A99: =DefaultData!C78 -> Other Parameters
A100: =DefaultData!C79 -> Financial Parameters | D100: Local Share
A101: =DefaultData!C80 -> Debt Financing
A102: =DefaultData!C81 -> Percentage financed | B102: =DefaultData!$D81 -> 0.7 | D102: =DefaultData!$G72 -> 0 | AE102: =DefaultData!$D81 -> 0.7 | AG102: =DefaultData!$G72 -> 0
A103: =DefaultData!C82 -> Years financed (term) | B103: 20 | AE103: 20
A104: =DefaultData!C83 -> Interest rate | B104: =DefaultData!$D83 -> 0.055 | AE104: =DefaultData!$D83 -> 0.055
A105: =DefaultData!C85 -> Equity Financing/Repayment
A106: =DefaultData!C86 -> Percentage equity | B106: =1-B102 -> 0.3
A107: =DefaultData!C87 -> Individual Investors (percent of equity) | B107: =DefaultData!$D87 -> 0 | D107: =DefaultData!$G87 -> 0 | AE107: =DefaultData!$D87 -> 0 | AG107: =DefaultData!$G87 -> 0
A108: =DefaultData!C88 -> Corporate Investors (percent of equity) | B108: =1-B107 -> 1 | D108: =DefaultData!$G88 -> 0 | AG108: =DefaultData!$G88 -> 0
A109: =DefaultData!C89 -> Return on equity | B109: =DefaultData!$D89 -> 0.1 | AE109: =DefaultData!$D89 -> 0.1
A110: =DefaultData!C90 -> Repayment term (years) | B110: =DefaultData!$D90 -> 10 | AE110: =DefaultData!$D90 -> 10
A111: =DefaultData!C91 -> Tax Parameters
A112: =DefaultData!C92 -> Local Property/Other Tax Rate (percent of taxable value) | B112: =DefaultData!$D92 -> 0 | AE112: =DefaultData!$D92 -> 0
A113: =DefaultData!C93 -> Assessed Value (percent of construction cost) | B113: =DefaultData!$D93 -> 1 | AE113: =DefaultData!$D93 -> 1
A114: =DefaultData!C94 -> Taxable Value (percent of assessed value) | B114: =DefaultData!$D94 -> 1 | AE114: =DefaultData!$D94 -> 1
A115: =DefaultData!C95 -> Taxable Value (millions) | B115: =+B114*B113*B77 -> 695.7115516 | AE115: =+AE114*AE113*AE77 -> 0
A116: =DefaultData!C96 -> Local Taxes (millions) | B116: =B115*B112 -> 0 | D116: =DefaultData!$G96 -> 1 | AE116: =AE115*AE112 -> 0 | AG116: =DefaultData!$G96 -> 1
A117: =DefaultData!C98 -> Land Purchase Parameters
A118: =DefaultData!C99 -> Land Purchase (total cost in millions) | B118: =DefaultData!$D99 -> 0 | AE118: =DefaultData!$D99 -> 0
A119: =DefaultData!C100 -> Land Payment Recipient (H = household, O = Other) | B119: =DefaultData!$D100 -> O | D119: =DefaultData!$G100 -> 1 | AE119: =DefaultData!$D100 -> O | AG119: =DefaultData!$G100 -> 1
A120: Payroll Parameters | B120: Wage per hour | D120: Employer Payroll Overhead
A121: Construction
A122: Labor (average wage per hour for all construction workers) | B122: =DefaultData!$E104 -> 52.40630329 | D122: =DefaultData!$G104 -> 0.331 | AE122: =DefaultData!$E104 -> 52.40630329 | AG122: =DefaultData!$G104 -> 0.331
A123: Operations
A124: Labor (average wage per hour for all plant staff and operators) | B124: =DefaultData!$E107 -> 43.26 | D124: =DefaultData!$G107 -> 0.331 | AE124: =DefaultData!$E107 -> 43.26 | AG124: =DefaultData!$G107 -> 0.331
O178: MyCounty
O179: MyRegion
O180: Alabama
O181: Alaska
O182: Arizona
O183: Arkansas
O184: California
O185: Colorado
O186: Connecticut
O187: Delaware
O188: District of Columbia
O189: Florida
O190: Georgia
O191: Hawaii
O192: Idaho
O193: Illinois
O194: Indiana
O195: Iowa
O196: Kansas
O197: Kentucky
O198: Louisiana
O199: Maine
O200: Maryland
O201: Massachusets
O202: Michigan
O203: Minnesota
O204: Mississippi
O205: Missouri
O206: Montana
O207: Nebraska
O208: Nevada
O209: New Hampshire
O210: New Jersey
O211: New Mexico
O212: New York
O213: North Carolina
O214: North Dakota
O215: Ohio
O216: Oklahoma
O217: Oregon
O218: Pennsylvania
O219: Rhode Island
O220: South Carolina
O221: South Dakota
O222: Tennessee
O223: Texas
O224: United States
O225: Utah
O226: Vermont
O227: Virginia
O228: Washington
O229: West Virginia
O230: Wisconsin
O231: Wyoming
J236: 1

Sheet SummaryResults
A1: =IF(ProjectData!B36="Advanced","Petroleum Refinery - Project Data Summary based on Advanced Analysis - User Revised Data","Petroleum Refinery - Project Data Summary based on Simple Analysis - Model Default Data") -> Petroleum Refinery - Project Data Summary based on Advanced Analysis - User Revised Data | BB1: =Summary_Results -> Petroleum Refinery - Project Data Summary based on Advanced Analysis - User Revised Data
A2: =ProjectData!A16 -> Project Location | C2: =IF(ProjectData!B16="MyCounty",'User Add-in Location'!B3,IF(ProjectData!B16="MyRegion",'User Add-in Location'!B4,ProjectData!B16)) -> Arizona | F2: =ProjectData!E37 ->  | BB2: Project Location | BD2: =C2 -> Arizona
A3: =ProjectData!A18 -> Year Construction Starts | C3: =ProjectData!B18 -> 2014 | BB3: Year Construction Starts | BD3: =C3 -> 2014
A4: =ProjectData!A19 -> Construction Period (Months) | C4: =ProjectData!B19 -> 48 | D4: =ProjectData!C16 ->  | Z4: =C4/12 -> 4 | BB4: Construction Period (Months) | BD4: 48
A5: =ProjectData!A21 -> Refinery Complexity (Simple, Complex, Very Complex) | C5: =ProjectData!B21 -> Simple | BB5: Refinery Complexity (Simple, Complex, Very Complex) | BD5: =C5 -> Simple
A7: =ProjectData!A23 -> Crude Oil Charge Rate (BPCD) | C7: =ProjectData!B23 -> 30000 | BB7: Crude Oil Charge Rate (BPCD) | BD7: =C7 -> 30000
A8: =ProjectData!A25 -> Crude Storage Capacity (Days) | C8: =ProjectData!B25 -> 12 | BB8: Crude Storage Capacity (Days) | BD8: =C8 -> 12
A9: =ProjectData!A26 -> Finished Product Storage Capacity (Days) | C9: =ProjectData!B26 -> 25 | BB9: Finished Product Storage Capacity (Days) | BD9: 25
A10: =ProjectData!A27 -> Total Storage Capacity (Barrels) | C10: =ProjectData!B27 -> 1191626.409 | BB10: Total Storage Capacity (Barrels) | BD10: 1191626.409
A11: =ProjectData!A29 -> Cost of Crude Oil ($/barrel) | C11: =ProjectData!B29 -> 95.98 | BB11: Cost of Crude Oil ($/barrel) | BD11: 95.98
A12: =ProjectData!A30 -> Crude Oil Produced in Arizona (Percent) | C12: =ProjectData!B30 -> 0 | BB12: =A12 -> Crude Oil Produced in Arizona (Percent) | BD12: 0
A13: =ProjectData!A32 -> Money Value (Dollar Year) | C13: =ProjectData!B32 -> 2012 | BB13: Money Value (Dollar Year) | BD13: 2012
A15: Project Construction Cost (Million Dollars) | C15: =Calculations!D41 -> 695.7115516 | BB15: Project Construction Cost (Million Dollars) | BD15: 695.7115516
A16: Local Spending | C16: =Calculations!G41 -> 242.6421614 | BB16: Local Spending | BD16: 242.6421614
A17: Total Annual Operational Expenses | C17: =C18+C20 -> 1162.371174 | BB17: Total Annual Operational Expenses | BD17: 1162.371174
A18: Direct Operating and Maintenance Costs | C18: =Calculations!D96 -> 1095.034993 | BB18: Direct Operating and Maintenance Costs | BD18: 1095.034993
A19: Local Spending | C19: =Calculations!G84 -> 10.27475414 | BB19: Local Spending | BD19: 10.27475414
A20: Other Annual Costs | C20: =Calculations!E96 -> 67.3361818 | BB20: Other Annual Costs | BD20: 67.3361818
A21: Local Spending | C21: =Calculations!G96 -> 0 | BB21: Local Spending | BD21: 0
A22: Debt and Equity Payments | C22: =SUM(Calculations!G90:G92) -> 0 | BB22: Debt and Equity Payments | BD22: 0
A23: Property Taxes | C23: =Calculations!G93 -> 0 | BB23: Property Taxes | BD23: 0
A24: =ProjectData!C18 ->  | C24: =ProjectData!C34 ->  | BB24: =A24 -> 
A25: Local Economic Impacts - Summary Results | BB25: Local Economic Impacts - Summary Results
B26: Jobs | C26: Earnings | D26: Output | E26: Value Added | BC26: =B26 -> Jobs | BD26: Earnings | BE26: Output | BF26: Value Added
A27: During construction period | BB27: During construction period
A28: Project Development and Onsite Labor Impacts | B28: =Calculations!AH38 -> 842.8089176 | C28: =Calculations!AI38 -> 114.2902653 | D28: =Calculations!AJ38 -> 130.3364862 | E28: =Calculations!AK38 -> 115.6332756 | Z28: =B33/(C4/12) -> 667.9145833 | BB28: Project Development and Onsite Labor Impacts | BC28: =B28 -> 842.8089176 | BD28: 114.2902653 | BE28: 130.3364862 | BF28: 115.6332756
A29: Construction and Interconnection Labor | B29: =Calculations!AH39 -> 842.8089176 | C29: =Calculations!AI39 -> 114.2902653 | Z29: =ROUND(Z28,0) -> 668 | BB29: Construction and Interconnection Labor | BC29: 842.8089176 | BD29: 114.2902653
A30: Construction Related Services | B30: =Calculations!AH40 -> 0 | C30: =Calculations!AI40 -> 0 | BB30: =A30 -> Construction Related Services | BC30: 0 | BD30: =C30 -> 0
A31: Local Revenue and Supply Chain Impacts | B31: =Calculations!AH41 -> 1137.176612 | C31: =Calculations!AI41 -> 78.48415539 | D31: =Calculations!AJ41 -> 353.7950757 | E31: =Calculations!AK41 -> 135.9068737 | BB31: Local Revenue and Supply Chain Impacts | BC31: 1137.176612 | BD31: 78.48415539 | BE31: 353.7950757 | BF31: 135.9068737
A32: Induced Impacts | B32: =Calculations!AH42 -> 691.6728033 | C32: =Calculations!AI42 -> 37.12331198 | D32: =Calculations!AJ42 -> 109.2372855 | E32: =Calculations!AK42 -> 63.04784651 | BB32: Induced Impacts | BC32: 691.6728033 | BD32: 37.12331198 | BE32: 109.2372855 | BF32: 63.04784651
A33: Total Impacts | B33: =Calculations!AH43 -> 2671.658333 | C33: =Calculations!AI43 -> 229.8977327 | D33: =Calculations!AJ43 -> 593.3688474 | E33: =Calculations!AK43 -> 314.5879958 | BB33: Total Impacts | BC33: 2671.658333 | BD33: 229.8977327 | BE33: 593.3688474 | BF33: 314.5879958
A35: During operating years (annual) | BB35: During operating years (annual)
A36: Onsite Labor Impacts | B36: =Calculations!AH47 -> 48.06416193 | C36: =Calculations!AI47 -> 5.704194139 | D36: =Calculations!AJ46 -> 5.704194139 | E36: =Calculations!AK46 -> 5.704194139 | BB36: Onsite Labor Impacts | BC36: =B36 -> 48.06416193 | BD36: 5.704194139 | BE36: 5.704194139 | BF36: 5.704194139
A37: Local Revenue and Supply Chain Impacts | B37: =Calculations!AH48 -> 97.27876135 | C37: =Calculations!AI48 -> 4.797255616 | D37: =Calculations!AJ48 -> 20.04259341 | E37: =Calculations!AK48 -> 10.98769994 | BB37: Local Revenue and Supply Chain Impacts | BC37: =B37 -> 97.27876135 | BD37: 4.797255616 | BE37: 20.04259341 | BF37: 10.98769994
A38: Induced Impacts | B38: =Calculations!AH49 -> 53.47747083 | C38: =Calculations!AI49 -> 2.53305587 | D38: =Calculations!AJ49 -> 7.453744188 | E38: =Calculations!AK49 -> 4.302015396 | BB38: Induced Impacts | BC38: =B38 -> 53.47747083 | BD38: 2.53305587 | BE38: 7.453744188 | BF38: 4.302015396
A39: Total Impacts | B39: =Calculations!AH50 -> 198.8203941 | C39: =Calculations!AI50 -> 13.03450562 | D39: =Calculations!AJ50 -> 33.20053174 | E39: =Calculations!AK50 -> 20.99390947 | BB39: Total Impacts | BC39: =B39 -> 198.8203941 | BD39: 13.03450562 | BE39: 33.20053174 | BF39: 20.99390947
A40: =CONCATENATE("Notes: Earnings and Output values are millions of dollars in year ",C13, " dollars. Construction period related jobs are full-") -> Notes: Earnings and Output values are millions of dollars in year 2012 dollars. Construction period related jobs are full- | BB40: Notes: Earnings and Output values are millions of dollars in year 2012 dollars. Construction period related jobs are full-
A41: =CONCATENATE(" time equivalent for the ",C4," months (an average of ", Z29," full-time equivalent jobs each year for ",Z4," years ). Plant workers") -> time equivalent for the 48 months (an average of 668 full-time equivalent jobs each year for 4 years ). Plant workers | BB41: time equivalent for the 48 months (an average of 668 full-time equivalent jobs each year for 4 years ). Plant workers
A42: includes operators, maintenance, lab techs, administration and management. Economic impacts "During operating years" | BB42: includes operators, maintenance, lab techs, administration and management. Economic impacts "During operating years"
A43: represent impacts that occur from plant operations/expenditures. The analysis does not include impacts associated | BB43: represent impacts that occur from plant operations/expenditures. The analysis does not include impacts associated
A44: with spending of plant "profits" and assumes no tax abatement unless noted. Totals may not add up due to independent rounding. | BB44: with spending of plant "profits" and assumes no tax abatement unless noted. Totals may not add up due to independent rounding.
A47: Detailed Petroleum Refinery Project Data Costs | C47: =Calculations!E1 -> Arizona | BB47: Detailed Petroleum Refinery Project Data Costs | BD47: Arizona
A49: =Calculations!AB4 -> Project Construction Costs | BB49: Project Construction Costs
A50: =Calculations!AB5 -> Construction Costs | C50: Cost (Millions) | D50: =Calculations!AD5 -> Local Share | BB50: Construction Costs | BD50: Cost (Millions) | BE50: Local Share
A51: =Calculations!AB6 -> Process Units | BB51: Process Units
A52: =Calculations!AB7 -> Atmospheric Distillation | C52: =Calculations!AC7 -> 18.58270689 | D52: =Calculations!AD7 -> 0 | BB52: Atmospheric Distillation | BD52: 18.58270689 | BE52: 0
A53: =Calculations!AB8 -> Catalytic Reforming | C53: =Calculations!AC8 -> 31.32941723 | D53: =Calculations!AD8 -> 0 | BB53: Catalytic Reforming | BD53: 31.32941723 | BE53: 0
A54: =Calculations!AB9 -> Catalytic Hydrotreatment | C54: =Calculations!AC9 -> 24.4507617 | D54: =Calculations!AD9 -> 0 | BB54: Catalytic Hydrotreatment | BD54: 24.4507617 | BE54: 0
A55: =Calculations!AB10 -> FCC, visbreaker and associated plant | C55: =Calculations!AC10 -> 0 | BB55: FCC, visbreaker and associated plant | BD55: =C55 -> 0 | BE55: =D55 -> 0
A56: =Calculations!AB11 -> Vacuum distillation for FCC | BB56: Vacuum distillation for FCC | BD56: 0 | BE56: 0
A57: =Calculations!AB12 -> Deep Conversion units | C57: =Calculations!AC12 -> 0 | D57: =Calculations!AD12 -> 0 | BB57: Deep Conversion units | BD57: 0 | BE57: 0
A58: =Calculations!AB13 -> Other units | C58: =Calculations!AC13 -> 1.162032454 | D58: =Calculations!AD13 -> 0 | BB58: Other units | BD58: 1.162032454 | BE58: 0
A59: =Calculations!AB14 -> Subtotal | C59: =Calculations!AC14 -> 75.52491827 | D59: =Calculations!AD14 -> 0 | BB59: Subtotal | BD59: 75.52491827
A60: =Calculations!AB15 -> Utilities | BB60: Utilities
A61: =Calculations!AB16 -> Steam and/or electricity production | C61: =Calculations!AC16 -> 32.38295864 | D61: =Calculations!AD16 -> 0 | BB61: Steam and/or electricity production | BD61: =C61 -> 32.38295864 | BE61: =D61 -> 0
A62: =Calculations!AB17 -> Steam and utilities distribution | C62: =Calculations!AC17 -> 21.76614568 | D62: =Calculations!AD17 -> 0 | BB62: Steam and utilities distribution | BD62: 21.76614568 | BE62: 0
A63: =Calculations!AB18 -> Production and/or distribution of other utilities | C63: =Calculations!AC18 -> 5.022956696 | D63: =Calculations!AD18 -> 0 | BB63: Production and/or distribution of other utilities | BD63: 5.022956696 | BE63: 0
A64: =Calculations!AB19 -> Cooling Water system | C64: =Calculations!AC19 -> 10.79431955 | D64: =Calculations!AD19 -> 0 | BB64: Cooling Water system | BD64: 10.79431955 | BE64: 0
A65: =Calculations!AB20 -> Subtotal | C65: =Calculations!AC20 -> 69.96638056 | BB65: Subtotal | BD65: 69.96638056
A66: =Calculations!AB21 -> Security and Environmental Installations | BB66: Security and Environmental Installations
A67: =Calculations!AB22 -> Fire fighting system | C67: =Calculations!AC22 -> 6.671431897 | D67: =Calculations!AD22 -> 0 | BB67: =A67 -> Fire fighting system | BD67: =C67 -> 6.671431897 | BE67: =D67 -> 0
A68: =Calculations!AB23 -> Flare and liquid effluent treatment systems | C68: =Calculations!AC23 -> 22.87348079 | D68: =Calculations!AD23 -> 0 | BB68: Flare and liquid effluent treatment systems | BD68: 22.87348079 | BE68: 0
A69: =Calculations!AB24 -> Subtotal | C69: =Calculations!AC24 -> 29.54491269 | BB69: Subtotal | BD69: =C69 -> 29.54491269
A70: =Calculations!AB25 -> Storage and Dispatch | BB70: =A70 -> Storage and Dispatch
A71: =Calculations!AB26 -> Storage of liquid products and LPG (if applicable) | C71: =Calculations!AC26 -> 149.7409003 | D71: =Calculations!AD26 -> 0.75 | BB71: Storage of liquid products and LPG (if applicable) | BD71: 149.7409003 | BE71: 0.75
A72: =Calculations!AB27 -> Subtotal | C72: =Calculations!AC27 -> 149.7409003 | BB72: Subtotal | BD72: 149.7409003
A73: =Calculations!AB28 -> Infrastructure | BB73: Infrastructure
A74: =Calculations!AB29 -> Site prep, roads, general infrastructure | C74: =Calculations!AC29 -> 14.05015119 | D74: =Calculations!AD29 -> 1 | BB74: Site prep, roads, general infrastructure | BD74: =C74 -> 14.05015119 | BE74: =D74 -> 1
A75: =Calculations!AB30 -> Buildings | C75: =Calculations!AC30 -> 11.94262851 | D75: =Calculations!AD30 -> 1 | BB75: Buildings | BD75: 11.94262851 | BE75: 1
A76: =Calculations!AB31 -> Subtotal | C76: =Calculations!AC31 -> 25.99277969 | BB76: Subtotal | BD76: 25.99277969
A77: =Calculations!AB32 -> Labor | BB77: Labor
A78: =Calculations!AB33 -> All construction | C78: =Calculations!AC33 -> 208.687413 | D78: =Calculations!AD33 -> 0.5 | BB78: All construction | BD78: 208.687413 | BE78: 0.5
A79: =Calculations!AB35 -> Subtotal | C79: =Calculations!AC35 -> 208.687413 | BB79: Subtotal | BD79: 208.687413
A80: =Calculations!AB36 -> Other Costs | BB80: Other Costs
A81: =Calculations!AB37 -> Engineering/Design Services | C81: =Calculations!AC37 -> 70.47633474 | D81: =Calculations!AD37 -> 0 | BB81: Engineering/Design Services | BD81: 70.47633474 | BE81: 0
A82: =Calculations!AB38 -> Construction Services | C82: =Calculations!AC38 -> 1.174605579 | D82: =Calculations!AD38 -> 0 | BB82: Construction Services | BD82: 1.174605579 | BE82: 0
A83: =Calculations!AB39 -> Project Management | C83: =Calculations!AC39 -> 64.60330685 | D83: =Calculations!AD39 -> 0 | BB83: Project Management | BD83: 64.60330685 | BE83: 0
A84: =Calculations!AB40 -> Subtotal | C84: =Calculations!AC40 -> 136.2542472 | BB84: Subtotal | BD84: 136.2542472
A85: =Calculations!AB41 -> Total | C85: =Calculations!AC41 -> 695.7115516 | BB85: =A85 -> Total | BD85: =C85 -> 695.7115516
A87: =Calculations!AB43 -> Annual Operating and Maintenance Costs | BB87: Annual Operating and Maintenance Costs
A89: =Calculations!AB45 -> Variable | C89: Cost (Millions) | D89: =Calculations!AD45 -> Local Share | BB89: =A89 -> Variable | BD89: Cost (Millions) | BE89: =D89 -> Local Share
A90: =Calculations!AB46 -> Chemicals and Catalysts | C90: =Calculations!AC46 -> 3 | D90: =Calculations!AD46 -> 0 | BB90: =A90 -> Chemicals and Catalysts | BD90: 3 | BE90: 0
A91: =Calculations!AB47 -> Utilities | C91: =Calculations!AC47 -> 4.2 | D91: =Calculations!AD47 -> 1 | BB91: =A91 -> Utilities | BD91: 4.2 | BE91: 1
A92: =Calculations!AB48 -> Subtotal | C92: =Calculations!AC48 -> 7.2 | BB92: =A92 -> Subtotal | BD92: =C92 -> 7.2
A93: =Calculations!AB49 -> Fixed | BB93: Fixed
A94: =Calculations!AB50 -> Labor | C94: =Calculations!AC50 -> 3.987619486 | D94: =Calculations!AD50 -> 1 | BB94: Labor | BD94: 3.987619486 | BE94: =D94 -> 1
A95: =Calculations!AB51 -> Maintenance | C95: =Calculations!AC51 -> 20.87134655 | D95: =Calculations!AD51 -> 1 | BB95: Maintenance | BD95: 20.87134655 | BE95: 1
A96: =Calculations!AB53 -> Other Costs | BB96: Other Costs
A97: =Calculations!AB54 -> Insurance | C97: =Calculations!AC54 -> 3.478557758 | D97: =Calculations!AD54 -> 0 | BB97: Insurance | BD97: 3.478557758 | BE97: 0
A98: =Calculations!AB55 -> Misc. Supplies | C98: =Calculations!AC55 -> 1.043567327 | D98: =Calculations!AD55 -> 0 | BB98: Misc. Supplies | BD98: 1.043567327 | BE98: 0
A99: =Calculations!AB56 -> Other Operating Costs | C99: =Calculations!AC56 -> 7.472901451 | D99: =Calculations!AD56 -> 0 | BB99: Other Operating Costs | BD99: 7.472901451 | BE99: 0
A100: =Calculations!AB57 -> Subtotal | C100: =Calculations!AC57 -> 11.99502654 | BB100: Subtotal | BD100: 11.99502654
A101: =Calculations!AB58 -> Fuel | C101: =Calculations!AC58 -> 1050.981 | D101: =Calculations!AD58 -> 0 | BB101: Fuel | BD101: 1050.981 | BE101: 0
A102: =Calculations!AB59 -> Total | C102: =Calculations!AC59 -> 1095.034993 | BB102: Total | BD102: 1095.034993
A104: =Calculations!AB61 -> Other Parameters | D104: =Calculations!AD61 -> Local Share | BB104: =A104 -> Other Parameters
A105: =Calculations!AB62 -> Financial Parameters | BB105: Financial Parameters
A106: =Calculations!AB63 -> Debt Financing | BB106: Debt Financing
A107: =Calculations!AB64 -> Percentage financed | C107: =Calculations!AC64 -> 0.7 | D107: =Calculations!AD64 -> 0 | BB107: Percentage financed | BD107: =C107 -> 0.7 | BE107: =D107 -> 0
A108: =Calculations!AB65 -> Years financed (term) | C108: =Calculations!AC65 -> 20 | BB108: Years financed (term) | BD108: =C108 -> 20
A109: =Calculations!AB66 -> Interest rate | C109: =Calculations!AC66 -> 0.055 | BB109: Interest rate | BD109: =C109 -> 0.055
A110: =Calculations!AB67 -> Equity Financing/Repayment | BB110: Equity Financing/Repayment
A111: =Calculations!AB68 -> Percentage equity | C111: =Calculations!AC68 -> 0.3 | BB111: Percentage equity | BD111: =C111 -> 0.3
A112: =Calculations!AB69 -> Individual Investors (percent of equity) | C112: =Calculations!AC69 -> 0 | D112: =Calculations!AD69 -> 0 | BB112: Individual Investors (percent of equity) | BD112: =C112 -> 0 | BE112: =D112 -> 0
A113: =Calculations!AB70 -> Corporate Investors (percent of equity) | C113: =Calculations!AC70 -> 1 | D113: =Calculations!AD70 -> 0 | BB113: Corporate Investors (percent of equity) | BD113: =C113 -> 1 | BE113: =D113 -> 0
A114: =Calculations!AB71 -> Return on equity | C114: =Calculations!AC71 -> 0.1 | BB114: Return on equity | BD114: =C114 -> 0.1
A115: =Calculations!AB72 -> Repayment term (years) | C115: =Calculations!AC72 -> 10 | BB115: Repayment term (years) | BD115: =C115 -> 10
A116: =Calculations!AB73 -> Tax Parameters | BB116: Tax Parameters
A117: =Calculations!AB74 -> Local Property/Other Tax Rate (percent of taxable value) | C117: =Calculations!AC74 -> 0 | BB117: Local Property/Other Tax Rate (percent of taxable value) | BD117: =C117 -> 0
A118: =Calculations!AB75 -> Assessed Value (percent of construction cost) | C118: =Calculations!AC75 -> 1 | BB118: Assessed Value (percent of construction cost) | BD118: 1
A119: =Calculations!AB76 -> Taxable Value (percent of assessed value) | C119: =Calculations!AC76 -> 1 | BB119: Taxable Value (percent of assessed value) | BD119: 1
A120: =Calculations!AB77 -> Taxable Value (millions) | C120: =Calculations!AC77 -> 695.7115516 | BB120: Taxable Value (millions) | BD120: 695.7115516
A121: =Calculations!AB78 -> Local Taxes (millions) | C121: =Calculations!AC78 -> 0 | BB121: Local Taxes (millions) | BD121: 0
A122: =Calculations!AB79 -> Sales Tax Rate | C122: =Calculations!AC79 -> 0 | D122: =Calculations!AD79 -> 0 | BB122: Sales Tax Rate | BD122: 0 | BE122: =D122 -> 0
A123: =Calculations!AB80 -> Land Purchase Parameters | BB123: Land Purchase Parameters
A124: =Calculations!AB81 -> Land Purchase (total cost in millions) | C124: =Calculations!AC81 -> 0 | BB124: Land Purchase (total cost in millions) | BD124: =C124 -> 0
A125: =Calculations!AB82 -> Land Payment Recipient (H = household, O = Other) | C125: =Calculations!AC82 -> O | D125: =Calculations!AD82 -> 0 | BB125: Land Payment Recipient (H = household, O = Other) | BD125: =C125 -> O | BE125: =D125 -> 0
A126: =Calculations!AB83 -> Payroll Parameters | C126: =Calculations!AC83 -> Wage per hour | D126: =Calculations!AD83 -> Employer Payroll Overhead | BB126: Payroll Parameters | BD126: =C126 -> Wage per hour | BE126: Employer Payroll Overhead
A127: =Calculations!AB84 -> Construction | BB127: Construction
A128: =Calculations!AB85 -> Labor (average wage per hour for all construction workers) | C128: =Calculations!AC85 -> 52.40630329 | D128: =Calculations!AD85 -> 0.331 | BB128: Labor (average wage per hour for all construction workers) | BD128: =C128 -> 52.40630329 | BE128: =D128 -> 0.331
A129: =Calculations!AB86 -> Operations | BB129: Operations
A130: =Calculations!AB87 -> Labor (average wage per hour for all plant staff and operators) | C130: =Calculations!AC87 -> 43.26 | D130: =Calculations!AD87 -> 0.331 | BB130: Labor (average wage per hour for all plant staff and operators) | BD130: =C130 -> 43.26 | BE130: =D130 -> 0.331

Sheet User Add-in Location
A1: Multipliers For Economic Input-Output Analysis
A3: MyCounty (name) | C3: Year of Data | E3: =IF(B3="","",IF(D3="","Enter Year of Data",IF(D3>2006,IF(D3<2016,"","ERROR - Deflators Data Not Current"),"ERROR - Deflators Data Not Current"))) -> 
A4: MyRegion (name) | C4: Year of Data | E4: =IF(B4="","",IF(D4="","Enter Year of Data",IF(D4>2006,IF(D4<2016,"","ERROR - Deflators Data Not Current"),"ERROR - Deflators Data Not Current"))) -> 
A5: State (where County or Region is located)
A6: Crude Oil Price - in year of Data ($/barrel) | C6: =IF(B6>0,""," Enter Crude Oil Price in same year as Year of Data") -> Enter Crude Oil Price in same year as Year of Data | J6: Unaggregated Multipliers (Per Million Dollars Change in Final Demand)
A7: Jobs Per Million Dollars Change in Final Demand | D7: Personal Consumption Expenditures (PCE) | K7: Jobs | N7: Earnings | Q7: Output | T7: Value Added
A8: Jobs Direct Multipliers | B8: MyCounty | C8: MyRegion | E8: =B8 -> MyCounty | F8: =C8 -> MyRegion | J8: Direct Multipliers | K8: MyCounty | L8: MyRegion | N8: MyCounty | O8: MyRegion | Q8: MyCounty | R8: MyRegion | T8: MyCounty | U8: MyRegion
A9: Agriculture | B9: 0 | C9: 0 | E9: 0 | F9: 0 | J9: Oilseed farming | K9: 0 | L9: 0 | N9: 0 | O9: 0 | Q9: 0 | R9: 0 | T9: 0 | U9: 0
A10: Mining | B10: 0 | C10: 0 | E10: 0 | F10: 0 | J10: Grain farming | K10: 0 | L10: 0 | N10: 0 | O10: 0 | Q10: 0 | R10: 0 | T10: 0 | U10: 0
A11: Construction | B11: 0 | C11: 0 | E11: 0 | F11: 0 | J11: Vegetable and melon farming | K11: 0 | L11: 0 | N11: 0 | O11: 0 | Q11: 0 | R11: 0 | T11: 0 | U11: 0
A12: Manufacturing | B12: 0 | C12: 0 | E12: 0 | F12: 0 | J12: Fruit farming | K12: 0 | L12: 0 | N12: 0 | O12: 0 | Q12: 0 | R12: 0 | T12: 0 | U12: 0
A13: Fabricated Metals | B13: 0 | C13: 0 | E13: 0 | F13: 0 | J13: Tree nut farming | K13: 0 | L13: 0 | N13: 0 | O13: 0 | Q13: 0 | R13: 0 | T13: 0 | U13: 0
A14: Machinery | B14: 0 | C14: 0 | E14: 0 | F14: 0 | J14: Greenhouse, nursery, and floriculture production | K14: 0 | L14: 0 | N14: 0 | O14: 0 | Q14: 0 | R14: 0 | T14: 0 | U14: 0
A15: Electrical Equipment | B15: 0 | C15: 0 | E15: 0 | F15: 0 | J15: Tobacco farming | K15: 0 | L15: 0 | N15: 0 | O15: 0 | Q15: 0 | R15: 0 | T15: 0 | U15: 0
A16: TCPU | B16: 0 | C16: 0 | E16: 0 | F16: 0 | J16: Cotton farming | K16: 0 | L16: 0 | N16: 0 | O16: 0 | Q16: 0 | R16: 0 | T16: 0 | U16: 0
A17: Wholesale Trade | B17: 0 | C17: 0 | E17: 0 | F17: 0 | J17: Sugarcane and sugar beet farming | K17: 0 | L17: 0 | N17: 0 | O17: 0 | Q17: 0 | R17: 0 | T17: 0 | U17: 0
A18: Retail Trade | B18: 0 | C18: 0 | E18: 0 | F18: 0 | J18: All other crop farming | K18: 0 | L18: 0 | N18: 0 | O18: 0 | Q18: 0 | R18: 0 | T18: 0 | U18: 0
A19: FIRE | B19: 0 | C19: 0 | E19: 0 | F19: 0 | J19: Beef cattle ranching and farming, including feedlots and dual-purpose ranching and farming | K19: 0 | L19: 0 | N19: 0 | O19: 0 | Q19: 0 | R19: 0 | T19: 0 | U19: 0
A20: Misc. Services | B20: 0 | C20: 0 | E20: 0 | F20: 0 | J20: Dairy cattle and milk production | K20: 0 | L20: 0 | N20: 0 | O20: 0 | Q20: 0 | R20: 0 | T20: 0 | U20: 0
A21: Professional Services | B21: 0 | C21: 0 | E21: 0 | F21: 0 | J21: Poultry and egg production | K21: 0 | L21: 0 | N21: 0 | O21: 0 | Q21: 0 | R21: 0 | T21: 0 | U21: 0
A22: Government | B22: 0 | C22: 0 | E22: 0 | F22: 0 | J22: Animal production, except cattle and poultry and eggs | K22: 0 | L22: 0 | N22: 0 | O22: 0 | Q22: 0 | R22: 0 | T22: 0 | U22: 0
D23: Total | E23: =SUM(E9:E22) -> 0 | F23: =SUM(F9:F22) -> 0 | J23: Forestry, forest products, and timber tract production | K23: 0 | L23: 0 | N23: 0 | O23: 0 | Q23: 0 | R23: 0 | T23: 0 | U23: 0
A24: Jobs Per Million Dollars Change in Final Demand | J24: Commercial logging | K24: 0 | L24: 0 | N24: 0 | O24: 0 | Q24: 0 | R24: 0 | T24: 0 | U24: 0
A25: Jobs Indirect Multipliers | B25: MyCounty | C25: =C8 -> MyRegion | J25: Commercial fishing | K25: 0 | L25: 0 | N25: 0 | O25: 0 | Q25: 0 | R25: 0 | T25: 0 | U25: 0
A26: Agriculture | B26: 0 | C26: 0 | J26: Commercial hunting and trapping | K26: 0 | L26: 0 | N26: 0 | O26: 0 | Q26: 0 | R26: 0 | T26: 0 | U26: 0
A27: Mining | B27: 0 | C27: 0 | J27: Support activities for agriculture and forestry | K27: 0 | L27: 0 | N27: 0 | O27: 0 | Q27: 0 | R27: 0 | T27: 0 | U27: 0
A28: Construction | B28: 0 | C28: 0 | J28: Extraction of natural gas and crude petroleum | K28: 0 | L28: 0 | N28: 0 | O28: 0 | Q28: 0 | R28: 0 | T28: 0 | U28: 0
A29: Manufacturing | B29: 0 | C29: 0 | J29: Extraction of natural gas liquids | K29: 0 | L29: 0 | N29: 0 | O29: 0 | Q29: 0 | R29: 0 | T29: 0 | U29: 0
A30: Fabricated Metals | B30: 0 | C30: 0 | J30: Coal mining | K30: 0 | L30: 0 | N30: 0 | O30: 0 | Q30: 0 | R30: 0 | T30: 0 | U30: 0
A31: Machinery | B31: 0 | C31: 0 | J31: Iron ore mining | K31: 0 | L31: 0 | N31: 0 | O31: 0 | Q31: 0 | R31: 0 | T31: 0 | U31: 0
A32: Electrical Equipment | B32: 0 | C32: 0 | J32: Gold ore mining | K32: 0 | L32: 0 | N32: 0 | O32: 0 | Q32: 0 | R32: 0 | T32: 0 | U32: 0
A33: TCPU | B33: 0 | C33: 0 | J33: Silver ore mining | K33: 0 | L33: 0 | N33: 0 | O33: 0 | Q33: 0 | R33: 0 | T33: 0 | U33: 0
A34: Wholesale Trade | B34: 0 | C34: 0 | J34: Lead and zinc ore mining | K34: 0 | L34: 0 | N34: 0 | O34: 0 | Q34: 0 | R34: 0 | T34: 0 | U34: 0
A35: Retail Trade | B35: 0 | C35: 0 | J35: Copper ore mining | K35: 0 | L35: 0 | N35: 0 | O35: 0 | Q35: 0 | R35: 0 | T35: 0 | U35: 0
A36: FIRE | B36: 0 | C36: 0 | J36: Uranium-radium-vanadium ore mining | K36: 0 | L36: 0 | N36: 0 | O36: 0 | Q36: 0 | R36: 0 | T36: 0 | U36: 0
A37: Misc. Services | B37: 0 | C37: 0 | J37: Other metal ore mining | K37: 0 | L37: 0 | N37: 0 | O37: 0 | Q37: 0 | R37: 0 | T37: 0 | U37: 0
A38: Professional Services | B38: 0 | C38: 0 | J38: Stone mining and quarrying | K38: 0 | L38: 0 | N38: 0 | O38: 0 | Q38: 0 | R38: 0 | T38: 0 | U38: 0
A39: Government | B39: 0 | C39: 0 | J39: Sand and gravel mining | K39: 0 | L39: 0 | N39: 0 | O39: 0 | Q39: 0 | R39: 0 | T39: 0 | U39: 0
J40: Other clay, ceramic, refractory minerals mining | K40: 0 | L40: 0 | N40: 0 | O40: 0 | Q40: 0 | R40: 0 | T40: 0 | U40: 0
A41: Jobs Per Million Dollars Change in Final Demand | J41: Potash, soda, and borate mineral mining | K41: 0 | L41: 0 | N41: 0 | O41: 0 | Q41: 0 | R41: 0 | T41: 0 | U41: 0
A42: Jobs Induced Multipliers | B42: MyCounty | C42: =C25 -> MyRegion | J42: Phosphate rock mining | K42: 0 | L42: 0 | N42: 0 | O42: 0 | Q42: 0 | R42: 0 | T42: 0 | U42: 0
A43: Agriculture | B43: 0 | C43: 0 | J43: Other chemical and fertilizer mineral mining | K43: 0 | L43: 0 | N43: 0 | O43: 0 | Q43: 0 | R43: 0 | T43: 0 | U43: 0
A44: Mining | B44: 0 | C44: 0 | J44: Other nonmetallic minerals | K44: 0 | L44: 0 | N44: 0 | O44: 0 | Q44: 0 | R44: 0 | T44: 0 | U44: 0
A45: Construction | B45: 0 | C45: 0 | J45: Drilling oil and gas wells | K45: 0 | L45: 0 | N45: 0 | O45: 0 | Q45: 0 | R45: 0 | T45: 0 | U45: 0
A46: Manufacturing | B46: 0 | C46: 0 | J46: Support activities for oil and gas operations | K46: 0 | L46: 0 | N46: 0 | O46: 0 | Q46: 0 | R46: 0 | T46: 0 | U46: 0
A47: Fabricated Metals | B47: 0 | C47: 0 | J47: Metal mining services | K47: 0 | L47: 0 | N47: 0 | O47: 0 | Q47: 0 | R47: 0 | T47: 0 | U47: 0
A48: Machinery | B48: 0 | C48: 0 | J48: Other nonmetallic minerals services | K48: 0 | L48: 0 | N48: 0 | O48: 0 | Q48: 0 | R48: 0 | T48: 0 | U48: 0
A49: Electrical Equipment | B49: 0 | C49: 0 | J49: Electric power generation - Hydroelectric | K49: 0 | L49: 0 | N49: 0 | O49: 0 | Q49: 0 | R49: 0 | T49: 0 | U49: 0
A50: TCPU | B50: 0 | C50: 0 | J50: Electric power generation - Fossil fuel | K50: 0 | L50: 0 | N50: 0 | O50: 0 | Q50: 0 | R50: 0 | T50: 0 | U50: 0
A51: Wholesale Trade | B51: 0 | C51: 0 | J51: Electric power generation - Nuclear | K51: 0 | L51: 0 | N51: 0 | O51: 0 | Q51: 0 | R51: 0 | T51: 0 | U51: 0
A52: Retail Trade | B52: 0 | C52: 0 | J52: Electric power generation - Solar | K52: 0 | L52: 0 | N52: 0 | O52: 0 | Q52: 0 | R52: 0 | T52: 0 | U52: 0
A53: FIRE | B53: 0 | C53: 0 | J53: Electric power generation - Wind | K53: 0 | L53: 0 | N53: 0 | O53: 0 | Q53: 0 | R53: 0 | T53: 0 | U53: 0
A54: Misc. Services | B54: 0 | C54: 0 | J54: Electric power generation - Geothermal | K54: 0 | L54: 0 | N54: 0 | O54: 0 | Q54: 0 | R54: 0 | T54: 0 | U54: 0
A55: Professional Services | B55: 0 | C55: 0 | J55: Electric power generation - Biomass | K55: 0 | L55: 0 | N55: 0 | O55: 0 | Q55: 0 | R55: 0 | T55: 0 | U55: 0
A56: Government | B56: 0 | C56: 0 | J56: Electric power generation - All other | K56: 0 | L56: 0 | N56: 0 | O56: 0 | Q56: 0 | R56: 0 | T56: 0 | U56: 0
J57: Electric power transmission and distribution | K57: 0 | L57: 0 | N57: 0 | O57: 0 | Q57: 0 | R57: 0 | T57: 0 | U57: 0
A58: Earnings Per Million Dollars Change in Final Demand | J58: Natural gas distribution | K58: 0 | L58: 0 | N58: 0 | O58: 0 | Q58: 0 | R58: 0 | T58: 0 | U58: 0
A59: Earnings Direct Multipliers | B59: MyCounty | C59: =C42 -> MyRegion | J59: Water, sewage and other systems | K59: 0 | L59: 0 | N59: 0 | O59: 0 | Q59: 0 | R59: 0 | T59: 0 | U59: 0
A60: Agriculture | B60: 0 | C60: 0 | J60: Construction of new health care structures | K60: 0 | L60: 0 | N60: 0 | O60: 0 | Q60: 0 | R60: 0 | T60: 0 | U60: 0
A61: Mining | B61: 0 | C61: 0 | J61: Construction of new manufacturing structures | K61: 0 | L61: 0 | N61: 0 | O61: 0 | Q61: 0 | R61: 0 | T61: 0 | U61: 0
A62: Construction | B62: 0 | C62: 0 | J62: Construction of new power and communication structures | K62: 0 | L62: 0 | N62: 0 | O62: 0 | Q62: 0 | R62: 0 | T62: 0 | U62: 0
A63: Manufacturing | B63: 0 | C63: 0 | J63: Construction of new educational and vocational structures | K63: 0 | L63: 0 | N63: 0 | O63: 0 | Q63: 0 | R63: 0 | T63: 0 | U63: 0
A64: Fabricated Metals | B64: 0 | C64: 0 | J64: Construction of new highways and streets | K64: 0 | L64: 0 | N64: 0 | O64: 0 | Q64: 0 | R64: 0 | T64: 0 | U64: 0
A65: Machinery | B65: 0 | C65: 0 | J65: Construction of new commercial structures, including farm structures | K65: 0 | L65: 0 | N65: 0 | O65: 0 | Q65: 0 | R65: 0 | T65: 0 | U65: 0
A66: Electrical Equipment | B66: 0 | C66: 0 | J66: Construction of other new nonresidential structures | K66: 0 | L66: 0 | N66: 0 | O66: 0 | Q66: 0 | R66: 0 | T66: 0 | U66: 0
A67: TCPU | B67: 0 | C67: 0 | J67: Construction of new single-family residential structures | K67: 0 | L67: 0 | N67: 0 | O67: 0 | Q67: 0 | R67: 0 | T67: 0 | U67: 0
A68: Wholesale Trade | B68: 0 | C68: 0 | J68: Construction of new multifamily residential structures | K68: 0 | L68: 0 | N68: 0 | O68: 0 | Q68: 0 | R68: 0 | T68: 0 | U68: 0
A69: Retail Trade | B69: 0 | C69: 0 | J69: Construction of other new residential structures | K69: 0 | L69: 0 | N69: 0 | O69: 0 | Q69: 0 | R69: 0 | T69: 0 | U69: 0
A70: FIRE | B70: 0 | C70: 0 | J70: Maintenance and repair construction of nonresidential structures | K70: 0 | L70: 0 | N70: 0 | O70: 0 | Q70: 0 | R70: 0 | T70: 0 | U70: 0
A71: Misc. Services | B71: 0 | C71: 0 | J71: Maintenance and repair construction of residential structures | K71: 0 | L71: 0 | N71: 0 | O71: 0 | Q71: 0 | R71: 0 | T71: 0 | U71: 0
A72: Professional Services | B72: 0 | C72: 0 | J72: Maintenance and repair construction of highways, streets, bridges, and tunnels | K72: 0 | L72: 0 | N72: 0 | O72: 0 | Q72: 0 | R72: 0 | T72: 0 | U72: 0
A73: Government | B73: 0 | C73: 0 | J73: Dog and cat food manufacturing | K73: 0 | L73: 0 | N73: 0 | O73: 0 | Q73: 0 | R73: 0 | T73: 0 | U73: 0
J74: Other animal food manufacturing | K74: 0 | L74: 0 | N74: 0 | O74: 0 | Q74: 0 | R74: 0 | T74: 0 | U74: 0
A75: Earnings Per Million Dollars Change in Final Demand | J75: Flour milling | K75: 0 | L75: 0 | N75: 0 | O75: 0 | Q75: 0 | R75: 0 | T75: 0 | U75: 0
A76: Earnings Indirect Multipliers | B76: MyCounty | C76: =C59 -> MyRegion | J76: Rice milling | K76: 0 | L76: 0 | N76: 0 | O76: 0 | Q76: 0 | R76: 0 | T76: 0 | U76: 0
A77: Agriculture | B77: 0 | C77: 0 | J77: Malt manufacturing | K77: 0 | L77: 0 | N77: 0 | O77: 0 | Q77: 0 | R77: 0 | T77: 0 | U77: 0
A78: Mining | B78: 0 | C78: 0 | J78: Wet corn milling | K78: 0 | L78: 0 | N78: 0 | O78: 0 | Q78: 0 | R78: 0 | T78: 0 | U78: 0
A79: Construction | B79: 0 | C79: 0 | J79: Soybean and other oilseed processing | K79: 0 | L79: 0 | N79: 0 | O79: 0 | Q79: 0 | R79: 0 | T79: 0 | U79: 0
A80: Manufacturing | B80: 0 | C80: 0 | J80: Fats and oils refining and blending | K80: 0 | L80: 0 | N80: 0 | O80: 0 | Q80: 0 | R80: 0 | T80: 0 | U80: 0
A81: Fabricated Metals | B81: 0 | C81: 0 | J81: Breakfast cereal manufacturing | K81: 0 | L81: 0 | N81: 0 | O81: 0 | Q81: 0 | R81: 0 | T81: 0 | U81: 0
A82: Machinery | B82: 0 | C82: 0 | J82: Beet sugar manufacturing | K82: 0 | L82: 0 | N82: 0 | O82: 0 | Q82: 0 | R82: 0 | T82: 0 | U82: 0
A83: Electrical Equipment | B83: 0 | C83: 0 | J83: Sugar cane mills and refining | K83: 0 | L83: 0 | N83: 0 | O83: 0 | Q83: 0 | R83: 0 | T83: 0 | U83: 0
A84: TCPU | B84: 0 | C84: 0 | J84: Nonchocolate confectionery manufacturing | K84: 0 | L84: 0 | N84: 0 | O84: 0 | Q84: 0 | R84: 0 | T84: 0 | U84: 0
A85: Wholesale Trade | B85: 0 | C85: 0 | J85: Chocolate and confectionery manufacturing from cacao beans | K85: 0 | L85: 0 | N85: 0 | O85: 0 | Q85: 0 | R85: 0 | T85: 0 | U85: 0
A86: Retail Trade | B86: 0 | C86: 0 | J86: Confectionery manufacturing from purchased chocolate | K86: 0 | L86: 0 | N86: 0 | O86: 0 | Q86: 0 | R86: 0 | T86: 0 | U86: 0
A87: FIRE | B87: 0 | C87: 0 | J87: Frozen fruits, juices and vegetables manufacturing | K87: 0 | L87: 0 | N87: 0 | O87: 0 | Q87: 0 | R87: 0 | T87: 0 | U87: 0
A88: Misc. Services | B88: 0 | C88: 0 | J88: Frozen specialties manufacturing | K88: 0 | L88: 0 | N88: 0 | O88: 0 | Q88: 0 | R88: 0 | T88: 0 | U88: 0
A89: Professional Services | B89: 0 | C89: 0 | J89: Canned fruits and vegetables manufacturing | K89: 0 | L89: 0 | N89: 0 | O89: 0 | Q89: 0 | R89: 0 | T89: 0 | U89: 0
A90: Government | B90: 0 | C90: 0 | J90: Canned specialties | K90: 0 | L90: 0 | N90: 0 | O90: 0 | Q90: 0 | R90: 0 | T90: 0 | U90: 0
J91: Dehydrated food products manufacturing | K91: 0 | L91: 0 | N91: 0 | O91: 0 | Q91: 0 | R91: 0 | T91: 0 | U91: 0
A92: Earnings Per Million Dollars Change in Final Demand | J92: Fluid milk manufacturing | K92: 0 | L92: 0 | N92: 0 | O92: 0 | Q92: 0 | R92: 0 | T92: 0 | U92: 0
A93: Earnings Induced Multipliers | B93: MyCounty | C93: =C76 -> MyRegion | J93: Creamery butter manufacturing | K93: 0 | L93: 0 | N93: 0 | O93: 0 | Q93: 0 | R93: 0 | T93: 0 | U93: 0
A94: Agriculture | B94: 0 | C94: 0 | J94: Cheese manufacturing | K94: 0 | L94: 0 | N94: 0 | O94: 0 | Q94: 0 | R94: 0 | T94: 0 | U94: 0
A95: Mining | B95: 0 | C95: 0 | J95: Dry, condensed, and evaporated dairy product manufacturing | K95: 0 | L95: 0 | N95: 0 | O95: 0 | Q95: 0 | R95: 0 | T95: 0 | U95: 0
A96: Construction | B96: 0 | C96: 0 | J96: Ice cream and frozen dessert manufacturing | K96: 0 | L96: 0 | N96: 0 | O96: 0 | Q96: 0 | R96: 0 | T96: 0 | U96: 0
A97: Manufacturing | B97: 0 | C97: 0 | J97: Animal, except poultry, slaughtering | K97: 0 | L97: 0 | N97: 0 | O97: 0 | Q97: 0 | R97: 0 | T97: 0 | U97: 0
A98: Fabricated Metals | B98: 0 | C98: 0 | J98: Meat processed from carcasses | K98: 0 | L98: 0 | N98: 0 | O98: 0 | Q98: 0 | R98: 0 | T98: 0 | U98: 0
A99: Machinery | B99: 0 | C99: 0 | J99: Rendering and meat byproduct processing | K99: 0 | L99: 0 | N99: 0 | O99: 0 | Q99: 0 | R99: 0 | T99: 0 | U99: 0
A100: Electrical Equipment | B100: 0 | C100: 0 | J100: Poultry processing | K100: 0 | L100: 0 | N100: 0 | O100: 0 | Q100: 0 | R100: 0 | T100: 0 | U100: 0
A101: TCPU | B101: 0 | C101: 0 | J101: Seafood product preparation and packaging | K101: 0 | L101: 0 | N101: 0 | O101: 0 | Q101: 0 | R101: 0 | T101: 0 | U101: 0
A102: Wholesale Trade | B102: 0 | C102: 0 | J102: Bread and bakery product, except frozen, manufacturing | K102: 0 | L102: 0 | N102: 0 | O102: 0 | Q102: 0 | R102: 0 | T102: 0 | U102: 0
A103: Retail Trade | B103: 0 | C103: 0 | J103: Frozen cakes and other pastries manufacturing | K103: 0 | L103: 0 | N103: 0 | O103: 0 | Q103: 0 | R103: 0 | T103: 0 | U103: 0
A104: FIRE | B104: 0 | C104: 0 | J104: Cookie and cracker manufacturing | K104: 0 | L104: 0 | N104: 0 | O104: 0 | Q104: 0 | R104: 0 | T104: 0 | U104: 0
A105: Misc. Services | B105: 0 | C105: 0 | J105: Dry pasta, mixes, and dough manufacturing | K105: 0 | L105: 0 | N105: 0 | O105: 0 | Q105: 0 | R105: 0 | T105: 0 | U105: 0
A106: Professional Services | B106: 0 | C106: 0 | J106: Tortilla manufacturing | K106: 0 | L106: 0 | N106: 0 | O106: 0 | Q106: 0 | R106: 0 | T106: 0 | U106: 0
A107: Government | B107: 0 | C107: 0 | J107: Roasted nuts and peanut butter manufacturing | K107: 0 | L107: 0 | N107: 0 | O107: 0 | Q107: 0 | R107: 0 | T107: 0 | U107: 0
J108: Other snack food manufacturing | K108: 0 | L108: 0 | N108: 0 | O108: 0 | Q108: 0 | R108: 0 | T108: 0 | U108: 0
A109: Output Per Million Dollars Change in Final Demand | J109: Coffee and tea manufacturing | K109: 0 | L109: 0 | N109: 0 | O109: 0 | Q109: 0 | R109: 0 | T109: 0 | U109: 0
A110: Output Direct Multipliers | B110: MyCounty | C110: =C93 -> MyRegion | J110: Flavoring syrup and concentrate manufacturing | K110: 0 | L110: 0 | N110: 0 | O110: 0 | Q110: 0 | R110: 0 | T110: 0 | U110: 0
A111: Agriculture | B111: 0 | C111: 0 | J111: Mayonnaise, dressing, and sauce manufacturing | K111: 0 | L111: 0 | N111: 0 | O111: 0 | Q111: 0 | R111: 0 | T111: 0 | U111: 0
A112: Mining | B112: 0 | C112: 0 | J112: Spice and extract manufacturing | K112: 0 | L112: 0 | N112: 0 | O112: 0 | Q112: 0 | R112: 0 | T112: 0 | U112: 0
A113: Construction | B113: 0 | C113: 0 | J113: All other food manufacturing | K113: 0 | L113: 0 | N113: 0 | O113: 0 | Q113: 0 | R113: 0 | T113: 0 | U113: 0
A114: Manufacturing | B114: 0 | C114: 0 | J114: Bottled and canned soft drinks & water | K114: 0 | L114: 0 | N114: 0 | O114: 0 | Q114: 0 | R114: 0 | T114: 0 | U114: 0
A115: Fabricated Metals | B115: 0 | C115: 0 | J115: Manufactured ice | K115: 0 | L115: 0 | N115: 0 | O115: 0 | Q115: 0 | R115: 0 | T115: 0 | U115: 0
A116: Machinery | B116: 0 | C116: 0 | J116: Breweries | K116: 0 | L116: 0 | N116: 0 | O116: 0 | Q116: 0 | R116: 0 | T116: 0 | U116: 0
A117: Electrical Equipment | B117: 0 | C117: 0 | J117: Wineries | K117: 0 | L117: 0 | N117: 0 | O117: 0 | Q117: 0 | R117: 0 | T117: 0 | U117: 0
A118: TCPU | B118: 0 | C118: 0 | J118: Distilleries | K118: 0 | L118: 0 | N118: 0 | O118: 0 | Q118: 0 | R118: 0 | T118: 0 | U118: 0
A119: Wholesale Trade | B119: 0 | C119: 0 | J119: Tobacco product manufacturing | K119: 0 | L119: 0 | N119: 0 | O119: 0 | Q119: 0 | R119: 0 | T119: 0 | U119: 0
A120: Retail Trade | B120: 0 | C120: 0 | J120: Fiber, yarn, and thread mills | K120: 0 | L120: 0 | N120: 0 | O120: 0 | Q120: 0 | R120: 0 | T120: 0 | U120: 0
A121: FIRE | B121: 0 | C121: 0 | J121: Broadwoven fabric mills | K121: 0 | L121: 0 | N121: 0 | O121: 0 | Q121: 0 | R121: 0 | T121: 0 | U121: 0
A122: Misc. Services | B122: 0 | C122: 0 | J122: Narrow fabric mills and schiffli machine embroidery | K122: 0 | L122: 0 | N122: 0 | O122: 0 | Q122: 0 | R122: 0 | T122: 0 | U122: 0
A123: Professional Services | B123: 0 | C123: 0 | J123: Nonwoven fabric mills | K123: 0 | L123: 0 | N123: 0 | O123: 0 | Q123: 0 | R123: 0 | T123: 0 | U123: 0
A124: Government | B124: 0 | C124: 0 | J124: Knit fabric mills | K124: 0 | L124: 0 | N124: 0 | O124: 0 | Q124: 0 | R124: 0 | T124: 0 | U124: 0
J125: Textile and fabric finishing mills | K125: 0 | L125: 0 | N125: 0 | O125: 0 | Q125: 0 | R125: 0 | T125: 0 | U125: 0
A126: Output Per Million Dollars Change in Final Demand | J126: Fabric coating mills | K126: 0 | L126: 0 | N126: 0 | O126: 0 | Q126: 0 | R126: 0 | T126: 0 | U126: 0
A127: Output Indirect Multipliers | B127: MyCounty | C127: =C110 -> MyRegion | J127: Carpet and rug mills | K127: 0 | L127: 0 | N127: 0 | O127: 0 | Q127: 0 | R127: 0 | T127: 0 | U127: 0
A128: Agriculture | B128: 0 | C128: 0 | J128: Curtain and linen mills | K128: 0 | L128: 0 | N128: 0 | O128: 0 | Q128: 0 | R128: 0 | T128: 0 | U128: 0
A129: Mining | B129: 0 | C129: 0 | J129: Textile bag and canvas mills | K129: 0 | L129: 0 | N129: 0 | O129: 0 | Q129: 0 | R129: 0 | T129: 0 | U129: 0
A130: Construction | B130: 0 | C130: 0 | J130: Rope, cordage, twine, tire cord and tire fabric mills | K130: 0 | L130: 0 | N130: 0 | O130: 0 | Q130: 0 | R130: 0 | T130: 0 | U130: 0
A131: Manufacturing | B131: 0 | C131: 0 | J131: Other textile product mills | K131: 0 | L131: 0 | N131: 0 | O131: 0 | Q131: 0 | R131: 0 | T131: 0 | U131: 0
A132: Fabricated Metals | B132: 0 | C132: 0 | J132: Hosiery and sock mills | K132: 0 | L132: 0 | N132: 0 | O132: 0 | Q132: 0 | R132: 0 | T132: 0 | U132: 0
A133: Machinery | B133: 0 | C133: 0 | J133: Other apparel knitting mills | K133: 0 | L133: 0 | N133: 0 | O133: 0 | Q133: 0 | R133: 0 | T133: 0 | U133: 0
A134: Electrical Equipment | B134: 0 | C134: 0 | J134: Cut and sew apparel contractors | K134: 0 | L134: 0 | N134: 0 | O134: 0 | Q134: 0 | R134: 0 | T134: 0 | U134: 0
A135: TCPU | B135: 0 | C135: 0 | J135: Mens and boys cut and sew apparel manufacturing | K135: 0 | L135: 0 | N135: 0 | O135: 0 | Q135: 0 | R135: 0 | T135: 0 | U135: 0
A136: Wholesale Trade | B136: 0 | C136: 0 | J136: Womens and girls cut and sew apparel manufacturing | K136: 0 | L136: 0 | N136: 0 | O136: 0 | Q136: 0 | R136: 0 | T136: 0 | U136: 0
A137: Retail Trade | B137: 0 | C137: 0 | J137: Other cut and sew apparel manufacturing | K137: 0 | L137: 0 | N137: 0 | O137: 0 | Q137: 0 | R137: 0 | T137: 0 | U137: 0
A138: FIRE | B138: 0 | C138: 0 | J138: Apparel accessories and other apparel manufacturing | K138: 0 | L138: 0 | N138: 0 | O138: 0 | Q138: 0 | R138: 0 | T138: 0 | U138: 0
A139: Misc. Services | B139: 0 | C139: 0 | J139: Leather and hide tanning and finishing | K139: 0 | L139: 0 | N139: 0 | O139: 0 | Q139: 0 | R139: 0 | T139: 0 | U139: 0
A140: Professional Services | B140: 0 | C140: 0 | J140: Footwear manufacturing | K140: 0 | L140: 0 | N140: 0 | O140: 0 | Q140: 0 | R140: 0 | T140: 0 | U140: 0
A141: Government | B141: 0 | C141: 0 | J141: Other leather and allied product manufacturing | K141: 0 | L141: 0 | N141: 0 | O141: 0 | Q141: 0 | R141: 0 | T141: 0 | U141: 0
J142: Sawmills | K142: 0 | L142: 0 | N142: 0 | O142: 0 | Q142: 0 | R142: 0 | T142: 0 | U142: 0
A143: Output Per Million Dollars Change in Final Demand | J143: Wood preservation | K143: 0 | L143: 0 | N143: 0 | O143: 0 | Q143: 0 | R143: 0 | T143: 0 | U143: 0
A144: Output Induced Multipliers | B144: MyCounty | C144: =C127 -> MyRegion | J144: Veneer and plywood manufacturing | K144: 0 | L144: 0 | N144: 0 | O144: 0 | Q144: 0 | R144: 0 | T144: 0 | U144: 0
A145: Agriculture | B145: 0 | C145: 0 | J145: Engineered wood member and truss manufacturing | K145: 0 | L145: 0 | N145: 0 | O145: 0 | Q145: 0 | R145: 0 | T145: 0 | U145: 0
A146: Mining | B146: 0 | C146: 0 | J146: Reconstituted wood product manufacturing | K146: 0 | L146: 0 | N146: 0 | O146: 0 | Q146: 0 | R146: 0 | T146: 0 | U146: 0
A147: Construction | B147: 0 | C147: 0 | J147: Wood windows and door manufacturing | K147: 0 | L147: 0 | N147: 0 | O147: 0 | Q147: 0 | R147: 0 | T147: 0 | U147: 0
A148: Manufacturing | B148: 0 | C148: 0 | J148: Cut stock, resawing lumber, and planing | K148: 0 | L148: 0 | N148: 0 | O148: 0 | Q148: 0 | R148: 0 | T148: 0 | U148: 0
A149: Fabricated Metals | B149: 0 | C149: 0 | J149: Other millwork, including flooring | K149: 0 | L149: 0 | N149: 0 | O149: 0 | Q149: 0 | R149: 0 | T149: 0 | U149: 0
A150: Machinery | B150: 0 | C150: 0 | J150: Wood container and pallet manufacturing | K150: 0 | L150: 0 | N150: 0 | O150: 0 | Q150: 0 | R150: 0 | T150: 0 | U150: 0
A151: Electrical Equipment | B151: 0 | C151: 0 | J151: Manufactured home (mobile home) manufacturing | K151: 0 | L151: 0 | N151: 0 | O151: 0 | Q151: 0 | R151: 0 | T151: 0 | U151: 0
A152: TCPU | B152: 0 | C152: 0 | J152: Prefabricated wood building manufacturing | K152: 0 | L152: 0 | N152: 0 | O152: 0 | Q152: 0 | R152: 0 | T152: 0 | U152: 0
A153: Wholesale Trade | B153: 0 | C153: 0 | J153: All other miscellaneous wood product manufacturing | K153: 0 | L153: 0 | N153: 0 | O153: 0 | Q153: 0 | R153: 0 | T153: 0 | U153: 0
A154: Retail Trade | B154: 0 | C154: 0 | J154: Pulp mills | K154: 0 | L154: 0 | N154: 0 | O154: 0 | Q154: 0 | R154: 0 | T154: 0 | U154: 0
A155: FIRE | B155: 0 | C155: 0 | J155: Paper mills | K155: 0 | L155: 0 | N155: 0 | O155: 0 | Q155: 0 | R155: 0 | T155: 0 | U155: 0
A156: Misc. Services | B156: 0 | C156: 0 | J156: Paperboard mills | K156: 0 | L156: 0 | N156: 0 | O156: 0 | Q156: 0 | R156: 0 | T156: 0 | U156: 0
A157: Professional Services | B157: 0 | C157: 0 | J157: Paperboard container manufacturing | K157: 0 | L157: 0 | N157: 0 | O157: 0 | Q157: 0 | R157: 0 | T157: 0 | U157: 0
A158: Government | B158: 0 | C158: 0 | J158: Paper bag and coated and treated paper manufacturing | K158: 0 | L158: 0 | N158: 0 | O158: 0 | Q158: 0 | R158: 0 | T158: 0 | U158: 0
J159: Stationery product manufacturing | K159: 0 | L159: 0 | N159: 0 | O159: 0 | Q159: 0 | R159: 0 | T159: 0 | U159: 0
A160: Value Added Per Million Dollars Change in Final Demand | J160: Sanitary paper product manufacturing | K160: 0 | L160: 0 | N160: 0 | O160: 0 | Q160: 0 | R160: 0 | T160: 0 | U160: 0
A161: Value Added Direct Multipliers | B161: MyCounty | C161: MyRegion | J161: All other converted paper product manufacturing | K161: 0 | L161: 0 | N161: 0 | O161: 0 | Q161: 0 | R161: 0 | T161: 0 | U161: 0
A162: Agriculture | B162: 0 | C162: 0 | J162: Printing | K162: 0 | L162: 0 | N162: 0 | O162: 0 | Q162: 0 | R162: 0 | T162: 0 | U162: 0
A163: Mining | B163: 0 | C163: 0 | J163: Support activities for printing | K163: 0 | L163: 0 | N163: 0 | O163: 0 | Q163: 0 | R163: 0 | T163: 0 | U163: 0
A164: Construction | B164: 0 | C164: 0 | J164: Petroleum refineries | K164: 0 | L164: 0 | N164: 0 | O164: 0 | Q164: 0 | R164: 0 | T164: 0 | U164: 0
A165: Manufacturing | B165: 0 | C165: 0 | J165: Asphalt paving mixture and block manufacturing | K165: 0 | L165: 0 | N165: 0 | O165: 0 | Q165: 0 | R165: 0 | T165: 0 | U165: 0
A166: Fabricated Metals | B166: 0 | C166: 0 | J166: Asphalt shingle and coating materials manufacturing | K166: 0 | L166: 0 | N166: 0 | O166: 0 | Q166: 0 | R166: 0 | T166: 0 | U166: 0
A167: Machinery | B167: 0 | C167: 0 | J167: Petroleum lubricating oil and grease manufacturing | K167: 0 | L167: 0 | N167: 0 | O167: 0 | Q167: 0 | R167: 0 | T167: 0 | U167: 0
A168: Electrical Equipment | B168: 0 | C168: 0 | J168: All other petroleum and coal products manufacturing | K168: 0 | L168: 0 | N168: 0 | O168: 0 | Q168: 0 | R168: 0 | T168: 0 | U168: 0
A169: TCPU | B169: 0 | C169: 0 | J169: Petrochemical manufacturing | K169: 0 | L169: 0 | N169: 0 | O169: 0 | Q169: 0 | R169: 0 | T169: 0 | U169: 0
A170: Wholesale Trade | B170: 0 | C170: 0 | J170: Industrial gas manufacturing | K170: 0 | L170: 0 | N170: 0 | O170: 0 | Q170: 0 | R170: 0 | T170: 0 | U170: 0
A171: Retail Trade | B171: 0 | C171: 0 | J171: Synthetic dye and pigment manufacturing | K171: 0 | L171: 0 | N171: 0 | O171: 0 | Q171: 0 | R171: 0 | T171: 0 | U171: 0
A172: FIRE | B172: 0 | C172: 0 | J172: Other basic inorganic chemical manufacturing | K172: 0 | L172: 0 | N172: 0 | O172: 0 | Q172: 0 | R172: 0 | T172: 0 | U172: 0
A173: Misc. Services | B173: 0 | C173: 0 | J173: Other basic organic chemical manufacturing | K173: 0 | L173: 0 | N173: 0 | O173: 0 | Q173: 0 | R173: 0 | T173: 0 | U173: 0
A174: Professional Services | B174: 0 | C174: 0 | J174: Plastics material and resin manufacturing | K174: 0 | L174: 0 | N174: 0 | O174: 0 | Q174: 0 | R174: 0 | T174: 0 | U174: 0
A175: Government | B175: 0 | C175: 0 | J175: Synthetic rubber manufacturing | K175: 0 | L175: 0 | N175: 0 | O175: 0 | Q175: 0 | R175: 0 | T175: 0 | U175: 0
J176: Artificial and synthetic fibers and filaments manufacturing | K176: 0 | L176: 0 | N176: 0 | O176: 0 | Q176: 0 | R176: 0 | T176: 0 | U176: 0
A177: Value Added Per Million Dollars Change in Final Demand | J177: Nitrogenous fertilizer manufacturing | K177: 0 | L177: 0 | N177: 0 | O177: 0 | Q177: 0 | R177: 0 | T177: 0 | U177: 0
A178: Value Added Indirect Multipliers | B178: MyCounty | C178: MyRegion | J178: Phosphatic fertilizer manufacturing | K178: 0 | L178: 0 | N178: 0 | O178: 0 | Q178: 0 | R178: 0 | T178: 0 | U178: 0
A179: Agriculture | B179: 0 | C179: 0 | J179: Fertilizer mixing | K179: 0 | L179: 0 | N179: 0 | O179: 0 | Q179: 0 | R179: 0 | T179: 0 | U179: 0
A180: Mining | B180: 0 | C180: 0 | J180: Pesticide and other agricultural chemical manufacturing | K180: 0 | L180: 0 | N180: 0 | O180: 0 | Q180: 0 | R180: 0 | T180: 0 | U180: 0
A181: Construction | B181: 0 | C181: 0 | J181: Medicinal and botanical manufacturing | K181: 0 | L181: 0 | N181: 0 | O181: 0 | Q181: 0 | R181: 0 | T181: 0 | U181: 0
A182: Manufacturing | B182: 0 | C182: 0 | J182: Pharmaceutical preparation manufacturing | K182: 0 | L182: 0 | N182: 0 | O182: 0 | Q182: 0 | R182: 0 | T182: 0 | U182: 0
A183: Fabricated Metals | B183: 0 | C183: 0 | J183: In-vitro diagnostic substance manufacturing | K183: 0 | L183: 0 | N183: 0 | O183: 0 | Q183: 0 | R183: 0 | T183: 0 | U183: 0
A184: Machinery | B184: 0 | C184: 0 | J184: Biological product (except diagnostic) manufacturing | K184: 0 | L184: 0 | N184: 0 | O184: 0 | Q184: 0 | R184: 0 | T184: 0 | U184: 0
A185: Electrical Equipment | B185: 0 | C185: 0 | J185: Paint and coating manufacturing | K185: 0 | L185: 0 | N185: 0 | O185: 0 | Q185: 0 | R185: 0 | T185: 0 | U185: 0
A186: TCPU | B186: 0 | C186: 0 | J186: Adhesive manufacturing | K186: 0 | L186: 0 | N186: 0 | O186: 0 | Q186: 0 | R186: 0 | T186: 0 | U186: 0
A187: Wholesale Trade | B187: 0 | C187: 0 | J187: Soap and other detergent manufacturing | K187: 0 | L187: 0 | N187: 0 | O187: 0 | Q187: 0 | R187: 0 | T187: 0 | U187: 0
A188: Retail Trade | B188: 0 | C188: 0 | J188: Polish and other sanitation good manufacturing | K188: 0 | L188: 0 | N188: 0 | O188: 0 | Q188: 0 | R188: 0 | T188: 0 | U188: 0
A189: FIRE | B189: 0 | C189: 0 | J189: Surface active agent manufacturing | K189: 0 | L189: 0 | N189: 0 | O189: 0 | Q189: 0 | R189: 0 | T189: 0 | U189: 0
A190: Misc. Services | B190: 0 | C190: 0 | J190: Toilet preparation manufacturing | K190: 0 | L190: 0 | N190: 0 | O190: 0 | Q190: 0 | R190: 0 | T190: 0 | U190: 0
A191: Professional Services | B191: 0 | C191: 0 | J191: Printing ink manufacturing | K191: 0 | L191: 0 | N191: 0 | O191: 0 | Q191: 0 | R191: 0 | T191: 0 | U191: 0
A192: Government | B192: 0 | C192: 0 | J192: Explosives manufacturing | K192: 0 | L192: 0 | N192: 0 | O192: 0 | Q192: 0 | R192: 0 | T192: 0 | U192: 0
J193: Custom compounding of purchased resins | K193: 0 | L193: 0 | N193: 0 | O193: 0 | Q193: 0 | R193: 0 | T193: 0 | U193: 0
A194: Value Added Per Million Dollars Change in Final Demand | J194: Photographic film and chemical manufacturing | K194: 0 | L194: 0 | N194: 0 | O194: 0 | Q194: 0 | R194: 0 | T194: 0 | U194: 0
A195: Value Added Induced Multipliers | B195: MyCounty | C195: MyRegion | J195: Other miscellaneous chemical product manufacturing | K195: 0 | L195: 0 | N195: 0 | O195: 0 | Q195: 0 | R195: 0 | T195: 0 | U195: 0
A196: Agriculture | B196: 0 | C196: 0 | J196: Plastics packaging materials and unlaminated film and sheet manufacturing | K196: 0 | L196: 0 | N196: 0 | O196: 0 | Q196: 0 | R196: 0 | T196: 0 | U196: 0
A197: Mining | B197: 0 | C197: 0 | J197: Unlaminated plastics profile shape manufacturing | K197: 0 | L197: 0 | N197: 0 | O197: 0 | Q197: 0 | R197: 0 | T197: 0 | U197: 0
A198: Construction | B198: 0 | C198: 0 | J198: Plastics pipe and pipe fitting manufacturing | K198: 0 | L198: 0 | N198: 0 | O198: 0 | Q198: 0 | R198: 0 | T198: 0 | U198: 0
A199: Manufacturing | B199: 0 | C199: 0 | J199: Laminated plastics plate, sheet (except packaging), and shape manufacturing | K199: 0 | L199: 0 | N199: 0 | O199: 0 | Q199: 0 | R199: 0 | T199: 0 | U199: 0
A200: Fabricated Metals | B200: 0 | C200: 0 | J200: Polystyrene foam product manufacturing | K200: 0 | L200: 0 | N200: 0 | O200: 0 | Q200: 0 | R200: 0 | T200: 0 | U200: 0
A201: Machinery | B201: 0 | C201: 0 | J201: Urethane and other foam product (except polystyrene) manufacturing | K201: 0 | L201: 0 | N201: 0 | O201: 0 | Q201: 0 | R201: 0 | T201: 0 | U201: 0
... 1421 more rows

Sheet DefaultData
D1: Capacity | E1: Service Factor | F1: Construction Period | G1: Capacity Type | H1: Cost of Crude | K1: Per MW | L1: 0.1434956564
D2: =ProjectData!B23 -> 30000 | E2: 0.9315 | F2: 48 | G2: =ProjectData!B22 -> BPCD | H2: =ProjectData!B29 -> 95.98
D3: Storage Capacity | E3: Crude Oil b/y | K3: `
D4: =ProjectData!B27 -> 1191626.409 | E4: =IF(G2="BPSD",D2*(365*E2),D2*365) -> 10950000
A5: Warning
A7: This Worksheet contains Data and Formulas that are an integral part of the JEDI model.
A9: Although the data and formulas are available for review they must not be changed.
A11: Any changes to the data or formulas will impact the analysis and may invalidate the model results. | D11: Default Values - Based on Capacity from Project Data sheet
H12: Very Small | I12: Small | J12: Medium | K12: Large
C13: Project Cost Data - Default Values | H13: 30000 | I13: 100000 | J13: 300000 | K13: 400000 | M13: =ProjectData!B17 -> 0
C14: Construction Costs | D14: Cost | G14: State | H14: County | I14: County | J14: County | K14: County | O14: 30000
C15: Major Facilities
C16: Process Units | G16: Local Share | H16: Local Share | I16: Local Share | J16: Local Share | K16: Local Share | O16: 100000 | R16: 300000 | U16: 400000 | AM16: Alabama | AN16: Alaska | AO16: Arizona | AP16: Arkansas | AQ16: California | AR16: Colorado | AS16: Connecticut | AT16: Delaware | AU16: Dist. of Columbia | AV16: Florida | AW16: Georgia | AX16: Hawaii | AY16: Idaho | AZ16: Illinois | BA16: Indiana | BB16: Iowa | BC16: Kansas | BD16: Kentucky | BE16: Louisiana | BF16: Maine | BG16: Maryland | BH16: Massachusetts | BI16: Michigan | BJ16: Minnesota | BK16: Mississippi | BL16: Missouri | BM16: Montana | BP16: Nebraska | BQ16: Nevada | BR16: New Hampshire | BS16: New Jersey | BT16: New Mexico | BU16: New York | BV16: North Carolina | BW16: North Dakota | BX16: Ohio | BY16: Oklahoma | BZ16: Oregon | CA16: Pennsylvania | CB16: Rhode Island | CC16: South Carolina | CD16: South Dakota | CE16: Tennessee | CF16: Texas | CG16: Utah | CH16: Vermont | CI16: Virginia | CJ16: Washington | CK16: West Virginia | CL16: Wisconsin | CM16: Wyoming
C17: Atmospheric Distillation | D17: =Process!R5 -> 18.58270689 | G17: ='Local Share'!E4 -> 0 | H17: 0 | I17: 0 | J17: 0 | K17: 0 | M17: =(M$13-H$13)/(I$13-H$13) -> -0.4285714286 | N17: =+I17-H17 -> 0 | O17: =H17+(N17*M17) -> 0 | P17: =(M$13-I$13)/(J$13-I$13) -> -0.5 | Q17: =J17-I17 -> 0 | R17: =I17+(P17*Q17) -> 0 | S17: =IF((M$13-J$13)/(K$13-J$13)>1,1,(M$13-J$13)/(K$13-J$13)) -> -3 | T17: =K17-J17 -> 0 | U17: =J17+(S17*T17) -> 0 | AL17: Cost Index | AM17: 1 | AN17: 2.16 | AO17: 1.18 | AP17: 1.06 | AQ17: 1.53 | AR17: 1.19 | AS17: 1.41 | AT17: 1.3 | AU17: 1.22 | AV17: 1.01 | AW17: 1.01 | AX17: 2.58 | AY17: 1.11 | AZ17: 1.52 | BA17: 1.13 | BB17: 1.2 | BC17: 1.1 | BD17: 1.08 | BE17: 1.05 | BF17: 1.23 | BG17: 1.17 | BH17: 1.48 | BI17: 1.41 | BJ17: 1.35 | BK17: 1.02 | BL17: 1.22 | BM17: 1.3 | BP17: 1.17 | BQ17: 1.53 | BR17: 1.3 | BS17: 1.51 | BT17: 1.14 | BU17: 1.3 | BV17: 0.98 | BW17: 1.25 | BX17: 1.1 | BY17: 1.07 | BZ17: 1.27 | CA17: 1.3 | CB17: 1.35 | CC17: 1.01 | CD17: 1.16 | CE17: 1.01 | CF17: 0.93 | CG17: 1.23 | CH17: 1.11 | CI17: 1.07 | CJ17: 1.31 | CK17: 1.13 | CL17: 1.33 | CM17: 1.18
C18: Catalytic Reforming | D18: =Process!R6 -> 31.32941723 | G18: ='Local Share'!E5 -> 0 | H18: 0 | I18: 0 | J18: 0 | K18: 0 | M18: =(M$13-H$13)/(I$13-H$13) -> -0.4285714286 | N18: =+I18-H18 -> 0 | O18: =H18+(N18*M18) -> 0 | P18: =(M$13-I$13)/(J$13-I$13) -> -0.5 | Q18: =J18-I18 -> 0 | R18: =I18+(P18*Q18) -> 0 | S18: =IF((M$13-J$13)/(K$13-J$13)>1,1,(M$13-J$13)/(K$13-J$13)) -> -3 | T18: =K18-J18 -> 0 | U18: =J18+(S18*T18) -> 0 | AM18: =HLOOKUP(ProjectData!$B$16,DefaultData!AM$16:CM$21,2) -> 1.18 | AN18: =IF(AM18=0,1.3,AM18) -> 1.18
A19: To view the data and formulas simply scroll over to the adjacent columns to the right. | C19: Catalytic Hydrotreatment | D19: =Process!R7 -> 24.4507617 | G19: ='Local Share'!E6 -> 0 | H19: 0 | I19: 0 | J19: 0 | K19: 0 | M19: -0.4285714286 | N19: 0 | O19: 0 | P19: -0.5 | Q19: 0 | R19: 0 | S19: -3 | T19: 0 | U19: 0 | AL19: Sales Tax | AM19: 0.085 | AN19: 0.0135 | AO19: 0.0815 | AP19: 0.0835 | AQ19: 0.082 | AR19: 0.0605 | AS19: 0.06 | AT19: 0 | AU19: 0.06 | AV19: 0.0665 | AW19: 0.0695 | AX19: 0.044 | AY19: 0.0605 | AZ19: 0.0815 | BA19: 0.07 | BB19: 0.0685 | BC19: 0.08 | BD19: 0.06 | BE19: 0.0875 | BF19: 0.05 | BG19: 0.06 | BH19: 0.0625 | BI19: 0.06 | BJ19: 0.072 | BK19: 0.07 | BL19: 0.0655 | BM19: 0 | BP19: 0.06 | BQ19: 0.0785 | BR19: 0 | BS19: 0.07 | BT19: 0.066 | BU19: 0.084 | BV19: 0.0685 | BW19: 0.0585 | BX19: 0.0685 | BY19: 0.0835 | BZ19: 0 | CA19: 0.064 | CB19: 0.07 | CC19: 0.071 | CD19: 0.0535 | CE19: 0.0945 | CF19: 0.0795 | CG19: 0.067 | CH19: 0.0605 | CI19: 0.05 | CJ19: 0.089 | CK19: 0.06 | CL19: 0.0545 | CM19: 0.0515
C20: FCC, visbreaker and associated plant | D20: =Process!R8 -> 0 | G20: ='Local Share'!E7 -> 0 | H20: 0 | I20: 0 | J20: 0 | K20: 0 | M20: -0.4285714286 | N20: 0 | O20: 0 | P20: -0.5 | Q20: 0 | R20: 0 | S20: -3 | T20: 0 | U20: 0 | AM20: =HLOOKUP(ProjectData!$B$16,DefaultData!AM$16:CM$21,4) -> 0.0815
C21: Vacuum distillation for FCC | D21: =Process!R9 -> 0 | G21: ='Local Share'!E8 -> 0 | H21: 0 | I21: 0 | J21: 0 | K21: 0 | M21: -0.4285714286 | N21: 0 | O21: 0 | P21: -0.5 | Q21: 0 | R21: 0 | S21: -3 | T21: 0 | U21: 0
C22: Deep Conversion units | D22: =Process!R10 -> 0 | G22: ='Local Share'!E9 -> 0 | H22: 0 | I22: 0 | J22: 0 | K22: 0 | M22: -0.4285714286 | N22: 0 | O22: 0 | P22: -0.5 | Q22: 0 | R22: 0 | S22: -3 | T22: 0 | U22: 0
C23: Other units | D23: =Process!R11 -> 1.162032454 | G23: ='Local Share'!E10 -> 0 | H23: 0 | I23: 0 | J23: 0 | K23: 0 | M23: -0.4285714286 | N23: 0 | O23: 0 | P23: -0.5 | Q23: 0 | R23: 0 | S23: -3 | T23: 0 | U23: 0
C24: Subtotal | D24: =SUM(D17:D23) -> 75.52491827
C25: Utilities
C26: Steam and/or electricity production | D26: =Process!R14 -> 32.38295864 | G26: ='Local Share'!E13 -> 0 | H26: 0 | I26: 0 | J26: 0 | K26: 0 | M26: =(M$13-H$13)/(I$13-H$13) -> -0.4285714286 | N26: =+I26-H26 -> 0 | O26: =H26+(N26*M26) -> 0 | P26: =(M$13-I$13)/(J$13-I$13) -> -0.5 | Q26: =J26-I26 -> 0 | R26: =I26+(P26*Q26) -> 0 | S26: =IF((M$13-J$13)/(K$13-J$13)>1,1,(M$13-J$13)/(K$13-J$13)) -> -3 | T26: =K26-J26 -> 0 | U26: =J26+(S26*T26) -> 0
C27: Steam and utilities distribution | D27: =Process!R15 -> 21.76614568 | G27: ='Local Share'!E14 -> 0 | H27: 0 | I27: 0 | J27: 0 | K27: 0 | M27: -0.4285714286 | N27: 0 | O27: 0 | P27: -0.5 | Q27: 0 | R27: 0 | S27: -3 | T27: 0 | U27: 0
C28: Production and/or distribution of other utilities | D28: =Process!R16 -> 5.022956696 | G28: ='Local Share'!E15 -> 0 | H28: 0 | I28: 0 | J28: 0 | K28: 0 | M28: -0.4285714286 | N28: 0 | O28: 0 | P28: -0.5 | Q28: 0 | R28: 0 | S28: -3 | T28: 0 | U28: 0
C29: Cooling Water system | D29: =Process!R17 -> 10.79431955 | G29: ='Local Share'!E16 -> 0 | H29: 0 | I29: 0 | J29: 0 | K29: 0 | M29: -0.4285714286 | N29: 0 | O29: 0 | P29: -0.5 | Q29: 0 | R29: 0 | S29: -3 | T29: 0 | U29: 0
C30: Subtotal | D30: =SUM(D26:D29) -> 69.96638056 | M30: =(M$13-H$13)/(I$13-H$13) -> -0.4285714286 | N30: =+I30-H30 -> 0 | O30: =H30+(N30*M30) -> 0 | P30: =(M$13-I$13)/(J$13-I$13) -> -0.5 | Q30: =J30-I30 -> 0 | R30: =I30+(P30*Q30) -> 0 | S30: =IF((M$13-J$13)/(K$13-J$13)>1,1,(M$13-J$13)/(K$13-J$13)) -> -3 | T30: =K30-J30 -> 0 | U30: =J30+(S30*T30) -> 0
C31: Security and Environmental Installations
C32: Fire fighting system | D32: =Process!R20 -> 6.671431897 | G32: ='Local Share'!E19 -> 0 | H32: 0 | I32: 0 | J32: 0 | K32: 0 | M32: =(M$13-H$13)/(I$13-H$13) -> -0.4285714286 | N32: =+I32-H32 -> 0 | O32: =H32+(N32*M32) -> 0 | P32: =(M$13-I$13)/(J$13-I$13) -> -0.5 | Q32: =J32-I32 -> 0 | R32: =I32+(P32*Q32) -> 0 | S32: =IF((M$13-J$13)/(K$13-J$13)>1,1,(M$13-J$13)/(K$13-J$13)) -> -3 | T32: =K32-J32 -> 0 | U32: =J32+(S32*T32) -> 0
C33: Flare and liquid effluent treatment systems | D33: =Process!R21 -> 22.87348079 | G33: ='Local Share'!E20 -> 0 | H33: 0 | I33: 0 | J33: 0 | K33: 0 | M33: -0.4285714286 | N33: 0 | O33: 0 | P33: -0.5 | Q33: 0 | R33: 0 | S33: -3 | T33: 0 | U33: 0
C34: Subtotal | D34: =SUM(D32:D33) -> 29.54491269
C35: Storage and Dispatch
C36: Storage of liquid products and LPG (if applicable) | D36: =Process!R24 -> 149.7409003 | G36: ='Local Share'!E23 -> 0.75 | H36: 0 | I36: 0 | J36: 0 | K36: 0 | M36: =(M$13-H$13)/(I$13-H$13) -> -0.4285714286 | N36: =+I36-H36 -> 0 | O36: =H36+(N36*M36) -> 0 | P36: =(M$13-I$13)/(J$13-I$13) -> -0.5 | Q36: =J36-I36 -> 0 | R36: =I36+(P36*Q36) -> 0 | S36: =IF((M$13-J$13)/(K$13-J$13)>1,1,(M$13-J$13)/(K$13-J$13)) -> -3 | T36: =K36-J36 -> 0 | U36: =J36+(S36*T36) -> 0
C37: Subtotal | D37: =SUM(D36) -> 149.7409003
C38: Infrastructure
C39: Site prep, roads, general infrastructure | D39: =Process!R27 -> 14.05015119 | G39: ='Local Share'!E26 -> 1 | H39: 0 | I39: 0 | J39: 0 | K39: 0 | M39: =(M$13-H$13)/(I$13-H$13) -> -0.4285714286 | N39: =+I39-H39 -> 0 | O39: =H39+(N39*M39) -> 0 | P39: =(M$13-I$13)/(J$13-I$13) -> -0.5 | Q39: =J39-I39 -> 0 | R39: =I39+(P39*Q39) -> 0 | S39: =IF((M$13-J$13)/(K$13-J$13)>1,1,(M$13-J$13)/(K$13-J$13)) -> -3 | T39: =K39-J39 -> 0 | U39: =J39+(S39*T39) -> 0
C40: Buildings | D40: =Process!R28 -> 11.94262851 | G40: ='Local Share'!E27 -> 1 | H40: 0 | I40: 0 | J40: 0 | K40: 0 | M40: -0.4285714286 | N40: 0 | O40: 0 | P40: -0.5 | Q40: 0 | R40: 0 | S40: -3 | T40: 0 | U40: 0
C41: Subtotal | D41: =SUM(D39:D40) -> 25.99277969
C42: Labor
C43: All construction | D43: =Process!R31 -> 208.687413 | G43: ='Local Share'!E30 -> 0.5 | H43: 0 | I43: 0 | J43: 0 | K43: 0 | M43: =(M$13-H$13)/(I$13-H$13) -> -0.4285714286 | N43: =+I43-H43 -> 0 | O43: =H43+(N43*M43) -> 0 | P43: =(M$13-I$13)/(J$13-I$13) -> -0.5 | Q43: =J43-I43 -> 0 | R43: =I43+(P43*Q43) -> 0 | S43: =IF((M$13-J$13)/(K$13-J$13)>1,1,(M$13-J$13)/(K$13-J$13)) -> -3 | T43: =K43-J43 -> 0 | U43: =J43+(S43*T43) -> 0
C44: Common | D44: =Process!R32 -> 0 | G44: ='Local Share'!E31 -> 1 | H44: 0 | I44: 0 | J44: 0 | K44: 0 | M44: -0.4285714286 | N44: 0 | O44: 0 | P44: -0.5 | Q44: 0 | R44: 0 | S44: -3 | T44: 0 | U44: 0
C45: Subtotal | D45: =SUM(D43:D44) -> 208.687413
C46: Other Costs
C47: Engineering/Design Services | D47: =Process!R35 -> 70.47633474 | G47: ='Local Share'!E34 -> 0 | H47: 0 | I47: 0 | J47: 0 | K47: 0 | M47: =(M$13-H$13)/(I$13-H$13) -> -0.4285714286 | N47: =+I47-H47 -> 0 | O47: =H47+(N47*M47) -> 0 | P47: =(M$13-I$13)/(J$13-I$13) -> -0.5 | Q47: =J47-I47 -> 0 | R47: =I47+(P47*Q47) -> 0 | S47: =IF((M$13-J$13)/(K$13-J$13)>1,1,(M$13-J$13)/(K$13-J$13)) -> -3 | T47: =K47-J47 -> 0 | U47: =J47+(S47*T47) -> 0 | V47: =IF(D2>X46,Y47,IF(D2<W46,W47,X47)) -> 0
C48: Construction Services | D48: =Process!R36 -> 1.174605579 | G48: ='Local Share'!E35 -> 0 | H48: 0 | I48: 0 | J48: 0 | K48: 0 | M48: -0.4285714286 | N48: 0 | O48: 0 | P48: -0.5 | Q48: 0 | R48: 0 | S48: -3 | T48: 0 | U48: 0
C49: Project Management | D49: =Process!R37 -> 64.60330685 | G49: ='Local Share'!E36 -> 0 | H49: 0 | I49: 0 | J49: 0 | K49: 0 | M49: -0.4285714286 | N49: 0 | O49: 0 | P49: -0.5 | Q49: 0 | R49: 0 | S49: -3 | T49: 0 | U49: 0
C50: Subtotal | D50: =SUM(D47:D49) -> 136.2542472
C51: Total | D51: =D50+D45+D41+D37+D34+D30+D24 -> 695.7115516
H53: Very Small | I53: Small | J53: Medium | K53: Large
H54: 30000 | I54: 100000 | J54: 300000 | K54: 400000
H55: County | I55: County | J55: County | K55: County
C56: Annual Operating and Maintenance Costs | D56: Cost | G56: Local Share | H56: Local Share | I56: Local Share | J56: Local Share | K56: Local Share
C57: Variable | Y57: Simple | Z57: Complex | AA57: Very Complex | AB57: inflator | AC57: Complex | AD57: Simple | AE57: Very Complex | AF57: =ProjectData!B21 -> Simple | AG57: 1
C58: Chemicals and Catalysts | D58: =AF58 -> 3 | G58: ='Local Share'!E41 -> 0 | H58: 0 | I58: 0 | J58: 0 | K58: 0 | M58: =(M$13-H$13)/(I$13-H$13) -> -0.4285714286 | N58: =+I58-H58 -> 0 | O58: =H58+(N58*M58) -> 0 | P58: =(M$13-I$13)/(J$13-I$13) -> -0.5 | Q58: =J58-I58 -> 0 | R58: =I58+(P58*Q58) -> 0 | S58: =IF((M$13-J$13)/(K$13-J$13)>1,1,(M$13-J$13)/(K$13-J$13)) -> -3 | T58: =K58-J58 -> 0 | U58: =J58+(S58*T58) -> 0 | Y58: 100 | Z58: 125 | AA58: 150 | AB58: 1 | AC58: =Z58*$D$2*$AB58/10^6 -> 3.75 | AD58: =Y58*$D$2*$AB58/10^6 -> 3 | AE58: =AA58*$D$2*$AB58/10^6 -> 4.5 | AF58: =HLOOKUP(AF$57,AC$57:AE$67,AG58) -> 3 | AG58: =AG57+1 -> 2
C59: Utilities | D59: =AF59 -> 4.2 | G59: ='Local Share'!E42 -> 1 | H59: 1 | I59: 1 | J59: 1 | K59: 1 | M59: -0.4285714286 | N59: 0 | O59: 1 | P59: -0.5 | Q59: 0 | R59: 1 | S59: -3 | T59: 0 | U59: 1 | Y59: 140 | Z59: 210 | AA59: 350 | AB59: 1 | AC59: =Z59*$D$2*$AB59/10^6 -> 6.3 | AD59: =Y59*$D$2*$AB59/10^6 -> 4.2 | AE59: =AA59*$D$2*$AB59/10^6 -> 10.5 | AF59: =HLOOKUP(AF$57,AC$57:AE$67,AG59) -> 4.2 | AG59: =AG58+1 -> 3
C60: Subtotal | D60: =SUM(D58:D59) -> 7.2 | AG60: 4
C61: Fixed | AG61: 5
C62: Labor | D62: =AF62 -> 3.987619486 | G62: ='Local Share'!E45 -> 1 | H62: 1 | I62: 1 | J62: 1 | K62: 1 | M62: =(M$13-H$13)/(I$13-H$13) -> -0.4285714286 | N62: =+I62-H62 -> 0 | O62: =H62+(N62*M62) -> 1 | P62: =(M$13-I$13)/(J$13-I$13) -> -0.5 | Q62: =J62-I62 -> 0 | R62: =I62+(P62*Q62) -> 1 | S62: =IF((M$13-J$13)/(K$13-J$13)>1,1,(M$13-J$13)/(K$13-J$13)) -> -3 | T62: =K62-J62 -> 0 | U62: =J62+(S62*T62) -> 1 | Y62: 125 | Z62: 150 | AA62: 250 | AB62: =1+Process!F151 -> 1.063365196 | AC62: =Z62*$D$2*$AB62/10^6 -> 4.785143384 | AD62: =Y62*$D$2*$AB62/10^6 -> 3.987619486 | AE62: =AA62*$D$2*$AB62/10^6 -> 7.975238973 | AF62: =HLOOKUP(AF$57,AC$57:AE$67,AG62) -> 3.987619486 | AG62: 6
C63: Maintenance | D63: =AF63 -> 20.87134655 | G63: ='Local Share'!E46 -> 1 | H63: 1 | I63: 1 | J63: 1 | K63: 1 | M63: =(M$13-H$13)/(I$13-H$13) -> -0.4285714286 | N63: =+I63-H63 -> 0 | O63: =H63+(N63*M63) -> 1 | P63: =(M$13-I$13)/(J$13-I$13) -> -0.5 | Q63: =J63-I63 -> 0 | R63: =I63+(P63*Q63) -> 1 | S63: =IF((M$13-J$13)/(K$13-J$13)>1,1,(M$13-J$13)/(K$13-J$13)) -> -3 | T63: =K63-J63 -> 0 | U63: =J63+(S63*T63) -> 1 | Y63: 0.03 | Z63: 0.03 | AA63: 0.03 | AB63: 1 | AC63: =Z63*$D$51 -> 20.87134655 | AD63: =Y63*$D$51 -> 20.87134655 | AE63: =AA63*$D$51 -> 20.87134655 | AF63: =HLOOKUP(AF$57,AC$57:AE$67,AG63) -> 20.87134655 | AG63: 7
C64: Other Costs | D64: 0 | Y64: 0.017241379 | Z64: 0.013559322 | AA64: 0.016293279 | AB64: 1 | AG64: 8
C65: Insurance | D65: 3.478557758 | G65: ='Local Share'!E48 -> 0 | H65: 0 | I65: 0 | J65: 0 | K65: 0 | M65: =(M$13-H$13)/(I$13-H$13) -> -0.4285714286 | N65: =+I65-H65 -> 0 | O65: =H65+(N65*M65) -> 0 | P65: =(M$13-I$13)/(J$13-I$13) -> -0.5 | Q65: =J65-I65 -> 0 | R65: =I65+(P65*Q65) -> 0 | S65: =IF((M$13-J$13)/(K$13-J$13)>1,1,(M$13-J$13)/(K$13-J$13)) -> -3 | T65: =K65-J65 -> 0 | U65: =J65+(S65*T65) -> 0 | Y65: 0.005 | Z65: 0.005 | AA65: 0.005 | AB65: 1 | AC65: =Z65*$D$51 -> 3.478557758 | AD65: =Y65*$D$51 -> 3.478557758 | AE65: =AA65*$D$51 -> 3.478557758 | AF65: =HLOOKUP(AF$57,AC$57:AE$67,AG65) -> 3.478557758 | AG65: 9
C66: Misc. Supplies | D66: 1.043567327 | G66: ='Local Share'!E49 -> 0 | H66: 0 | I66: 0 | J66: 0 | K66: 0 | M66: -0.4285714286 | N66: 0 | O66: 0 | P66: -0.5 | Q66: 0 | R66: 0 | S66: -3 | T66: 0 | U66: 0 | Y66: 0.0015 | Z66: 0.0015 | AA66: 0.0015 | AB66: 1 | AC66: =Z66*$D$51 -> 1.043567327 | AD66: =Y66*$D$51 -> 1.043567327 | AE66: =AA66*$D$51 -> 1.043567327 | AF66: =HLOOKUP(AF$57,AC$57:AE$67,AG66) -> 1.043567327 | AG66: 10
C67: Other Operating Costs | D67: 7.472901451 | G67: ='Local Share'!E50 -> 0 | H67: 0 | I67: 0 | J67: 0 | K67: 0 | M67: -0.4285714286 | N67: 0 | O67: 0 | P67: -0.5 | Q67: 0 | R67: 0 | S67: -3 | T67: 0 | U67: 0 | Y67: =Y64-(Y65+Y66) -> 0.010741379 | Z67: =Z64-(Z65+Z66) -> 0.007059322 | AA67: 0.009793279 | AB67: 1 | AC67: =Z67*$D$51 -> 4.911251862 | AD67: =Y67*$D$51 -> 7.472901451 | AE67: =AA67*$D$51 -> 6.813297329 | AF67: =HLOOKUP(AF$57,AC$57:AE$67,AG67) -> 7.472901451 | AG67: 11
C68: Subtotal | D68: =SUM(D64:D67) -> 11.99502654
C69: Fuel | D69: =E4*H2/10^6 -> 1050.981 | G69: =ProjectData!B30 -> 0
C70: Total | D70: =D69+D68+D63+D62+D60 -> 1095.034993
C72: Financing (avg ann debt payment) | D72: =Calculations!F206 -> 29.179302 | G72: 0
C73: Equity Payment - Individuals (avg ann payment)
C74: Equity Payment - Corporations (avg ann payment)
C75: Land Purchase | D75: =D99 -> 0
C76: Total (with financing) | D76: =+D75+D72+D70 -> 1124.214295
C78: Other Parameters
C79: Financial Parameters | G79: Local Share
C80: Debt Financing
C81: Percentage financed | D81: 0.7 | G81: 0
C82: Years financed (term) | D82: 30
C83: Interest rate | D83: 0.055
C84: Average Annual Payment (Interest and Principal) | D84: =D72 -> 29.179302
C85: Equity Financing/Repayment | G85: Local Share
C86: Percentage equity | D86: =1-D81 -> 0.3
C87: Individual Investors (percent of equity) | D87: 0 | G87: 0
C88: Corporate Investors (percent of equity) | D88: =1-D87 -> 1 | G88: 0
C89: Return on equity | D89: 0.1
C90: Repayment term (years) | D90: 10
C91: Tax Parameters
C92: Local Property/Other Tax Rate (percent of taxable value) | D92: 0
C93: Assessed Value (percent of construction cost) | D93: 1
C94: Taxable Value (percent of assessed value) | D94: 1
C95: Taxable Value (millions) | D95: =+D51*D93*D94 -> 695.7115516
C96: Local Taxes (millions) | D96: =+D92*D95 -> 0 | G96: 1
C97: Sales Tax Rate | D97: =AM20 -> 0.0815
C98: Land Purchase Parameters
C99: Land Purchase (total cost in millions) | D99: 0
C100: Land Payment Recipient (H = household, O = Other) | D100: O | G100: 1 | L100: Payroll expense
Q101: User Revised
C102: Payroll Parameters | H102: Direct Plant Employees | L102: Govt - Legal | M102: 0.061 | N102: User Revised | Q102: =(M102/M$104)*J104 -> 0.061 | R102: =IF(ProjectData!T$36="Simple",DefaultData!M102,DefaultData!Q102) -> 0.061
C103: Construction | D103: Payroll Cost | E103: wage/hour | F103: Payroll expense | G103: Payroll expense | H103: Default | I103: User Revised | K103: Ann Payroll Cost | L103: Health/Ins/Misc | M103: 0.27 | N103: Payroll Cost | O103: wage/hour | P103: Payroll expense | Q103: =(M103/M$104)*J104 -> 0.27 | R103: =IF(ProjectData!T$36="Simple",DefaultData!M103,DefaultData!Q103) -> 0.27
C104: Labor (average wage per hour for all construction workers) | D104: =(E104+F104) -> 69.75278969 | E104: =39.5*Process!H$140 -> 52.40630329 | F104: =+E104*G104 -> 17.34648639 | G104: =M104 -> 0.331 | H104: =(DefaultData!D43*G43*10^6)/(D104*(52*40)) -> 719.1861964 | I104: =(ProjectData!B70*ProjectData!E70*10^6)/(N104*52*40) -> 719.1861964 | J104: =ProjectData!D122 -> 0.331 | K104: =D104*52*40 -> 145085.8025 | L104: Total | M104: =M103+M102 -> 0.331 | N104: =O104+P104 -> 69.75278969 | O104: =ProjectData!B122 -> 52.40630329 | P104: =+O104*J104 -> 17.34648639 | S104: =IF(ProjectData!B36="Simple",DefaultData!H104,DefaultData!I104) -> 719.1861964
C106: Operations | S106: =SUM(S104:S105) -> 719.1861964
C107: Labor (average wage per hour for all plant staff and operators) | D107: =(E107+F107) -> 57.57906 | E107: 43.26 | F107: =+E107*G107 -> 14.31906 | G107: =G104 -> 0.331 | H107: =(DefaultData!D62*G62*10^6)/(D107*(52*40)) -> 33.29552016 | I107: =(Calculations!D75*Calculations!E75*10^6)/(N107*52*40) -> 33.29552016 | J107: =ProjectData!D124 -> 0.331 | K107: =D107*80*26 -> 119764.4448 | N107: =O107+P107 -> 57.57906 | O107: =ProjectData!B124 -> 43.26 | P107: =+O107*J107 -> 14.31906
C108: Maintenance (average wage per hour for all plant staff includes managers) | D108: =(E108+F108) -> 43.26 | E108: =E107 -> 43.26 | F108: =+E108*G108 -> 0 | G108: =G105 -> 0 | H108: =(((DefaultData!D63*G63*0.1)/ProjectData!B20)*10^6)/(D108*(52*40)) -> 19.6570622 | I108: =(((Calculations!G77)/ProjectData!B20)*10^6)/(N108*52*40) -> 14.76864177 | J108: =J107 -> 0.331 | K108: =D108*80*26 -> 89980.8 | N108: =O108+P108 -> 57.57906 | O108: =O107 -> 43.26 | P108: =+O108*J108 -> 14.31906
C110: Margins
D111: Agriculture | E111: Mining | F111: Construction | G111: Other Manufacturing | H111: Fabricated Metals | I111: Machinery | J111: Electrical Equipment | K111: TCPU | L111: Wholesale Trade | M111: Retail Trade | N111: FIRE | O111: Other Services | P111: Professional Services | Q111: Government | R111: Total
C112: Agriculture | D112: 0.583669 | E112: 0 | F112: 0 | G112: 0 | H112: 0 | I112: 0 | J112: 0 | K112: 0.051572 | L112: 0.07245 | M112: 0.292309 | N112: 0 | O112: 0 | P112: 0 | Q112: 0 | R112: =SUM(D112:Q112) -> 1
C113: Mining | D113: 0 | E113: 0.6376 | F113: 0 | G113: 0 | H113: 0 | I113: 0 | J113: 0 | K113: =0.355 -> 0.355 | L113: 0.0074 | M113: 0 | N113: 0 | O113: 0 | P113: 0 | Q113: 0 | R113: =SUM(D113:Q113) -> 1
C114: Construction | D114: 0 | E114: 0 | F114: 1 | G114: 0 | H114: 0 | I114: 0 | J114: 0 | K114: 0 | L114: 0 | M114: 0 | N114: 0 | O114: 0 | P114: 0 | Q114: 0 | R114: 1
C115: Manufacturing | D115: 0 | E115: 0 | F115: 0 | G115: 0.558412 | H115: 0 | I115: 0 | J115: 0 | K115: 0.023014 | L115: =0.080398+0.338175 -> 0.418573 | M115: 0 | N115: 0 | O115: 0 | P115: 0 | Q115: 0 | R115: 0.999999
C116: Fabricated Metals | D116: 0 | E116: 0 | F116: 0 | G116: 0 | H116: 1 | I116: 0 | J116: 0 | K116: 0 | L116: 0 | M116: 0 | N116: 0 | O116: 0 | P116: 0 | Q116: 0 | R116: 1
C117: Machinery | D117: 0 | E117: 0 | F117: 0 | G117: 0 | H117: 0 | I117: 0.631251 | J117: 0 | K117: =0.000889 -> 0.000889 | L117: =0.1018+0.266059 -> 0.367859 | M117: 0 | N117: 0 | O117: 0 | P117: 0 | Q117: 0 | R117: 0.999999
C118: Electrical Equipment | D118: 0 | E118: 0 | F118: 0 | G118: 0 | H118: 0 | I118: 0 | J118: 0.512774 | K118: 0.012136 | L118: =0.075345+0.399745 -> 0.47509 | M118: 0 | N118: 0 | O118: 0 | P118: 0 | Q118: 0 | R118: 1
C119: TCPU | D119: 0 | E119: 0 | F119: 0 | G119: 0 | H119: 0 | I119: 0 | J119: 0 | K119: 1 | L119: 0 | M119: 0 | N119: 0 | O119: 0 | P119: 0 | Q119: 0 | R119: 1
C120: Wholesale Trade | D120: 0 | E120: 0 | F120: 0 | G120: 0 | H120: 0 | I120: 0 | J120: 0 | K120: 0 | L120: 1 | M120: 0 | N120: 0 | O120: 0 | P120: 0 | Q120: 0 | R120: 1
C121: Retail Trade | D121: 0 | E121: 0 | F121: 0 | G121: 0 | H121: 0 | I121: 0 | J121: 0 | K121: 0 | L121: =1-M121 -> 0.688714 | M121: 0.311286 | N121: 0 | O121: 0 | P121: 0 | Q121: 0 | R121: 1
C122: FIRE | D122: 0 | E122: 0 | F122: 0 | G122: 0 | H122: 0 | I122: 0 | J122: 0 | K122: 0 | L122: 0 | M122: 0 | N122: 1 | O122: 0 | P122: 0 | Q122: 0 | R122: 1
C123: Misc. Services | D123: 0 | E123: 0 | F123: 0 | G123: 0 | H123: 0 | I123: 0 | J123: 0 | K123: 0.042428 | L123: 0.092083 | M123: 0.361097 | N123: 0 | O123: 0.504392 | P123: 0 | Q123: 0 | R123: 1
C124: Professional Services | D124: 0 | E124: 0 | F124: 0 | G124: 0 | H124: 0 | I124: 0 | J124: 0 | K124: 0 | L124: 0 | M124: 0 | N124: 0 | O124: 0 | P124: 1 | Q124: 0 | R124: 1
C125: Government | D125: 0 | E125: 0 | F125: 0 | G125: 0 | H125: 0 | I125: 0 | J125: 0 | K125: 0 | L125: 0 | M125: 0 | N125: 0 | O125: 0 | P125: 0 | Q125: 1 | R125: 1

Sheet Process
D1: =ProjectData!$B23 -> 30000 | E1: =ProjectData!$B23 -> 30000 | F1: =ProjectData!$B23 -> 30000 | N1: Materials /Equipment
D2: Simple | E2: Complex | F2: Very Complex | G2: Simple | H2: Complex | I2: Very Complex | J2: Simple | K2: Complex | L2: Very Complex | N2: Complex | O2: Simple | P2: Very Complex | Q2: 1 | R2: =ProjectData!B21 -> Simple
G3: Direct Labor | J3: Total Labor | Q3: =Q2+1 -> 2
C4: Process Units | Q4: =Q3+1 -> 3
A5: Warning | C5: Atmospheric distillation | D5: =G57 -> 46.46711318 | E5: =I57 -> 46.46711318 | F5: =K57 -> 46.46711318 | G5: =(D5/D$12)*(J$12) -> 31.28769862 | H5: 31.30051428 | I5: 31.40671111 | N5: =E5-H5 -> 15.1665989 | O5: =D5-G5 -> 15.17941455 | P5: =F5-I5 -> 15.06040207 | Q5: 4 | R5: =HLOOKUP(R$2,N$2:P$39,Q5)*H$141 -> 18.58270689
C6: Catalytic Reforming | D6: =G69 -> 78.34098576 | E6: =I69 -> 78.34098576 | F6: =K69 -> 78.34098576 | G6: 52.7493314 | H6: 52.77093789 | I6: 52.94997987 | N6: 25.57004787 | O6: 25.59165436 | P6: 25.39100589 | Q6: 5 | R6: 31.32941723
A7: This Worksheet contains Data and Formulas that are an integral part of the JEDI model. | C7: Catalytic Hydrotreatment | D7: =G67 -> 61.14051725 | E7: =I66+I67+I68 -> 237.4845334 | F7: =K66+K67+K68 -> 237.4845334 | G7: 41.16774094 | H7: 159.9709454 | I7: 160.5136971 | N7: 77.51358791 | O7: 19.97277631 | P7: 76.97083622 | Q7: 6 | R7: 24.4507617
C8: FCC, visbreaker and associated plant | E8: =I60 -> 72.10657099 | F8: =K62+K63 -> 305.2258693 | G8: 0 | H8: 48.5714003 | I8: 206.2994674 | N8: 23.53517069 | O8: 0 | P8: 98.92640191 | Q8: 7 | R8: 0
A9: Although the data and formulas are available for review they must not be changed. | C9: Vacuum distillation for FCC | E9: =I58 -> 44.60533745 | F9: =K58 -> 44.60533745 | G9: 0 | H9: 30.04641145 | I9: 30.14835334 | N9: 14.55892599 | O9: 0 | P9: 14.4569841 | Q9: 8 | R9: 0
C10: Deep Conversion Units (Very Complex only) | F10: =K59+K64 -> 344.5926938 | G10: 0 | H10: 0 | I10: 232.9071562 | N10: 0 | O10: 0 | P10: 111.6855377 | Q10: 9 | R10: 0
A11: Any changes to the data or formulas will impact the analysis and may invalidate the model results. | C11: Other units | D11: =$G56 -> 2.905728097 | E11: =I56 -> 2.905728097 | F11: =K56 -> 2.905728097 | G11: 1.956513731 | H11: 1.957315133 | I11: 1.963955939 | N11: 0.9484129645 | O11: 0.9492143658 | P11: 0.941772158 | Q11: 10 | R11: 1.162032454
C12: Subtotal | D12: =SUM(D5:D11) -> 188.8543443 | E12: 481.9102688 | F12: 1059.622261 | G12: 127.1612847 | H12: 324.6175245 | I12: 716.1893209 | J12: =(K121+K125+K131+K132+K133+K134+K135+K124+K128)-J22 -> 127.1612847 | K12: =(L121+L125+L131+L132+L133+L134+L135+L124+L128)-K22 -> 324.6175245 | L12: =(M121+M125+M131+M132+M133+M134+M135+M124+M128)-L22 -> 716.1893209 | N12: =SUM(N5:N11) -> 157.2927443 | O12: =SUM(O5:O11) -> 61.69305959 | P12: =SUM(P5:P11) -> 343.43294 | Q12: 11 | R12: =SUM(R5:R11) -> 75.52491827
C13: Utilities | I13: =K12/E12 -> 0.6736057426 | Q13: 12
C14: Steam and electicity production | D14: =D$12*$D74*D46 -> 32.81913359 | E14: =E$12*$D74 -> 65.05788629 | F14: =(F$12-F10)*$D74 -> 96.52899156 | G14: =(D14/D$18)*J$18 -> 6.366886531 | H14: =(E14/E$18)*K$18 -> 14.79473038 | I14: 30.1583556 | N14: =E14-H14 -> 50.26315592 | O14: =D14-G14 -> 26.45224705 | P14: =F14-I14 -> 66.37063596 | Q14: 13 | R14: =HLOOKUP(R$2,N$2:P$39,Q14)*H$141 -> 32.38295864
C15: Steam and utilities distribution | D15: =D$12*H102*D$45*D46 -> 22.05931986 | E15: =E$12*I102*E$45*E46 -> 54.93734875 | F15: =F$12*J102*F$45*F46 -> 96.15012396 | G15: =(D15/D$18)*J$18 -> 4.279490991 | H15: 12.49323193 | I15: 30.03998677 | N15: 42.44411682 | O15: =D15-G15 -> 17.77982887 | P15: =F15-I15 -> 66.11013719 | Q15: 14 | R15: =HLOOKUP(R$2,N$2:P$39,Q15)*H$141 -> 21.76614568
C16: Production, distribution other utilities | D16: =D$12*H103*D$45*D46 -> 5.090612276 | E16: =E$12*I103*E$45*E46 -> 12.67784971 | F16: =F$12*J103*F$45*F46 -> 22.18849014 | G16: =(D16/D$18)*J$18 -> 0.9875748442 | H16: 2.883053523 | I16: 6.932304638 | N16: 9.79479619 | O16: =D16-G16 -> 4.103037432 | P16: =F16-I16 -> 15.25618551 | Q16: 15 | R16: =HLOOKUP(R$2,N$2:P$39,Q16)*H$141 -> 5.022956696
A17: To view the data and formulas simply scroll over to the adjacent columns to the right. | C17: Cooling Water system | D17: =D$12*$D77*D46 -> 10.9397112 | E17: =E$12*$D77 -> 21.6859621 | F17: =(F$12-F10)*$D77 -> 32.17633052 | G17: =(D17/D$18)*J$18 -> 2.12229551 | H17: 4.931576792 | I17: 10.0527852 | N17: 16.75438531 | O17: =D17-G17 -> 8.817415685 | P17: =F17-I17 -> 22.12354532 | Q17: 16 | R17: =HLOOKUP(R$2,N$2:P$39,Q17)*H$141 -> 10.79431955
C18: Subtotal | D18: =SUM(D14:D17) -> 70.90877692 | E18: =SUM(E14:E17) -> 154.3590469 | F18: 247.0439362 | G18: =SUM(G14:G17) -> 13.75624788 | H18: =SUM(H14:H17) -> 35.10259262 | I18: 77.1834322 | J18: =(K129+K130) -> 13.75624788 | K18: =(L129+L130) -> 35.10259262 | L18: 77.1834322 | N18: =SUM(N14:N17) -> 119.2564542 | O18: =SUM(O14:O17) -> 57.15252904 | P18: 169.860504 | Q18: 17 | R18: =SUM(R14:R17) -> 69.96638056
C19: Security and environmental Installations | Q19: 18
C20: Fire fighting system | D20: =D$12*H107*D$45*D46 -> 5.939047656 | E20: =E$12*I107*E$45*E46 -> 14.79082466 | F20: =F$12*J107*F$45*F46 -> 25.88657184 | G20: =D20/D$22*J$22 -> 0.4894416847 | H20: =E20/E$22*K$22 -> 1.218923733 | I20: 2.133333165 | N20: =E20-H20 -> 13.57190093 | O20: =D20-G20 -> 5.449605971 | P20: =F20-I20 -> 23.75323867 | Q20: 19 | R20: =HLOOKUP(R$2,N$2:P$39,Q20)*H$141 -> 6.671431897
C21: Flare and liquid effluent treatment systems | D21: =D$12*H108*D$45*D46 -> 20.3624491 | E21: =E$12*I108*E$45*E46 -> 50.71139885 | F21: =F$12*J108*F$45*F46 -> 88.75396058 | G21: =D21/D$22*J$22 -> 1.678085776 | H21: 4.179167086 | I21: 7.314285135 | N21: 46.53223176 | O21: =D21-G21 -> 18.68436333 | P21: =F21-I21 -> 81.43967544 | Q21: 20 | R21: =HLOOKUP(R$2,N$2:P$39,Q21)*H$141 -> 22.87348079
C22: Total | D22: =SUM(D20:D21) -> 26.30149676 | E22: =SUM(E20:E21) -> 65.50222351 | F22: 114.6405324 | G22: =SUM(G20:G21) -> 2.167527461 | H22: =SUM(H20:H21) -> 5.398090819 | I22: 9.4476183 | J22: =D22*$I121 -> 2.167527461 | K22: =E22*$I121 -> 5.398090819 | L22: =F22*$I121 -> 9.4476183 | N22: =SUM(N20:N21) -> 60.10413269 | O22: =SUM(O20:O21) -> 24.1339693 | P22: 105.1929141 | Q22: 21 | R22: =SUM(R20:R21) -> 29.54491269
C23: Storage and Dispatch | Q23: 22
C24: Storage of liquid products and LPG | D24: =D41*D42/10^6 -> 125.2087298 | E24: =E41*E42/10^6 -> 125.2087298 | F24: =F41*F42/10^6 -> 125.2087298 | G24: =D24/D25*J25 -> 2.891824371 | H24: =E24/E25*K25 -> 7.37923115 | I24: =F24/F25*L25 -> 16.22542224 | N24: =E24-H24 -> 117.8294986 | O24: =D24-G24 -> 122.3169054 | P24: =F24-I24 -> 108.9833075 | Q24: 23 | R24: =HLOOKUP(R$2,N$2:P$39,Q24)*H$141 -> 149.7409003
C25: Subtotal | D25: =SUM(D24) -> 125.2087298 | E25: =SUM(E24) -> 125.2087298 | F25: =SUM(F24) -> 125.2087298 | G25: =SUM(G24) -> 2.891824371 | H25: =SUM(H24) -> 7.37923115 | I25: =SUM(I24) -> 16.22542224 | J25: =(K127) -> 2.891824371 | K25: =(L127) -> 7.37923115 | L25: 16.22542224 | N25: =SUM(N24) -> 117.8294986 | O25: =SUM(O24) -> 122.3169054 | P25: =SUM(P24) -> 108.9833075 | Q25: 24 | R25: =SUM(R24) -> 149.7409003
C26: Infrastructure | Q26: 25
C27: Site Prep, roads, general infrastructure | D27: =D$12*H114*D$45*D46 -> 16.96870759 | E27: =E$12*I114*E$45*E46 -> 42.25949904 | F27: =F$12*J114*F$45*F46 -> 73.96163382 | G27: =D27/D$29*J$29 -> 6.116903278 | H27: =E27/E$29*K$29 -> 15.60884667 | I27: 34.32066604 | N27: =E27-H27 -> 26.65065237 | O27: =D27-G27 -> 10.85180431 | P27: =F27-I27 -> 39.64096777 | Q27: 26 | R27: =HLOOKUP(R$2,N$2:P$39,Q27)*H$139 -> 14.05015119
C28: Buildings | D28: =D$12*H115*D$45*D46 -> 14.42340145 | E28: =E$12*I115*E$45*E46 -> 35.92057419 | F28: =F$12*J115*F$45*F46 -> 62.86738874 | G28: =D28/D$29*J$29 -> 5.199367786 | H28: 13.26751967 | I28: 29.17256614 | N28: 22.65305452 | O28: =D28-G28 -> 9.224033663 | P28: =F28-I28 -> 33.69482261 | Q28: 27 | R28: =HLOOKUP(R$2,N$2:P$39,Q28)*H$139 -> 11.94262851
C29: Subtotal | D29: =SUM(D27:D28) -> 31.39210904 | E29: =SUM(E27:E28) -> 78.18007323 | F29: 136.8290226 | G29: =SUM(G27:G28) -> 11.31627106 | H29: =SUM(H27:H28) -> 28.87636634 | I29: 63.49323218 | J29: =(K122+K123+K126) -> 11.31627106 | K29: =(L122+L123+L126) -> 28.87636634 | L29: 63.49323218 | N29: =SUM(N27:N28) -> 49.30370689 | O29: =SUM(O27:O28) -> 20.07583797 | P29: 73.33579038 | Q29: 28 | R29: =SUM(R27:R28) -> 25.99277969
C30: Labor | Q30: 29
C31: Skilled | G31: =J33*$D154 -> 157.2931555 | H31: =K33*$D154 -> 401.3738054 | I31: =L33*$D154 -> 882.5390258 | N31: =H31 -> 401.3738054 | O31: =G31 -> 157.2931555 | P31: =I31 -> 882.5390258 | Q31: 30 | R31: =HLOOKUP(R$2,N$2:P$39,Q31)*H$140 -> 208.687413
C32: Common | G32: =J33*$D155 -> 0 | H32: =K33*$D155 -> 0 | I32: =L33*$D155 -> 0 | N32: 0 | O32: =G32 -> 0 | P32: =I32 -> 0 | Q32: 31 | R32: =HLOOKUP(R$2,N$2:P$39,Q32)*H$140 -> 0
C33: Subtotal | G33: =SUM(G31:G32) -> 157.2931555 | H33: =SUM(H31:H32) -> 401.3738054 | I33: =SUM(I31:I32) -> 882.5390258 | J33: =G29+G25+G22+G18+G12 -> 157.2931555 | K33: =H29+H25+H22+H18+H12 -> 401.3738054 | L33: =I29+I25+I22+I18+I12 -> 882.5390258 | N33: =SUM(N31:N32) -> 401.3738054 | O33: =SUM(O31:O32) -> 157.2931555 | P33: =SUM(P31:P32) -> 882.5390258 | Q33: 32 | R33: =SUM(R31:R32) -> 208.687413
C34: Other Costs | Q34: 33
C35: Engineering/Design Services | D35: 0.12 | N35: =N$43*$D35 -> 108.6192411 | O35: =O$43*$D35 -> 53.11985481 | P35: 202.0013378 | Q35: 34 | R35: =HLOOKUP(R$2,N$2:P$39,Q35)*H$140 -> 70.47633474
C36: Construction Services | D36: 0.002 | N36: =N$43*$D36 -> 1.810320684 | O36: 0.8853309136 | P36: 3.366688964 | Q36: 35 | R36: =HLOOKUP(R$2,N$2:P$39,Q36)*H$140 -> 1.174605579
C37: Project Management | D37: 0.11 | N37: 99.56763764 | O37: 48.69320025 | P37: 185.167893 | Q37: 36 | R37: =HLOOKUP(R$2,N$2:P$39,Q37)*H$140 -> 64.60330685
C38: Subtotal | N38: =SUM(N35:N37) -> 209.9971994 | O38: =SUM(O35:O37) -> 102.698386 | P38: =SUM(P35:P37) -> 390.5359198 | Q38: 37 | R38: =SUM(R35:R37) -> 136.2542472
C39: Total | D39: =D29+D25+D22+D18+D12 -> 442.6654568 | E39: =E29+E25+E22+E18+E12 -> 905.1603422 | F39: =F29+F25+F22+F18+F12 -> 1683.344482 | G39: =G33+G29+G25+G22+G18+G12 -> 314.5863109 | H39: =H33+H29+H25+H22+H18+H12 -> 802.7476109 | I39: =I33+I29+I25+I22+I18+I12 -> 1765.078052 | N39: =N38+N33+N29+N25+N22+N18+N12 -> 1115.157542 | O39: =O38+O33+O29+O25+O22+O18+O12 -> 545.3638428 | P39: =P38+P33+P29+P25+P22+P18+P12 -> 2073.880402 | Q39: 38 | R39: =R38+R33+R29+R25+R22+R18+R12 -> 695.7115516
C41: Tankage | D41: =DefaultData!D4 -> 1191626.409 | E41: =DefaultData!D4 -> 1191626.409 | F41: =DefaultData!D4 -> 1191626.409
C42: Cost per barrel | D42: 105.0738124 | E42: 105.0738124 | F42: 105.0738124
L43: Direct and Indirect | N43: =N33+N29+N25+N22+N18+N12 -> 905.1603422 | O43: =O33+O29+O25+O22+O18+O12 -> 442.6654568 | P43: =P33+P29+P25+P22+P18+P12 -> 1683.344482
C45: Offsite (all but Process Units) Adj factor | D45: =H98 -> 0.5181885672 | E45: =I98 -> 0.5181885672 | F45: =J98 -> 0.5181885672
C46: Complexity Adj factor | D46: 1.287260265 | E46: 1.256327138 | F46: 1
C49: Utilities, connections, tankage, dispatch | D49: =D25+D18+D22+D29 -> 253.8111125 | E49: =E25+E18+E22+E29 -> 423.2500734 | F49: =F25+F18+F22+F29 -> 623.7222209
C50: See Worksheet - Complexity | D50: =D49/$D49 -> 1 | E50: =E49/$D49 -> 1.667578969 | F50: =F49/$D49 -> 2.457426764
C53: Process Cost Functions | E53: Capacity | F53: =D1 -> 30000 | G53: b/sd | H53: =E1 -> 30000 | J53: =F1 -> 30000
D54: Parameters | F54: Capacity | G54: Cost
D55: A | E55: B | F55: 1000 b/sd | G55: Million 2007$
C56: Desalter | D56: 0.44 | E56: 0.555 | F56: =F$53/1000 -> 30 | G56: =$D56*F56^$E56 -> 2.905728097 | H56: =H$53/1000 -> 30 | I56: =$D56*H56^$E56 -> 2.905728097 | J56: =J$53/1000 -> 30 | K56: =$D56*J56^$E56 -> 2.905728097
C57: Atmospheric distillation | D57: 8.2 | E57: 0.51 | F57: =F$53/1000 -> 30 | G57: =D57*F57^E57 -> 46.46711318 | H57: =H$53/1000 -> 30 | I57: =$D57*H57^$E57 -> 46.46711318 | J57: =J$53/1000 -> 30 | K57: =$D57*J57^$E57 -> 46.46711318
C58: Vacuum distillation | D58: 8.34 | E58: 0.493 | F58: =F$53/1000 -> 30 | G58: =D58*F58^E58 -> 44.60533745 | H58: =H$53/1000 -> 30 | I58: =$D58*H58^$E58 -> 44.60533745 | J58: =J$53/1000 -> 30 | K58: =$D58*J58^$E58 -> 44.60533745
C59: Delayed coking (coke used as industrial fuel) | D59: 17.56 | E59: 0.657 | F59: =F$53/1000 -> 30 | G59: =D59*F59^E59 -> 164.0563995 | H59: =H$53/1000 -> 30 | I59: =$D59*H59^$E59 -> 164.0563995 | J59: =J$53/1000 -> 30 | K59: =$D59*J59^$E59 -> 164.0563995
C60: Visbreaking (or hydrocrackers) | D60: 5.8 | E60: 0.741 | F60: =F$53/1000 -> 30 | G60: =D60*F60^E60 -> 72.10657099 | H60: =H$53/1000 -> 30 | I60: =$D60*H60^$E60 -> 72.10657099 | J60: =J$53/1000 -> 30 | K60: =$D60*J60^$E60 -> 72.10657099
C61: Fluid catalytic cracking
C62: Distillate feed | D62: 24.67 | E62: 0.461 | F62: =F$53/1000 -> 30 | G62: =D62*F62^E62 -> 118.3374068 | H62: =H$53/1000 -> 30 | I62: =$D62*H62^$E62 -> 118.3374068 | J62: =J$53/1000 -> 30 | K62: =$D62*J62^$E62 -> 118.3374068
C63: Residual feed | D63: 32.98 | E63: 0.51 | F63: =F$53/1000 -> 30 | G63: 186.8884625 | H63: =H$53/1000 -> 30 | I63: =$D63*H63^$E63 -> 186.8884625 | J63: =J$53/1000 -> 30 | K63: =$D63*J63^$E63 -> 186.8884625
C64: Catalytic hydrocracking | D64: 15.65 | E64: 0.719 | F64: =F$53/1000 -> 30 | G64: =D64*F64^E64 -> 180.5362944 | H64: =H$53/1000 -> 30 | I64: =$D64*H64^$E64 -> 180.5362944 | J64: =J$53/1000 -> 30 | K64: =$D64*J64^$E64 -> 180.5362944
C65: Catalytic hyrotreating
C66: Naptha desulfurization | D66: 4.96 | E66: 0.524 | F66: =F$53/1000 -> 30 | G66: =D66*F66^E66 -> 29.47767416 | H66: =H$53/1000 -> 30 | I66: =$D66*H66^$E66 -> 29.47767416 | J66: =J$53/1000 -> 30 | K66: =$D66*J66^$E66 -> 29.47767416
C67: Distillate desulfurization | D67: 8.62 | E67: 0.576 | F67: =F$53/1000 -> 30 | G67: 61.14051725 | H67: =H$53/1000 -> 30 | I67: =$D67*H67^$E67 -> 61.14051725 | J67: =J$53/1000 -> 30 | K67: =$D67*J67^$E67 -> 61.14051725
C68: Residual desulfurization | D68: 8.61 | E68: 0.834 | F68: =F$53/1000 -> 30 | G68: 146.866342 | H68: =H$53/1000 -> 30 | I68: =$D68*H68^$E68 -> 146.866342 | J68: =J$53/1000 -> 30 | K68: =$D68*J68^$E68 -> 146.866342
C69: Catalytic reforming | D69: 12.19 | E69: 0.547 | F69: =F$53/1000 -> 30 | G69: =D69*F69^E69 -> 78.34098576 | H69: =H$53/1000 -> 30 | I69: =$D69*H69^$E69 -> 78.34098576 | J69: =J$53/1000 -> 30 | K69: =$D69*J69^$E69 -> 78.34098576
D71: Percent of Process Units
C72: Process Total | D72: 1
C73: Utilities | E73: Percent of total
C74: Steam and electicity production | D74: 0.135 | F74: =(D74/D$78)*E$78 -> 0.06013363029
C75: Steam and utilities distribution | D75: 0.13 | F75: =(D75/D$78)*E$78 -> 0.0579064588
C76: Production, distribution other utilities | D76: 0.03 | F76: =(D76/D$78)*E$78 -> 0.01336302895
C77: Cooling Water system | D77: 0.045 | F77: =(D77/D$78)*E$78 -> 0.02004454343
C78: Total | D78: =SUM(D74:D77) -> 0.34 | E78: 0.1514476615 | F78: =SUM(F74:F77) -> 0.1514476615
C79: Security and environmental Installations
C80: Fire fighting system | D80: 0.035 | F80: =(D80/D$22)*E$22 -> 0.08716529876
C81: Flare and liquid effluent treatment systems | D81: 0.12 | F81: =(D81/D$22)*E$22 -> 0.2988524529
C82: Total | D82: =SUM(D80:D81) -> 0.155 | E82: =D82/D$90 -> 0.06904231626 | F82: =SUM(F80:F81) -> 0.3860177517
C83: Storage and Dispatch
C84: Storage of liquid products and LPG | D84: 0.565 | F84: =(D84/D85)*E85 -> 0.2516703786
C85: Total | D85: =D84 -> 0.565 | E85: =D85/D$90 -> 0.2516703786 | F85: =SUM(F84) -> 0.2516703786
C86: Infrastructure
C87: Site Prep, roads, general infrastructure | D87: 0.1 | F87: =(D87/D$29)*E$29 -> 0.2490437107
C88: Buildings | D88: 0.085 | F88: =(D88/D$29)*E$29 -> 0.2116871541
C89: Total | D89: =SUM(D87:D88) -> 0.185 | E89: =D89/D$90 -> 0.08240534521 | F89: =SUM(F87:F88) -> 0.4607308649
C90: Total | D90: =D89+D85+D82+D78+D72 -> 2.245
E91: =SUM(E78:E89) -> 0.5545657016
C93: Offsite Adjustment for Size
D94: less than | E94: less than | F94: more than | H94: Simple | I94: Complex | J94: Utlra Complex
D96: =D$100/(($E$78-$F$77-$F$74)+$E$82+$E$89) -> 2.245 | E96: =E$100/(($E$78-$F$77-$F$74)+$E$82+$E$89) -> 1.347 | F96: 0.898
D97: 30000 | E97: 100000 | F97: 100000 | H97: =D1 -> 30000 | I97: =E1 -> 30000 | J97: =F1 -> 30000
C98: adj | D98: 0.6971046771 | E98: 0.5181885672 | F98: 0.6186946274 | H98: =IF(H$97<$D$97,$D98,IF(H$97<$E$97,$E98,$F98)) -> 0.5181885672 | I98: =IF(I$97<$D$97,$D98,IF(I$97<$E$97,$E98,$F98)) -> 0.5181885672 | J98: =IF(J$97<$D$97,$D98,IF(J$97<$E$97,$E98,$F98)) -> 0.5181885672
C100: Utilities | D100: 0.5 | E100: 0.3 | F100: 0.2
C101: Steam and electicity production
C102: Steam and utilities distribution | D102: =D$96*$D75 -> 0.29185 | E102: 0.17511 | F102: 0.11674 | H102: =IF(H$97<$D$97,$D102,IF(H$97<$E$97,$E102,$F102)) -> 0.17511 | I102: 0.17511 | J102: 0.17511
C103: Production, distribution other utilities | D103: 0.06735 | E103: 0.04041 | F103: 0.02694 | H103: 0.04041 | I103: 0.04041 | J103: 0.04041
C104: Cooling Water system
C105: Total
C106: Security and environmental Installations
C107: Fire fighting system | D107: =D$96*$D80 -> 0.078575 | E107: 0.047145 | F107: 0.03143 | H107: =IF(H$97<$D$97,$D107,IF(H$97<$E$97,$E107,$F107)) -> 0.047145 | I107: 0.047145 | J107: 0.047145
C108: Flare and liquid effluent treatment systems | D108: 0.2694 | E108: 0.16164 | F108: 0.10776 | H108: 0.16164 | I108: 0.16164 | J108: 0.16164
C109: Total
C110: Storage and Dispatch
C111: Storage of liquid products and LPG
C112: Total
C113: Infrastructure
C114: Site Prep, roads, general infrastructure | D114: =D$96*$D87 -> 0.2245 | E114: 0.1347 | F114: 0.0898 | H114: =IF(H$97<$D$97,$D114,IF(H$97<$E$97,$E114,$F114)) -> 0.1347 | I114: 0.1347 | J114: 0.1347
C115: Buildings | D115: 0.190825 | E115: 0.114495 | F115: 0.07633 | H115: 0.114495 | I115: 0.114495 | J115: 0.114495
C116: Total
C120: Labor Ratio Percentages | D120: Direct Labor as percent of Process Equip | F120: Avg | I120: 2007 | L120: Process
C121: Process Equipment | D121: 7.7 | E121: 7.8 | F121: =AVERAGE(D121:E121)/100 -> 0.0775 | I121: =F121*G$151 -> 0.08241080272 | K121: =$I121*D$12 -> 15.56363811 | L121: =$I121*E$12 -> 39.71461209 | M121: 87.3243211
C122: Site Prep | D122: 2.75 | E122: 2.85 | F122: =AVERAGE(D122:E122)/100 -> 0.028 | I122: 0.0297742255 | K122: =$I122*D$12 -> 5.622991833 | L122: 14.34850501 | M122: 31.54943214
C123: Site Improvements | D123: 1.1 | E123: 1.12 | F123: 0.0111 | I123: 0.01180335368 | K123: 2.229114619 | L123: 5.688157345 | M123: 12.50709631
C124: Concrete | D124: 12.7 | E124: 12.9 | F124: 0.128 | I124: 0.1361107451 | K124: 25.70510552 | L124: 65.59316578 | M124: 144.2259755
C125: Structural Steel | D125: 3.7 | E125: 3.75 | F125: 0.03725 | I125: 0.03961035356 | K125: 7.480587349 | L125: 19.08863613 | M125: 41.9720124
C126: Buildings | D126: 1.7 | E126: 1.75 | F126: 0.01725 | I126: 0.01834304964 | K126: 3.464164611 | L126: 8.839703982 | M126: 19.43670373
C127: Underground Piping | D127: 1.4 | E127: 1.48 | F127: 0.0144 | I127: 0.01531245883 | K127: 2.891824371 | L127: 7.37923115 | M127: 16.22542224
C128: Aboveground Piping | D128: 21.3 | E128: 22.4 | F128: 0.2185 | I128: 0.2323452954 | K128: 43.87941841 | L128: 111.9695838 | M128: 246.1982472
C129: Undrground Electric | D129: 0.65 | E129: 0.7 | F129: 0.00675 | I129: 0.007177715075 | K129: 1.355542674 | L129: 3.459014602 | M129: 7.605666677
C130: Above ground Electric | D130: 6.1 | E130: 6.25 | F130: 0.06175 | I130: 0.06566280087 | K130: 12.4007052 | L130: 31.64357802 | M130: 69.57776552
C131: Instrumentation | D131: 3.2 | E131: 3.5 | F131: 0.0335 | I131: 0.03562273408 | K131: 6.727508086 | L131: 17.16696136 | M131: 37.74664202
C132: Insulation | D132: 7.4 | E132: 7.5 | F132: 0.0745 | I132: 0.07922070713 | K132: 14.9611747 | L132: 38.17727227 | M132: 83.9440248
C133: Painting | D133: 3.9 | E133: 4 | F133: 0.0395 | I133: 0.04200292526 | K133: 7.932434907 | L133: 20.241641 | M133: 44.50723463
C134: Paving | D134: 0.6 | E134: 0.7 | F134: 0.0065 | I134: 0.006911873776 | K134: 1.30533739 | L134: 3.33090295 | M134: 7.323975318
C135: Proratables | D135: 2.8 | E135: 2.95 | F135: 0.02875 | I135: 0.03057174939 | K135: 5.773607686 | L135: 14.73283997 | M135: 32.39450622
D136: =SUM(D121:D135) -> 77 | E136: =SUM(E121:E135) -> 79.65 | F136: 0.78325 | I136: =SUM(I121:I135) -> 0.83288079 | K136: =SUM(K121:K135) -> 157.2931555 | L136: =SUM(L121:L135) -> 401.3738054 | M136: 882.5390258
C138: Nelson-farrar Cost Indexes | D138: 1996 | E138: 2007 | F138: 2012 | G138: Chg (1996-2007) | H138: Chg (2007-2012) w/Location Adj Factor
C139: Inflation Index | D139: 1418.9 | E139: 2251.4 | F139: 2470.3 | G139: =E139/D139 -> 1.586722109 | H139: =(F139/E139)*ProjectData!B$20 -> 1.294729502
C140: Labor Component Cost Index | D140: 1753.5 | E140: 2704.3 | F140: 3040.6 | G140: =E140/D140 -> 1.542229826 | H140: =(F140/E140)*ProjectData!B$20 -> 1.326741856
C141: Misc. Equipment | D141: 903.5 | E141: 1230.6 | F141: 1276.7 | G141: =E141/D141 -> 1.362036525 | H141: =(F141/E141)*ProjectData!B$20 -> 1.224204453
C142: Materials component | D142: 917.1 | E142: 1364.8 | F142: 1614.9 | G142: =E142/D142 -> 1.488169229 | H142: =(F142/E142)*ProjectData!B$20 -> 1.396235346
C144: Assumptions:
C145: Equipment
C146: Materials
C147: Metallic | D147: 0.5 | E147: =D147*G142 -> 0.7440846145
C148: Non-metallic | D148: 0.2 | E148: =D148*G142 -> 0.2976338458
C149: Misc. Equipment | D149: 0.3 | E149: =D149*G141 -> 0.4086109574
C150: Total | D150: =SUM(D147:D149) -> 1 | E150: =SUM(E147:E149) -> 1.450329418
C151: Labor | F151: =G140/E150-1 -> 0.06336519634 | G151: =1+F151 -> 1.063365196
C153: labor
C154: Skilled | D154: 1
C155: Common | D155: =1-D154 -> 0

Sheet Calculations
C1: Economic Impact Analysis for | E1: =ProjectData!B16 -> Arizona | F1: =Project_Data -> Petroleum Refinery Project Data
C4: Project Construction Costs | AB4: =C4 -> Project Construction Costs
A5: Warning | C5: =DefaultData!C14 -> Construction Costs | D5: Cost | E5: Purchased Local | G5: Local $ Spending | AB5: Construction Costs | AC5: Cost | AD5: Local Share
C6: =DefaultData!C16 -> Process Units | AB6: Process Units
A7: This Worksheet contains Data and Formulas that are an integral part of the JEDI model. | C7: =DefaultData!C17 -> Atmospheric Distillation | D7: =IF(ProjectData!$T$36="Simple",DefaultData!D17,ProjectData!B44) -> 18.58270689 | E7: =IF(ProjectData!$T$36="Simple",DefaultData!G17,ProjectData!E44) -> 0 | G7: =D7*E7 -> 0 | AB7: Atmospheric Distillation | AC7: =D7 -> 18.58270689 | AD7: 0
C8: =DefaultData!C18 -> Catalytic Reforming | D8: =IF(ProjectData!$T$36="Simple",DefaultData!D18,ProjectData!B45) -> 31.32941723 | E8: =IF(ProjectData!$T$36="Simple",DefaultData!G18,ProjectData!E45) -> 0 | G8: =D8*E8 -> 0 | AB8: Catalytic Reforming | AC8: 31.32941723 | AD8: 0
A9: Although the data and formulas are available for review they must not be changed. | C9: =DefaultData!C19 -> Catalytic Hydrotreatment | D9: =IF(ProjectData!$T$36="Simple",DefaultData!D19,ProjectData!B46) -> 24.4507617 | E9: =IF(ProjectData!$T$36="Simple",DefaultData!G19,ProjectData!E46) -> 0 | G9: 0 | AB9: Catalytic Hydrotreatment | AC9: 24.4507617 | AD9: 0
C10: =DefaultData!C20 -> FCC, visbreaker and associated plant | D10: =IF(ProjectData!$T$36="Simple",DefaultData!D20,ProjectData!B47) -> 0 | E10: =IF(ProjectData!$T$36="Simple",DefaultData!G20,ProjectData!E47) -> 0 | G10: 0 | AB10: FCC, visbreaker and associated plant | AC10: 0 | AD10: 0
A11: Any changes to the data or formulas will impact the analysis and may invalidate the model results. | C11: =DefaultData!C21 -> Vacuum distillation for FCC | D11: =IF(ProjectData!$T$36="Simple",DefaultData!D21,ProjectData!B48) -> 0 | E11: =IF(ProjectData!$T$36="Simple",DefaultData!G21,ProjectData!E48) -> 0 | G11: 0 | AB11: Vacuum distillation for FCC | AC11: =D11 -> 0 | AD11: =E11 -> 0
C12: =DefaultData!C22 -> Deep Conversion units | D12: =IF(ProjectData!$T$36="Simple",DefaultData!D22,ProjectData!B49) -> 0 | E12: =IF(ProjectData!$T$36="Simple",DefaultData!G22,ProjectData!E49) -> 0 | G12: 0 | AB12: Deep Conversion units | AC12: =D12 -> 0 | AD12: 0
C13: =DefaultData!C23 -> Other units | D13: =IF(ProjectData!$T$36="Simple",DefaultData!D23,ProjectData!B50) -> 1.162032454 | E13: =IF(ProjectData!$T$36="Simple",DefaultData!G23,ProjectData!E50) -> 0 | G13: 0 | AB13: Other units | AC13: 1.162032454 | AD13: 0
C14: =DefaultData!C24 -> Subtotal | D14: =IF(ProjectData!$T$36="Simple",DefaultData!D24,ProjectData!B51) -> 75.52491827 | G14: =SUM(G7:G13) -> 0 | AB14: Subtotal | AC14: 75.52491827
C15: =DefaultData!C25 -> Utilities | AB15: Utilities
C16: =DefaultData!C26 -> Steam and/or electricity production | D16: =IF(ProjectData!$T$36="Simple",DefaultData!D26,ProjectData!B53) -> 32.38295864 | E16: =IF(ProjectData!$T$36="Simple",DefaultData!G26,ProjectData!E53) -> 0 | G16: =D16*E16 -> 0 | AB16: Steam and/or electricity production | AC16: =D16 -> 32.38295864 | AD16: =E16 -> 0
C17: =DefaultData!C27 -> Steam and utilities distribution | D17: =IF(ProjectData!$T$36="Simple",DefaultData!D27,ProjectData!B54) -> 21.76614568 | E17: =IF(ProjectData!$T$36="Simple",DefaultData!G27,ProjectData!E54) -> 0 | G17: 0 | AB17: Steam and utilities distribution | AC17: =D17 -> 21.76614568 | AD17: 0
A18: To view the data and formulas simply scroll over to the adjacent columns to the right. | C18: =DefaultData!C28 -> Production and/or distribution of other utilities | D18: =IF(ProjectData!$T$36="Simple",DefaultData!D28,ProjectData!B55) -> 5.022956696 | E18: =IF(ProjectData!$T$36="Simple",DefaultData!G28,ProjectData!E55) -> 0 | G18: 0 | AB18: Production and/or distribution of other utilities | AC18: 5.022956696 | AD18: 0
C19: =DefaultData!C29 -> Cooling Water system | D19: =IF(ProjectData!$T$36="Simple",DefaultData!D29,ProjectData!B56) -> 10.79431955 | E19: =IF(ProjectData!$T$36="Simple",DefaultData!G29,ProjectData!E56) -> 0 | G19: 0 | AB19: Cooling Water system | AC19: 10.79431955 | AD19: 0
C20: =DefaultData!C30 -> Subtotal | D20: =IF(ProjectData!$T$36="Simple",DefaultData!D30,ProjectData!B57) -> 69.96638056 | G20: =SUM(G16:G19) -> 0 | AB20: Subtotal | AC20: 69.96638056
C21: =DefaultData!C31 -> Security and Environmental Installations | AB21: Security and Environmental Installations
C22: =DefaultData!C32 -> Fire fighting system | D22: =IF(ProjectData!$T$36="Simple",DefaultData!D32,ProjectData!B59) -> 6.671431897 | E22: =IF(ProjectData!$T$36="Simple",DefaultData!G32,ProjectData!E59) -> 0 | G22: =D22*E22 -> 0 | AB22: =C22 -> Fire fighting system | AC22: =D22 -> 6.671431897 | AD22: =E22 -> 0
C23: =DefaultData!C33 -> Flare and liquid effluent treatment systems | D23: =IF(ProjectData!$T$36="Simple",DefaultData!D33,ProjectData!B60) -> 22.87348079 | E23: =IF(ProjectData!$T$36="Simple",DefaultData!G33,ProjectData!E60) -> 0 | G23: 0 | AB23: Flare and liquid effluent treatment systems | AC23: 22.87348079 | AD23: 0
C24: =DefaultData!C34 -> Subtotal | D24: =IF(ProjectData!$T$36="Simple",DefaultData!D34,ProjectData!B61) -> 29.54491269 | G24: =SUM(G22:G23) -> 0 | AB24: Subtotal | AC24: 29.54491269
C25: =DefaultData!C35 -> Storage and Dispatch | AB25: Storage and Dispatch
C26: =DefaultData!C36 -> Storage of liquid products and LPG (if applicable) | D26: =IF(ProjectData!$T$36="Simple",DefaultData!D36,ProjectData!B63) -> 149.7409003 | E26: =IF(ProjectData!$T$36="Simple",DefaultData!G36,ProjectData!E63) -> 0.75 | G26: =D26*E26 -> 112.3056752 | AB26: Storage of liquid products and LPG (if applicable) | AC26: 149.7409003 | AD26: 0.75
C27: =DefaultData!C37 -> Subtotal | D27: =IF(ProjectData!$T$36="Simple",DefaultData!D37,ProjectData!B64) -> 149.7409003 | G27: =SUM(G26) -> 112.3056752 | AB27: Subtotal | AC27: =D27 -> 149.7409003
C28: =DefaultData!C38 -> Infrastructure | AB28: Infrastructure
C29: =DefaultData!C39 -> Site prep, roads, general infrastructure | D29: =IF(ProjectData!$T$36="Simple",DefaultData!D39,ProjectData!B66) -> 14.05015119 | E29: =IF(ProjectData!$T$36="Simple",DefaultData!G39,ProjectData!E66) -> 1 | G29: =D29*E29 -> 14.05015119 | AB29: Site prep, roads, general infrastructure | AC29: 14.05015119 | AD29: =E29 -> 1
C30: =DefaultData!C40 -> Buildings | D30: =IF(ProjectData!$T$36="Simple",DefaultData!D40,ProjectData!B67) -> 11.94262851 | E30: =IF(ProjectData!$T$36="Simple",DefaultData!G40,ProjectData!E67) -> 1 | G30: 11.94262851 | AB30: Buildings | AC30: 11.94262851 | AD30: 1
C31: =DefaultData!C41 -> Subtotal | D31: =IF(ProjectData!$T$36="Simple",DefaultData!D41,ProjectData!B68) -> 25.99277969 | G31: =SUM(G29:G30) -> 25.99277969 | AB31: Subtotal | AC31: 25.99277969
C32: =DefaultData!C42 -> Labor | AB32: Labor
C33: =DefaultData!C43 -> All construction | D33: =IF(ProjectData!$T$36="Simple",DefaultData!D43,ProjectData!B70) -> 208.687413 | E33: =IF(ProjectData!$T$36="Simple",DefaultData!G43,ProjectData!E70) -> 0.5 | G33: =D33*E33 -> 104.3437065 | AB33: All construction | AC33: 208.687413 | AD33: 0.5
AB34: 0 | AC34: 0 | AD34: 0
C35: =DefaultData!C45 -> Subtotal | D35: =IF(ProjectData!$T$36="Simple",DefaultData!D45,ProjectData!B71) -> 208.687413 | G35: =SUM(G33:G34) -> 104.3437065 | AB35: Subtotal | AC35: 208.687413 | AG35: Local Economic Impacts - Summary Results
C36: =DefaultData!C46 -> Other Costs | AB36: Other Costs | AH36: Jobs | AI36: Earnings | AJ36: Output | AK36: Value Added
C37: =DefaultData!C47 -> Engineering/Design Services | D37: =IF(ProjectData!$T$36="Simple",DefaultData!D47,ProjectData!B73) -> 70.47633474 | E37: =IF(ProjectData!$T$36="Simple",DefaultData!G47,ProjectData!E73) -> 0 | G37: =D37*E37 -> 0 | AB37: Engineering/Design Services | AC37: 70.47633474 | AD37: 0 | AG37: During construction period
C38: =DefaultData!C48 -> Construction Services | D38: =IF(ProjectData!$T$36="Simple",DefaultData!D48,ProjectData!B74) -> 1.174605579 | E38: =IF(ProjectData!$T$36="Simple",DefaultData!G48,ProjectData!E74) -> 0 | G38: 0 | AB38: Construction Services | AC38: 1.174605579 | AD38: 0 | AG38: Direct Impacts | AH38: =AH39+AH40 -> 842.8089176 | AI38: =AI39+AI40 -> 114.2902653 | AJ38: =AJ39+AJ40 -> 130.3364862 | AK38: =AK39+AK40 -> 115.6332756
C39: =DefaultData!C49 -> Project Management | D39: =IF(ProjectData!$T$36="Simple",DefaultData!D49,ProjectData!B75) -> 64.60330685 | E39: =IF(ProjectData!$T$36="Simple",DefaultData!G49,ProjectData!E75) -> 0 | G39: 0 | AB39: Project Management | AC39: 64.60330685 | AD39: 0 | AG39: Onsite Construction Only (labor and interconnection) | AH39: =I52 -> 842.8089176 | AI39: =M52 -> 114.2902653 | AJ39: =Q52*$G67 -> 130.3364862 | AK39: =U52*$G67 -> 115.6332756
C40: =DefaultData!C50 -> Subtotal | D40: =IF(ProjectData!$T$36="Simple",DefaultData!D50,ProjectData!B76) -> 136.2542472 | G40: =SUM(G37:G39) -> 0 | AB40: Subtotal | AC40: 136.2542472 | AG40: Other Onsite Construction Related Services (Engin. and Prof. Services) | AH40: =I42 -> 0 | AI40: =M42 -> 0 | AJ40: =Q42 -> 0 | AK40: =U42 -> 0
C41: =DefaultData!C51 -> Total | D41: =IF(ProjectData!$T$36="Simple",DefaultData!D51,ProjectData!B77) -> 695.7115516 | G41: =G40+G35+G31+G27+G24+G20+G14 -> 242.6421614 | AB41: Total | AC41: 695.7115516 | AG41: Indirect Impacts | AH41: =I43+I44+J64 -> 1137.176612 | AI41: =M43+M44+N67 -> 78.48415539 | AJ41: =+Q43+Q44+R67 -> 353.7950757 | AK41: =+U43+U44+V67 -> 135.9068737
H42: Eng. & Prof. Svcs. | I42: =I62 -> 0 | L42: Eng. & Prof. Svcs. | M42: =M62*G67 -> 0 | P42: Eng. & Prof. Svcs. | Q42: =Q62*$G67 -> 0 | R42: =(Q64-Q42-Q52)*$G67 -> 224.6113504 | U42: =U62*$G67 -> 0 | V42: =(U64-U42-U52)*$G67 -> 64.95055561 | AG42: Induced Impacts | AH42: =K64 -> 691.6728033 | AI42: =O67 -> 37.12331198 | AJ42: =S67 -> 109.2372855 | AK42: =W67 -> 63.04784651
H43: Other Sectors (not Construction) | I43: =I64-I52-I44-I42 -> 0 | L43: Other Sectors (not Construction) | M43: =((M64-M52)*G67)-M44-M42 -> 0 | P43: Other Sectors (not Construction) | Q43: =((Q64-Q52)*$G67)-Q44-Q42 -> 0 | U43: =((U64-U52)*$G67)-U44-U42 -> -1.421085472e-14 | AB43: =C68 -> Annual Operating and Maintenance Costs | AG43: Total Impacts (Direct, Indirect, Induced) | AH43: =AH42+AH41+AH38 -> 2671.658333 | AI43: =AI42+AI41+AI38 -> 229.8977327 | AJ43: =AJ42+AJ41+AJ38 -> 593.3688474 | AK43: =AK42+AK41+AK38 -> 314.5879958
H44: Manufacturing Jobs | I44: =I53+I54+I55+I56 -> 442.095706 | J44: =J53+J54+J55+J56 -> 367.0470375 | L44: Mfg W&S Earnings | M44: =(M53+M54+M55+M56)*$G67 -> 37.16464543 | N44: =(N53+N54+N55+N56)*$G67 -> 23.44410112 | P44: Mfg Output | Q44: =(Q53+Q54+Q55+Q56)*$G67 -> 224.6113504 | R44: =(R53+R54+R55+R56)*$G67 -> 77.41931056 | U44: =(U53+U54+U55+U56)*$G67 -> 64.95055561 | V44: =(V53+V54+V55+V56)*$G67 -> 40.97485107
AB45: =C70 -> Variable | AC45: =D70 -> Cost | AD45: =E70 -> Local Share | AG45: During operating years (annual)
C46: Year | D46: =+ProjectData!B32 -> 2012 | F46: =CONCATENATE("Convert to ",Deflators!E4, " dollars") -> Convert to 2014 dollars | G46: =Deflators!F7 -> 1.034538689 | H46: Manufacturing | I46: =I53+I54+I55+I56 -> 442.095706 | M46: =M53+M54+M55+M56 -> 38.44826356 | AB46: Chemicals and Catalysts | AC46: 3 | AD46: 0 | AG46: Direct Impacts | AH46: =AH47 -> 48.06416193 | AI46: =AI47 -> 5.704194139 | AJ46: =AJ47 -> 5.704194139 | AK46: =AK47 -> 5.704194139
C47: Installation Costs Local Demand - margined | M47: =Deflators!E4 -> 2014 | N47: Dollars | Q47: =M47 -> 2014 | U47: =Q47 -> 2014 | AB47: Utilities | AC47: 4.2 | AD47: 1 | AG47: Onsite Plant Labor Only | AH47: =L146 -> 48.06416193 | AI47: =P148 -> 5.704194139 | AJ47: =T148 -> 5.704194139 | AK47: =X148 -> 5.704194139
D48: Demand | F48: Total | G48: Adj Demand | I48: Jobs | J48: Jobs | K48: Jobs | L48: Jobs | M48: Earnings | Q48: Output | U48: Value Added | AB48: Subtotal | AC48: 7.2 | AG48: Indirect Impacts | AH48: =(L168-AH47)+M168 -> 97.27876135 | AI48: =P169-AI47+Q169 -> 4.797255616 | AJ48: =T169-AJ47+U169 -> 20.04259341 | AK48: =X169-AK47+Y169 -> 10.98769994
I49: Direct | J49: Indirect | K49: Induced | L49: Total | M49: Direct | N49: Indirect | O49: Induced | P49: Total | Q49: Direct | R49: Indirect | S49: Induced | T49: Total | U49: Direct | V49: Indirect | W49: Induced | X49: Total | AB49: Fixed | AG49: Induced Impacts | AH49: =N168 -> 53.47747083 | AI49: =R169 -> 2.53305587 | AJ49: =V169 -> 7.453744188 | AK49: =Z169 -> 4.302015396
C50: Agriculture | D50: =$E150 -> 0 | F50: =D50 -> 0 | G50: =F50*G$46 -> 0 | I50: =+G50*Multipliers!D213/ProjectData!B$20 -> 0 | J50: =+$G50*Multipliers!E213/ProjectData!B$20 -> 0 | K50: =+$G50*Multipliers!F213/ProjectData!B$20 -> 0 | L50: =+K50+J50+I50 -> 0 | M50: =+$G50*Multipliers!H213 -> 0 | N50: =+$G50*Multipliers!I213 -> 0 | O50: =+$G50*Multipliers!J213 -> 0 | P50: =+O50+N50+M50 -> 0 | Q50: =+$G50*Multipliers!L213 -> 0 | R50: =+$G50*Multipliers!M213 -> 0 | S50: =+$G50*Multipliers!N213 -> 0 | T50: =+S50+R50+Q50 -> 0 | U50: =+$G50*Multipliers!P213 -> 0 | V50: =+$G50*Multipliers!Q213 -> 0 | W50: =+$G50*Multipliers!R213 -> 0 | X50: =+W50+V50+U50 -> 0 | AB50: Labor | AC50: 3.987619486 | AD50: 1 | AG50: Total Impacts (Direct, Indirect, Induced) | AH50: =SUM(AH47:AH49) -> 198.8203941 | AI50: =SUM(AI47:AI49) -> 13.03450562 | AJ50: =SUM(AJ47:AJ49) -> 33.20053174 | AK50: =SUM(AK47:AK49) -> 20.99390947
C51: Mining | D51: 0 | F51: 0 | G51: =F51*G$46 -> 0 | I51: =+G51*Multipliers!D214/ProjectData!B$20 -> 0 | J51: =+$G51*Multipliers!E214/ProjectData!B$20 -> 0 | K51: =+$G51*Multipliers!F214/ProjectData!B$20 -> 0 | L51: 0 | M51: =+$G51*Multipliers!H214 -> 0 | N51: =+$G51*Multipliers!I214 -> 0 | O51: =+$G51*Multipliers!J214 -> 0 | P51: 0 | Q51: =+$G51*Multipliers!L214 -> 0 | R51: =+$G51*Multipliers!M214 -> 0 | S51: =+$G51*Multipliers!N214 -> 0 | T51: 0 | U51: =+$G51*Multipliers!P214 -> 0 | V51: =+$G51*Multipliers!Q214 -> 0 | W51: =+$G51*Multipliers!R214 -> 0 | X51: 0 | AB51: Maintenance | AC51: =D76+D77 -> 20.87134655 | AD51: =E77 -> 1
C52: Construction | D52: 130.3364862 | F52: 130.3364862 | G52: 134.8381375 | H52: =G35*G46 -> 107.9476013 | I52: =(H53*Multipliers!D215/ProjectData!B20)+DefaultData!S106 -> 842.8089176 | J52: =+$G52*Multipliers!E215/ProjectData!B$20 -> 328.0338689 | K52: =+$G52*Multipliers!F215/ProjectData!B$20 -> 324.0465179 | L52: 1494.889304 | M52: =($H53*Multipliers!H215/ProjectData!$B20)+H52 -> 114.2902653 | N52: =+(G52)*Multipliers!I215 -> 18.49280202 | O52: =($G52)*Multipliers!J215 -> 18.10548794 | P52: 150.8885553 | Q52: =+$H53*Multipliers!L215+H52 -> 134.8381375 | R52: =+$G52*Multipliers!M215 -> 53.55228974 | S52: =($G52)*Multipliers!N215 -> 53.27094724 | T52: 241.6613745 | U52: =+$H53*Multipliers!P215+H52 -> 119.6270974 | V52: =+$G52*Multipliers!Q215 -> 31.01698759 | W52: =($G52)*Multipliers!R215 -> 30.74713396 | X52: 181.3912189
C53: Manufacturing | D53: 112.3056752 | F53: 112.3056752 | G53: 116.184566 | H53: =G52-H52 -> 26.89053623 | I53: =+G53*Multipliers!D216/ProjectData!B$20 -> 232.0265118 | J53: =+$G53*Multipliers!E216/ProjectData!B$20 -> 187.7663531 | K53: =+$G53*Multipliers!F216/ProjectData!B$20 -> 193.2187 | L53: 613.0115649 | M53: =+$G53*Multipliers!H216 -> 20.97547626 | N53: =+$G53*Multipliers!I216 -> 12.26200915 | O53: =+$G53*Multipliers!J216 -> 10.76123094 | P53: 43.99871635 | Q53: =+$G53*Multipliers!L216 -> 116.184566 | R53: =+$G53*Multipliers!M216 -> 41.37421995 | S53: =+$G53*Multipliers!N216 -> 31.66838377 | T53: 189.2271697 | U53: =+$G53*Multipliers!P216 -> 32.86800843 | V53: =+$G53*Multipliers!Q216 -> 21.88163426 | W53: =+$G53*Multipliers!R216 -> 18.27728771 | X53: 73.0269304 | AB53: Other Costs
C54: Fabricated Metals | D54: 0 | F54: 0 | G54: 0 | I54: =+G54*Multipliers!D217/ProjectData!B$20 -> 0 | J54: =+$G54*Multipliers!E217/ProjectData!B$20 -> 0 | K54: =+$G54*Multipliers!F217/ProjectData!B$20 -> 0 | L54: 0 | M54: =+$G54*Multipliers!H217 -> 0 | N54: =+$G54*Multipliers!I217 -> 0 | O54: =+$G54*Multipliers!J217 -> 0 | P54: 0 | Q54: =+$G54*Multipliers!L217 -> 0 | R54: =+$G54*Multipliers!M217 -> 0 | S54: =+$G54*Multipliers!N217 -> 0 | T54: 0 | U54: =+$G54*Multipliers!P217 -> 0 | V54: =+$G54*Multipliers!Q217 -> 0 | W54: =+$G54*Multipliers!R217 -> 0 | X54: 0 | AB54: Insurance | AC54: 3.478557758 | AD54: 0
C55: Machinery | D55: 112.3056752 | F55: 112.3056752 | G55: 116.184566 | I55: =+G55*Multipliers!D218/ProjectData!B$20 -> 210.0691942 | J55: =+$G55*Multipliers!E218/ProjectData!B$20 -> 179.2806844 | K55: =+$G55*Multipliers!F218/ProjectData!B$20 -> 174.4075855 | L55: 563.7574641 | M55: =+$G55*Multipliers!H218 -> 17.4727873 | N55: =+$G55*Multipliers!I218 -> 11.99182049 | O55: =+$G55*Multipliers!J218 -> 9.538783628 | P55: 39.00339142 | Q55: =+$G55*Multipliers!L218 -> 116.184566 | R55: =+$G55*Multipliers!M218 -> 38.71905211 | S55: =+$G55*Multipliers!N218 -> 28.07086714 | T55: 182.9744853 | U55: =+$G55*Multipliers!P218 -> 34.32585423 | V55: =+$G55*Multipliers!Q218 -> 20.50843444 | W55: =+$G55*Multipliers!R218 -> 16.20101481 | X55: 71.03530348 | AB55: Misc. Supplies | AC55: 1.043567327 | AD55: 0
C56: Electrical Equipment | D56: 0 | F56: 0 | G56: 0 | I56: =+G56*Multipliers!D219/ProjectData!B$20 -> 0 | J56: =+$G56*Multipliers!E219/ProjectData!B$20 -> 0 | K56: =+$G56*Multipliers!F219/ProjectData!B$20 -> 0 | L56: 0 | M56: =+$G56*Multipliers!H219 -> 0 | N56: =+$G56*Multipliers!I219 -> 0 | O56: =+$G56*Multipliers!J219 -> 0 | P56: 0 | Q56: =+$G56*Multipliers!L219 -> 0 | R56: =+$G56*Multipliers!M219 -> 0 | S56: =+$G56*Multipliers!N219 -> 0 | T56: 0 | U56: =+$G56*Multipliers!P219 -> 0 | V56: =+$G56*Multipliers!Q219 -> 0 | W56: =+$G56*Multipliers!R219 -> 0 | X56: 0 | AB56: Other Operating Costs | AC56: 7.472901451 | AD56: 0
C57: TCPU | D57: 0 | F57: 0 | G57: 0 | I57: =+G57*Multipliers!D220/ProjectData!B$20 -> 0 | J57: =+$G57*Multipliers!E220/ProjectData!B$20 -> 0 | K57: =+$G57*Multipliers!F220/ProjectData!B$20 -> 0 | L57: 0 | M57: =+$G57*Multipliers!H220 -> 0 | N57: =+$G57*Multipliers!I220 -> 0 | O57: =+$G57*Multipliers!J220 -> 0 | P57: 0 | Q57: =+$G57*Multipliers!L220 -> 0 | R57: =+$G57*Multipliers!M220 -> 0 | S57: =+$G57*Multipliers!N220 -> 0 | T57: 0 | U57: =+$G57*Multipliers!P220 -> 0 | V57: =+$G57*Multipliers!Q220 -> 0 | W57: =+$G57*Multipliers!R220 -> 0 | X57: 0 | AB57: Subtotal | AC57: 11.99502654
C58: Wholesale Trade | D58: 0 | F58: 0 | G58: 0 | I58: =+G58*Multipliers!D221/ProjectData!B$20 -> 0 | J58: =+$G58*Multipliers!E221/ProjectData!B$20 -> 0 | K58: =+$G58*Multipliers!F221/ProjectData!B$20 -> 0 | L58: 0 | M58: =+$G58*Multipliers!H221 -> 0 | N58: =+$G58*Multipliers!I221 -> 0 | O58: =+$G58*Multipliers!J221 -> 0 | P58: 0 | Q58: =+$G58*Multipliers!L221 -> 0 | R58: =+$G58*Multipliers!M221 -> 0 | S58: =+$G58*Multipliers!N221 -> 0 | T58: 0 | U58: =+$G58*Multipliers!P221 -> 0 | V58: =+$G58*Multipliers!Q221 -> 0 | W58: =+$G58*Multipliers!R221 -> 0 | X58: 0 | AB58: Fuel | AC58: 1050.981 | AD58: 0
C59: Retail Trade | D59: 0 | F59: 0 | G59: 0 | I59: =+G59*Multipliers!D222/ProjectData!B$20 -> 0 | J59: =+$G59*Multipliers!E222/ProjectData!B$20 -> 0 | K59: =+$G59*Multipliers!F222/ProjectData!B$20 -> 0 | L59: 0 | M59: =+$G59*Multipliers!H222 -> 0 | N59: =+$G59*Multipliers!I222 -> 0 | O59: =+$G59*Multipliers!J222 -> 0 | P59: 0 | Q59: =+$G59*Multipliers!L222 -> 0 | R59: =+$G59*Multipliers!M222 -> 0 | S59: =+$G59*Multipliers!N222 -> 0 | T59: 0 | U59: =+$G59*Multipliers!P222 -> 0 | V59: =+$G59*Multipliers!Q222 -> 0 | W59: =+$G59*Multipliers!R222 -> 0 | X59: 0 | AB59: Total | AC59: 1095.034993
C60: FIRE | D60: 0 | F60: 0 | G60: 0 | I60: =+G60*Multipliers!D223/ProjectData!B$20 -> 0 | J60: =+$G60*Multipliers!E223/ProjectData!B$20 -> 0 | K60: =+$G60*Multipliers!F223/ProjectData!B$20 -> 0 | L60: 0 | M60: =+$G60*Multipliers!H223 -> 0 | N60: =+$G60*Multipliers!I223 -> 0 | O60: =+$G60*Multipliers!J223 -> 0 | P60: 0 | Q60: =+$G60*Multipliers!L223 -> 0 | R60: =+$G60*Multipliers!M223 -> 0 | S60: =+$G60*Multipliers!N223 -> 0 | T60: 0 | U60: =+$G60*Multipliers!P223 -> 0 | V60: =+$G60*Multipliers!Q223 -> 0 | W60: =+$G60*Multipliers!R223 -> 0 | X60: 0
C61: Misc. Services | D61: 0 | F61: 0 | G61: 0 | I61: =+G61*Multipliers!D224/ProjectData!B$20 -> 0 | J61: =+$G61*Multipliers!E224/ProjectData!B$20 -> 0 | K61: =+$G61*Multipliers!F224/ProjectData!B$20 -> 0 | L61: 0 | M61: =+$G61*Multipliers!H224 -> 0 | N61: =+$G61*Multipliers!I224 -> 0 | O61: =+$G61*Multipliers!J224 -> 0 | P61: 0 | Q61: =+$G61*Multipliers!L224 -> 0 | R61: =+$G61*Multipliers!M224 -> 0 | S61: =+$G61*Multipliers!N224 -> 0 | T61: 0 | U61: =+$G61*Multipliers!P224 -> 0 | V61: =+$G61*Multipliers!Q224 -> 0 | W61: =+$G61*Multipliers!R224 -> 0 | X61: 0 | AB61: Other Parameters | AD61: Local Share
C62: Professional Services | D62: 0 | F62: 0 | G62: 0 | I62: =+G62*Multipliers!D225/ProjectData!B$20 -> 0 | J62: =+$G62*Multipliers!E225/ProjectData!B$20 -> 0 | K62: =+$G62*Multipliers!F225/ProjectData!B$20 -> 0 | L62: 0 | M62: =+$G62*Multipliers!H225 -> 0 | N62: =+$G62*Multipliers!I225 -> 0 | O62: =+$G62*Multipliers!J225 -> 0 | P62: 0 | Q62: =+$G62*Multipliers!L225 -> 0 | R62: =+$G62*Multipliers!M225 -> 0 | S62: =+$G62*Multipliers!N225 -> 0 | T62: 0 | U62: =+$G62*Multipliers!P225 -> 0 | V62: =+$G62*Multipliers!Q225 -> 0 | W62: =+$G62*Multipliers!R225 -> 0 | X62: 0 | AB62: Financial Parameters
C63: Government | D63: 0 | F63: 0 | G63: 0 | J63: =+$G63*Multipliers!E226/ProjectData!B$20 -> 0 | K63: =+$G63*Multipliers!F226/ProjectData!B$20 -> 0 | L63: 0 | N63: =+$G63*Multipliers!I226 -> 0 | O63: =+$G63*Multipliers!J226 -> 0 | P63: 0 | R63: =+$G63*Multipliers!M226 -> 0 | S63: =+$G63*Multipliers!N226 -> 0 | T63: 0 | V63: =+$G63*Multipliers!Q226 -> 0 | W63: =+$G63*Multipliers!R226 -> 0 | X63: 0 | AB63: =DefaultData!C80 -> Debt Financing
C64: Total | D64: =SUM(D50:D63) -> 354.9478366 | F64: =SUM(F50:F63) -> 354.9478366 | G64: 367.2072696 | I64: =SUM(I50:I63) -> 1284.904624 | J64: 695.0809064 | K64: 691.6728033 | L64: 2671.658333 | M64: 152.7385289 | N64: 42.74663167 | O64: 38.40550251 | P64: 233.8906631 | Q64: 367.2072696 | R64: 133.6455618 | S64: 113.0101982 | T64: 613.8630295 | U64: =SUM(U50:U63) -> 186.82096 | V64: 73.4070563 | W64: 65.22543648 | X64: 325.4534528 | AB64: =DefaultData!C81 -> Percentage financed | AC64: =IF(ProjectData!$T$35="y",DefaultData!D81,ProjectData!B102) -> 0.7 | AD64: =IF(ProjectData!$T$35="y",DefaultData!G81,ProjectData!D102) -> 0
AB65: =DefaultData!C82 -> Years financed (term) | AC65: =IF(ProjectData!$T$35="y",DefaultData!D82,ProjectData!B103) -> 20
F66: Inflator to | G66: =D46 -> 2012 | H66: Dollars | I66: Maint. Labor adj | AB66: =DefaultData!C83 -> Interest rate | AC66: =IF(ProjectData!$T$35="y",DefaultData!D83,ProjectData!B104) -> 0.055
G67: =Deflators!F8 -> 0.9666144056 | I67: 0.1 | M67: =M64*$G67 -> 147.6392623 | N67: 41.31950996 | O67: 37.12331198 | P67: 226.0820842 | Q67: 354.9478366 | R67: 129.1837253 | S67: 109.2372855 | T67: 593.3688474 | U67: =U64*$G67 -> 180.5838312 | V67: 70.95631809 | W67: 63.04784651 | X67: 314.5879958 | AB67: =DefaultData!C85 -> Equity Financing/Repayment
C68: =DefaultData!C56 -> Annual Operating and Maintenance Costs | AB68: =DefaultData!C86 -> Percentage equity | AC68: =IF(ProjectData!$T$35="y",DefaultData!D86,ProjectData!B106) -> 0.3
H69: Gross minus employer costs | AB69: =DefaultData!C87 -> Individual Investors (percent of equity) | AC69: =IF(ProjectData!$T$35="y",DefaultData!D87,ProjectData!B107) -> 0 | AD69: =IF(ProjectData!$T$35="y",DefaultData!G87,ProjectData!D107) -> 0
C70: =DefaultData!C57 -> Variable | D70: Cost | E70: Local Share | G70: Local $ Spending | H70: Empl Earnings | I70: Govt Share | J70: Health Ben, etc. | AB70: =DefaultData!C88 -> Corporate Investors (percent of equity) | AC70: =IF(ProjectData!$T$35="y",DefaultData!D88,ProjectData!B108) -> 1 | AD70: =IF(ProjectData!$T$35="y",DefaultData!G88,ProjectData!D108) -> 0
C71: =DefaultData!C58 -> Chemicals and Catalysts | D71: =IF(ProjectData!$T$36="Simple",DefaultData!D58,ProjectData!B81) -> 3 | E71: =IF(ProjectData!$T$36="Simple",DefaultData!G58,ProjectData!E81) -> 0 | G71: =D71*E71 -> 0 | AB71: =DefaultData!C89 -> Return on equity | AC71: =IF(ProjectData!$T$35="y",DefaultData!D89,ProjectData!B109) -> 0.1
C72: =DefaultData!C59 -> Utilities | D72: =IF(ProjectData!$T$36="Simple",DefaultData!D59,ProjectData!B82) -> 4.2 | E72: =IF(ProjectData!$T$36="Simple",DefaultData!G59,ProjectData!E82) -> 1 | G72: =D72*E72 -> 4.2 | AB72: =DefaultData!C90 -> Repayment term (years) | AC72: =IF(ProjectData!$T$35="y",DefaultData!D90,ProjectData!B110) -> 10
C73: =DefaultData!C60 -> Subtotal | D73: =SUM(D71:D72) -> 7.2 | G73: =SUM(G71:G72) -> 4.2 | AB73: =DefaultData!C91 -> Tax Parameters
C74: =DefaultData!C61 -> Fixed | AB74: =DefaultData!C92 -> Local Property/Other Tax Rate (percent of taxable value) | AC74: =IF(ProjectData!$T$35="y",DefaultData!D92,ProjectData!B112) -> 0
C75: =DefaultData!C62 -> Labor | D75: =IF(ProjectData!$T$36="Simple",DefaultData!D62,ProjectData!B85) -> 3.987619486 | E75: =IF(ProjectData!$T$36="Simple",DefaultData!G62,ProjectData!E85) -> 1 | G75: =D75*E75 -> 3.987619486 | H75: =G75-(I75+J75) -> 2.667717436 | I75: =D75*E75*DefaultData!R$102 -> 0.2432447887 | J75: =D75*E75*DefaultData!R$103 -> 1.076657261 | AB75: =DefaultData!C93 -> Assessed Value (percent of construction cost) | AC75: =IF(ProjectData!$T$35="y",DefaultData!D93,ProjectData!B113) -> 1
C76: Maintenance Materials | D76: =IF(ProjectData!$T$36="Simple",DefaultData!D$63*(1-I67),ProjectData!B$86*0.9) -> 18.78421189 | E76: =E80 -> 0 | G76: 0 | AB76: =DefaultData!C94 -> Taxable Value (percent of assessed value) | AC76: =IF(ProjectData!$T$35="y",DefaultData!D94,ProjectData!B114) -> 1
C77: Maintenance Labor | D77: =IF(ProjectData!$T$36="Simple",DefaultData!D$63*I67,ProjectData!B$86*0.1) -> 2.087134655 | E77: =IF(ProjectData!$T$36="Simple",DefaultData!G63,ProjectData!E86) -> 1 | G77: 2.087134655 | H77: =G77-(I77+J77) -> 1.396293084 | I77: =D77*E77*DefaultData!R$102 -> 0.127315214 | J77: =D77*E77*DefaultData!R$103 -> 0.5635263568 | AB77: =DefaultData!C95 -> Taxable Value (millions) | AC77: =IF(ProjectData!$T$35="y",DefaultData!D95,ProjectData!B115) -> 695.7115516
C78: =DefaultData!C64 -> Other Costs | H78: =SUM(H75:H77) -> 4.06401052 | I78: =SUM(I75:I77) -> 0.3705600026 | J78: 1.640183618 | K78: =J78+I78+H78 -> 6.074754141 | AB78: =DefaultData!C96 -> Local Taxes (millions) | AC78: =IF(ProjectData!$T$35="y",DefaultData!D96,ProjectData!B116) -> 0 | AD78: =IF(ProjectData!$T$35="y",DefaultData!G96,ProjectData!D116) -> 1
C79: =DefaultData!C65 -> Insurance | D79: =IF(ProjectData!$T$36="Simple",DefaultData!D65,ProjectData!B88) -> 3.478557758 | E79: =IF(ProjectData!$T$36="Simple",DefaultData!G65,ProjectData!E88) -> 0 | G79: 0 | AB79: =DefaultData!C97 -> Sales Tax Rate | AC79: =IF(ProjectData!$T$35="y",DefaultData!D97,ProjectData!B117) -> 0 | AD79: =IF(ProjectData!$T$35="y",DefaultData!G97,ProjectData!D117) -> 0
C80: =DefaultData!C66 -> Misc. Supplies | D80: =IF(ProjectData!$T$36="Simple",DefaultData!D66,ProjectData!B89) -> 1.043567327 | E80: =IF(ProjectData!$T$36="Simple",DefaultData!G66,ProjectData!E89) -> 0 | G80: 0 | AB80: =DefaultData!C98 -> Land Purchase Parameters
C81: =DefaultData!C67 -> Other Operating Costs | D81: =IF(ProjectData!$T$36="Simple",DefaultData!D67,ProjectData!B90) -> 7.472901451 | E81: =IF(ProjectData!$T$36="Simple",DefaultData!G67,ProjectData!E90) -> 0 | G81: 0 | AB81: =DefaultData!C99 -> Land Purchase (total cost in millions) | AC81: =IF(ProjectData!$T$35="y",DefaultData!D99,ProjectData!B118) -> 0
C82: =DefaultData!C68 -> Subtotal | D82: =SUM(D79:D81) -> 11.99502654 | G82: =SUM(G79:G81) -> 0 | AB82: =DefaultData!C100 -> Land Payment Recipient (H = household, O = Other) | AC82: =IF(ProjectData!$T$35="y",DefaultData!D100,ProjectData!B119) -> O | AD82: =IF(ProjectData!$T$35="y",DefaultData!E100,ProjectData!C119) -> 0
C83: =DefaultData!C69 -> Fuel | D83: =IF(ProjectData!$T$36="Simple",DefaultData!D69,ProjectData!B92) -> 1050.981 | E83: =IF(ProjectData!$T$36="Simple",DefaultData!G69,ProjectData!E92) -> 0 | G83: 0 | AB83: =DefaultData!C102 -> Payroll Parameters | AC83: =IF(ProjectData!$T$35="y",DefaultData!D100,ProjectData!B120) -> Wage per hour | AD83: =IF(ProjectData!$T$35="y",DefaultData!G100,ProjectData!D120) -> Employer Payroll Overhead
C84: =DefaultData!C70 -> Total | D84: =D83+D82+D77+D76+D75+D73 -> 1095.034993 | G84: =G83+G82+G77+G76+G75+G73 -> 10.27475414 | AB84: =DefaultData!C103 -> Construction
AB85: =DefaultData!C104 -> Labor (average wage per hour for all construction workers) | AC85: =IF(ProjectData!$T$35="y",DefaultData!D104,ProjectData!B122) -> 52.40630329 | AD85: =IF(ProjectData!$T$35="y",DefaultData!G104,ProjectData!D122) -> 0.331
AB86: =DefaultData!C106 -> Operations
AB87: =DefaultData!C107 -> Labor (average wage per hour for all plant staff and operators) | AC87: =IF(ProjectData!$T$35="y",DefaultData!D106,ProjectData!B124) -> 43.26 | AD87: =IF(ProjectData!$T$35="y",DefaultData!G106,ProjectData!D124) -> 0.331
C90: =DefaultData!C72 -> Financing (avg ann debt payment) | D90: =IF(ProjectData!$B$36="Simple",F206,Calculations!F242) -> 37.07272931 | E90: =IF(ProjectData!$B$36="Simple",DefaultData!G72,ProjectData!D102) -> 0 | G90: =D90*E90 -> 0 | H90: =IF(ProjectData!$T$35="y",Calculations!D206,D242)*E90 -> 0 | I90: Debt Pmt - Local share Avg Ann Interest
C91: =DefaultData!C73 -> Equity Payment - Individuals (avg ann payment) | D91: =IF(ProjectData!$B$36="Simple",K206,Calculations!K242) -> 0 | E91: =IF(ProjectData!$B$36="Simple",DefaultData!G87,ProjectData!D107) -> 0 | G91: 0 | H91: =IF(ProjectData!$T$35="y",Calculations!I206,I242)*E91 -> 0 | I91: Equity Pmt - Individual Share Avg Ann Interest
C92: =DefaultData!C74 -> Equity Payment - Corporations (avg ann payment) | D92: =IF(ProjectData!$B$36="Simple",P206,Calculations!P242) -> 30.2634525 | E92: =IF(ProjectData!$B$36="Simple",DefaultData!G88,ProjectData!D108) -> 0 | G92: 0 | H92: =IF(ProjectData!$T$35="y",Calculations!N206,N242)*E92 -> 0 | I92: Equity Pmt - Corporate Share Avg Ann Interest | L92: Default Land Lease (below) | O92: User Land Lease (below)
C93: Property Tax | D93: =IF(ProjectData!$B$36="Simple",DefaultData!D96,ProjectData!B116) -> 0 | E93: =IF(ProjectData!$B$36="Simple",DefaultData!G96,ProjectData!D116) -> 1 | G93: 0 | I93: Y | K93: Y | L93: H | M93: 0 | O93: H | P93: O
C94: =DefaultData!C75 -> Land Purchase | D94: =IF(ProjectData!$B$36="Simple",DefaultData!D99,ProjectData!B118) -> 0 | E94: =IF(ProjectData!$B$36="Simple",DefaultData!G100,ProjectData!D119) -> 1 | G94: 0 | H94: =IF(ProjectData!T35="Y",Calculations!L94,O94) -> 0 | I94: To House | J94: =IF(ProjectData!T35="Y",Calculations!M94,P94) -> 0 | K94: To FIRE | L94: 0 | M94: =DefaultData!D99*DefaultData!G100 -> 0 | O94: =IF(ProjectData!T35="N",IF(ProjectData!B119="H",Calculations!G94,0),0) -> 0 | P94: =IF(ProjectData!T35="N",IF(ProjectData!B119="O",Calculations!G94,0),0) -> 0
C95: =DefaultData!C76 -> Total (with financing) | D95: =D84+SUM(D90:D94) -> 1162.371174
C96: Total (without debt, equity,taxes, land payments) | D96: =D95-(D90+D91+D92+D93+D94) -> 1095.034993 | E96: =D95-D96 -> 67.3361818 | G96: =SUM(G90:G95) -> 0
D103: Local Share | E103: 0.85 | F103: 0.5 | I103: 1 | L103: Without Plant Employees
C104: Annual Operations and Maintenance Costs Local Demand - margined | O104: =M47 -> 2014 | P104: =N47 -> Dollars
D105: Demand | E105: PCE-Land Lease | F105: PCE -Equity | G105: Total | H105: Adj Demand - Million | I105: Multiplier Yr Fuel Price Impact Adj. | L105: Jobs | P105: Earnings | T105: Output | X105: Value Added
E106: To Farm/House | F106: To Individuals | G106: w/o Plant Empl | H106: =M47 -> 2014 | I106: =M47 -> 2014 | L106: Direct | M106: Indirect | N106: Induced | O106: Total | P106: Direct | Q106: Indirect | R106: Induced | S106: Total | T106: Direct | U106: Indirect | V106: Induced | W106: Total | X106: Direct | Y106: Indirect | Z106: Induced | AA106: Total
C107: Agriculture | D107: =$D$150*DefaultData!D112+$D$151*DefaultData!D113+$D$152*DefaultData!D114+$D$153*DefaultData!D115+$D$154*DefaultData!D116+$D$155*DefaultData!D117+$D$156*DefaultData!D118+$D$157*DefaultData!D119+$D$158*DefaultData!D120+$D$159*DefaultData!D121+$D$160*DefaultData!D122+$D$161*DefaultData!D123+$D$162*DefaultData!D124+$D$163*DefaultData!D125 -> 0 | E107: =(H$94*Multipliers!U213)*E$103 -> 0 | F107: =H$91*Multipliers!U213*F$103 -> 0 | G107: =F107+E107+D107 -> 0 | H107: =G107*G$46 -> 0 | I107: =((G107*G$46)+(I150*I$103)) -> 0 | L107: =$H107*Multipliers!D213 -> 0 | M107: =$H107*Multipliers!E213 -> 0 | N107: =$I107*Multipliers!F213 -> 0 | O107: =+N107+M107+L107 -> 0 | P107: =$H107*Multipliers!H213 -> 0 | Q107: =$H107*Multipliers!I213 -> 0 | R107: =$I107*Multipliers!J213 -> 0 | S107: =+R107+Q107+P107 -> 0 | T107: =$I107*Multipliers!L213 -> 0 | U107: =$I107*Multipliers!M213 -> 0 | V107: =$I107*Multipliers!N213 -> 0 | W107: =+V107+U107+T107 -> 0 | X107: =$I107*Multipliers!P213 -> 0 | Y107: =$I107*Multipliers!Q213 -> 0 | Z107: =$I107*Multipliers!R213 -> 0 | AA107: =+Z107+Y107+X107 -> 0
C108: Mining | D108: =$D$150*DefaultData!E112+$D$151*DefaultData!E113+$D$152*DefaultData!E114+$D$153*DefaultData!E115+$D$154*DefaultData!E116+$D$155*DefaultData!E117+$D$156*DefaultData!E118+$D$157*DefaultData!E119+$D$158*DefaultData!E120+$D$159*DefaultData!E121+$D$160*DefaultData!E122+$D$161*DefaultData!E123+$D$162*DefaultData!E124+$D$163*DefaultData!E125 -> 0 | E108: =(H$94*Multipliers!U214)*E$103 -> 0 | F108: =H$91*Multipliers!U214*F$103 -> 0 | G108: 0 | H108: =G108*G$46 -> 0 | I108: 0 | L108: =$H108*Multipliers!D214 -> 0 | M108: =$H108*Multipliers!E214 -> 0 | N108: =$I108*Multipliers!F214 -> 0 | O108: 0 | P108: =$H108*Multipliers!H214 -> 0 | Q108: =$H108*Multipliers!I214 -> 0 | R108: =$I108*Multipliers!J214 -> 0 | S108: 0 | T108: =$I108*Multipliers!L214 -> 0 | U108: =$I108*Multipliers!M214 -> 0 | V108: =$I108*Multipliers!N214 -> 0 | W108: =+V108+U108+T108 -> 0 | X108: =$I108*Multipliers!P214 -> 0 | Y108: =$I108*Multipliers!Q214 -> 0 | Z108: =$I108*Multipliers!R214 -> 0 | AA108: =+Z108+Y108+X108 -> 0
C109: Construction | D109: =$D$150*DefaultData!F112+$D$151*DefaultData!F113+$D$152*DefaultData!F114+$D$153*DefaultData!F115+$D$154*DefaultData!F116+$D$155*DefaultData!F117+$D$156*DefaultData!F118+$D$157*DefaultData!F119+$D$158*DefaultData!F120+$D$159*DefaultData!F121+$D$160*DefaultData!F122+$D$161*DefaultData!F123+$D$162*DefaultData!F124+$D$163*DefaultData!F125 -> 0 | E109: =(H$94*Multipliers!U215)*E$103 -> 0 | F109: =H$91*Multipliers!U215*F$103 -> 0 | G109: 0 | H109: 0 | I109: 0 | L109: =$H109*Multipliers!D215 -> 0 | M109: =$H109*Multipliers!E215 -> 0 | N109: =$I109*Multipliers!F215 -> 0 | O109: 0 | P109: =$H109*Multipliers!H215 -> 0 | Q109: =$H109*Multipliers!I215 -> 0 | R109: =$I109*Multipliers!J215 -> 0 | S109: 0 | T109: =$I109*Multipliers!L215 -> 0 | U109: =$I109*Multipliers!M215 -> 0 | V109: =$I109*Multipliers!N215 -> 0 | W109: 0 | X109: =$I109*Multipliers!P215 -> 0 | Y109: =$I109*Multipliers!Q215 -> 0 | Z109: =$I109*Multipliers!R215 -> 0 | AA109: 0
C110: Manufacturing | D110: =$D$150*DefaultData!G112+$D$151*DefaultData!G113+$D$152*DefaultData!G114+$D$153*DefaultData!G115+$D$154*DefaultData!G116+$D$155*DefaultData!G117+$D$156*DefaultData!G118+$D$157*DefaultData!G119+$D$158*DefaultData!G120+$D$159*DefaultData!G121+$D$160*DefaultData!G122+$D$161*DefaultData!G123+$D$162*DefaultData!G124+$D$163*DefaultData!G125 -> 0 | E110: =(H$94*Multipliers!U216)*E$103 -> 0 | F110: =H$91*Multipliers!U216*F$103 -> 0 | G110: 0 | H110: 0 | I110: 0 | L110: =$H110*Multipliers!D216 -> 0 | M110: =$H110*Multipliers!E216 -> 0 | N110: =$I110*Multipliers!F216 -> 0 | O110: 0 | P110: =$H110*Multipliers!H216 -> 0 | Q110: =$H110*Multipliers!I216 -> 0 | R110: =$I110*Multipliers!J216 -> 0 | S110: 0 | T110: =$I110*Multipliers!L216 -> 0 | U110: =$I110*Multipliers!M216 -> 0 | V110: =$I110*Multipliers!N216 -> 0 | W110: 0 | X110: =$I110*Multipliers!P216 -> 0 | Y110: =$I110*Multipliers!Q216 -> 0 | Z110: =$I110*Multipliers!R216 -> 0 | AA110: 0
C111: Fabricated Metals | D111: =$D$150*DefaultData!H112+$D$151*DefaultData!H113+$D$152*DefaultData!H114+$D$153*DefaultData!H115+$D$154*DefaultData!H116+$D$155*DefaultData!H117+$D$156*DefaultData!H118+$D$157*DefaultData!H119+$D$158*DefaultData!H120+$D$159*DefaultData!H121+$D$160*DefaultData!H122+$D$161*DefaultData!H123+$D$162*DefaultData!H124+$D$163*DefaultData!H125 -> 0 | E111: =(H$94*Multipliers!U217)*E$103 -> 0 | F111: =H$91*Multipliers!U217*F$103 -> 0 | G111: 0 | H111: 0 | I111: 0 | L111: =$H111*Multipliers!D217 -> 0 | M111: =$H111*Multipliers!E217 -> 0 | N111: =$I111*Multipliers!F217 -> 0 | O111: 0 | P111: =$H111*Multipliers!H217 -> 0 | Q111: =$H111*Multipliers!I217 -> 0 | R111: =$I111*Multipliers!J217 -> 0 | S111: 0 | T111: =$I111*Multipliers!L217 -> 0 | U111: =$I111*Multipliers!M217 -> 0 | V111: =$I111*Multipliers!N217 -> 0 | W111: 0 | X111: =$I111*Multipliers!P217 -> 0 | Y111: =$I111*Multipliers!Q217 -> 0 | Z111: =$I111*Multipliers!R217 -> 0 | AA111: 0
C112: Machinery | D112: =$D$150*DefaultData!I112+$D$151*DefaultData!I113+$D$152*DefaultData!I114+$D$153*DefaultData!I115+$D$154*DefaultData!I116+$D$155*DefaultData!I117+$D$156*DefaultData!I118+$D$157*DefaultData!I119+$D$158*DefaultData!I120+$D$159*DefaultData!I121+$D$160*DefaultData!I122+$D$161*DefaultData!I123+$D$162*DefaultData!I124+$D$163*DefaultData!I125 -> 0 | E112: =(H$94*Multipliers!U218)*E$103 -> 0 | F112: =H$91*Multipliers!U218*F$103 -> 0 | G112: 0 | H112: 0 | I112: 0 | L112: =$H112*Multipliers!D218 -> 0 | M112: =$H112*Multipliers!E218 -> 0 | N112: =$I112*Multipliers!F218 -> 0 | O112: 0 | P112: =$H112*Multipliers!H218 -> 0 | Q112: =$H112*Multipliers!I218 -> 0 | R112: =$I112*Multipliers!J218 -> 0 | S112: 0 | T112: =$I112*Multipliers!L218 -> 0 | U112: =$I112*Multipliers!M218 -> 0 | V112: =$I112*Multipliers!N218 -> 0 | W112: 0 | X112: =$I112*Multipliers!P218 -> 0 | Y112: =$I112*Multipliers!Q218 -> 0 | Z112: =$I112*Multipliers!R218 -> 0 | AA112: 0
C113: Electrical Equipment | D113: =$D$150*DefaultData!J112+$D$151*DefaultData!J113+$D$152*DefaultData!J114+$D$153*DefaultData!J115+$D$154*DefaultData!J116+$D$155*DefaultData!J117+$D$156*DefaultData!J118+$D$157*DefaultData!J119+$D$158*DefaultData!J120+$D$159*DefaultData!J121+$D$160*DefaultData!J122+$D$161*DefaultData!J123+$D$162*DefaultData!J124+$D$163*DefaultData!J125 -> 0 | E113: =(H$94*Multipliers!U219)*E$103 -> 0 | F113: =H$91*Multipliers!U219*F$103 -> 0 | G113: 0 | H113: 0 | I113: 0 | L113: =$H113*Multipliers!D219 -> 0 | M113: =$H113*Multipliers!E219 -> 0 | N113: =$I113*Multipliers!F219 -> 0 | O113: 0 | P113: =$H113*Multipliers!H219 -> 0 | Q113: =$H113*Multipliers!I219 -> 0 | R113: =$I113*Multipliers!J219 -> 0 | S113: 0 | T113: =$I113*Multipliers!L219 -> 0 | U113: =$I113*Multipliers!M219 -> 0 | V113: =$I113*Multipliers!N219 -> 0 | W113: 0 | X113: =$I113*Multipliers!P219 -> 0 | Y113: =$I113*Multipliers!Q219 -> 0 | Z113: =$I113*Multipliers!R219 -> 0 | AA113: 0
C114: TCPU | D114: =$D$150*DefaultData!K112+$D$151*DefaultData!K113+$D$152*DefaultData!K114+$D$153*DefaultData!K115+$D$154*DefaultData!K116+$D$155*DefaultData!K117+$D$156*DefaultData!K118+$D$157*DefaultData!K119+$D$158*DefaultData!K120+$D$159*DefaultData!K121+$D$160*DefaultData!K122+$D$161*DefaultData!K123+$D$162*DefaultData!K124+$D$163*DefaultData!K125 -> 4.2 | E114: =(H$94*Multipliers!U220)*E$103 -> 0 | F114: =H$91*Multipliers!U220*F$103 -> 0 | G114: 4.2 | H114: 4.345062494 | I114: 4.345062494 | L114: =$H114*Multipliers!D220 -> 10.68743839 | M114: =$H114*Multipliers!E220 -> 10.50409248 | N114: =$I114*Multipliers!F220 -> 9.981185913 | O114: 31.17271678 | P114: =$H114*Multipliers!H220 -> 0.8596422722 | Q114: =$H114*Multipliers!I220 -> 0.5853353422 | R114: =$I114*Multipliers!J220 -> 0.4677320434 | S114: 1.912709658 | T114: =$I114*Multipliers!L220 -> 4.345062494 | U114: =$I114*Multipliers!M220 -> 2.018787889 | V114: =$I114*Multipliers!N220 -> 1.376393161 | W114: 7.740243544 | X114: =$I114*Multipliers!P220 -> 1.864747993 | Y114: =$I114*Multipliers!Q220 -> 1.050916378 | Z114: =$I114*Multipliers!R220 -> 0.7943916795 | AA114: 3.710056051
C115: Wholesale Trade | D115: =$D$150*DefaultData!L112+$D$151*DefaultData!L113+$D$152*DefaultData!L114+$D$153*DefaultData!L115+$D$154*DefaultData!L116+$D$155*DefaultData!L117+$D$156*DefaultData!L118+$D$157*DefaultData!L119+$D$158*DefaultData!L120+$D$159*DefaultData!L121+$D$160*DefaultData!L122+$D$161*DefaultData!L123+$D$162*DefaultData!L124+$D$163*DefaultData!L125 -> 0 | E115: =(H$94*Multipliers!U221)*E$103 -> 0 | F115: =H$91*Multipliers!U221*F$103 -> 0 | G115: 0 | H115: 0 | I115: 0 | L115: =$H115*Multipliers!D221 -> 0 | M115: =$H115*Multipliers!E221 -> 0 | N115: =$I115*Multipliers!F221 -> 0 | O115: 0 | P115: =$H115*Multipliers!H221 -> 0 | Q115: =$H115*Multipliers!I221 -> 0 | R115: =$I115*Multipliers!J221 -> 0 | S115: 0 | T115: =$I115*Multipliers!L221 -> 0 | U115: =$I115*Multipliers!M221 -> 0 | V115: =$I115*Multipliers!N221 -> 0 | W115: 0 | X115: =$I115*Multipliers!P221 -> 0 | Y115: =$I115*Multipliers!Q221 -> 0 | Z115: =$I115*Multipliers!R221 -> 0 | AA115: 0
C116: Retail Trade | D116: =$D$150*DefaultData!M112+$D$151*DefaultData!M113+$D$152*DefaultData!M114+$D$153*DefaultData!M115+$D$154*DefaultData!M116+$D$155*DefaultData!M117+$D$156*DefaultData!M118+$D$157*DefaultData!M119+$D$158*DefaultData!M120+$D$159*DefaultData!M121+$D$160*DefaultData!M122+$D$161*DefaultData!M123+$D$162*DefaultData!M124+$D$163*DefaultData!M125 -> 0 | E116: =(H$94*Multipliers!U222)*E$103 -> 0 | F116: =H$91*Multipliers!U222*F$103 -> 0 | G116: 0 | H116: 0 | I116: 0 | L116: =$H116*Multipliers!D222 -> 0 | M116: =$H116*Multipliers!E222 -> 0 | N116: =$I116*Multipliers!F222 -> 0 | O116: 0 | P116: =$H116*Multipliers!H222 -> 0 | Q116: =$H116*Multipliers!I222 -> 0 | R116: =$I116*Multipliers!J222 -> 0 | S116: 0 | T116: =$I116*Multipliers!L222 -> 0 | U116: =$I116*Multipliers!M222 -> 0 | V116: =$I116*Multipliers!N222 -> 0 | W116: 0 | X116: =$I116*Multipliers!P222 -> 0 | Y116: =$I116*Multipliers!Q222 -> 0 | Z116: =$I116*Multipliers!R222 -> 0 | AA116: 0
C117: FIRE | D117: =$D$150*DefaultData!N112+$D$151*DefaultData!N113+$D$152*DefaultData!N114+$D$153*DefaultData!N115+$D$154*DefaultData!N116+$D$155*DefaultData!N117+$D$156*DefaultData!N118+$D$157*DefaultData!N119+$D$158*DefaultData!N120+$D$159*DefaultData!N121+$D$160*DefaultData!N122+$D$161*DefaultData!N123+$D$162*DefaultData!N124+$D$163*DefaultData!N125 -> 6.148394473 | E117: =(H$94*Multipliers!U223)*E$103 -> 0 | F117: =H$91*Multipliers!U223*F$103 -> 0 | G117: 6.148394473 | H117: 6.360751958 | I117: 6.360751958 | L117: =($H117-(($H90+$H91)*$G46/10^6))*Multipliers!D223 -> 35.80048666 | M117: =($H117-(($H90+$H91)*$G46/10^6))*Multipliers!E223 -> 21.64923558 | N117: =$I117*Multipliers!F223 -> 17.29902058 | O117: 74.74874282 | P117: =($H117-(($H90+$H91)*$G46/10^6))*Multipliers!H223 -> 1.501651288 | Q117: =($H117-(($H90+$H91)*$G46/10^6))*Multipliers!I223 -> 1.026297831 | R117: =$I117*Multipliers!J223 -> 0.8174486582 | S117: 3.345397776 | T117: =$I117*Multipliers!L223 -> 6.360751958 | U117: =$I117*Multipliers!M223 -> 3.491569212 | V117: =$I117*Multipliers!N223 -> 2.405275803 | W117: 12.25759697 | X117: =$I117*Multipliers!P223 -> 3.553569537 | Y117: =$I117*Multipliers!Q223 -> 1.94697961 | Z117: =$I117*Multipliers!R223 -> 1.388260316 | AA117: 6.888809464
C118: Misc. Services | D118: =$D$150*DefaultData!O112+$D$151*DefaultData!O113+$D$152*DefaultData!O114+$D$153*DefaultData!O115+$D$154*DefaultData!O116+$D$155*DefaultData!O117+$D$156*DefaultData!O118+$D$157*DefaultData!O119+$D$158*DefaultData!O120+$D$159*DefaultData!O121+$D$160*DefaultData!O122+$D$161*DefaultData!O123+$D$162*DefaultData!O124+$D$163*DefaultData!O125 -> 0 | E118: =(H$94*Multipliers!U224)*E$103 -> 0 | F118: =H$91*Multipliers!U224*F$103 -> 0 | G118: 0 | H118: 0 | I118: 0 | L118: =$H118*Multipliers!D224 -> 0 | M118: =$H118*Multipliers!E224 -> 0 | N118: =$I118*Multipliers!F224 -> 0 | O118: 0 | P118: =$H118*Multipliers!H224 -> 0 | Q118: =$H118*Multipliers!I224 -> 0 | R118: =$I118*Multipliers!J224 -> 0 | S118: 0 | T118: =$I118*Multipliers!L224 -> 0 | U118: =$I118*Multipliers!M224 -> 0 | V118: =$I118*Multipliers!N224 -> 0 | W118: 0 | X118: =$I118*Multipliers!P224 -> 0 | Y118: =$I118*Multipliers!Q224 -> 0 | Z118: =$I118*Multipliers!R224 -> 0 | AA118: 0
C119: Professional Services | D119: =$D$150*DefaultData!P112+$D$151*DefaultData!P113+$D$152*DefaultData!P114+$D$153*DefaultData!P115+$D$154*DefaultData!P116+$D$155*DefaultData!P117+$D$156*DefaultData!P118+$D$157*DefaultData!P119+$D$158*DefaultData!P120+$D$159*DefaultData!P121+$D$160*DefaultData!P122+$D$161*DefaultData!P123+$D$162*DefaultData!P124+$D$163*DefaultData!P125 -> 0 | E119: =(H$94*Multipliers!U225)*E$103 -> 0 | F119: =H$91*Multipliers!U225*F$103 -> 0 | G119: 0 | H119: 0 | I119: 0 | L119: =$H119*Multipliers!D225 -> 0 | M119: =$H119*Multipliers!E225 -> 0 | N119: =$I119*Multipliers!F225 -> 0 | O119: 0 | P119: =$H119*Multipliers!H225 -> 0 | Q119: =$H119*Multipliers!I225 -> 0 | R119: =$I119*Multipliers!J225 -> 0 | S119: 0 | T119: =$I119*Multipliers!L225 -> 0 | U119: =$I119*Multipliers!M225 -> 0 | V119: =$I119*Multipliers!N225 -> 0 | W119: 0 | X119: =$I119*Multipliers!P225 -> 0 | Y119: =$I119*Multipliers!Q225 -> 0 | Z119: =$I119*Multipliers!R225 -> 0 | AA119: 0
C120: Government | D120: =$D$150*DefaultData!Q112+$D$151*DefaultData!Q113+$D$152*DefaultData!Q114+$D$153*DefaultData!Q115+$D$154*DefaultData!Q116+$D$155*DefaultData!Q117+$D$156*DefaultData!Q118+$D$157*DefaultData!Q119+$D$158*DefaultData!Q120+$D$159*DefaultData!Q121+$D$160*DefaultData!Q122+$D$161*DefaultData!Q123+$D$162*DefaultData!Q124+$D$163*DefaultData!Q125 -> 1.389081714 | E120: =(H$94*Multipliers!U226)*E$103 -> 0 | F120: =H$91*Multipliers!U226*F$103 -> 0 | G120: 1.389081714 | H120: 1.437058776 | I120: 1.437058776 | L120: 0 | M120: =$H120*Multipliers!E226 -> 1.205528941 | N120: =$I120*Multipliers!F226 -> 6.15681671 | O120: 7.362345651 | P120: 0 | Q120: =$H120*Multipliers!I226 -> 0.07048868523 | R120: =$I120*Multipliers!J226 -> 0.3320996476 | S120: 0.4025883328 | T120: =$I120*Multipliers!L226 -> 1.437058776 | U120: =$I120*Multipliers!M226 -> 0.2239805901 | V120: =$I120*Multipliers!N226 -> 0.9773787405 | W120: 2.638418106 | X120: =$I120*Multipliers!P226 -> 1.225773854 | Y120: =$I120*Multipliers!Q226 -> 0.1187778949 | Z120: =$I120*Multipliers!R226 -> 0.5640771523 | AA120: 1.908628901
C121: Total | D121: =SUM(D107:D120) -> 11.73747619 | E121: =SUM(E107:E120) -> 0 | F121: =SUM(F107:F120) -> 0 | G121: 11.73747619 | H121: =SUM(H107:H120) -> 12.14287323 | I121: =SUM(I107:I120) -> 12.14287323 | K121: Total | L121: =SUM(L107:L120) -> 46.48792505 | M121: 33.358857 | N121: 33.43702321 | O121: 113.2838052 | P121: 2.36129356 | Q121: 1.682121858 | R121: 1.617280349 | S121: 5.660695767 | T121: 12.14287323 | U121: 5.734337692 | V121: 4.759047704 | W121: 22.63625862 | X121: =SUM(X107:X120) -> 6.644091385 | Y121: 3.116673883 | Z121: 2.746729147 | AA121: 12.50749442
O122: Avg earning/job | P122: =P121*10^6/L121 -> 50793.69658
E123: Earnings - Gross | G123: =K78 -> 6.074754141
C124: Plant Employees | E124: Employee - (SSI, Medicare, etc.) | F124: =DefaultData!R102 -> 0.061 | G124: =F124*G123 -> 0.3705600026 | H124: 0 | O124: Inflate to | P124: =D46 -> 2012 | Q124: Dollars | T124: =P124 -> 2012 | U124: Dollars | X124: =T124 -> 2012 | Y124: Dollars
C125: All Employees | D125: =IF(ProjectData!$T$36="Simple",DefaultData!H107,DefaultData!I107) -> 33.29552016 | E125: Other benefits | F125: =DefaultData!R103 -> 0.27 | G125: =F125*G123 -> 1.640183618 | H125: =IF(ProjectData!B16="MyCounty",0,IF(ProjectData!B16="MyRegion",0,1)) -> 1 | J125: Without Plant Employees | L125: =L121 -> 46.48792505 | M125: =M121 -> 33.358857 | N125: =N121 -> 33.43702321 | O125: =O121 -> 113.2838052 | P125: =P121*$G67 -> 2.282460371 | Q125: =Q121*$G67 -> 1.62596322 | R125: =R121*$G67 -> 1.563286483 | S125: =+R125+Q125+P125 -> 5.471710074 | T125: =T121*$G67 -> 11.73747619 | U125: =U121*$G67 -> 5.542893419 | V125: =V121*$G67 -> 4.600164068 | W125: =+V125+U125+T125 -> 21.88053367 | X125: =X121*$G67 -> 6.422274445 | Y125: =Y121*$G67 -> 3.012621873 | Z125: =Z121*$G67 -> 2.655027962 | AA125: =+Z125+Y125+X125 -> 12.08992428
C126: Maintenance Employees | D126: =IF(ProjectData!$T$36="Simple",DefaultData!H108,DefaultData!I108) -> 14.76864177 | E126: Earnings (minus taxes, benefits, etc) | G126: =G123-G124-G125 -> 4.06401052 | J126: With Plant Employees | L126: =L125+L146 -> 94.55208698 | M126: =M125+M146 -> 50.7908363 | N126: =N125+N146 -> 53.47747083 | O126: =O125+O146 -> 198.8203941 | P126: =(P121+P146)*$G67 -> 7.986654509 | Q126: =(Q121+Q146)*$G67 -> 2.514795245 | R126: =(R121+R146)*$G67 -> 2.53305587 | S126: =+R126+Q126+P126 -> 13.03450562 | T126: =(T121+T146)*$G67 -> 17.44167033 | U126: =(U121+U146)*$G67 -> 8.305117224 | V126: =(V121+V146)*$G67 -> 7.453744188 | W126: =+V126+U126+T126 -> 33.20053174 | X126: =(X121+X146)*$G67 -> 12.12646858 | Y126: =(Y121+Y146)*$G67 -> 4.565425494 | Z126: =(Z121+Z146)*$G67 -> 4.302015396 | AA126: =+Z126+Y126+X126 -> 20.99390947
C128: Total | D128: =+D127+D126+D125 -> 48.06416193
L129: Plant Employees Only
C130: Plant Employee Spending | F130: PCE | H130: Adj Demand - Million | L130: Jobs | P130: Earnings | T130: Output | X130: Output
F131: Plant Emp | H131: =H106 -> 2014 | I131: Dollars | L131: Direct | M131: Indirect | N131: Induced | O131: Total | P131: Direct | Q131: Indirect | R131: Induced | S131: Total | T131: Direct | U131: Indirect | V131: Induced | W131: Total | X131: Direct | Y131: Indirect | Z131: Induced | AA131: Total
C132: Agriculture | F132: =G$126*Multipliers!U213 -> 0.01854911156 | H132: =F132*G$46 -> 0.01918977355 | M132: =$H132*Multipliers!E213 -> 0.02236286861 | N132: =$H132*Multipliers!F213 -> 0.03889478209 | O132: =N132+M132 -> 0.0612576507 | Q132: =$H132*Multipliers!I213 -> 0.001145360493 | R132: =$H132*Multipliers!J213 -> 0.002045959875 | S132: =R132+Q132 -> 0.003191320368 | T132: =$H132*Multipliers!L213 -> 0.01918977355 | U132: =$H132*Multipliers!M213 -> 0.004080397684 | V132: =$H132*Multipliers!N213 -> 0.00601930163 | W132: =V132+U132 -> 0.01009969931 | Y132: =$H132*Multipliers!Q213 -> 0.002334540523 | Z132: =$H132*Multipliers!R213 -> 0.00347432771 | AA132: =Z132+Y132 -> 0.005808868233
C133: Mining | F133: =G$126*Multipliers!U214 -> 1.799677854e-05 | H133: =F133*G$46 -> 1.861836368e-05 | M133: =$H133*Multipliers!E214 -> 4.300410251e-05 | N133: =$H133*Multipliers!F214 -> 2.766778781e-05 | O133: 7.067189032e-05 | Q133: =$H133*Multipliers!I214 -> 2.35556833e-06 | R133: =$H133*Multipliers!J214 -> 1.228639015e-06 | S133: 3.584207345e-06 | T133: =$H133*Multipliers!L214 -> 1.861836368e-05 | U133: =$H133*Multipliers!M214 -> 9.023954e-06 | V133: =$H133*Multipliers!N214 -> 3.73960229e-06 | W133: =V133+U133 -> 1.276355629e-05 | Y133: =$H133*Multipliers!Q214 -> 3.424867271e-06 | Z133: =$H133*Multipliers!R214 -> 2.129365393e-06 | AA133: =Z133+Y133 -> 5.554232664e-06
C134: Construction | F134: =G$126*Multipliers!U215 -> 0 | H134: 0 | M134: =$H134*Multipliers!E215 -> 0 | N134: =$H134*Multipliers!F215 -> 0 | O134: 0 | Q134: =$H134*Multipliers!I215 -> 0 | R134: =$H134*Multipliers!J215 -> 0 | S134: 0 | T134: =$H134*Multipliers!L215 -> 0 | U134: =$H134*Multipliers!M215 -> 0 | V134: =$H134*Multipliers!N215 -> 0 | W134: 0 | Y134: =$H134*Multipliers!Q215 -> 0 | Z134: =$H134*Multipliers!R215 -> 0 | AA134: 0
C135: Manufacturing | F135: =G$126*Multipliers!U216 -> 0.1057293783 | H135: 0.1093811324 | M135: =$H135*Multipliers!E216 -> 0.2085901296 | N135: =$H135*Multipliers!F216 -> 0.2146471559 | O135: 0.4232372855 | Q135: =$H135*Multipliers!I216 -> 0.01154398121 | R135: =$H135*Multipliers!J216 -> 0.01013108425 | S135: 0.02167506546 | T135: =$H135*Multipliers!L216 -> 0.1093811324 | U135: =$H135*Multipliers!M216 -> 0.03895146479 | V135: =$H135*Multipliers!N216 -> 0.02981397443 | W135: 0.06876543921 | Y135: =$H135*Multipliers!Q216 -> 0.02060030878 | Z135: =$H135*Multipliers!R216 -> 0.01720702238 | AA135: 0.03780733116
C136: Fabricated Metals | F136: =G$126*Multipliers!U217 -> 3.887402212e-06 | H136: 4.021667988e-06 | M136: =$H136*Multipliers!E217 -> 7.769024723e-06 | N136: =$H136*Multipliers!F217 -> 1.001171129e-05 | O136: 1.778073601e-05 | Q136: =$H136*Multipliers!I217 -> 4.296050706e-07 | R136: =$H136*Multipliers!J217 -> 4.652788463e-07 | S136: 8.94883917e-07 | T136: =$H136*Multipliers!L217 -> 4.021667988e-06 | U136: =$H136*Multipliers!M217 -> 1.395969458e-06 | V136: =$H136*Multipliers!N217 -> 1.369240345e-06 | W136: 2.765209803e-06 | Y136: =$H136*Multipliers!Q217 -> 7.226281851e-07 | Z136: =$H136*Multipliers!R217 -> 7.902505817e-07 | AA136: 1.512878767e-06
C137: Machinery | F137: =G$126*Multipliers!U218 -> 2.074142303e-05 | H137: 2.145780459e-05 | M137: =$H137*Multipliers!E218 -> 3.907080456e-05 | N137: =$H137*Multipliers!F218 -> 3.800880563e-05 | O137: 7.707961019e-05 | Q137: =$H137*Multipliers!I218 -> 2.214735998e-06 | R137: =$H137*Multipliers!J218 -> 1.761691437e-06 | S137: 3.976427435e-06 | T137: =$H137*Multipliers!L218 -> 2.145780459e-05 | U137: =$H137*Multipliers!M218 -> 7.150914122e-06 | V137: =$H137*Multipliers!N218 -> 5.184330435e-06 | W137: 1.233524456e-05 | Y137: =$H137*Multipliers!Q218 -> 3.787645758e-06 | Z137: =$H137*Multipliers!R218 -> 2.992120398e-06 | AA137: 6.779766156e-06
C138: Electrical Equipment | F138: =G$126*Multipliers!U219 -> 8.886451898e-05 | H138: 9.193378297e-05 | M138: =$H138*Multipliers!E219 -> 0.0002223881029 | N138: =$H138*Multipliers!F219 -> 0.0002049834913 | O138: 0.0004273715942 | Q138: =$H138*Multipliers!I219 -> 1.316402272e-05 | R138: =$H138*Multipliers!J219 -> 9.453665312e-06 | S138: 2.261768803e-05 | T138: =$H138*Multipliers!L219 -> 9.193378297e-05 | U138: =$H138*Multipliers!M219 -> 4.373448062e-05 | V138: =$H138*Multipliers!N219 -> 2.782113234e-05 | W138: 7.155561296e-05 | Y138: =$H138*Multipliers!Q219 -> 2.213910096e-05 | Z138: =$H138*Multipliers!R219 -> 1.605673371e-05 | AA138: 3.819583467e-05
C139: TCPU | F139: =G$126*Multipliers!U220 -> 0.1713779078 | H139: 0.1772970761 | M139: =$H139*Multipliers!E220 -> 0.4286117602 | N139: =$H139*Multipliers!F220 -> 0.4072749428 | O139: 0.8358867029 | Q139: =$H139*Multipliers!I220 -> 0.0238841777 | R139: =$H139*Multipliers!J220 -> 0.01908546168 | S139: 0.04296963937 | T139: =$H139*Multipliers!L220 -> 0.1772970761 | U139: =$H139*Multipliers!M220 -> 0.08237515354 | V139: =$H139*Multipliers!N220 -> 0.05616270959 | W139: 0.1385378631 | Y139: =$H139*Multipliers!Q220 -> 0.0428818691 | Z139: =$H139*Multipliers!R220 -> 0.03241456763 | AA139: 0.07529643673
C140: Wholesale Trade | F140: =G$126*Multipliers!U221 -> 0.1932369425 | H140: 0.1999110932 | M140: =$H140*Multipliers!E221 -> 0.4946734051 | N140: =$H140*Multipliers!F221 -> 0.597856863 | O140: 1.092530268 | Q140: =$H140*Multipliers!I221 -> 0.02798215539 | R140: =$H140*Multipliers!J221 -> 0.03142003797 | S140: 0.05940219336 | T140: =$H140*Multipliers!L221 -> 0.1999110932 | U140: =$H140*Multipliers!M221 -> 0.08239491117 | V140: =$H140*Multipliers!N221 -> 0.0924600674 | W140: 0.1748549786 | Y140: =$H140*Multipliers!Q221 -> 0.04733509516 | Z140: =$H140*Multipliers!R221 -> 0.05336367097 | AA140: 0.1006987661
C141: Retail Trade | F141: =G$126*Multipliers!U222 -> 0.4439589484 | H141: 0.4592927085 | M141: =$H141*Multipliers!E222 -> 1.097428963 | N141: =$H141*Multipliers!F222 -> 1.62745189 | O141: 2.724880853 | Q141: =$H141*Multipliers!I222 -> 0.05461574145 | R141: =$H141*Multipliers!J222 -> 0.07820850365 | S141: 0.1328242451 | T141: =$H141*Multipliers!L222 -> 0.4592927085 | U141: =$H141*Multipliers!M222 -> 0.1712626447 | V141: =$H141*Multipliers!N222 -> 0.2301328528 | W141: 0.4013954974 | Y141: =$H141*Multipliers!Q222 -> 0.09690687202 | Z141: =$H141*Multipliers!R222 -> 0.1328243751 | AA141: 0.2297312471
C142: FIRE | F142: =(G$126*Multipliers!U223)+(G125*H125) -> 2.211330456 | H142: 2.287706911 | M142: =$H142*Multipliers!E223 -> 7.786360193 | N142: =$H142*Multipliers!F223 -> 6.221762647 | O142: 14.00812284 | Q142: =$H142*Multipliers!I223 -> 0.3691180941 | R142: =$H142*Multipliers!J223 -> 0.2940034381 | S142: 0.6631215322 | T142: =$H142*Multipliers!L223 -> 2.287706911 | U142: =$H142*Multipliers!M223 -> 1.255777158 | V142: =$H142*Multipliers!N223 -> 0.8650810648 | W142: 2.120858223 | Y142: =$H142*Multipliers!Q223 -> 0.7002503382 | Z142: =$H142*Multipliers!R223 -> 0.4993014567 | AA142: 1.199551795
C143: Misc. Services | F143: =G$126*Multipliers!U224 -> 2.49258998 | H143: 2.578680771 | M143: =$H143*Multipliers!E224 -> 7.263541747 | N143: =$H143*Multipliers!F224 -> 10.66480413 | O143: 17.92834587 | Q143: =$H143*Multipliers!I224 -> 0.4244611907 | R143: =$H143*Multipliers!J224 -> 0.5547125574 | S143: 0.9791737481 | T143: =$H143*Multipliers!L224 -> 2.578680771 | U143: =$H143*Multipliers!M224 -> 1.201881242 | V143: =$H143*Multipliers!N224 -> 1.632278994 | W143: 2.834160237 | Y143: =$H143*Multipliers!Q224 -> 0.6845274123 | Z143: =$H143*Multipliers!R224 -> 0.942091299 | AA143: 1.626618711
C144: Professional Services | F144: =G$126*Multipliers!U225 -> 0.03559246244 | H144: 0.03682177944 | M144: =$H144*Multipliers!E225 -> 0.1025890365 | N144: =$H144*Multipliers!F225 -> 0.1269821233 | O144: 0.2295711598 | Q144: =$H144*Multipliers!I225 -> 0.005153771799 | R144: =$H144*Multipliers!J225 -> 0.006065814047 | S144: 0.01121958585 | T144: =$H144*Multipliers!L225 -> 0.03682177944 | U144: =$H144*Multipliers!M225 -> 0.01573210189 | V144: =$H144*Multipliers!N225 -> 0.01784914808 | W144: 0.03358124997 | Y144: =$H144*Multipliers!Q225 -> 0.008858518677 | Z144: =$H144*Multipliers!R225 -> 0.01030185371 | AA144: 0.01916037239
C145: Government | F145: =(G$126*Multipliers!U226)+(G124*H124) -> 0.03169746129 | H145: 0.03279225005 | M145: =$H145*Multipliers!E226 -> 0.02750896981 | N145: =$H145*Multipliers!F226 -> 0.1404924256 | O145: 0.1680013954 | Q145: =$H145*Multipliers!I226 -> 0.001608481595 | R145: =$H145*Multipliers!J226 -> 0.007578183209 | S145: 0.009186664804 | T145: =$H145*Multipliers!L226 -> 0.03279225005 | U145: =$H145*Multipliers!M226 -> 0.005111013998 | V145: =$H145*Multipliers!N226 -> 0.02230280945 | W145: 0.02741382345 | Y145: =$H145*Multipliers!Q226 -> 0.002710393267 | Z145: =$H145*Multipliers!R226 -> 0.01287167883 | AA145: 0.0155820721
C146: Total | F146: =SUM(F132:F145) -> 5.704194139 | H146: =SUM(H132:H145) -> 5.901209526 | L146: =IF(L148=0,0,D128) -> 48.06416193 | M146: =SUM(M132:M145) -> 17.43197931 | N146: =SUM(N132:N145) -> 20.04044763 | O146: =N146+M146+L146 -> 85.53658886 | P146: =H146 -> 5.901209526 | Q146: =SUM(Q132:Q145) -> 0.9195311183 | R146: =SUM(R132:R145) -> 1.003263949 | S146: =R146+Q146+P146 -> 7.824004594 | T146: =SUM(T132:T145) -> 5.901209526 | U146: =SUM(U132:U145) -> 2.857627393 | V146: =SUM(V132:V145) -> 2.952139037 | W146: =V146+U146+T146 -> 11.71097596 | X146: =H146 -> 5.901209526 | Y146: =SUM(Y132:Y145) -> 1.606435422 | Z146: =SUM(Z132:Z145) -> 1.703872221 | AA146: =Z146+Y146+X146 -> 9.211517169
O147: Inflate to | P147: =P124 -> 2012 | Q147: Dollars
C148: Annual O&M Costs Local Demand | E148: Construction Costs Local Demand | G148: Fuel | H148: Fuel Cost | I148: Fuel Cost Impact Adj | L148: =SUM(L153:L166) -> 46.48792505 | P148: =P146*$G67 -> 5.704194139 | Q148: 0.8888320254 | R148: 0.9697693862 | S148: 7.56279555 | T148: 5.704194139 | U148: 2.762223804 | V148: 2.85358012 | W148: 11.31999806 | X148: =X146*$G67 -> 5.704194139 | Y148: 1.552803621 | Z148: 1.646987434 | AA148: 8.903985193
D149: Demand | E149: Demand | G149: Demand | H149: Price Adj | I149: Demand | O149: Avg earning/job | P149: =P146*10^6/L146 -> 122777.7473
C150: Agriculture | D150: 0 | E150: 0 | L150: With Plant Employees
C151: Mining | D151: =G83*Calculations!D249 -> 0 | E151: 0 | G151: =$G83 -> 0 | H151: =$G$83*DefaultData!$E$113*Calculations!D$249 -> 0 | I151: =(G151-H164) -> 0 | L151: Jobs | P151: Earnings | T151: Output | X151: Output
C152: Construction | D152: 0 | E152: =G38+G30+G29+G33 -> 130.3364862 | L152: Direct | M152: Indirect | N152: Induced | O152: Total | P152: Direct | Q152: Indirect | R152: Induced | S152: Total | T152: Direct | U152: Indirect | V152: Induced | W152: Total | X152: Direct | Y152: Indirect | Z152: Induced | AA152: Total
C153: Manufacturing | D153: =G71 -> 0 | E153: =G19+G22+G23+G26 -> 112.3056752 | J153: Agriculture | L153: =L107+L132 -> 0 | M153: 0.02236286861 | N153: 0.03889478209 | O153: =N153+M153+L153 -> 0.0612576507 | P153: =P107+P132 -> 0 | Q153: 0.001145360493 | R153: 0.002045959875 | S153: =R153+Q153+P153 -> 0.003191320368 | T153: =T107+T132 -> 0.01918977355 | U153: 0.004080397684 | V153: 0.00601930163 | W153: =V153+U153+T153 -> 0.02928947287 | X153: =X107+X132 -> 0 | Y153: 0.002334540523 | Z153: 0.00347432771 | AA153: =Z153+Y153+X153 -> 0.005808868233
C154: Fabricated Metals | D154: =G81 -> 0 | E154: =G7+G8+G9+G10+G11+G12+G17+G19 -> 0 | J154: Mining | L154: 0 | M154: 4.300410251e-05 | N154: 2.766778781e-05 | O154: =N154+M154+L154 -> 7.067189032e-05 | P154: 0 | Q154: 2.35556833e-06 | R154: 1.228639015e-06 | S154: 3.584207345e-06 | T154: 1.861836368e-05 | U154: 9.023954e-06 | V154: 3.73960229e-06 | W154: =V154+U154+T154 -> 3.138191997e-05 | X154: =X108+X133 -> 0 | Y154: 3.424867271e-06 | Z154: 2.129365393e-06 | AA154: =Z154+Y154+X154 -> 5.554232664e-06
C155: Machinery | D155: =G80+G76 -> 0 | E155: =G16+G18+G22+G23+G26 -> 112.3056752 | J155: Construction | L155: 0 | M155: 0 | N155: 0 | O155: 0 | P155: 0 | Q155: 0 | R155: 0 | S155: 0 | T155: 0 | U155: 0 | V155: 0 | W155: 0 | X155: =X109+X134 -> 0 | Y155: 0 | Z155: 0 | AA155: 0
C156: Electrical Equipment | D156: 0 | E156: 0 | J156: Manufacturing | L156: 0 | M156: 0.2085901296 | N156: 0.2146471559 | O156: 0.4232372855 | P156: 0 | Q156: 0.01154398121 | R156: 0.01013108425 | S156: 0.02167506546 | T156: 0.1093811324 | U156: 0.03895146479 | V156: 0.02981397443 | W156: 0.1781465717 | X156: =X110+X135 -> 0 | Y156: 0.02060030878 | Z156: 0.01720702238 | AA156: 0.03780733116
C157: TCPU | D157: =G72 -> 4.2 | E157: 0 | H157: =$G$83*DefaultData!$K$113*Calculations!D$249 -> 0 | J157: Fabricated Metals | L157: 0 | M157: 7.769024723e-06 | N157: 1.001171129e-05 | O157: 1.778073601e-05 | P157: 0 | Q157: 4.296050706e-07 | R157: 4.652788463e-07 | S157: 8.94883917e-07 | T157: 4.021667988e-06 | U157: 1.395969458e-06 | V157: 1.369240345e-06 | W157: 6.786877791e-06 | X157: =X111+X136 -> 0 | Y157: 7.226281851e-07 | Z157: 7.902505817e-07 | AA157: 1.512878767e-06
C158: Wholesale Trade | D158: 0 | E158: 0 | H158: =$G$83*DefaultData!$L$113*Calculations!D$249 -> 0 | J158: Machinery | L158: 0 | M158: 3.907080456e-05 | N158: 3.800880563e-05 | O158: 7.707961019e-05 | P158: 0 | Q158: 2.214735998e-06 | R158: 1.761691437e-06 | S158: 3.976427435e-06 | T158: 2.145780459e-05 | U158: 7.150914122e-06 | V158: 5.184330435e-06 | W158: 3.379304914e-05 | X158: =X112+X137 -> 0 | Y158: 3.787645758e-06 | Z158: 2.992120398e-06 | AA158: 6.779766156e-06
C159: Retail Trade | D159: 0 | E159: 0 | J159: Electrical Equipment | L159: 0 | M159: 0.0002223881029 | N159: 0.0002049834913 | O159: 0.0004273715942 | P159: 0 | Q159: 1.316402272e-05 | R159: 9.453665312e-06 | S159: 2.261768803e-05 | T159: 9.193378297e-05 | U159: 4.373448062e-05 | V159: 2.782113234e-05 | W159: 0.0001634893959 | X159: =X113+X138 -> 0 | Y159: 2.213910096e-05 | Z159: 1.605673371e-05 | AA159: 3.819583467e-05
C160: FIRE | D160: =H90+H91+H92+J94+IF(E1="MYCOUNTY",0,(D75*E75*DefaultData!M103)+(D76*E77*DefaultData!M103)+(D78*E78*DefaultData!M103)) -> 6.148394473 | E160: =G18+G19 -> 0 | J160: TCPU | L160: 10.68743839 | M160: 10.93270424 | N160: 10.38846086 | O160: 32.00860348 | P160: 0.8596422722 | Q160: 0.6092195199 | R160: 0.4868175051 | S160: 1.955679297 | T160: 4.52235957 | U160: 2.101163043 | V160: 1.43255587 | W160: 8.056078484 | X160: =X114+X139 -> 1.864747993 | Y160: 1.093798247 | Z160: 0.8268062471 | AA160: 3.785352487
C161: Misc. Services | D161: =G85 -> 0 | E161: 0 | J161: Wholesale Trade | L161: 0 | M161: 0.4946734051 | N161: 0.597856863 | O161: 1.092530268 | P161: 0 | Q161: 0.02798215539 | R161: 0.03142003797 | S161: 0.05940219336 | T161: 0.1999110932 | U161: 0.08239491117 | V161: 0.0924600674 | W161: 0.3747660718 | X161: =X115+X140 -> 0 | Y161: 0.04733509516 | Z161: 0.05336367097 | AA161: 0.1006987661
C162: Professional Services | D162: =G81 -> 0 | E162: =G39+G37 -> 0 | J162: Retail Trade | L162: 0 | M162: 1.097428963 | N162: 1.62745189 | O162: 2.724880853 | P162: 0 | Q162: 0.05461574145 | R162: 0.07820850365 | S162: 0.1328242451 | T162: 0.4592927085 | U162: 0.1712626447 | V162: 0.2301328528 | W162: 0.8606882059 | X162: =X116+X141 -> 0 | Y162: 0.09690687202 | Z162: 0.1328243751 | AA162: 0.2297312471
C163: Government | D163: =G93+IF(E1="MYCOUNTY",0,(D75*E75*DefaultData!M102)+(D76*E77*DefaultData!M102)+(D78*E78*DefaultData!M102)) -> 1.389081714 | E163: 0 | J163: FIRE | L163: 35.80048666 | M163: 29.43559577 | N163: 23.52078323 | O163: 88.75686566 | P163: 1.501651288 | Q163: 1.395415925 | R163: 1.111452096 | S163: 4.008519308 | T163: 8.648458868 | U163: 4.74734637 | V163: 3.270356868 | W163: 16.66616211 | X163: =X117+X142 -> 3.553569537 | Y163: 2.647229949 | Z163: 1.887561772 | AA163: 8.088361258
C164: Total | D164: =SUM(D150:D163) -> 11.73747619 | E164: =SUM(E150:E163) -> 354.9478366 | G164: =SUM(G150:G163) -> 0 | H164: =SUM(H150:H163) -> 0 | I164: =SUM(I150:I163) -> 0 | J164: Misc. Services | L164: 0 | M164: 7.263541747 | N164: 10.66480413 | O164: 17.92834587 | P164: 0 | Q164: 0.4244611907 | R164: 0.5547125574 | S164: 0.9791737481 | T164: 2.578680771 | U164: 1.201881242 | V164: 1.632278994 | W164: 5.412841007 | X164: =X118+X143 -> 0 | Y164: 0.6845274123 | Z164: 0.942091299 | AA164: 1.626618711
J165: Professional Services | L165: 0 | M165: 0.1025890365 | N165: 0.1269821233 | O165: 0.2295711598 | P165: 0 | Q165: 0.005153771799 | R165: 0.006065814047 | S165: 0.01121958585 | T165: 0.03682177944 | U165: 0.01573210189 | V165: 0.01784914808 | W165: 0.07040302941 | X165: =X119+X144 -> 0 | Y165: 0.008858518677 | Z165: 0.01030185371 | AA165: 0.01916037239
J166: Government | L166: 0 | M166: 1.233037911 | N166: 6.297309136 | O166: 7.530347047 | P166: 0 | Q166: 0.07209716683 | R166: 0.3396778308 | S166: 0.4117749976 | T166: 1.469851026 | U166: 0.2290916041 | V166: 0.9996815499 | W166: 2.69862418 | X166: =X120+X145 -> 1.225773854 | Y166: 0.1214882882 | Z166: 0.5769488311 | AA166: 1.924210974
J167: Plant Employees | L167: =L146 -> 48.06416193 | O167: 48.06416193 | P167: =P146 -> 5.901209526 | S167: 5.901209526 | W167: 0 | X167: =X146 -> 5.901209526 | AA167: 5.901209526
J168: Total | L168: =SUM(L153:L167) -> 94.55208698 | M168: =SUM(M153:M167) -> 50.7908363 | N168: =SUM(N153:N167) -> 53.47747083 | O168: 198.8203941 | P168: =SUM(P153:P167) -> 8.262503086 | Q168: 2.601652976 | R168: 2.620544299 | S168: 13.48470036 | T168: 18.04408275 | U168: 8.591965085 | V168: 7.711186741 | W168: 34.34723458 | X168: =SUM(X153:X167) -> 12.54530091 | Y168: 4.723109306 | Z168: 4.450601368 | AA168: 21.71901158
J169: Inflate to | K169: =P147 -> 2012 | L169: Dollars | P169: =P168*$G67 -> 7.986654509 | Q169: 2.514795245 | R169: 2.53305587 | S169: 13.03450562 | T169: 17.44167033 | U169: 8.305117224 | V169: 7.453744188 | W169: 33.20053174 | X169: =X168*$G67 -> 12.12646858 | Y169: 4.565425494 | Z169: 4.302015396 | AA169: 20.99390947
C171: Default | H171: Default | M171: Default
C172: From DefaultData | H172: From DefaultData | M172: From DefaultData
C173: Debt - Loan Repayment Schedule | H173: Equity - Individual Investment Repayment Schedule | M173: Equity - Corporate Investment Repayment Schedule
C174: Year | D174: Interest Pmt | E174: Principal Pmt | F174: Total Pmt | H174: Year | I174: Interest Pmt | J174: Principal Pmt | K174: Total Pmt | M174: Year | N174: Interest Pmt | O174: Principal Pmt | P174: Total Pmt
C175: 1 | D175: =IF(C175<=DefaultData!D$82,-ISPMT(DefaultData!D$83,C175,DefaultData!D$82,DefaultData!D$51*DefaultData!D$81),0) -> 25.89206491 | E175: =IF(C175<=DefaultData!D$82,-PPMT(DefaultData!D$83,C175,DefaultData!D$82,DefaultData!D$81*DefaultData!D$51),0) -> 6.723198352 | F175: =E175+D175 -> 32.61526327 | H175: 1 | I175: =IF(H175<=DefaultData!$D$90,-ISPMT(DefaultData!$D$89,H175,DefaultData!$D$90,DefaultData!$D$51*DefaultData!$D$86*DefaultData!$D$87),0) -> 0 | J175: =IF(H175<=DefaultData!$D$90,-PPMT(DefaultData!$D$89,H175,DefaultData!$D$90,DefaultData!$D$86*DefaultData!$D$51*DefaultData!$D$87),0) -> 0 | K175: =J175+I175 -> 0 | M175: 1 | N175: =IF(M175<=DefaultData!$D$90,-ISPMT(DefaultData!$D$89,M175,DefaultData!$D$90,DefaultData!$D$51*DefaultData!$D$86*DefaultData!$D$88),0) -> 18.78421189 | O175: =IF(M175<=DefaultData!$D$90,-PPMT(DefaultData!$D$89,M175,DefaultData!$D$90,DefaultData!$D$86*DefaultData!$D$51*DefaultData!$D$88),0) -> 13.09580881 | P175: =O175+N175 -> 31.8800207
C176: 2 | D176: =IF(C176<=DefaultData!D$82,-ISPMT(DefaultData!D$83,C176,DefaultData!D$82,DefaultData!D$51*DefaultData!D$81),0) -> 24.99923509 | E176: =IF(C176<=DefaultData!D$82,-PPMT(DefaultData!D$83,C176,DefaultData!D$82,DefaultData!D$81*DefaultData!D$51),0) -> 7.092974262 | F176: 32.09220935 | H176: 2 | I176: =IF(H176<=DefaultData!$D$90,-ISPMT(DefaultData!$D$89,H176,DefaultData!$D$90,DefaultData!$D$51*DefaultData!$D$86*DefaultData!$D$87),0) -> 0 | J176: =IF(H176<=DefaultData!$D$90,-PPMT(DefaultData!$D$89,H176,DefaultData!$D$90,DefaultData!$D$86*DefaultData!$D$51*DefaultData!$D$87),0) -> 0 | K176: 0 | M176: 2 | N176: =IF(M176<=DefaultData!$D$90,-ISPMT(DefaultData!$D$89,M176,DefaultData!$D$90,DefaultData!$D$51*DefaultData!$D$86*DefaultData!$D$88),0) -> 16.69707724 | O176: =IF(M176<=DefaultData!$D$90,-PPMT(DefaultData!$D$89,M176,DefaultData!$D$90,DefaultData!$D$86*DefaultData!$D$51*DefaultData!$D$88),0) -> 14.40538969 | P176: 31.10246693
C177: 3 | D177: =IF(C177<=DefaultData!D$82,-ISPMT(DefaultData!D$83,C177,DefaultData!D$82,DefaultData!D$51*DefaultData!D$81),0) -> 24.10640526 | E177: =IF(C177<=DefaultData!D$82,-PPMT(DefaultData!D$83,C177,DefaultData!D$82,DefaultData!D$81*DefaultData!D$51),0) -> 7.483087846 | F177: 31.58949311 | H177: 3 | I177: =IF(H177<=DefaultData!$D$90,-ISPMT(DefaultData!$D$89,H177,DefaultData!$D$90,DefaultData!$D$51*DefaultData!$D$86*DefaultData!$D$87),0) -> 0 | J177: =IF(H177<=DefaultData!$D$90,-PPMT(DefaultData!$D$89,H177,DefaultData!$D$90,DefaultData!$D$86*DefaultData!$D$51*DefaultData!$D$87),0) -> 0 | K177: 0 | M177: 3 | N177: =IF(M177<=DefaultData!$D$90,-ISPMT(DefaultData!$D$89,M177,DefaultData!$D$90,DefaultData!$D$51*DefaultData!$D$86*DefaultData!$D$88),0) -> 14.60994258 | O177: =IF(M177<=DefaultData!$D$90,-PPMT(DefaultData!$D$89,M177,DefaultData!$D$90,DefaultData!$D$86*DefaultData!$D$51*DefaultData!$D$88),0) -> 15.84592866 | P177: 30.45587124
C178: 4 | D178: =IF(C178<=DefaultData!D$82,-ISPMT(DefaultData!D$83,C178,DefaultData!D$82,DefaultData!D$51*DefaultData!D$81),0) -> 23.21357544 | E178: =IF(C178<=DefaultData!D$82,-PPMT(DefaultData!D$83,C178,DefaultData!D$82,DefaultData!D$81*DefaultData!D$51),0) -> 7.894657678 | F178: 31.10823312 | H178: 4 | I178: =IF(H178<=DefaultData!$D$90,-ISPMT(DefaultData!$D$89,H178,DefaultData!$D$90,DefaultData!$D$51*DefaultData!$D$86*DefaultData!$D$87),0) -> 0 | J178: =IF(H178<=DefaultData!$D$90,-PPMT(DefaultData!$D$89,H178,DefaultData!$D$90,DefaultData!$D$86*DefaultData!$D$51*DefaultData!$D$87),0) -> 0 | K178: 0 | M178: 4 | N178: =IF(M178<=DefaultData!$D$90,-ISPMT(DefaultData!$D$89,M178,DefaultData!$D$90,DefaultData!$D$51*DefaultData!$D$86*DefaultData!$D$88),0) -> 12.52280793 | O178: =IF(M178<=DefaultData!$D$90,-PPMT(DefaultData!$D$89,M178,DefaultData!$D$90,DefaultData!$D$86*DefaultData!$D$51*DefaultData!$D$88),0) -> 17.43052153 | P178: 29.95332946
C179: 5 | D179: =IF(C179<=DefaultData!D$82,-ISPMT(DefaultData!D$83,C179,DefaultData!D$82,DefaultData!D$51*DefaultData!D$81),0) -> 22.32074562 | E179: =IF(C179<=DefaultData!D$82,-PPMT(DefaultData!D$83,C179,DefaultData!D$82,DefaultData!D$81*DefaultData!D$51),0) -> 8.32886385 | F179: 30.64960947 | H179: 5 | I179: =IF(H179<=DefaultData!$D$90,-ISPMT(DefaultData!$D$89,H179,DefaultData!$D$90,DefaultData!$D$51*DefaultData!$D$86*DefaultData!$D$87),0) -> 0 | J179: =IF(H179<=DefaultData!$D$90,-PPMT(DefaultData!$D$89,H179,DefaultData!$D$90,DefaultData!$D$86*DefaultData!$D$51*DefaultData!$D$87),0) -> 0 | K179: 0 | M179: 5 | N179: =IF(M179<=DefaultData!$D$90,-ISPMT(DefaultData!$D$89,M179,DefaultData!$D$90,DefaultData!$D$51*DefaultData!$D$86*DefaultData!$D$88),0) -> 10.43567327 | O179: =IF(M179<=DefaultData!$D$90,-PPMT(DefaultData!$D$89,M179,DefaultData!$D$90,DefaultData!$D$86*DefaultData!$D$51*DefaultData!$D$88),0) -> 19.17357368 | P179: 29.60924695
C180: 6 | D180: =IF(C180<=DefaultData!D$82,-ISPMT(DefaultData!D$83,C180,DefaultData!D$82,DefaultData!D$51*DefaultData!D$81),0) -> 21.42791579 | E180: =IF(C180<=DefaultData!D$82,-PPMT(DefaultData!D$83,C180,DefaultData!D$82,DefaultData!D$81*DefaultData!D$51),0) -> 8.786951362 | F180: 30.21486715 | H180: 6 | I180: =IF(H180<=DefaultData!$D$90,-ISPMT(DefaultData!$D$89,H180,DefaultData!$D$90,DefaultData!$D$51*DefaultData!$D$86*DefaultData!$D$87),0) -> 0 | J180: =IF(H180<=DefaultData!$D$90,-PPMT(DefaultData!$D$89,H180,DefaultData!$D$90,DefaultData!$D$86*DefaultData!$D$51*DefaultData!$D$87),0) -> 0 | K180: 0 | M180: 6 | N180: =IF(M180<=DefaultData!$D$90,-ISPMT(DefaultData!$D$89,M180,DefaultData!$D$90,DefaultData!$D$51*DefaultData!$D$86*DefaultData!$D$88),0) -> 8.34853862 | O180: =IF(M180<=DefaultData!$D$90,-PPMT(DefaultData!$D$89,M180,DefaultData!$D$90,DefaultData!$D$86*DefaultData!$D$51*DefaultData!$D$88),0) -> 21.09093105 | P180: 29.43946967
C181: 7 | D181: =IF(C181<=DefaultData!D$82,-ISPMT(DefaultData!D$83,C181,DefaultData!D$82,DefaultData!D$51*DefaultData!D$81),0) -> 20.53508597 | E181: =IF(C181<=DefaultData!D$82,-PPMT(DefaultData!D$83,C181,DefaultData!D$82,DefaultData!D$81*DefaultData!D$51),0) -> 9.270233687 | F181: 29.80531965 | H181: 7 | I181: =IF(H181<=DefaultData!$D$90,-ISPMT(DefaultData!$D$89,H181,DefaultData!$D$90,DefaultData!$D$51*DefaultData!$D$86*DefaultData!$D$87),0) -> 0 | J181: =IF(H181<=DefaultData!$D$90,-PPMT(DefaultData!$D$89,H181,DefaultData!$D$90,DefaultData!$D$86*DefaultData!$D$51*DefaultData!$D$87),0) -> 0 | K181: 0 | M181: 7 | N181: =IF(M181<=DefaultData!$D$90,-ISPMT(DefaultData!$D$89,M181,DefaultData!$D$90,DefaultData!$D$51*DefaultData!$D$86*DefaultData!$D$88),0) -> 6.261403965 | O181: =IF(M181<=DefaultData!$D$90,-PPMT(DefaultData!$D$89,M181,DefaultData!$D$90,DefaultData!$D$86*DefaultData!$D$51*DefaultData!$D$88),0) -> 23.20002415 | P181: 29.46142812
C182: 8 | D182: =IF(C182<=DefaultData!D$82,-ISPMT(DefaultData!D$83,C182,DefaultData!D$82,DefaultData!D$51*DefaultData!D$81),0) -> 19.64225614 | E182: =IF(C182<=DefaultData!D$82,-PPMT(DefaultData!D$83,C182,DefaultData!D$82,DefaultData!D$81*DefaultData!D$51),0) -> 9.780096539 | F182: 29.42235268 | H182: 8 | I182: =IF(H182<=DefaultData!$D$90,-ISPMT(DefaultData!$D$89,H182,DefaultData!$D$90,DefaultData!$D$51*DefaultData!$D$86*DefaultData!$D$87),0) -> 0 | J182: =IF(H182<=DefaultData!$D$90,-PPMT(DefaultData!$D$89,H182,DefaultData!$D$90,DefaultData!$D$86*DefaultData!$D$51*DefaultData!$D$87),0) -> 0 | K182: 0 | M182: 8 | N182: =IF(M182<=DefaultData!$D$90,-ISPMT(DefaultData!$D$89,M182,DefaultData!$D$90,DefaultData!$D$51*DefaultData!$D$86*DefaultData!$D$88),0) -> 4.17426931 | O182: =IF(M182<=DefaultData!$D$90,-PPMT(DefaultData!$D$89,M182,DefaultData!$D$90,DefaultData!$D$86*DefaultData!$D$51*DefaultData!$D$88),0) -> 25.52002657 | P182: 29.69429588
C183: 9 | D183: =IF(C183<=DefaultData!D$82,-ISPMT(DefaultData!D$83,C183,DefaultData!D$82,DefaultData!D$51*DefaultData!D$81),0) -> 18.74942632 | E183: =IF(C183<=DefaultData!D$82,-PPMT(DefaultData!D$83,C183,DefaultData!D$82,DefaultData!D$81*DefaultData!D$51),0) -> 10.31800185 | F183: 29.06742817 | H183: 9 | I183: =IF(H183<=DefaultData!$D$90,-ISPMT(DefaultData!$D$89,H183,DefaultData!$D$90,DefaultData!$D$51*DefaultData!$D$86*DefaultData!$D$87),0) -> 0 | J183: =IF(H183<=DefaultData!$D$90,-PPMT(DefaultData!$D$89,H183,DefaultData!$D$90,DefaultData!$D$86*DefaultData!$D$51*DefaultData!$D$87),0) -> 0 | K183: 0 | M183: 9 | N183: =IF(M183<=DefaultData!$D$90,-ISPMT(DefaultData!$D$89,M183,DefaultData!$D$90,DefaultData!$D$51*DefaultData!$D$86*DefaultData!$D$88),0) -> 2.087134655 | O183: =IF(M183<=DefaultData!$D$90,-PPMT(DefaultData!$D$89,M183,DefaultData!$D$90,DefaultData!$D$86*DefaultData!$D$51*DefaultData!$D$88),0) -> 28.07202922 | P183: 30.15916388
C184: 10 | D184: =IF(C184<=DefaultData!D$82,-ISPMT(DefaultData!D$83,C184,DefaultData!D$82,DefaultData!D$51*DefaultData!D$81),0) -> 17.85659649 | E184: =IF(C184<=DefaultData!D$82,-PPMT(DefaultData!D$83,C184,DefaultData!D$82,DefaultData!D$81*DefaultData!D$51),0) -> 10.88549195 | F184: 28.74208844 | H184: 10 | I184: =IF(H184<=DefaultData!$D$90,-ISPMT(DefaultData!$D$89,H184,DefaultData!$D$90,DefaultData!$D$51*DefaultData!$D$86*DefaultData!$D$87),0) -> 0 | J184: =IF(H184<=DefaultData!$D$90,-PPMT(DefaultData!$D$89,H184,DefaultData!$D$90,DefaultData!$D$86*DefaultData!$D$51*DefaultData!$D$87),0) -> 0 | K184: 0 | M184: 10 | N184: =IF(M184<=DefaultData!$D$90,-ISPMT(DefaultData!$D$89,M184,DefaultData!$D$90,DefaultData!$D$51*DefaultData!$D$86*DefaultData!$D$88),0) -> 0 | O184: =IF(M184<=DefaultData!$D$90,-PPMT(DefaultData!$D$89,M184,DefaultData!$D$90,DefaultData!$D$86*DefaultData!$D$51*DefaultData!$D$88),0) -> 30.87923214 | P184: 30.87923214
C185: 11 | D185: =IF(C185<=DefaultData!D$82,-ISPMT(DefaultData!D$83,C185,DefaultData!D$82,DefaultData!D$51*DefaultData!D$81),0) -> 16.96376667 | E185: =IF(C185<=DefaultData!D$82,-PPMT(DefaultData!D$83,C185,DefaultData!D$82,DefaultData!D$81*DefaultData!D$51),0) -> 11.48419401 | F185: 28.44796068 | H185: 11 | I185: =IF(H185<=DefaultData!$D$90,-ISPMT(DefaultData!$D$89,H185,DefaultData!$D$90,DefaultData!$D$51*DefaultData!$D$86*DefaultData!$D$87),0) -> 0 | J185: =IF(H185<=DefaultData!$D$90,-PPMT(DefaultData!$D$89,H185,DefaultData!$D$90,DefaultData!$D$86*DefaultData!$D$51*DefaultData!$D$87),0) -> 0 | K185: 0 | M185: 11 | N185: =IF(M185<=DefaultData!$D$90,-ISPMT(DefaultData!$D$89,M185,DefaultData!$D$90,DefaultData!$D$51*DefaultData!$D$86*DefaultData!$D$88),0) -> 0 | O185: =IF(M185<=DefaultData!$D$90,-PPMT(DefaultData!$D$89,M185,DefaultData!$D$90,DefaultData!$D$86*DefaultData!$D$51*DefaultData!$D$88),0) -> 0 | P185: 0
C186: 12 | D186: =IF(C186<=DefaultData!D$82,-ISPMT(DefaultData!D$83,C186,DefaultData!D$82,DefaultData!D$51*DefaultData!D$81),0) -> 16.07093684 | E186: =IF(C186<=DefaultData!D$82,-PPMT(DefaultData!D$83,C186,DefaultData!D$82,DefaultData!D$81*DefaultData!D$51),0) -> 12.11582468 | F186: 28.18676152 | H186: 12 | I186: =IF(H186<=DefaultData!$D$90,-ISPMT(DefaultData!$D$89,H186,DefaultData!$D$90,DefaultData!$D$51*DefaultData!$D$86*DefaultData!$D$87),0) -> 0 | J186: =IF(H186<=DefaultData!$D$90,-PPMT(DefaultData!$D$89,H186,DefaultData!$D$90,DefaultData!$D$86*DefaultData!$D$51*DefaultData!$D$87),0) -> 0 | K186: 0 | M186: 12 | N186: =IF(M186<=DefaultData!$D$90,-ISPMT(DefaultData!$D$89,M186,DefaultData!$D$90,DefaultData!$D$51*DefaultData!$D$86*DefaultData!$D$88),0) -> 0 | O186: =IF(M186<=DefaultData!$D$90,-PPMT(DefaultData!$D$89,M186,DefaultData!$D$90,DefaultData!$D$86*DefaultData!$D$51*DefaultData!$D$88),0) -> 0 | P186: 0
C187: 13 | D187: =IF(C187<=DefaultData!D$82,-ISPMT(DefaultData!D$83,C187,DefaultData!D$82,DefaultData!D$51*DefaultData!D$81),0) -> 15.17810702 | E187: =IF(C187<=DefaultData!D$82,-PPMT(DefaultData!D$83,C187,DefaultData!D$82,DefaultData!D$81*DefaultData!D$51),0) -> 12.78219504 | F187: 27.96030205 | H187: 13 | I187: =IF(H187<=DefaultData!$D$90,-ISPMT(DefaultData!$D$89,H187,DefaultData!$D$90,DefaultData!$D$51*DefaultData!$D$86*DefaultData!$D$87),0) -> 0 | J187: =IF(H187<=DefaultData!$D$90,-PPMT(DefaultData!$D$89,H187,DefaultData!$D$90,DefaultData!$D$86*DefaultData!$D$51*DefaultData!$D$87),0) -> 0 | K187: 0 | M187: 13 | N187: =IF(M187<=DefaultData!$D$90,-ISPMT(DefaultData!$D$89,M187,DefaultData!$D$90,DefaultData!$D$51*DefaultData!$D$86*DefaultData!$D$88),0) -> 0 | O187: =IF(M187<=DefaultData!$D$90,-PPMT(DefaultData!$D$89,M187,DefaultData!$D$90,DefaultData!$D$86*DefaultData!$D$51*DefaultData!$D$88),0) -> 0 | P187: 0
C188: 14 | D188: =IF(C188<=DefaultData!D$82,-ISPMT(DefaultData!D$83,C188,DefaultData!D$82,DefaultData!D$51*DefaultData!D$81),0) -> 14.28527719 | E188: =IF(C188<=DefaultData!D$82,-PPMT(DefaultData!D$83,C188,DefaultData!D$82,DefaultData!D$81*DefaultData!D$51),0) -> 13.48521576 | F188: 27.77049296 | H188: 14 | I188: =IF(H188<=DefaultData!$D$90,-ISPMT(DefaultData!$D$89,H188,DefaultData!$D$90,DefaultData!$D$51*DefaultData!$D$86*DefaultData!$D$87),0) -> 0 | J188: =IF(H188<=DefaultData!$D$90,-PPMT(DefaultData!$D$89,H188,DefaultData!$D$90,DefaultData!$D$86*DefaultData!$D$51*DefaultData!$D$87),0) -> 0 | K188: 0 | M188: 14 | N188: =IF(M188<=DefaultData!$D$90,-ISPMT(DefaultData!$D$89,M188,DefaultData!$D$90,DefaultData!$D$51*DefaultData!$D$86*DefaultData!$D$88),0) -> 0 | O188: =IF(M188<=DefaultData!$D$90,-PPMT(DefaultData!$D$89,M188,DefaultData!$D$90,DefaultData!$D$86*DefaultData!$D$51*DefaultData!$D$88),0) -> 0 | P188: 0
C189: 15 | D189: =IF(C189<=DefaultData!D$82,-ISPMT(DefaultData!D$83,C189,DefaultData!D$82,DefaultData!D$51*DefaultData!D$81),0) -> 13.39244737 | E189: =IF(C189<=DefaultData!D$82,-PPMT(DefaultData!D$83,C189,DefaultData!D$82,DefaultData!D$81*DefaultData!D$51),0) -> 14.22690263 | F189: 27.61935 | H189: 15 | I189: =IF(H189<=DefaultData!$D$90,-ISPMT(DefaultData!$D$89,H189,DefaultData!$D$90,DefaultData!$D$51*DefaultData!$D$86*DefaultData!$D$87),0) -> 0 | J189: =IF(H189<=DefaultData!$D$90,-PPMT(DefaultData!$D$89,H189,DefaultData!$D$90,DefaultData!$D$86*DefaultData!$D$51*DefaultData!$D$87),0) -> 0 | K189: 0 | M189: 15 | N189: =IF(M189<=DefaultData!$D$90,-ISPMT(DefaultData!$D$89,M189,DefaultData!$D$90,DefaultData!$D$51*DefaultData!$D$86*DefaultData!$D$88),0) -> 0 | O189: =IF(M189<=DefaultData!$D$90,-PPMT(DefaultData!$D$89,M189,DefaultData!$D$90,DefaultData!$D$86*DefaultData!$D$51*DefaultData!$D$88),0) -> 0 | P189: 0
C190: 16 | D190: =IF(C190<=DefaultData!D$82,-ISPMT(DefaultData!D$83,C190,DefaultData!D$82,DefaultData!D$51*DefaultData!D$81),0) -> 12.49961754 | E190: =IF(C190<=DefaultData!D$82,-PPMT(DefaultData!D$83,C190,DefaultData!D$82,DefaultData!D$81*DefaultData!D$51),0) -> 15.00938227 | F190: 27.50899982 | H190: 16 | I190: =IF(H190<=DefaultData!$D$90,-ISPMT(DefaultData!$D$89,H190,DefaultData!$D$90,DefaultData!$D$51*DefaultData!$D$86*DefaultData!$D$87),0) -> 0 | J190: =IF(H190<=DefaultData!$D$90,-PPMT(DefaultData!$D$89,H190,DefaultData!$D$90,DefaultData!$D$86*DefaultData!$D$51*DefaultData!$D$87),0) -> 0 | K190: 0 | M190: 16 | N190: =IF(M190<=DefaultData!$D$90,-ISPMT(DefaultData!$D$89,M190,DefaultData!$D$90,DefaultData!$D$51*DefaultData!$D$86*DefaultData!$D$88),0) -> 0 | O190: =IF(M190<=DefaultData!$D$90,-PPMT(DefaultData!$D$89,M190,DefaultData!$D$90,DefaultData!$D$86*DefaultData!$D$51*DefaultData!$D$88),0) -> 0 | P190: 0
C191: 17 | D191: =IF(C191<=DefaultData!D$82,-ISPMT(DefaultData!D$83,C191,DefaultData!D$82,DefaultData!D$51*DefaultData!D$81),0) -> 11.60678772 | E191: =IF(C191<=DefaultData!D$82,-PPMT(DefaultData!D$83,C191,DefaultData!D$82,DefaultData!D$81*DefaultData!D$51),0) -> 15.8348983 | F191: 27.44168602 | H191: 17 | I191: =IF(H191<=DefaultData!$D$90,-ISPMT(DefaultData!$D$89,H191,DefaultData!$D$90,DefaultData!$D$51*DefaultData!$D$86*DefaultData!$D$87),0) -> 0 | J191: =IF(H191<=DefaultData!$D$90,-PPMT(DefaultData!$D$89,H191,DefaultData!$D$90,DefaultData!$D$86*DefaultData!$D$51*DefaultData!$D$87),0) -> 0 | K191: 0 | M191: 17 | N191: =IF(M191<=DefaultData!$D$90,-ISPMT(DefaultData!$D$89,M191,DefaultData!$D$90,DefaultData!$D$51*DefaultData!$D$86*DefaultData!$D$88),0) -> 0 | O191: =IF(M191<=DefaultData!$D$90,-PPMT(DefaultData!$D$89,M191,DefaultData!$D$90,DefaultData!$D$86*DefaultData!$D$51*DefaultData!$D$88),0) -> 0 | P191: 0
C192: 18 | D192: =IF(C192<=DefaultData!D$82,-ISPMT(DefaultData!D$83,C192,DefaultData!D$82,DefaultData!D$51*DefaultData!D$81),0) -> 10.7139579 | E192: =IF(C192<=DefaultData!D$82,-PPMT(DefaultData!D$83,C192,DefaultData!D$82,DefaultData!D$81*DefaultData!D$51),0) -> 16.70581771 | F192: 27.4197756 | H192: 18 | I192: =IF(H192<=DefaultData!$D$90,-ISPMT(DefaultData!$D$89,H192,DefaultData!$D$90,DefaultData!$D$51*DefaultData!$D$86*DefaultData!$D$87),0) -> 0 | J192: =IF(H192<=DefaultData!$D$90,-PPMT(DefaultData!$D$89,H192,DefaultData!$D$90,DefaultData!$D$86*DefaultData!$D$51*DefaultData!$D$87),0) -> 0 | K192: 0 | M192: 18 | N192: =IF(M192<=DefaultData!$D$90,-ISPMT(DefaultData!$D$89,M192,DefaultData!$D$90,DefaultData!$D$51*DefaultData!$D$86*DefaultData!$D$88),0) -> 0 | O192: =IF(M192<=DefaultData!$D$90,-PPMT(DefaultData!$D$89,M192,DefaultData!$D$90,DefaultData!$D$86*DefaultData!$D$51*DefaultData!$D$88),0) -> 0 | P192: 0
C193: 19 | D193: =IF(C193<=DefaultData!D$82,-ISPMT(DefaultData!D$83,C193,DefaultData!D$82,DefaultData!D$51*DefaultData!D$81),0) -> 9.821128071 | E193: =IF(C193<=DefaultData!D$82,-PPMT(DefaultData!D$83,C193,DefaultData!D$82,DefaultData!D$81*DefaultData!D$51),0) -> 17.62463768 | F193: 27.44576575 | H193: 19 | I193: =IF(H193<=DefaultData!$D$90,-ISPMT(DefaultData!$D$89,H193,DefaultData!$D$90,DefaultData!$D$51*DefaultData!$D$86*DefaultData!$D$87),0) -> 0 | J193: =IF(H193<=DefaultData!$D$90,-PPMT(DefaultData!$D$89,H193,DefaultData!$D$90,DefaultData!$D$86*DefaultData!$D$51*DefaultData!$D$87),0) -> 0 | K193: 0 | M193: 19 | N193: =IF(M193<=DefaultData!$D$90,-ISPMT(DefaultData!$D$89,M193,DefaultData!$D$90,DefaultData!$D$51*DefaultData!$D$86*DefaultData!$D$88),0) -> 0 | O193: =IF(M193<=DefaultData!$D$90,-PPMT(DefaultData!$D$89,M193,DefaultData!$D$90,DefaultData!$D$86*DefaultData!$D$51*DefaultData!$D$88),0) -> 0 | P193: 0
C194: 20 | D194: =IF(C194<=DefaultData!D$82,-ISPMT(DefaultData!D$83,C194,DefaultData!D$82,DefaultData!D$51*DefaultData!D$81),0) -> 8.928298246 | E194: =IF(C194<=DefaultData!D$82,-PPMT(DefaultData!D$83,C194,DefaultData!D$82,DefaultData!D$81*DefaultData!D$51),0) -> 18.59399275 | F194: 27.522291 | H194: 20 | I194: =IF(H194<=DefaultData!$D$90,-ISPMT(DefaultData!$D$89,H194,DefaultData!$D$90,DefaultData!$D$51*DefaultData!$D$86*DefaultData!$D$87),0) -> 0 | J194: =IF(H194<=DefaultData!$D$90,-PPMT(DefaultData!$D$89,H194,DefaultData!$D$90,DefaultData!$D$86*DefaultData!$D$51*DefaultData!$D$87),0) -> 0 | K194: 0 | M194: 20 | N194: =IF(M194<=DefaultData!$D$90,-ISPMT(DefaultData!$D$89,M194,DefaultData!$D$90,DefaultData!$D$51*DefaultData!$D$86*DefaultData!$D$88),0) -> 0 | O194: =IF(M194<=DefaultData!$D$90,-PPMT(DefaultData!$D$89,M194,DefaultData!$D$90,DefaultData!$D$86*DefaultData!$D$51*DefaultData!$D$88),0) -> 0 | P194: 0
C195: 21 | D195: =IF(C195<=DefaultData!D$82,-ISPMT(DefaultData!D$83,C195,DefaultData!D$82,DefaultData!D$51*DefaultData!D$81),0) -> 8.035468421 | E195: =IF(C195<=DefaultData!D$82,-PPMT(DefaultData!D$83,C195,DefaultData!D$82,DefaultData!D$81*DefaultData!D$51),0) -> 19.61666235 | F195: 27.65213078 | H195: 21 | I195: =IF(H195<=DefaultData!$D$90,-ISPMT(DefaultData!$D$89,H195,DefaultData!$D$90,DefaultData!$D$51*DefaultData!$D$86*DefaultData!$D$87),0) -> 0 | J195: =IF(H195<=DefaultData!$D$90,-PPMT(DefaultData!$D$89,H195,DefaultData!$D$90,DefaultData!$D$86*DefaultData!$D$51*DefaultData!$D$87),0) -> 0 | K195: 0 | M195: 21 | N195: =IF(M195<=DefaultData!$D$90,-ISPMT(DefaultData!$D$89,M195,DefaultData!$D$90,DefaultData!$D$51*DefaultData!$D$86*DefaultData!$D$88),0) -> 0 | O195: =IF(M195<=DefaultData!$D$90,-PPMT(DefaultData!$D$89,M195,DefaultData!$D$90,DefaultData!$D$86*DefaultData!$D$51*DefaultData!$D$88),0) -> 0 | P195: 0
C196: 22 | D196: =IF(C196<=DefaultData!D$82,-ISPMT(DefaultData!D$83,C196,DefaultData!D$82,DefaultData!D$51*DefaultData!D$81),0) -> 7.142638597 | E196: =IF(C196<=DefaultData!D$82,-PPMT(DefaultData!D$83,C196,DefaultData!D$82,DefaultData!D$81*DefaultData!D$51),0) -> 20.69557878 | F196: 27.83821738 | H196: 22 | I196: =IF(H196<=DefaultData!$D$90,-ISPMT(DefaultData!$D$89,H196,DefaultData!$D$90,DefaultData!$D$51*DefaultData!$D$86*DefaultData!$D$87),0) -> 0 | J196: =IF(H196<=DefaultData!$D$90,-PPMT(DefaultData!$D$89,H196,DefaultData!$D$90,DefaultData!$D$86*DefaultData!$D$51*DefaultData!$D$87),0) -> 0 | K196: 0 | M196: 22 | N196: =IF(M196<=DefaultData!$D$90,-ISPMT(DefaultData!$D$89,M196,DefaultData!$D$90,DefaultData!$D$51*DefaultData!$D$86*DefaultData!$D$88),0) -> 0 | O196: =IF(M196<=DefaultData!$D$90,-PPMT(DefaultData!$D$89,M196,DefaultData!$D$90,DefaultData!$D$86*DefaultData!$D$51*DefaultData!$D$88),0) -> 0 | P196: 0
C197: 23 | D197: =IF(C197<=DefaultData!D$82,-ISPMT(DefaultData!D$83,C197,DefaultData!D$82,DefaultData!D$51*DefaultData!D$81),0) -> 6.249808772 | E197: =IF(C197<=DefaultData!D$82,-PPMT(DefaultData!D$83,C197,DefaultData!D$82,DefaultData!D$81*DefaultData!D$51),0) -> 21.83383562 | F197: 28.08364439 | H197: 23 | I197: =IF(H197<=DefaultData!$D$90,-ISPMT(DefaultData!$D$89,H197,DefaultData!$D$90,DefaultData!$D$51*DefaultData!$D$86*DefaultData!$D$87),0) -> 0 | J197: =IF(H197<=DefaultData!$D$90,-PPMT(DefaultData!$D$89,H197,DefaultData!$D$90,DefaultData!$D$86*DefaultData!$D$51*DefaultData!$D$87),0) -> 0 | K197: 0 | M197: 23 | N197: =IF(M197<=DefaultData!$D$90,-ISPMT(DefaultData!$D$89,M197,DefaultData!$D$90,DefaultData!$D$51*DefaultData!$D$86*DefaultData!$D$88),0) -> 0 | O197: =IF(M197<=DefaultData!$D$90,-PPMT(DefaultData!$D$89,M197,DefaultData!$D$90,DefaultData!$D$86*DefaultData!$D$51*DefaultData!$D$88),0) -> 0 | P197: 0
C198: 24 | D198: =IF(C198<=DefaultData!D$82,-ISPMT(DefaultData!D$83,C198,DefaultData!D$82,DefaultData!D$51*DefaultData!D$81),0) -> 5.356978948 | E198: =IF(C198<=DefaultData!D$82,-PPMT(DefaultData!D$83,C198,DefaultData!D$82,DefaultData!D$81*DefaultData!D$51),0) -> 23.03469657 | F198: 28.39167552 | H198: 24 | I198: =IF(H198<=DefaultData!$D$90,-ISPMT(DefaultData!$D$89,H198,DefaultData!$D$90,DefaultData!$D$51*DefaultData!$D$86*DefaultData!$D$87),0) -> 0 | J198: =IF(H198<=DefaultData!$D$90,-PPMT(DefaultData!$D$89,H198,DefaultData!$D$90,DefaultData!$D$86*DefaultData!$D$51*DefaultData!$D$87),0) -> 0 | K198: 0 | M198: 24 | N198: =IF(M198<=DefaultData!$D$90,-ISPMT(DefaultData!$D$89,M198,DefaultData!$D$90,DefaultData!$D$51*DefaultData!$D$86*DefaultData!$D$88),0) -> 0 | O198: =IF(M198<=DefaultData!$D$90,-PPMT(DefaultData!$D$89,M198,DefaultData!$D$90,DefaultData!$D$86*DefaultData!$D$51*DefaultData!$D$88),0) -> 0 | P198: 0
C199: 25 | D199: =IF(C199<=DefaultData!D$82,-ISPMT(DefaultData!D$83,C199,DefaultData!D$82,DefaultData!D$51*DefaultData!D$81),0) -> 4.464149123 | E199: =IF(C199<=DefaultData!D$82,-PPMT(DefaultData!D$83,C199,DefaultData!D$82,DefaultData!D$81*DefaultData!D$51),0) -> 24.30160489 | F199: 28.76575401 | H199: 25 | I199: =IF(H199<=DefaultData!$D$90,-ISPMT(DefaultData!$D$89,H199,DefaultData!$D$90,DefaultData!$D$51*DefaultData!$D$86*DefaultData!$D$87),0) -> 0 | J199: =IF(H199<=DefaultData!$D$90,-PPMT(DefaultData!$D$89,H199,DefaultData!$D$90,DefaultData!$D$86*DefaultData!$D$51*DefaultData!$D$87),0) -> 0 | K199: 0 | M199: 25 | N199: =IF(M199<=DefaultData!$D$90,-ISPMT(DefaultData!$D$89,M199,DefaultData!$D$90,DefaultData!$D$51*DefaultData!$D$86*DefaultData!$D$88),0) -> 0 | O199: =IF(M199<=DefaultData!$D$90,-PPMT(DefaultData!$D$89,M199,DefaultData!$D$90,DefaultData!$D$86*DefaultData!$D$51*DefaultData!$D$88),0) -> 0 | P199: 0
C200: 26 | D200: =IF(C200<=DefaultData!D$82,-ISPMT(DefaultData!D$83,C200,DefaultData!D$82,DefaultData!D$51*DefaultData!D$81),0) -> 3.571319298 | E200: =IF(C200<=DefaultData!D$82,-PPMT(DefaultData!D$83,C200,DefaultData!D$82,DefaultData!D$81*DefaultData!D$51),0) -> 25.63819316 | F200: 29.20951245 | H200: 26 | I200: =IF(H200<=DefaultData!$D$90,-ISPMT(DefaultData!$D$89,H200,DefaultData!$D$90,DefaultData!$D$51*DefaultData!$D$86*DefaultData!$D$87),0) -> 0 | J200: =IF(H200<=DefaultData!$D$90,-PPMT(DefaultData!$D$89,H200,DefaultData!$D$90,DefaultData!$D$86*DefaultData!$D$51*DefaultData!$D$87),0) -> 0 | K200: 0 | M200: 26 | N200: =IF(M200<=DefaultData!$D$90,-ISPMT(DefaultData!$D$89,M200,DefaultData!$D$90,DefaultData!$D$51*DefaultData!$D$86*DefaultData!$D$88),0) -> 0 | O200: =IF(M200<=DefaultData!$D$90,-PPMT(DefaultData!$D$89,M200,DefaultData!$D$90,DefaultData!$D$86*DefaultData!$D$51*DefaultData!$D$88),0) -> 0 | P200: 0
C201: 27 | D201: =IF(C201<=DefaultData!D$82,-ISPMT(DefaultData!D$83,C201,DefaultData!D$82,DefaultData!D$51*DefaultData!D$81),0) -> 2.678489474 | E201: =IF(C201<=DefaultData!D$82,-PPMT(DefaultData!D$83,C201,DefaultData!D$82,DefaultData!D$81*DefaultData!D$51),0) -> 27.04829378 | F201: 29.72678325 | H201: 27 | I201: =IF(H201<=DefaultData!$D$90,-ISPMT(DefaultData!$D$89,H201,DefaultData!$D$90,DefaultData!$D$51*DefaultData!$D$86*DefaultData!$D$87),0) -> 0 | J201: =IF(H201<=DefaultData!$D$90,-PPMT(DefaultData!$D$89,H201,DefaultData!$D$90,DefaultData!$D$86*DefaultData!$D$51*DefaultData!$D$87),0) -> 0 | K201: 0 | M201: 27 | N201: =IF(M201<=DefaultData!$D$90,-ISPMT(DefaultData!$D$89,M201,DefaultData!$D$90,DefaultData!$D$51*DefaultData!$D$86*DefaultData!$D$88),0) -> 0 | O201: =IF(M201<=DefaultData!$D$90,-PPMT(DefaultData!$D$89,M201,DefaultData!$D$90,DefaultData!$D$86*DefaultData!$D$51*DefaultData!$D$88),0) -> 0 | P201: 0
C202: 28 | D202: =IF(C202<=DefaultData!D$82,-ISPMT(DefaultData!D$83,C202,DefaultData!D$82,DefaultData!D$51*DefaultData!D$81),0) -> 1.785659649 | E202: =IF(C202<=DefaultData!D$82,-PPMT(DefaultData!D$83,C202,DefaultData!D$82,DefaultData!D$81*DefaultData!D$51),0) -> 28.53594994 | F202: 30.32160959 | H202: 28 | I202: =IF(H202<=DefaultData!$D$90,-ISPMT(DefaultData!$D$89,H202,DefaultData!$D$90,DefaultData!$D$51*DefaultData!$D$86*DefaultData!$D$87),0) -> 0 | J202: =IF(H202<=DefaultData!$D$90,-PPMT(DefaultData!$D$89,H202,DefaultData!$D$90,DefaultData!$D$86*DefaultData!$D$51*DefaultData!$D$87),0) -> 0 | K202: 0 | M202: 28 | N202: =IF(M202<=DefaultData!$D$90,-ISPMT(DefaultData!$D$89,M202,DefaultData!$D$90,DefaultData!$D$51*DefaultData!$D$86*DefaultData!$D$88),0) -> 0 | O202: =IF(M202<=DefaultData!$D$90,-PPMT(DefaultData!$D$89,M202,DefaultData!$D$90,DefaultData!$D$86*DefaultData!$D$51*DefaultData!$D$88),0) -> 0 | P202: 0
C203: 29 | D203: =IF(C203<=DefaultData!D$82,-ISPMT(DefaultData!D$83,C203,DefaultData!D$82,DefaultData!D$51*DefaultData!D$81),0) -> 0.8928298246 | E203: =IF(C203<=DefaultData!D$82,-PPMT(DefaultData!D$83,C203,DefaultData!D$82,DefaultData!D$81*DefaultData!D$51),0) -> 30.10542718 | F203: 30.99825701 | H203: 29 | I203: =IF(H203<=DefaultData!$D$90,-ISPMT(DefaultData!$D$89,H203,DefaultData!$D$90,DefaultData!$D$51*DefaultData!$D$86*DefaultData!$D$87),0) -> 0 | J203: =IF(H203<=DefaultData!$D$90,-PPMT(DefaultData!$D$89,H203,DefaultData!$D$90,DefaultData!$D$86*DefaultData!$D$51*DefaultData!$D$87),0) -> 0 | K203: 0 | M203: 29 | N203: =IF(M203<=DefaultData!$D$90,-ISPMT(DefaultData!$D$89,M203,DefaultData!$D$90,DefaultData!$D$51*DefaultData!$D$86*DefaultData!$D$88),0) -> 0 | O203: =IF(M203<=DefaultData!$D$90,-PPMT(DefaultData!$D$89,M203,DefaultData!$D$90,DefaultData!$D$86*DefaultData!$D$51*DefaultData!$D$88),0) -> 0 | P203: 0
C204: 30 | D204: =IF(C204<=DefaultData!D$82,-ISPMT(DefaultData!D$83,C204,DefaultData!D$82,DefaultData!D$51*DefaultData!D$81),0) -> 0 | E204: =IF(C204<=DefaultData!D$82,-PPMT(DefaultData!D$83,C204,DefaultData!D$82,DefaultData!D$81*DefaultData!D$51),0) -> 31.76122568 | F204: 31.76122568 | H204: 30 | I204: =IF(H204<=DefaultData!$D$90,-ISPMT(DefaultData!$D$89,H204,DefaultData!$D$90,DefaultData!$D$51*DefaultData!$D$86*DefaultData!$D$87),0) -> 0 | J204: =IF(H204<=DefaultData!$D$90,-PPMT(DefaultData!$D$89,H204,DefaultData!$D$90,DefaultData!$D$86*DefaultData!$D$51*DefaultData!$D$87),0) -> 0 | K204: 0 | M204: 30 | N204: =IF(M204<=DefaultData!$D$90,-ISPMT(DefaultData!$D$89,M204,DefaultData!$D$90,DefaultData!$D$51*DefaultData!$D$86*DefaultData!$D$88),0) -> 0 | O204: =IF(M204<=DefaultData!$D$90,-PPMT(DefaultData!$D$89,M204,DefaultData!$D$90,DefaultData!$D$86*DefaultData!$D$51*DefaultData!$D$88),0) -> 0 | P204: 0
C205: Total | D205: =SUM(D175:D204) -> 388.3809737 | E205: =SUM(E175:E204) -> 486.9980861 | F205: 875.3790599 | H205: Total | I205: =SUM(I175:I204) -> 0 | J205: =SUM(J175:J204) -> 0 | K205: 0 | M205: Total | N205: =SUM(N175:N204) -> 93.92105947 | O205: =SUM(O175:O204) -> 208.7134655 | P205: 302.634525
C206: AvgAnn | D206: =D205/DefaultData!$D82 -> 12.94603246 | E206: =E205/DefaultData!$D82 -> 16.23326954 | F206: 29.179302 | H206: AvgAnn | I206: =I205/DefaultData!$D90 -> 0 | J206: =J205/DefaultData!$D90 -> 0 | K206: 0 | M206: AvgAnn | N206: =N205/DefaultData!$D90 -> 9.392105947 | O206: =O205/DefaultData!$D90 -> 20.87134655 | P206: 30.2634525
C208: User Modified (from Project Data worksheet - based on loan parameters) | H208: User Modified (from Project Data worksheet - based on equity investment parameters) | M208: User Modified (from Project Data worksheet - based on equity investment parameters)
C209: Loan Repayment Schedule | H209: Equity - Individual Investment Repayment Schedule | M209: Equity - Corporate Investment Repayment Schedule
D210: Interest Pmt | E210: Principal Pmt | F210: Total Pmt | I210: Interest Pmt | J210: Principal Pmt | K210: Total Pmt | N210: Interest Pmt | O210: Principal Pmt | P210: Total Pmt
C211: 1 | D211: =IF(C211<=ProjectData!B$103,-ISPMT(ProjectData!B$104,C211,ProjectData!B$103,ProjectData!B$102*ProjectData!B$77),0) -> 25.44565 | E211: =IF(C211<=ProjectData!B$103,-PPMT(ProjectData!B$104,C211,ProjectData!B$103,ProjectData!B$77*ProjectData!B$102),0) -> 13.96677884 | F211: =E211+D211 -> 39.41242884 | H211: 1 | I211: =IF(H211<=ProjectData!B$110,-ISPMT(ProjectData!B$109,H211,ProjectData!B$110,ProjectData!B$77*ProjectData!B$106*ProjectData!B$107),0) -> 0 | J211: =IF(H211<=ProjectData!B$110,-PPMT(ProjectData!B$109,H211,ProjectData!B$110,ProjectData!B$106*ProjectData!B$77*ProjectData!B$107),0) -> 0 | K211: =J211+I211 -> 0 | M211: 1 | N211: =IF(M211<=ProjectData!$B$110,-ISPMT(ProjectData!$B$109,M211,ProjectData!$B$110,ProjectData!$B$77*ProjectData!$B$106*ProjectData!$B$108),0) -> 18.78421189 | O211: =IF(M211<=ProjectData!$B$110,-PPMT(ProjectData!$B$109,M211,ProjectData!$B$110,ProjectData!$B$106*ProjectData!$B$77*ProjectData!$B$108),0) -> 13.09580881 | P211: =O211+N211 -> 31.8800207
C212: 2 | D212: =IF(C212<=ProjectData!B$103,-ISPMT(ProjectData!B$104,C212,ProjectData!B$103,ProjectData!B$102*ProjectData!B$77),0) -> 24.10640526 | E212: =IF(C212<=ProjectData!B$103,-PPMT(ProjectData!B$104,C212,ProjectData!B$103,ProjectData!B$77*ProjectData!B$102),0) -> 14.73495168 | F212: 38.84135694 | H212: 2 | I212: =IF(H212<=ProjectData!B$110,-ISPMT(ProjectData!B$109,H212,ProjectData!B$110,ProjectData!B$77*ProjectData!B$106*ProjectData!B$107),0) -> 0 | J212: =IF(H212<=ProjectData!B$110,-PPMT(ProjectData!B$109,H212,ProjectData!B$110,ProjectData!B$106*ProjectData!B$77*ProjectData!B$107),0) -> 0 | K212: 0 | M212: 2 | N212: =IF(M212<=ProjectData!$B$110,-ISPMT(ProjectData!$B$109,M212,ProjectData!$B$110,ProjectData!$B$77*ProjectData!$B$106*ProjectData!$B$108),0) -> 16.69707724 | O212: =IF(M212<=ProjectData!$B$110,-PPMT(ProjectData!$B$109,M212,ProjectData!$B$110,ProjectData!$B$106*ProjectData!$B$77*ProjectData!$B$108),0) -> 14.40538969 | P212: 31.10246693
C213: 3 | D213: =IF(C213<=ProjectData!B$103,-ISPMT(ProjectData!B$104,C213,ProjectData!B$103,ProjectData!B$102*ProjectData!B$77),0) -> 22.76716053 | E213: =IF(C213<=ProjectData!B$103,-PPMT(ProjectData!B$104,C213,ProjectData!B$103,ProjectData!B$77*ProjectData!B$102),0) -> 15.54537402 | F213: 38.31253454 | H213: 3 | I213: =IF(H213<=ProjectData!B$110,-ISPMT(ProjectData!B$109,H213,ProjectData!B$110,ProjectData!B$77*ProjectData!B$106*ProjectData!B$107),0) -> 0 | J213: =IF(H213<=ProjectData!B$110,-PPMT(ProjectData!B$109,H213,ProjectData!B$110,ProjectData!B$106*ProjectData!B$77*ProjectData!B$107),0) -> 0 | K213: 0 | M213: 3 | N213: =IF(M213<=ProjectData!$B$110,-ISPMT(ProjectData!$B$109,M213,ProjectData!$B$110,ProjectData!$B$77*ProjectData!$B$106*ProjectData!$B$108),0) -> 14.60994258 | O213: =IF(M213<=ProjectData!$B$110,-PPMT(ProjectData!$B$109,M213,ProjectData!$B$110,ProjectData!$B$106*ProjectData!$B$77*ProjectData!$B$108),0) -> 15.84592866 | P213: 30.45587124
... 34 more rows

Sheet Local Share
D1: Local Share Values
C2: 1 | F2: Alabama | G2: Alaska | H2: Arizona | I2: Arkansas | J2: California | K2: Colorado | L2: Connecticut | M2: Delaware | N2: District of Columbia | O2: Florida | P2: Georgia | Q2: Hawaii | R2: Idaho | S2: Illinois | T2: Indiana | U2: Iowa | V2: Kansas | W2: Kentucky | X2: Louisiana | Y2: Maine | Z2: Maryland | AA2: Massachusetts | AB2: Michigan | AC2: Minnesota | AD2: Mississippi | AE2: Missouri | AF2: Montana | AG2: MyCounty | AH2: MyRegion | AI2: Nebraska | AJ2: Nevada | AK2: New Hampshire | AL2: New Jersey | AM2: New Mexico | AN2: New York | AO2: North Carolina | AP2: North Dakota | AQ2: Ohio | AR2: Oklahoma | AS2: Oregon | AT2: Pennsylvania | AU2: Rhode Island | AV2: South Carolina | AW2: South Dakota | AX2: Tennessee | AY2: Texas | AZ2: United States | BA2: Utah | BB2: Vermont | BC2: Virginia | BD2: Washington | BE2: West Virginia | BF2: Wisconsin | BG2: Wyoming
C3: =C2+1 -> 2 | D3: Process Units
C4: =C3+1 -> 3 | D4: =DefaultData!C17 -> Atmospheric Distillation | E4: =HLOOKUP(ProjectData!B$16,F$2:BG$55,C4) -> 0 | F4: 0 | G4: 0 | H4: 0 | I4: 0 | J4: 0 | K4: 0 | L4: 0 | M4: 0 | N4: 0 | O4: 0 | P4: 0 | Q4: 0 | R4: 0 | S4: 0 | T4: 0 | U4: 0 | V4: 0 | W4: 0 | X4: 0 | Y4: 0 | Z4: 0 | AA4: 0 | AB4: 0 | AC4: 0 | AD4: 0 | AE4: 0 | AF4: 0 | AG4: 0 | AH4: 0 | AI4: 0 | AJ4: 0 | AK4: 0 | AL4: 0 | AM4: 0 | AN4: 0 | AO4: 0 | AP4: 0 | AQ4: 0 | AR4: 0 | AS4: 0 | AT4: 0 | AU4: 0 | AV4: 0 | AW4: 0 | AX4: 0 | AY4: 0 | AZ4: 0 | BA4: 0 | BB4: 0 | BC4: 0 | BD4: 0 | BE4: 0 | BF4: 0 | BG4: 0 | BH4: =COUNTIF(F4:BG4,">0") -> 0
A5: Warning | C5: 4 | D5: =DefaultData!C18 -> Catalytic Reforming | E5: =HLOOKUP(ProjectData!B$16,F$2:BG$55,C5) -> 0 | F5: 0 | G5: 0 | H5: 0 | I5: 0 | J5: 0 | K5: 0 | L5: 0 | M5: 0 | N5: 0 | O5: 0 | P5: 0 | Q5: 0 | R5: 0 | S5: 0 | T5: 0 | U5: 0 | V5: 0 | W5: 0 | X5: 0 | Y5: 0 | Z5: 0 | AA5: 0 | AB5: 0 | AC5: 0 | AD5: 0 | AE5: 0 | AF5: 0 | AG5: 0 | AH5: 0 | AI5: 0 | AJ5: 0 | AK5: 0 | AL5: 0 | AM5: 0 | AN5: 0 | AO5: 0 | AP5: 0 | AQ5: 0 | AR5: 0 | AS5: 0 | AT5: 0 | AU5: 0 | AV5: 0 | AW5: 0 | AX5: 0 | AY5: 0 | AZ5: 0 | BA5: 0 | BB5: 0 | BC5: 0 | BD5: 0 | BE5: 0 | BF5: 0 | BG5: 0 | BH5: =COUNTIF(F5:BG5,">0") -> 0
C6: 5 | D6: =DefaultData!C19 -> Catalytic Hydrotreatment | E6: =HLOOKUP(ProjectData!B$16,F$2:BG$55,C6) -> 0 | F6: 0 | G6: 0 | H6: 0 | I6: 0 | J6: 0 | K6: 0 | L6: 0 | M6: 0 | N6: 0 | O6: 0 | P6: 0 | Q6: 0 | R6: 0 | S6: 0 | T6: 0 | U6: 0 | V6: 0 | W6: 0 | X6: 0 | Y6: 0 | Z6: 0 | AA6: 0 | AB6: 0 | AC6: 0 | AD6: 0 | AE6: 0 | AF6: 0 | AG6: 0 | AH6: 0 | AI6: 0 | AJ6: 0 | AK6: 0 | AL6: 0 | AM6: 0 | AN6: 0 | AO6: 0 | AP6: 0 | AQ6: 0 | AR6: 0 | AS6: 0 | AT6: 0 | AU6: 0 | AV6: 0 | AW6: 0 | AX6: 0 | AY6: 0 | AZ6: 0 | BA6: 0 | BB6: 0 | BC6: 0 | BD6: 0 | BE6: 0 | BF6: 0 | BG6: 0 | BH6: =COUNTIF(F6:BG6,">0") -> 0
A7: This Worksheet contains Data and Formulas that are an integral part of the JEDI model. | C7: 6 | D7: =DefaultData!C20 -> FCC, visbreaker and associated plant | E7: =HLOOKUP(ProjectData!B$16,F$2:BG$55,C7) -> 0 | F7: 0 | G7: 0 | H7: 0 | I7: 0 | J7: 0 | K7: 0 | L7: 0 | M7: 0 | N7: 0 | O7: 0 | P7: 0 | Q7: 0 | R7: 0 | S7: 0 | T7: 0 | U7: 0 | V7: 0 | W7: 0 | X7: 0 | Y7: 0 | Z7: 0 | AA7: 0 | AB7: 0 | AC7: 0 | AD7: 0 | AE7: 0 | AF7: 0 | AG7: 0 | AH7: 0 | AI7: 0 | AJ7: 0 | AK7: 0 | AL7: 0 | AM7: 0 | AN7: 0 | AO7: 0 | AP7: 0 | AQ7: 0 | AR7: 0 | AS7: 0 | AT7: 0 | AU7: 0 | AV7: 0 | AW7: 0 | AX7: 0 | AY7: 0 | AZ7: 0 | BA7: 0 | BB7: 0 | BC7: 0 | BD7: 0 | BE7: 0 | BF7: 0 | BG7: 0 | BH7: =COUNTIF(F7:BG7,">0") -> 0
C8: 7 | D8: =DefaultData!C21 -> Vacuum distillation for FCC | E8: =HLOOKUP(ProjectData!B$16,F$2:BG$55,C8) -> 0 | F8: 0 | G8: 0 | H8: 0 | I8: 0 | J8: 0 | K8: 0 | L8: 0 | M8: 0 | N8: 0 | O8: 0 | P8: 0 | Q8: 0 | R8: 0 | S8: 0 | T8: 0 | U8: 0 | V8: 0 | W8: 0 | X8: 0 | Y8: 0 | Z8: 0 | AA8: 0 | AB8: 0 | AC8: 0 | AD8: 0 | AE8: 0 | AF8: 0 | AG8: 0 | AH8: 0 | AI8: 0 | AJ8: 0 | AK8: 0 | AL8: 0 | AM8: 0 | AN8: 0 | AO8: 0 | AP8: 0 | AQ8: 0 | AR8: 0 | AS8: 0 | AT8: 0 | AU8: 0 | AV8: 0 | AW8: 0 | AX8: 0 | AY8: 0 | AZ8: 0 | BA8: 0 | BB8: 0 | BC8: 0 | BD8: 0 | BE8: 0 | BF8: 0 | BG8: 0 | BH8: =COUNTIF(F8:BG8,">0") -> 0
A9: Although the data and formulas are available for review they must not be changed. | C9: 8 | D9: =DefaultData!C22 -> Deep Conversion units | E9: =HLOOKUP(ProjectData!B$16,F$2:BG$55,C9) -> 0 | F9: 0 | G9: 0 | H9: 0 | I9: 0 | J9: 0 | K9: 0 | L9: 0 | M9: 0 | N9: 0 | O9: 0 | P9: 0 | Q9: 0 | R9: 0 | S9: 0 | T9: 0 | U9: 0 | V9: 0 | W9: 0 | X9: 0 | Y9: 0 | Z9: 0 | AA9: 0 | AB9: 0 | AC9: 0 | AD9: 0 | AE9: 0 | AF9: 0 | AG9: 0 | AH9: 0 | AI9: 0 | AJ9: 0 | AK9: 0 | AL9: 0 | AM9: 0 | AN9: 0 | AO9: 0 | AP9: 0 | AQ9: 0 | AR9: 0 | AS9: 0 | AT9: 0 | AU9: 0 | AV9: 0 | AW9: 0 | AX9: 0 | AY9: 0 | AZ9: 0 | BA9: 0 | BB9: 0 | BC9: 0 | BD9: 0 | BE9: 0 | BF9: 0 | BG9: 0 | BH9: =COUNTIF(F9:BG9,">0") -> 0
C10: 9 | D10: =DefaultData!C23 -> Other units | E10: =HLOOKUP(ProjectData!B$16,F$2:BG$55,C10) -> 0 | F10: 0 | G10: 0 | H10: 0 | I10: 0 | J10: 0 | K10: 0 | L10: 0 | M10: 0 | N10: 0 | O10: 0 | P10: 0 | Q10: 0 | R10: 0 | S10: 0 | T10: 0 | U10: 0 | V10: 0 | W10: 0 | X10: 0 | Y10: 0 | Z10: 0 | AA10: 0 | AB10: 0 | AC10: 0 | AD10: 0 | AE10: 0 | AF10: 0 | AG10: 0 | AH10: 0 | AI10: 0 | AJ10: 0 | AK10: 0 | AL10: 0 | AM10: 0 | AN10: 0 | AO10: 0 | AP10: 0 | AQ10: 0 | AR10: 0 | AS10: 0 | AT10: 0 | AU10: 0 | AV10: 0 | AW10: 0 | AX10: 0 | AY10: 0 | AZ10: 0 | BA10: 0 | BB10: 0 | BC10: 0 | BD10: 0 | BE10: 0 | BF10: 0 | BG10: 0 | BH10: 0
A11: Any changes to the data or formulas will impact the analysis and may invalidate the model results. | C11: 10
C12: 11 | D12: =DefaultData!C25 -> Utilities
C13: 12 | D13: =DefaultData!C26 -> Steam and/or electricity production | E13: =HLOOKUP(ProjectData!B$16,F$2:BG$55,C13) -> 0 | F13: 0 | G13: 0 | H13: 0 | I13: 0 | J13: 0 | K13: 0 | L13: 0 | M13: 0 | N13: 0 | O13: 0 | P13: 0 | Q13: 0 | R13: 0 | S13: 0 | T13: 0 | U13: 0 | V13: 0 | W13: 0 | X13: 0 | Y13: 0 | Z13: 0 | AA13: 0 | AB13: 0 | AC13: 0 | AD13: 0 | AE13: 0 | AF13: 0 | AG13: 0 | AH13: 0 | AI13: 0 | AJ13: 0 | AK13: 0 | AL13: 0 | AM13: 0 | AN13: 0 | AO13: 0 | AP13: 0 | AQ13: 0 | AR13: 0 | AS13: 0 | AT13: 0 | AU13: 0 | AV13: 0 | AW13: 0 | AX13: 0 | AY13: 0 | AZ13: 0 | BA13: 0 | BB13: 0 | BC13: 0 | BD13: 0 | BE13: 0 | BF13: 0 | BG13: 0 | BH13: 0
C14: 13 | D14: =DefaultData!C27 -> Steam and utilities distribution | E14: =HLOOKUP(ProjectData!B$16,F$2:BG$55,C14) -> 0 | F14: 0 | G14: 0 | H14: 0 | I14: 0 | J14: 0 | K14: 0 | L14: 0 | M14: 0 | N14: 0 | O14: 0 | P14: 0 | Q14: 0 | R14: 0 | S14: 0 | T14: 0 | U14: 0 | V14: 0 | W14: 0 | X14: 0 | Y14: 0 | Z14: 0 | AA14: 0 | AB14: 0 | AC14: 0 | AD14: 0 | AE14: 0 | AF14: 0 | AG14: 0 | AH14: 0 | AI14: 0 | AJ14: 0 | AK14: 0 | AL14: 0 | AM14: 0 | AN14: 0 | AO14: 0 | AP14: 0 | AQ14: 0 | AR14: 0 | AS14: 0 | AT14: 0 | AU14: 0 | AV14: 0 | AW14: 0 | AX14: 0 | AY14: 0 | AZ14: 0 | BA14: 0 | BB14: 0 | BC14: 0 | BD14: 0 | BE14: 0 | BF14: 0 | BG14: 0 | BH14: 0
C15: 14 | D15: =DefaultData!C28 -> Production and/or distribution of other utilities | E15: =HLOOKUP(ProjectData!B$16,F$2:BG$55,C15) -> 0 | F15: 0 | G15: 0 | H15: 0 | I15: 0 | J15: 0 | K15: 0 | L15: 0 | M15: 0 | N15: 0 | O15: 0 | P15: 0 | Q15: 0 | R15: 0 | S15: 0 | T15: 0 | U15: 0 | V15: 0 | W15: 0 | X15: 0 | Y15: 0 | Z15: 0 | AA15: 0 | AB15: 0 | AC15: 0 | AD15: 0 | AE15: 0 | AF15: 0 | AG15: 0 | AH15: 0 | AI15: 0 | AJ15: 0 | AK15: 0 | AL15: 0 | AM15: 0 | AN15: 0 | AO15: 0 | AP15: 0 | AQ15: 0 | AR15: 0 | AS15: 0 | AT15: 0 | AU15: 0 | AV15: 0 | AW15: 0 | AX15: 0 | AY15: 0 | AZ15: 0 | BA15: 0 | BB15: 0 | BC15: 0 | BD15: 0 | BE15: 0 | BF15: 0 | BG15: 0 | BH15: 0
C16: 15 | D16: =DefaultData!C29 -> Cooling Water system | E16: =HLOOKUP(ProjectData!B$16,F$2:BG$55,C16) -> 0 | F16: 0 | G16: 0 | H16: 0 | I16: 0 | J16: 0 | K16: 0 | L16: 0 | M16: 0 | N16: 0 | O16: 0 | P16: 0 | Q16: 0 | R16: 0 | S16: 0 | T16: 0 | U16: 0 | V16: 0 | W16: 0 | X16: 0 | Y16: 0 | Z16: 0 | AA16: 0 | AB16: 0 | AC16: 0 | AD16: 0 | AE16: 0 | AF16: 0 | AG16: 0 | AH16: 0 | AI16: 0 | AJ16: 0 | AK16: 0 | AL16: 0 | AM16: 0 | AN16: 0 | AO16: 0 | AP16: 0 | AQ16: 0 | AR16: 0 | AS16: 0 | AT16: 0 | AU16: 0 | AV16: 0 | AW16: 0 | AX16: 0 | AY16: 0 | AZ16: 0 | BA16: 0 | BB16: 0 | BC16: 0 | BD16: 0 | BE16: 0 | BF16: 0 | BG16: 0 | BH16: =COUNTIF(F16:BG16,">0") -> 0
C17: 16
A18: To view the data and formulas simply scroll over to the adjacent columns to the right. | C18: 17 | D18: =DefaultData!C31 -> Security and Environmental Installations
C19: 18 | D19: =DefaultData!C32 -> Fire fighting system | E19: =HLOOKUP(ProjectData!B$16,F$2:BG$55,C19) -> 0 | F19: 0 | G19: 0 | H19: 0 | I19: 0 | J19: 0 | K19: 0 | L19: 0 | M19: 0 | N19: 0 | O19: 0 | P19: 0 | Q19: 0 | R19: 0 | S19: 0 | T19: 0 | U19: 0 | V19: 0 | W19: 0 | X19: 0 | Y19: 0 | Z19: 0 | AA19: 0 | AB19: 0 | AC19: 0 | AD19: 0 | AE19: 0 | AF19: 0 | AG19: 0 | AH19: 0 | AI19: 0 | AJ19: 0 | AK19: 0 | AL19: 0 | AM19: 0 | AN19: 0 | AO19: 0 | AP19: 0 | AQ19: 0 | AR19: 0 | AS19: 0 | AT19: 0 | AU19: 0 | AV19: 0 | AW19: 0 | AX19: 0 | AY19: 0 | AZ19: 1 | BA19: 0 | BB19: 0 | BC19: 0 | BD19: 0 | BE19: 0 | BF19: 0 | BG19: 0 | BH19: =COUNTIF(F19:BG19,">0") -> 1
C20: 19 | D20: =DefaultData!C33 -> Flare and liquid effluent treatment systems | E20: =HLOOKUP(ProjectData!B$16,F$2:BG$55,C20) -> 0 | F20: 0 | G20: 0 | H20: 0 | I20: 0 | J20: 0 | K20: 0 | L20: 0 | M20: 0 | N20: 0 | O20: 0 | P20: 0 | Q20: 0 | R20: 0 | S20: 0 | T20: 0 | U20: 0 | V20: 0 | W20: 0 | X20: 0 | Y20: 0 | Z20: 0 | AA20: 0 | AB20: 0 | AC20: 0 | AD20: 0 | AE20: 0 | AF20: 0 | AG20: 0 | AH20: 0 | AI20: 0 | AJ20: 0 | AK20: 0 | AL20: 0 | AM20: 0 | AN20: 0 | AO20: 0 | AP20: 0 | AQ20: 0 | AR20: 0 | AS20: 0 | AT20: 0 | AU20: 0 | AV20: 0 | AW20: 0 | AX20: 0 | AY20: 0 | AZ20: 1 | BA20: 0 | BB20: 0 | BC20: 0 | BD20: 0 | BE20: 0 | BF20: 0 | BG20: 0 | BH20: 1
C21: 20
C22: 21 | D22: =DefaultData!C35 -> Storage and Dispatch
C23: 22 | D23: =DefaultData!C36 -> Storage of liquid products and LPG (if applicable) | E23: =HLOOKUP(ProjectData!B$16,F$2:BG$55,C23) -> 0.75 | F23: 0.75 | G23: 0.75 | H23: 0.75 | I23: 0.75 | J23: 0.75 | K23: 0.75 | L23: 0.75 | M23: 0.75 | N23: 0.25 | O23: 0.75 | P23: 0.75 | Q23: 0.75 | R23: 0.75 | S23: 0.75 | T23: 0.75 | U23: 0.75 | V23: 0.75 | W23: 0.75 | X23: 0.75 | Y23: 0.75 | Z23: 0.75 | AA23: 0.75 | AB23: 0.75 | AC23: 0.75 | AD23: 0.75 | AE23: 0.75 | AF23: 0.75 | AG23: 0.75 | AH23: 0.75 | AI23: 0.75 | AJ23: 0.75 | AK23: 0.75 | AL23: 0.75 | AM23: 0.75 | AN23: 0.75 | AO23: 0.75 | AP23: 0.75 | AQ23: 0.75 | AR23: 0.75 | AS23: 0.75 | AT23: 0.75 | AU23: 0.75 | AV23: 0.75 | AW23: 0.75 | AX23: 0.75 | AY23: 0.75 | AZ23: 1 | BA23: 0.75 | BB23: 0.75 | BC23: 0.75 | BD23: 0.75 | BE23: 0.75 | BF23: 0.75 | BG23: 0.75 | BH23: 54
C24: 23
C25: 24 | D25: =DefaultData!C38 -> Infrastructure
C26: 25 | D26: =DefaultData!C39 -> Site prep, roads, general infrastructure | E26: =HLOOKUP(ProjectData!B$16,F$2:BG$55,C26) -> 1 | F26: 1 | G26: 1 | H26: 1 | I26: 1 | J26: 1 | K26: 1 | L26: 1 | M26: 1 | N26: 1 | O26: 1 | P26: 1 | Q26: 1 | R26: 1 | S26: 1 | T26: 1 | U26: 1 | V26: 1 | W26: 1 | X26: 1 | Y26: 1 | Z26: 1 | AA26: 1 | AB26: 1 | AC26: 1 | AD26: 1 | AE26: 1 | AF26: 1 | AG26: 1 | AH26: 1 | AI26: 1 | AJ26: 1 | AK26: 1 | AL26: 1 | AM26: 1 | AN26: 1 | AO26: 1 | AP26: 1 | AQ26: 1 | AR26: 1 | AS26: 1 | AT26: 1 | AU26: 1 | AV26: 1 | AW26: 1 | AX26: 1 | AY26: 1 | AZ26: 1 | BA26: 1 | BB26: 1 | BC26: 1 | BD26: 1 | BE26: 1 | BF26: 1 | BG26: 1 | BH26: 54
C27: 26 | D27: =DefaultData!C40 -> Buildings | E27: =HLOOKUP(ProjectData!B$16,F$2:BG$55,C27) -> 1 | F27: 1 | G27: 1 | H27: 1 | I27: 1 | J27: 1 | K27: 1 | L27: 1 | M27: 1 | N27: 1 | O27: 1 | P27: 1 | Q27: 1 | R27: 1 | S27: 1 | T27: 1 | U27: 1 | V27: 1 | W27: 1 | X27: 1 | Y27: 1 | Z27: 1 | AA27: 1 | AB27: 1 | AC27: 1 | AD27: 1 | AE27: 1 | AF27: 1 | AG27: 1 | AH27: 1 | AI27: 1 | AJ27: 1 | AK27: 1 | AL27: 1 | AM27: 1 | AN27: 1 | AO27: 1 | AP27: 1 | AQ27: 1 | AR27: 1 | AS27: 1 | AT27: 1 | AU27: 1 | AV27: 1 | AW27: 1 | AX27: 1 | AY27: 1 | AZ27: 1 | BA27: 1 | BB27: 1 | BC27: 1 | BD27: 1 | BE27: 1 | BF27: 1 | BG27: 1 | BH27: 54
C28: 27
C29: 28 | D29: =DefaultData!C42 -> Labor
C30: 29 | D30: =DefaultData!C43 -> All construction | E30: =HLOOKUP(ProjectData!B$16,F$2:BG$55,C30) -> 0.5 | F30: 0.5 | G30: 0.9 | H30: 0.5 | I30: 0.5 | J30: 0.9 | K30: 0.5 | L30: 0.5 | M30: 0.5 | N30: 0.25 | O30: 0.5 | P30: 0.5 | Q30: 0.5 | R30: 0.5 | S30: 0.5 | T30: 0.5 | U30: 0.5 | V30: 0.5 | W30: 0.5 | X30: 0.9 | Y30: 0.5 | Z30: 0.5 | AA30: 0.5 | AB30: 0.5 | AC30: 0.5 | AD30: 0.5 | AE30: 0.5 | AF30: 0.5 | AG30: 0.5 | AH30: 0.5 | AI30: 0.5 | AJ30: 0.5 | AK30: 0.5 | AL30: 0.5 | AM30: 0.75 | AN30: 0.5 | AO30: 0.5 | AP30: 0.75 | AQ30: 0.5 | AR30: 0.5 | AS30: 0.5 | AT30: 0.5 | AU30: 0.5 | AV30: 0.5 | AW30: 0.5 | AX30: 0.5 | AY30: 0.9 | AZ30: 1 | BA30: 0.5 | BB30: 0.5 | BC30: 0.5 | BD30: 0.5 | BE30: 0.5 | BF30: 0.5 | BG30: 0.5 | BH30: =COUNTIF(F30:BG30,">0") -> 54
C31: 30 | D31: =DefaultData!C44 -> Common | E31: =HLOOKUP(ProjectData!B$16,F$2:BG$55,C31) -> 1 | F31: 1 | G31: 1 | H31: 1 | I31: 1 | J31: 1 | K31: 1 | L31: 1 | M31: 1 | N31: 1 | O31: 1 | P31: 1 | Q31: 1 | R31: 1 | S31: 1 | T31: 1 | U31: 1 | V31: 1 | W31: 1 | X31: 1 | Y31: 1 | Z31: 1 | AA31: 1 | AB31: 1 | AC31: 1 | AD31: 1 | AE31: 1 | AF31: 1 | AG31: 1 | AH31: 1 | AI31: 1 | AJ31: 1 | AK31: 1 | AL31: 1 | AM31: 1 | AN31: 1 | AO31: 1 | AP31: 1 | AQ31: 1 | AR31: 0.75 | AS31: 1 | AT31: 1 | AU31: 1 | AV31: 1 | AW31: 1 | AX31: 1 | AY31: 1 | BA31: 1 | BB31: 1 | BC31: 1 | BD31: 1 | BE31: 1 | BF31: 1 | BG31: 1 | BH31: 53
C32: 31
C33: 32 | D33: =DefaultData!C46 -> Other Costs
C34: 33 | D34: =DefaultData!C47 -> Engineering/Design Services | E34: =HLOOKUP(ProjectData!B$16,F$2:BG$55,C34) -> 0 | F34: 0 | G34: 1 | H34: 0 | I34: 0 | J34: 1 | K34: 0 | L34: 0 | M34: 0 | N34: 0 | O34: 0 | P34: 0 | Q34: 0 | R34: 0 | S34: 0 | T34: 0 | U34: 0 | V34: 0 | W34: 0 | X34: 1 | Y34: 0 | Z34: 0 | AA34: 0 | AB34: 0 | AC34: 0 | AD34: 0 | AE34: 0 | AF34: 0 | AG34: 0 | AH34: 0 | AI34: 0 | AJ34: 0 | AK34: 0 | AL34: 0 | AM34: 0 | AN34: 0 | AO34: 0 | AP34: 0 | AQ34: 0 | AR34: 0 | AS34: 0 | AT34: 0 | AU34: 0 | AV34: 0 | AW34: 0 | AX34: 0 | AY34: 1 | AZ34: 1 | BA34: 0 | BB34: 0 | BC34: 0 | BD34: 0 | BE34: 0 | BF34: 0 | BG34: 0 | BH34: =COUNTIF(F34:BG34,">0") -> 5
C35: 34 | D35: =DefaultData!C48 -> Construction Services | E35: =HLOOKUP(ProjectData!B$16,F$2:BG$55,C35) -> 0 | F35: 0 | G35: 1 | H35: 0 | I35: 0 | J35: 1 | K35: 0 | L35: 0 | M35: 0 | N35: 0 | O35: 0 | P35: 0 | Q35: 0 | R35: 0 | S35: 0 | T35: 0 | U35: 0 | V35: 0 | W35: 0 | X35: 1 | Y35: 0 | Z35: 0 | AA35: 0 | AB35: 0 | AC35: 0 | AD35: 0 | AE35: 0 | AF35: 0 | AG35: 0 | AH35: 0 | AI35: 0 | AJ35: 0 | AK35: 0 | AL35: 0 | AM35: 0 | AN35: 0 | AO35: 0 | AP35: 0 | AQ35: 0 | AR35: 0 | AS35: 0 | AT35: 0 | AU35: 0 | AV35: 0 | AW35: 0 | AX35: 0 | AY35: 1 | AZ35: 1 | BA35: 0 | BB35: 0 | BC35: 0 | BD35: 0 | BE35: 0 | BF35: 0 | BG35: 0 | BH35: =COUNTIF(F35:BG35,">0") -> 5
C36: 35 | D36: =DefaultData!C49 -> Project Management | E36: =HLOOKUP(ProjectData!B$16,F$2:BG$55,C36) -> 0 | F36: 0 | G36: 1 | H36: 0 | I36: 0 | J36: 1 | K36: 0 | L36: 0 | M36: 0 | N36: 0 | O36: 0 | P36: 0 | Q36: 0 | R36: 0 | S36: 0 | T36: 0 | U36: 0 | V36: 0 | W36: 0 | X36: 1 | Y36: 0 | Z36: 0 | AA36: 0 | AB36: 0 | AC36: 0 | AD36: 0 | AE36: 0 | AF36: 0 | AG36: 0 | AH36: 0 | AI36: 0 | AJ36: 0 | AK36: 0 | AL36: 0 | AM36: 0 | AN36: 0 | AO36: 0 | AP36: 0 | AQ36: 0 | AR36: 0 | AS36: 0 | AT36: 0 | AU36: 0 | AV36: 0 | AW36: 0 | AX36: 0 | AY36: 1 | AZ36: 1 | BA36: 0 | BB36: 0 | BC36: 0 | BD36: 0 | BE36: 0 | BF36: 0 | BG36: 0 | BH36: =COUNTIF(F36:BG36,">0") -> 5
C37: 36
C38: 37
C39: 38 | D39: =DefaultData!C56 -> Annual Operating and Maintenance Costs
C40: 39 | D40: =DefaultData!C57 -> Variable
C41: 40 | D41: =DefaultData!C58 -> Chemicals and Catalysts | E41: =HLOOKUP(ProjectData!B$16,F$2:BG$55,C41) -> 0 | F41: 0 | G41: 0 | H41: 0 | I41: 0 | J41: 0 | K41: 0 | L41: 0 | M41: 0 | N41: 0 | O41: 0 | P41: 0 | Q41: 0 | R41: 0 | S41: 0 | T41: 0 | U41: 0 | V41: 0 | W41: 0 | X41: 0 | Y41: 0 | Z41: 0 | AA41: 0 | AB41: 0 | AC41: 0 | AD41: 0 | AE41: 0 | AF41: 0 | AG41: 0 | AH41: 0 | AI41: 0 | AJ41: 0 | AK41: 0 | AL41: 0 | AM41: 0 | AN41: 0 | AO41: 0 | AP41: 0 | AQ41: 0 | AR41: 0 | AS41: 0 | AT41: 0 | AU41: 0 | AV41: 0 | AW41: 0 | AX41: 0 | AY41: 0 | AZ41: 1 | BA41: 0 | BB41: 0 | BC41: 0 | BD41: 0 | BE41: 0 | BF41: 0 | BG41: 0 | BH41: =COUNTIF(F41:BG41,">0") -> 1
C42: 41 | D42: =DefaultData!C59 -> Utilities | E42: =HLOOKUP(ProjectData!B$16,F$2:BG$55,C42) -> 1 | F42: 1 | G42: 1 | H42: 1 | I42: 1 | J42: 1 | K42: 1 | L42: 1 | M42: 1 | N42: 1 | O42: 1 | P42: 1 | Q42: 1 | R42: 1 | S42: 1 | T42: 1 | U42: 1 | V42: 1 | W42: 1 | X42: 1 | Y42: 1 | Z42: 1 | AA42: 1 | AB42: 1 | AC42: 1 | AD42: 1 | AE42: 1 | AF42: 1 | AG42: 1 | AH42: 1 | AI42: 1 | AJ42: 1 | AK42: 1 | AL42: 1 | AM42: 1 | AN42: 1 | AO42: 1 | AP42: 1 | AQ42: 1 | AR42: 1 | AS42: 1 | AT42: 1 | AU42: 1 | AV42: 1 | AW42: 1 | AX42: 1 | AY42: 1 | AZ42: 1 | BA42: 1 | BB42: 1 | BC42: 1 | BD42: 1 | BE42: 1 | BF42: 1 | BG42: 1 | BH42: 54
C43: 42 | D43: =DefaultData!C60 -> Subtotal
C44: 43 | D44: =DefaultData!C61 -> Fixed
C45: 44 | D45: =DefaultData!C62 -> Labor | E45: =HLOOKUP(ProjectData!B$16,F$2:BG$55,C45) -> 1 | F45: 1 | G45: 1 | H45: 1 | I45: 1 | J45: 1 | K45: 1 | L45: 1 | M45: 1 | N45: 1 | O45: 1 | P45: 1 | Q45: 1 | R45: 1 | S45: 1 | T45: 1 | U45: 1 | V45: 1 | W45: 1 | X45: 1 | Y45: 1 | Z45: 1 | AA45: 1 | AB45: 1 | AC45: 1 | AD45: 1 | AE45: 1 | AF45: 1 | AG45: 1 | AH45: 1 | AI45: 1 | AJ45: 1 | AK45: 1 | AL45: 1 | AM45: 1 | AN45: 1 | AO45: 1 | AP45: 1 | AQ45: 1 | AR45: 1 | AS45: 1 | AT45: 1 | AU45: 1 | AV45: 1 | AW45: 1 | AX45: 1 | AY45: 1 | AZ45: 1 | BA45: 1 | BB45: 1 | BC45: 1 | BD45: 1 | BE45: 1 | BF45: 1 | BG45: 1 | BH45: =COUNTIF(F45:BG45,">0") -> 54
C46: 45 | D46: =DefaultData!C63 -> Maintenance | E46: =HLOOKUP(ProjectData!B$16,F$2:BG$55,C46) -> 1 | F46: 1 | G46: 1 | H46: 1 | I46: 1 | J46: 1 | K46: 1 | L46: 1 | M46: 1 | N46: 1 | O46: 1 | P46: 1 | Q46: 1 | R46: 1 | S46: 1 | T46: 1 | U46: 1 | V46: 1 | W46: 1 | X46: 1 | Y46: 1 | Z46: 1 | AA46: 1 | AB46: 1 | AC46: 1 | AD46: 1 | AE46: 1 | AF46: 1 | AG46: 1 | AH46: 1 | AI46: 1 | AJ46: 1 | AK46: 1 | AL46: 1 | AM46: 1 | AN46: 1 | AO46: 1 | AP46: 1 | AQ46: 1 | AR46: 1 | AS46: 1 | AT46: 1 | AU46: 1 | AV46: 1 | AW46: 1 | AX46: 1 | AY46: 1 | AZ46: 1 | BA46: 1 | BB46: 1 | BC46: 1 | BD46: 1 | BE46: 1 | BF46: 1 | BG46: 1 | BH46: =COUNTIF(F46:BG46,">0") -> 54
C47: 46 | D47: =DefaultData!C64 -> Other Costs
C48: 47 | D48: =DefaultData!C65 -> Insurance | E48: =HLOOKUP(ProjectData!B$16,F$2:BG$55,C48) -> 0 | F48: 0 | G48: 0 | H48: 0 | I48: 0 | J48: 0 | K48: 0 | L48: 0 | M48: 0 | N48: 0 | O48: 0 | P48: 0 | Q48: 0 | R48: 0 | S48: 0 | T48: 0 | U48: 0 | V48: 0 | W48: 0 | X48: 0 | Y48: 0 | Z48: 0 | AA48: 0 | AB48: 0 | AC48: 0 | AD48: 0 | AE48: 0 | AF48: 0 | AG48: 0 | AH48: 0 | AI48: 0 | AJ48: 0 | AK48: 0 | AL48: 0 | AM48: 0 | AN48: 0 | AO48: 0 | AP48: 0 | AQ48: 0 | AR48: 0 | AS48: 0 | AT48: 0 | AU48: 0 | AV48: 0 | AW48: 0 | AX48: 0 | AY48: 0 | AZ48: 1 | BA48: 0 | BB48: 0 | BC48: 0 | BD48: 0 | BE48: 0 | BF48: 0 | BG48: 0 | BH48: =COUNTIF(F48:BG48,">0") -> 1
C49: 48 | D49: =DefaultData!C66 -> Misc. Supplies | E49: =HLOOKUP(ProjectData!B$16,F$2:BG$55,C49) -> 0 | F49: 0 | G49: 0 | H49: 0 | I49: 0 | J49: 0 | K49: 0 | L49: 0 | M49: 0 | N49: 0 | O49: 0 | P49: 0 | Q49: 0 | R49: 0 | S49: 0 | T49: 0 | U49: 0 | V49: 0 | W49: 0 | X49: 0 | Y49: 0 | Z49: 0 | AA49: 0 | AB49: 0 | AC49: 0 | AD49: 0 | AE49: 0 | AF49: 0 | AG49: 0 | AH49: 0 | AI49: 0 | AJ49: 0 | AK49: 0 | AL49: 0 | AM49: 0 | AN49: 0 | AO49: 0 | AP49: 0 | AQ49: 0 | AR49: 0 | AS49: 0 | AT49: 0 | AU49: 0 | AV49: 0 | AW49: 0 | AX49: 0 | AY49: 0 | AZ49: 1 | BA49: 0 | BB49: 0 | BC49: 0 | BD49: 0 | BE49: 0 | BF49: 0 | BG49: 0 | BH49: 1
C50: 49 | D50: =DefaultData!C67 -> Other Operating Costs | E50: =HLOOKUP(ProjectData!B$16,F$2:BG$55,C50) -> 0 | F50: 0 | G50: 0 | H50: 0 | I50: 0 | J50: 0 | K50: 0 | L50: 0 | M50: 0 | N50: 0 | O50: 0 | P50: 0 | Q50: 0 | R50: 0 | S50: 0 | T50: 0 | U50: 0 | V50: 0 | W50: 0 | X50: 0 | Y50: 0 | Z50: 0 | AA50: 0 | AB50: 0 | AC50: 0 | AD50: 0 | AE50: 0 | AF50: 0 | AG50: 0 | AH50: 0 | AI50: 0 | AJ50: 0 | AK50: 0 | AL50: 0 | AM50: 0 | AN50: 0 | AO50: 0 | AP50: 0 | AQ50: 0 | AR50: 0 | AS50: 0 | AT50: 0 | AU50: 0 | AV50: 0 | AW50: 0 | AX50: 0 | AY50: 0 | AZ50: 1 | BA50: 0 | BB50: 0 | BC50: 0 | BD50: 0 | BE50: 0 | BF50: 0 | BG50: 0 | BH50: 1
C51: 50 | D51: =DefaultData!C68 -> Subtotal

Sheet Deflators
C2: =CONCATENATE("Conversion to Year ",E4," dollars and back for consistency with multiplier data.") -> Conversion to Year 2014 dollars and back for consistency with multiplier data.
C4: Year of Multiplier Data | E4: =IF(ProjectData!B16="MYCOUNTY",'User Add-in Location'!D3,IF(ProjectData!B16="MYREGION",'User Add-in Location'!D4,Multipliers!D2)) -> 2014 | F4: =IF(E4=0,"ERROR","") ->  | G4: Region of Analysis | I4: =ProjectData!B16 -> Arizona
A5: Warning | C5: Year of Construction $s | E5: =+ProjectData!B32 -> 2012
A7: This Worksheet contains Data and Formulas that are an integral part of the JEDI model. | D7: Deflator | F7: =HLOOKUP($E$5,$D$11:$AM$39,$D$51) -> 1.034538689
D8: Inflator | F8: =HLOOKUP($E$5,$D$11:$AM$39,$D$52) -> 0.9666144056
A9: Although the data and formulas are available for review they must not be changed.
A11: Any changes to the data or formulas will impact the analysis and may invalidate the model results. | D11: 2005 | E11: 2006 | F11: 2007 | G11: 2008 | H11: 2009 | I11: 2010 | J11: 2011 | K11: 2012 | L11: 2013 | M11: 2014 | N11: 2015 | O11: 2016 | P11: 2017 | Q11: 2018 | R11: 2019 | S11: 2020 | T11: 2021 | U11: 2022 | V11: 2023 | W11: 2024 | X11: 2025 | Y11: 2026 | Z11: 2027 | AA11: 2028 | AB11: 2029 | AC11: 2030 | AD11: 2031 | AE11: 2032 | AF11: 2033 | AG11: 2034 | AH11: 2035 | AI11: 2036 | AJ11: 2037 | AK11: 2038 | AL11: 2039 | AM11: 2040
C12: 2007$ | D12: 0.9428954977 | E12: 0.9735646427 | F12: 1 | G12: 1.020755886 | H12: 1.032631144 | I12: 1.041718298 | J12: 1.062887237 | K12: 1.082300702 | L12: 1.100888063 | M12: 1.11968195 | N12: 1.134861627 | O12: 1.152829409 | P12: 1.173482032 | Q12: 1.196199917 | R12: 1.22015696 | S12: 1.244630318 | T12: 1.26664615 | U12: 1.289051411 | V12: 1.311852992 | W12: 1.335057902 | X12: 1.358673275 | Y12: 1.382706373 | Z12: 1.407164583 | AA12: 1.432055427 | AB12: 1.457386556 | AC12: 1.483165758 | AD12: 1.50940096 | AE12: 1.536100227 | AF12: 1.563271768 | AG12: 1.590923936 | AH12: 1.619065235 | AI12: 1.647704315 | AJ12: 1.676849982 | AK12: 1.706511196 | AL12: 1.736697077 | AM12: 1.767416906
D13: 1.060562918 | E13: 1.027153161 | F13: 1 | G13: 0.9796661608 | H13: 0.9684 | I13: 0.9599524187 | J13: 0.9408335762 | K13: 0.9239576376 | L13: 0.908357565 | M13: 0.8931107627 | N13: 0.8811646952 | O13: 0.8674310283 | P13: 0.8521647307 | Q13: 0.835980663 | R13: 0.8195666892 | S13: 0.8034514229 | T13: 0.7894864721 | U13: 0.775764249 | V13: 0.7622805346 | W13: 0.7490311833 | X13: 0.7360121216 | Y13: 0.7232193469 | Z13: 0.710648926 | AA13: 0.6982969941 | AB13: 0.6861597536 | AC13: 0.674233473 | AD13: 0.6625144854 | AE13: 0.6509991879 | AF13: 0.6396840401 | AG13: 0.6285655631 | AH13: 0.6176403387 | AI13: 0.6069050077 | AJ13: 0.5963562697 | AK13: 0.5859908815 | AL13: 0.5758056561 | AM13: 0.5657974622
C14: 2008$ | D14: 0.9237228123 | E14: 0.9537683359 | F14: 0.9796661608 | G14: 1 | H14: 1.011633789 | I14: 1.020536166 | J14: 1.041274659 | K14: 1.060293374 | L14: 1.078502782 | M14: 1.096914517 | N14: 1.111785534 | O14: 1.129387962 | P14: 1.149620637 | Q14: 1.171876581 | R14: 1.195346485 | S14: 1.219322205 | T14: 1.24089037 | U14: 1.262840047 | V14: 1.285177984 | W14: 1.307911049 | X14: 1.331046231 | Y14: 1.354590644 | Z14: 1.378551525 | AA14: 1.402936242 | AB14: 1.427752292 | AC14: 1.453007304 | AD14: 1.478709043 | AE14: 1.504865412 | AF14: 1.531484451 | AG14: 1.558574345 | AH14: 1.586143423 | AI14: 1.61420016 | AJ14: 1.642753184 | AK14: 1.671811272 | AL14: 1.701383358 | AM14: 1.731478535
D15: 1.082575841 | E15: 1.048472635 | F15: 1.020755886 | G15: 1 | H15: 0.9885 | I15: 0.9798770817 | J15: 0.9603614107 | K15: 0.943135197 | L15: 0.927211331 | M15: 0.9116480679 | N15: 0.8994540491 | O15: 0.8854353278 | P15: 0.8698521647 | Q15: 0.8533321823 | R15: 0.836577522 | S15: 0.820127769 | T15: 0.8058729633 | U15: 0.7918659233 | V15: 0.7781023424 | W15: 0.7645779891 | X15: 0.7512887053 | Y15: 0.7382304053 | Z15: 0.7253990741 | AA15: 0.7127907669 | AB15: 0.7004016073 | AC15: 0.6882277861 | AD15: 0.6762655605 | AE15: 0.6645112528 | AF15: 0.6529612491 | AG15: 0.6416119983 | AH15: 0.6304600111 | AI15: 0.6195018589 | AJ15: 0.6087341725 | AK15: 0.5981536414 | AL15: 0.5877570127 | AM15: 0.5775410898
C16: 2009$ | D16: 0.9131 | E16: 0.9428 | F16: 0.9684 | G16: 0.9885 | H16: 1 | I16: 1.0088 | J16: 1.0293 | K16: 1.0481 | L16: 1.0661 | M16: 1.0843 | N16: 1.099 | O16: 1.1164 | P16: 1.1364 | Q16: 1.1584 | R16: 1.1816 | S16: 1.2053 | T16: 1.226620131 | U16: 1.248317387 | V16: 1.270398437 | W16: 1.292870072 | X16: 1.3157392 | Y16: 1.339012851 | Z16: 1.362698183 | AA16: 1.386802475 | AB16: 1.411333141 | AC16: 1.43629772 | AD16: 1.461703889 | AE16: 1.487559459 | AF16: 1.51387238 | AG16: 1.54065074 | AH16: 1.567902773 | AI16: 1.595636859 | AJ16: 1.623861522 | AK16: 1.652585442 | AL16: 1.68181745 | AM16: 1.711566532
D17: 1.095170299 | E17: 1.060670344 | F17: 1.032631144 | G17: 1.011633789 | H17: 1 | I17: 0.9912767645 | J17: 0.9715340523 | K17: 0.9541074325 | L17: 0.9379983116 | M17: 0.9222539887 | N17: 0.9099181074 | O17: 0.8957362952 | P17: 0.8799718409 | Q17: 0.8632596685 | R17: 0.846310088 | S17: 0.8296689621 | T17: 0.815248319 | U17: 0.801078324 | V17: 0.7871546206 | W17: 0.7734729278 | X17: 0.7600290393 | Y17: 0.7468188217 | Z17: 0.7338382136 | AA17: 0.721083224 | AB17: 0.7085499315 | AC17: 0.6962344826 | AD17: 0.6841330911 | AE17: 0.6722420362 | AF17: 0.6605576622 | AG17: 0.6490763766 | AH17: 0.6377946496 | AI17: 0.6267090125 | AJ17: 0.6158160571 | AK17: 0.6051124344 | AL17: 0.5945948535 | AM17: 0.5842600808
A18: To view the data and formulas simply scroll over to the adjacent columns to the right. | C18: 2010$ | D18: 0.9051348136 | E18: 0.9345757335 | F18: 0.9599524187 | G18: 0.9798770817 | H18: 0.9912767645 | I18: 1 | J18: 1.020321174 | K18: 1.038957177 | L18: 1.056800159 | M18: 1.074841396 | N18: 1.089413164 | O18: 1.10666138 | P18: 1.126486915 | Q18: 1.148295004 | R18: 1.171292625 | S18: 1.194785884 | T18: 1.215920035 | U18: 1.23742802 | V18: 1.259316453 | W18: 1.281592062 | X18: 1.304261697 | Y18: 1.327332327 | Z18: 1.350811045 | AA18: 1.374705071 | AB18: 1.399021749 | AC18: 1.423768557 | AD18: 1.448953102 | AE18: 1.474583128 | AF18: 1.500666514 | AG18: 1.527211281 | AH18: 1.554225588 | AI18: 1.581717742 | AJ18: 1.609696196 | AK18: 1.63816955 | AL18: 1.66714656 | AM18: 1.696636134
D19: 1.104807798 | E19: 1.070004243 | F19: 1.041718298 | G19: 1.020536166 | H19: 1.0088 | I19: 1 | J19: 0.9800835519 | K19: 0.9625035779 | L19: 0.9462526967 | M19: 0.9303698238 | N19: 0.9179253867 | O19: 0.9036187746 | P19: 0.8877155931 | Q19: 0.8708563536 | R19: 0.8537576168 | S19: 0.836970049 | T19: 0.8224225042 | U19: 0.8081278133 | V19: 0.7940815812 | W19: 0.7802794896 | X19: 0.7667172948 | Y19: 0.7533908273 | Z19: 0.7402959899 | AA19: 0.7274287564 | AB19: 0.7147851709 | AC19: 0.7023613461 | AD19: 0.6901534623 | AE19: 0.6781577661 | AF19: 0.6663705696 | AG19: 0.6547882487 | AH19: 0.6434072425 | AI19: 0.6322240518 | AJ19: 0.6212352384 | AK19: 0.6104374238 | AL19: 0.5998272882 | AM19: 0.5894015695
C20: 2011$ | D20: 0.8871077431 | E20: 0.9159623045 | F20: 0.9408335762 | G20: 0.9603614107 | H20: 0.9715340523 | I20: 0.9800835519 | J20: 1 | K20: 1.01826484 | L20: 1.035752453 | M20: 1.053434373 | N20: 1.067715923 | O20: 1.084620616 | P20: 1.104051297 | Q20: 1.125425046 | R20: 1.147964636 | S20: 1.170989993 | T20: 1.191703227 | U20: 1.212782849 | V20: 1.234235342 | W20: 1.2560673 | X20: 1.278285437 | Y20: 1.300896582 | Z20: 1.323907687 | AA20: 1.347325829 | AB20: 1.371158205 | AC20: 1.395412144 | AD20: 1.420095103 | AE20: 1.44521467 | AF20: 1.470778568 | AG20: 1.496794657 | AH20: 1.523270935 | AI20: 1.550215543 | AJ20: 1.577636765 | AK20: 1.605543031 | AL20: 1.633942922 | AM20: 1.662845168
D21: 1.127258789 | E21: 1.091747985 | F21: 1.062887237 | G21: 1.041274659 | H21: 1.0293 | I21: 1.020321174 | J21: 1 | K21: 0.9820627803 | L21: 0.9654816621 | M21: 0.9492760306 | N21: 0.9365787079 | O21: 0.9219813687 | P21: 0.9057550158 | Q21: 0.8885531768 | R21: 0.8711069736 | S21: 0.8539782627 | T21: 0.8391350947 | U21: 0.8245499189 | V21: 0.8102182509 | W21: 0.7961356846 | X21: 0.7822978901 | Y21: 0.7687006132 | Z21: 0.7553396732 | AA21: 0.7422109625 | AB21: 0.7293104445 | AC21: 0.716634153 | AD21: 0.7041781906 | AE21: 0.6919387279 | AF21: 0.6799120017 | AG21: 0.6680943145 | AH21: 0.6564820328 | AI21: 0.6450715866 | AJ21: 0.6338594676 | AK21: 0.6228422287 | AL21: 0.6120164827 | AM21: 0.6013789011
C22: 2012$ | D22: 0.8711954966 | E22: 0.8995324874 | F22: 0.9239576376 | G22: 0.943135197 | H22: 0.9541074325 | I22: 0.9625035779 | J22: 0.9820627803 | K22: 1 | L22: 1.017173934 | M22: 1.034538689 | N22: 1.048564068 | O22: 1.065165538 | P22: 1.084247686 | Q22: 1.10523805 | R22: 1.127373342 | S22: 1.149985688 | T22: 1.170327384 | U22: 1.191028897 | V22: 1.212096591 | W22: 1.233536945 | X22: 1.25535655 | Y22: 1.277562114 | Z22: 1.300160464 | AA22: 1.323158549 | AB22: 1.346563439 | AC22: 1.37038233 | AD22: 1.394622545 | AE22: 1.419291537 | AF22: 1.444396889 | AG22: 1.469946322 | AH22: 1.49594769 | AI22: 1.522408986 | AJ22: 1.549338348 | AK22: 1.576744053 | AL22: 1.604634529 | AM22: 1.633018349
D23: 1.14784799 | E23: 1.111688587 | F23: 1.082300702 | G23: 1.060293374 | H23: 1.0481 | I23: 1.038957177 | J23: 1.01826484 | K23: 1 | L23: 0.9831160304 | M23: 0.9666144056 | N23: 0.9536851683 | O23: 0.938821211 | P23: 0.9222984864 | Q23: 0.9047824586 | R23: 0.8870176032 | S23: 0.8695760392 | T23: 0.8544617631 | U23: 0.8396101914 | V23: 0.8250167578 | W23: 0.8106769756 | X23: 0.7965864361 | Y23: 0.782740807 | Z23: 0.7691358317 | AA23: 0.7557673271 | AB23: 0.7426311832 | AC23: 0.7297233612 | AD23: 0.7170398927 | AE23: 0.7045768782 | AF23: 0.6923304857 | AG23: 0.6802969503 | AH23: 0.6684725722 | AI23: 0.656853716 | AJ23: 0.6454368095 | AK23: 0.6342183425 | AL23: 0.6231948659 | AM23: 0.6123629906
C24: 2013$ | D24: 0.8564862583 | E24: 0.8843448082 | F24: 0.908357565 | G24: 0.927211331 | H24: 0.9379983116 | I24: 0.9462526967 | J24: 0.9654816621 | K24: 0.9831160304 | L24: 1 | M24: 1.017071569 | N24: 1.030860144 | O24: 1.047181315 | P24: 1.065941281 | Q24: 1.086577244 | R24: 1.108338805 | S24: 1.130569365 | T24: 1.150567612 | U24: 1.170919601 | V24: 1.191631589 | W24: 1.212709945 | X24: 1.234161148 | Y24: 1.255991794 | Z24: 1.278208595 | AA24: 1.30081838 | AB24: 1.323828103 | AC24: 1.347244836 | AD24: 1.37107578 | AE24: 1.395328261 | AF24: 1.420009736 | AG24: 1.445127793 | AH24: 1.470690154 | AI24: 1.496704679 | AJ24: 1.523179366 | AK24: 1.550122355 | AL24: 1.577541928 | AM24: 1.605446517
D25: 1.167561056 | E25: 1.130780653 | F25: 1.100888063 | G25: 1.078502782 | H25: 1.0661 | I25: 1.056800159 | J25: 1.035752453 | K25: 1.017173934 | L25: 1 | M25: 0.9832149774 | N25: 0.9700636943 | O25: 0.9549444643 | P25: 0.9381379796 | Q25: 0.9203211326 | R25: 0.9022511848 | S25: 0.8845100805 | T25: 0.8691362329 | U25: 0.8540296012 | V25: 0.839185541 | W25: 0.8245994883 | X25: 0.8102669588 | Y25: 0.7961835458 | Z25: 0.7823449195 | AA25: 0.7687468251 | AB25: 0.7553850819 | AC25: 0.7422555819 | AD25: 0.7293542884 | AE25: 0.7166772348 | AF25: 0.7042205237 | AG25: 0.6919803251 | AH25: 0.6799528759 | AI25: 0.6681344782 | AJ25: 0.6565214985 | AK25: 0.6451103663 | AL25: 0.6338975733 | AM25: 0.6228796721
C26: 2014$ | D26: 0.8421101171 | E26: 0.8695010606 | F26: 0.8931107627 | G26: 0.9116480679 | H26: 0.9222539887 | I26: 0.9303698238 | J26: 0.9492760306 | K26: 0.9666144056 | L26: 0.9832149774 | M26: 1 | N26: 1.013557134 | O26: 1.029604353 | P26: 1.048049433 | Q26: 1.068339021 | R26: 1.089735313 | S26: 1.111592733 | T26: 1.131255309 | U26: 1.151265689 | V26: 1.171630026 | W26: 1.192354581 | X26: 1.213445725 | Y26: 1.234909943 | Z26: 1.256753834 | AA26: 1.278984115 | AB26: 1.301607618 | AC26: 1.324631301 | AD26: 1.348062242 | AE26: 1.371907645 | AF26: 1.396174841 | AG26: 1.42087129 | AH26: 1.446004587 | AI26: 1.471582457 | AJ26: 1.497612766 | AK26: 1.524103516 | AL26: 1.551062851 | AM26: 1.578499061
D27: 1.187493155 | E27: 1.150084854 | F27: 1.11968195 | G27: 1.096914517 | H27: 1.0843 | I27: 1.074841396 | J27: 1.053434373 | K27: 1.034538689 | L27: 1.017071569 | M27: 1 | N27: 0.9866242038 | O27: 0.9712468649 | P27: 0.9541534671 | Q27: 0.9360324586 | R27: 0.9176540284 | S27: 0.8996100556 | T27: 0.8839737523 | U27: 0.8686092267 | V27: 0.8535117551 | W27: 0.8386766956 | X27: 0.8240994873 | Y27: 0.8097756484 | Z27: 0.795700775 | AA27: 0.7818705398 | AB27: 0.7682806907 | AC27: 0.7549270495 | AD27: 0.7418055106 | AE27: 0.7289120399 | AF27: 0.7162426731 | AG27: 0.7037935152 | AH27: 0.6915607385 | AI27: 0.6795405823 | AJ27: 0.6677293507 | AK27: 0.6561234126 | AL27: 0.6447191996 | AM27: 0.6335132056
C28: 2015$ | D28: 0.8308462238 | E28: 0.8578707916 | F28: 0.8811646952 | G28: 0.8994540491 | H28: 0.9099181074 | I28: 0.9179253867 | J28: 0.9365787079 | K28: 0.9536851683 | L28: 0.9700636943 | M28: 0.9866242038 | N28: 1 | O28: 1.015832575 | P28: 1.034030937 | Q28: 1.054049136 | R28: 1.075159236 | S28: 1.096724295 | T28: 1.116123868 | U28: 1.135866594 | V28: 1.155958542 | W28: 1.176405889 | X28: 1.197214923 | Y28: 1.21839204 | Z28: 1.239943751 | AA28: 1.261876684 | AB28: 1.28419758 | AC28: 1.306913303 | AD28: 1.330030836 | AE28: 1.353557288 | AF28: 1.377499891 | AG28: 1.401866006 | AH28: 1.426663124 | AI28: 1.45189887 | AJ28: 1.477581003 | AK28: 1.503717418 | AL28: 1.530316151 | AM28: 1.557385379
D29: 1.203592159 | E29: 1.165676708 | F29: 1.134861627 | G29: 1.111785534 | H29: 1.099 | I29: 1.089413164 | J29: 1.067715923 | K29: 1.048564068 | L29: 1.030860144 | M29: 1.013557134 | N29: 1 | O29: 0.9844141885 | P29: 0.9670890532 | Q29: 0.9487223757 | R29: 0.9300947867 | S29: 0.9118061893 | T29: 0.8959579026 | U29: 0.8803850781 | V29: 0.865082928 | W29: 0.8500467477 | X29: 0.8352719142 | Y29: 0.8207538851 | Z29: 0.8064881967 | AA29: 0.7924704632 | AB29: 0.7786963747 | AC29: 0.7651616964 | AD29: 0.7518622671 | AE29: 0.7387939978 | AF29: 0.7259528708 | AG29: 0.7133349379 | AH29: 0.7009363199 | AI29: 0.6887532048 | AJ29: 0.6767818468 | AK29: 0.6650185654 | AL29: 0.653459744 | AM29: 0.6421018288
C30: 2016$ | D30: 0.8178968112 | E30: 0.8445001791 | F30: 0.8674310283 | G30: 0.8854353278 | H30: 0.8957362952 | I30: 0.9036187746 | J30: 0.9219813687 | K30: 0.938821211 | L30: 0.9549444643 | M30: 0.9712468649 | N30: 0.9844141885 | O30: 1 | P30: 1.017914726 | Q30: 1.037620924 | R30: 1.058402006 | S30: 1.079630957 | T30: 1.098728172 | U30: 1.118163191 | V30: 1.13794199 | W30: 1.158070649 | X30: 1.178555356 | Y30: 1.199402411 | Z30: 1.220618222 | AA30: 1.242209312 | AB30: 1.264182319 | AC30: 1.286543999 | AD30: 1.309301227 | AE30: 1.332460999 | AF30: 1.356030437 | AG30: 1.380016786 | AH30: 1.404427422 | AI30: 1.429269848 | AJ30: 1.454551704 | AK30: 1.480280762 | AL30: 1.506464932 | AM30: 1.533112264
D31: 1.222648122 | E31: 1.184132372 | F31: 1.152829409 | G31: 1.129387962 | H31: 1.1164 | I31: 1.10666138 | J31: 1.084620616 | K31: 1.065165538 | L31: 1.047181315 | M31: 1.029604353 | N31: 1.015832575 | O31: 1 | P31: 0.9824005632 | Q31: 0.9637430939 | R31: 0.9448205823 | S31: 0.9262424293 | T31: 0.9101432233 | U31: 0.8943238409 | V31: 0.8787794184 | W31: 0.8635051766 | X31: 0.8484964195 | Y31: 0.8337485326 | Z31: 0.8192569816 | AA31: 0.8050173113 | AB31: 0.7910251435 | AC31: 0.7772761764 | AD31: 0.7637661829 | AE31: 0.7504910092 | AF31: 0.7374465741 | AG31: 0.7246288669 | AH31: 0.7120339468 | AI31: 0.6996579416 | AJ31: 0.6874970462 | AK31: 0.6755475218 | AL31: 0.6638056944 | AM31: 0.6522679542
C32: 2017$ | D32: 0.8035022879 | E32: 0.8296374516 | F32: 0.8521647307 | G32: 0.8698521647 | H32: 0.8799718409 | I32: 0.8877155931 | J32: 0.9057550158 | K32: 0.9222984864 | L32: 0.9381379796 | M32: 0.9541534671 | N32: 0.9670890532 | O32: 0.9824005632 | P32: 1 | Q32: 1.01935938 | R32: 1.039774727 | S32: 1.06063006 | T32: 1.079391175 | U32: 1.098484149 | V32: 1.117914852 | W32: 1.137689257 | X32: 1.157813446 | Y32: 1.178293604 | Z32: 1.199136028 | AA32: 1.220347127 | AB32: 1.241933422 | AC32: 1.263901549 | AD32: 1.286258262 | AE32: 1.309010436 | AF32: 1.332165065 | AG32: 1.355729268 | AH32: 1.37971029 | AI32: 1.404115504 | AJ32: 1.428952413 | AK32: 1.454228654 | AL32: 1.479951997 | AM32: 1.506130352
D33: 1.244551528 | E33: 1.205345779 | F33: 1.173482032 | G33: 1.149620637 | H33: 1.1364 | I33: 1.126486915 | J33: 1.104051297 | K33: 1.084247686 | L33: 1.065941281 | M33: 1.048049433 | N33: 1.034030937 | O33: 1.017914726 | P33: 1 | Q33: 0.9810082873 | R33: 0.961746784 | S33: 0.9428358085 | T33: 0.9264481897 | U33: 0.9103454074 | V33: 0.8945225108 | W33: 0.8789746352 | X33: 0.8636970002 | Y33: 0.848684909 | Z33: 0.8339337459 | AA33: 0.8194389758 | AB33: 0.8051961421 | AC33: 0.791200866 | AD33: 0.7774488447 | AE33: 0.76393585 | AF33: 0.7506577273 | AG33: 0.7376103944 | AH33: 0.7247898398 | AI33: 0.7121921218 | AJ33: 0.6998133673 | AK33: 0.6876497705 | AL33: 0.6756975915 | AM33: 0.6639531558
C34: 2018$ | D34: 0.7882424033 | E34: 0.8138812155 | F34: 0.835980663 | G34: 0.8533321823 | H34: 0.8632596685 | I34: 0.8708563536 | J34: 0.8885531768 | K34: 0.9047824586 | L34: 0.9203211326 | M34: 0.9360324586 | N34: 0.9487223757 | O34: 0.9637430939 | P34: 0.9810082873 | Q34: 1 | R34: 1.020027624 | S34: 1.040486878 | T34: 1.058891688 | U34: 1.077622053 | V34: 1.096683734 | W34: 1.11608259 | X34: 1.135824585 | Y34: 1.15591579 | Z34: 1.176362381 | AA34: 1.197170645 | AB34: 1.218346979 | AC34: 1.239897894 | AD34: 1.261830015 | AE34: 1.284150086 | AF34: 1.306864969 | AG34: 1.329981647 | AH34: 1.353507228 | AI34: 1.377448946 | AJ34: 1.401814159 | AK34: 1.426610361 | AL34: 1.451845174 | AM34: 1.477526357
D35: 1.268645274 | E35: 1.228680526 | F35: 1.196199917 | G35: 1.171876581 | H35: 1.1584 | I35: 1.148295004 | J35: 1.125425046 | K35: 1.10523805 | L35: 1.086577244 | M35: 1.068339021 | N35: 1.054049136 | O35: 1.037620924 | P35: 1.01935938 | Q35: 1 | R35: 0.980365606 | S35: 0.9610885257 | T35: 0.9443836527 | U35: 0.9279691305 | V35: 0.9118399125 | W35: 0.8959910396 | X35: 0.8804176391 | Y35: 0.8651149231 | Z35: 0.8500781866 | AA35: 0.8353028067 | AB35: 0.8207842406 | AC35: 0.8065180247 | AD35: 0.7924997727 | AE35: 0.7787251748 | AF35: 0.7651899959 | AG35: 0.7518900747 | AH35: 0.7388213221 | AI35: 0.7259797201 | AJ35: 0.7133613206 | AK35: 0.700962244 | AL35: 0.6887786783 | AM35: 0.6768068775
C36: 2019$ | D36: 0.7727657414 | E36: 0.797901151 | F36: 0.8195666892 | G36: 0.836577522 | H36: 0.846310088 | I36: 0.8537576168 | J36: 0.8711069736 | K36: 0.8870176032 | L36: 0.9022511848 | M36: 0.9176540284 | N36: 0.9300947867 | O36: 0.9448205823 | P36: 0.961746784 | Q36: 0.980365606 | R36: 1 | S36: 1.020057549 | T36: 1.038100991 | U36: 1.056463597 | V36: 1.075151013 | W36: 1.094168985 | X36: 1.113523358 | Y36: 1.133220084 | Z36: 1.153265219 | AA36: 1.173664925 | AB36: 1.194425474 | AC36: 1.21555325 | AD36: 1.237054747 | AE36: 1.258936577 | AF36: 1.281205467 | AG36: 1.303868263 | AH36: 1.326931934 | AI36: 1.35040357 | AJ36: 1.374290388 | AK36: 1.398599731 | AL36: 1.423339074 | AM36: 1.448516022
D37: 1.294053225 | E37: 1.253288078 | F37: 1.22015696 | G37: 1.195346485 | H37: 1.1816 | I37: 1.171292625 | J37: 1.147964636 | K37: 1.127373342 | L37: 1.108338805 | M37: 1.089735313 | N37: 1.075159236 | O37: 1.058402006 | P37: 1.039774727 | Q37: 1.020027624 | R37: 1 | S37: 0.9803368456 | T37: 0.9632974137 | U37: 0.9465541477 | V37: 0.9301018997 | W37: 0.9139356115 | X37: 0.8980503128 | Y37: 0.8824411197 | Z37: 0.8671032332 | AA37: 0.8520319375 | AB37: 0.837222599 | AC37: 0.8226706647 | AD37: 0.8083716604 | AE37: 0.79432119 | AF37: 0.7805149336 | AG37: 0.7669486466 | AH37: 0.753618158 | AI37: 0.7405193692 | AJ37: 0.7276482531 | AK37: 0.7150008525 | AL37: 0.7025732789 | AM37: 0.6903617114
C38: 2020$ | D38: 0.7575707293 | E38: 0.7822118975 | F38: 0.8034514229 | G38: 0.820127769 | H38: 0.8296689621 | I38: 0.836970049 | J38: 0.8539782627 | K38: 0.8695760392 | L38: 0.8845100805 | M38: 0.8996100556 | N38: 0.9118061893 | O38: 0.9262424293 | P38: 0.9428358085 | Q38: 0.9610885257 | R38: 0.9803368456 | S38: 1 | T38: 1.017688651 | U38: 1.035690191 | V38: 1.054010153 | W38: 1.072654171 | X38: 1.091627976 | Y38: 1.110937403 | Z38: 1.130588387 | AA38: 1.15058697 | AB38: 1.170939302 | AC38: 1.191651639 | AD38: 1.212730349 | AE38: 1.234181913 | AF38: 1.256012926 | AG38: 1.2782301 | AH38: 1.300840267 | AI38: 1.323850376 | AJ38: 1.347267504 | AK38: 1.371098849 | AL38: 1.395351738 | AM38: 1.420033628
D39: 1.320008761 | E39: 1.278425965 | F39: 1.244630318 | G39: 1.219322205 | H39: 1.2053 | I39: 1.194785884 | J39: 1.170989993 | K39: 1.149985688 | L39: 1.130569365 | M39: 1.111592733 | N39: 1.096724295 | O39: 1.079630957 | P39: 1.06063006 | Q39: 1.040486878 | R39: 1.020057549 | S39: 1 | T39: 0.9826187989 | U39: 0.9655397039 | V39: 0.9487574642 | W39: 0.9322669199 | X39: 0.9160630011 | Y39: 0.9001407258 | Z39: 0.8844951988 | AA39: 0.8691216099 | AB39: 0.8540152324 | AC39: 0.8391714219 | AD39: 0.8245856147 | AE39: 0.8102533263 | AF39: 0.7961701502 | AG39: 0.7823317567 | AH39: 0.7687338911 | AI39: 0.7553723728 | AJ39: 0.7422430937 | AK39: 0.7293420172 | AL39: 0.7166651769 | AM39: 0.7042086753
C43: Source: Deflators and Inflators derived from data contained in the Budget of the United States Government: Table 10.1 - Gross Domestic Product and Deflators Used in the Historical Tables 1940-2021.
C44: https://www.whitehouse.gov/omb/budget/Historicals
C45: Updated November 2016. Deflators for 2016-2040 assume average annual inflation rate derived from 2013-2020 GDP values.
D51: =HLOOKUP($E$4,E$51:Q$53,3) -> 17 | E51: 2007 | F51: 2008 | G51: 2009 | H51: 2010 | I51: 2011 | J51: 2012 | K51: 2013 | L51: 2014 | M51: 2015 | N51: 2016 | O51: 2017 | P51: 2018 | Q51: 2019
D52: =HLOOKUP($E$4,E$51:Q$53,2) -> 16 | E52: 2 | F52: 4 | G52: 6 | H52: 8 | I52: 10 | J52: 12 | K52: 14 | L52: 16 | M52: 18 | N52: 20 | O52: 22 | P52: 24 | Q52: 26
E53: =$E$52+1 -> 3 | F53: =$F$52+1 -> 5 | G53: =$G$52+1 -> 7 | H53: =$H$52+1 -> 9 | I53: =$I$52+1 -> 11 | J53: =$J$52+1 -> 13 | K53: =$K$52+1 -> 15 | L53: =$L$52+1 -> 17 | M53: =$M$52+1 -> 19 | N53: 21 | O53: 23 | P53: 25 | Q53: 27
C55: =C53*100 -> 0

Sheet Household Exp (hidden)
C1: Personal Consumption Expenditures
C2: Year of Data | D2: 2014
D3: Alabama | E3: Alaska | F3: Arizona | G3: Arkansas | H3: California | I3: Colorado | J3: Connecticut | K3: Delaware | L3: District of Columbia | M3: Florida | N3: Georgia | O3: Hawaii | P3: Idaho | Q3: Illinois | R3: Indiana | S3: Iowa | T3: Kansas | U3: Kentucky | V3: Louisiana | W3: Maine | X3: Maryland | Y3: Massachusetts | Z3: Michigan | AA3: Minnesota | AB3: Mississippi | AC3: Missouri | AD3: Montana | AE3: ='User Add-in Location'!E8 -> MyCounty | AF3: ='User Add-in Location'!F8 -> MyRegion | AG3: Nebraska | AH3: Nevada | AI3: New Hampshire | AJ3: New Jersey | AK3: New Mexico | AL3: New York | AM3: North Carolina | AN3: North Dakota | AO3: Ohio | AP3: Oklahoma | AQ3: Oregon | AR3: Pennsylvania | AS3: Rhode Island | AT3: South Carolina | AU3: South Dakota | AV3: Tennessee | AW3: Texas | AX3: United States | AY3: Utah | AZ3: Vermont | BA3: Virginia | BB3: Washington | BC3: West Virginia | BD3: Wisconsin | BE3: Wyoming
C4: Agriculture | D4: 0.004384330381 | E4: 0.001411951342 | F4: 0.004564238075 | G4: 0.008178632879 | H4: 0.003979249239 | I4: 0.007019546287 | J4: 0.0007608607585 | K4: 0.005151456372 | L4: 0.0004292289416 | M4: 0.003458368365 | N4: 0.004508102546 | O4: 0.004942989179 | P4: 0.009491750692 | Q4: 0.002866761014 | R4: 0.002545043718 | S4: 0.00939347376 | T4: 0.008790065648 | U4: 0.003175961094 | V4: 0.001639637082 | W4: 0.004067660925 | X4: 0.002083186058 | Y4: 0.0006372773432 | Z4: 0.002381238121 | AA4: 0.005639805481 | AB4: 0.006386139845 | AC4: 0.004104364189 | AD4: 0.006243838265 | AE4: ='User Add-in Location'!E9 -> 0 | AF4: ='User Add-in Location'!F9 -> 0 | AG4: 0.008887131788 | AH4: 0.00253756422 | AI4: 0.001388857498 | AJ4: 0.0005516395517 | AK4: 0.006979170237 | AL4: 0.002880344653 | AM4: 0.004607794108 | AN4: 0.005609597272 | AO4: 0.002063641271 | AP4: 0.004905058883 | AQ4: 0.006340977661 | AR4: 0.002903552179 | AS4: 0.0005167988573 | AT4: 0.002462276783 | AU4: 0.009496244544 | AV4: 0.002096612765 | AW4: 0.003014855509 | AX4: 0.005526011436 | AY4: 0.003326996211 | AZ4: 0.008753813665 | BA4: 0.003736384389 | BB4: 0.003850574353 | BC4: 0.002707634016 | BD4: 0.007505445268 | BE4: 0.003989125579
A5: Warning | C5: Mining | D5: 3.677333795e-06 | E5: 2.363481662e-05 | F5: 4.428329713e-06 | G5: 6.797702789e-06 | H5: 7.635991695e-06 | I5: 1.285516538e-05 | J5: 1.442187022e-06 | K5: 6.185274109e-07 | L5: 4.082166389e-07 | M5: 3.620128991e-06 | N5: 1.558401713e-06 | O5: 2.020136929e-06 | P5: 3.672698612e-06 | Q5: 2.302590235e-06 | R5: 2.00895267e-06 | S5: 1.286750495e-06 | T5: 1.11851766e-05 | U5: 3.426991232e-06 | V5: 2.114691262e-05 | W5: 1.233221425e-06 | X5: 1.991835158e-06 | Y5: 1.274897916e-06 | Z5: 2.444063022e-06 | AA5: 1.445369735e-06 | AB5: 6.815324922e-06 | AC5: 1.683675783e-06 | AD5: 1.167053079e-05 | AE5: ='User Add-in Location'!E10 -> 0 | AF5: ='User Add-in Location'!F10 -> 0 | AG5: 2.010026498e-06 | AH5: 1.12494696e-05 | AI5: 1.717982414e-06 | AJ5: 1.254319065e-06 | AK5: 2.348061397e-05 | AL5: 1.632789003e-06 | AM5: 1.421748408e-06 | AN5: 1.777251441e-05 | AO5: 4.497899189e-06 | AP5: 2.062758352e-05 | AQ5: 2.110349725e-06 | AR5: 7.603598691e-06 | AS5: 9.475994394e-07 | AT5: 1.25061441e-06 | AU5: 3.304554079e-06 | AV5: 1.620804846e-06 | AW5: 2.145813723e-05 | AX5: 1.192597005e-05 | AY5: 1.005186848e-05 | AZ5: 2.124491659e-06 | BA5: 3.091334567e-06 | BB5: 1.606151154e-06 | BC5: 1.335015412e-05 | BD5: 1.162093327e-06 | BE5: 2.707344934e-05
C6: Construction | D6: 0 | E6: 0 | F6: 0 | G6: 0 | H6: 0 | I6: 0 | J6: 0 | K6: 0 | L6: 0 | M6: 0 | N6: 0 | O6: 0 | P6: 0 | Q6: 0 | R6: 0 | S6: 0 | T6: 0 | U6: 0 | V6: 0 | W6: 0 | X6: 0 | Y6: 0 | Z6: 0 | AA6: 0 | AB6: 0 | AC6: 0 | AD6: 0 | AE6: ='User Add-in Location'!E11 -> 0 | AF6: ='User Add-in Location'!F11 -> 0 | AG6: 0 | AH6: 0 | AI6: 0 | AJ6: 0 | AK6: 0 | AL6: 0 | AM6: 0 | AN6: 0 | AO6: 0 | AP6: 0 | AQ6: 0 | AR6: 0 | AS6: 0 | AT6: 0 | AU6: 0 | AV6: 0 | AW6: 0 | AX6: 0 | AY6: 0 | AZ6: 0 | BA6: 0 | BB6: 0 | BC6: 0 | BD6: 0 | BE6: 0
A7: This Worksheet contains Data and Formulas that are an integral part of the JEDI model. | C7: Manufacturing | D7: 0.04538769938 | E7: 0.04751615439 | F7: 0.02601601984 | G7: 0.03871614099 | H7: 0.08424695211 | I7: 0.04678531296 | J7: 0.02691443385 | K7: 0.02705081818 | L7: 0.001406269771 | M7: 0.03588294144 | N7: 0.0410778666 | O7: 0.04771712351 | P7: 0.03484069858 | Q7: 0.05361990316 | R7: 0.05450634659 | S7: 0.03447882879 | T7: 0.04344903928 | U7: 0.04175371942 | V7: 0.05444260812 | W7: 0.03338105864 | X7: 0.02171790025 | Y7: 0.03500828748 | Z7: 0.05973790234 | AA7: 0.05856184383 | AB7: 0.0396461678 | AC7: 0.03229916169 | AD7: 0.0413166807 | AE7: ='User Add-in Location'!E12 -> 0 | AF7: ='User Add-in Location'!F12 -> 0 | AG7: 0.02751341254 | AH7: 0.01636506977 | AI7: 0.01746298532 | AJ7: 0.03947687808 | AK7: 0.03449942446 | AL7: 0.03029455747 | AM7: 0.05098974521 | AN7: 0.03093297646 | AO7: 0.06105505725 | AP7: 0.0440218515 | AQ7: 0.03783917751 | AR7: 0.05278222274 | AS7: 0.01426469323 | AT7: 0.03476185021 | AU7: 0.01765264397 | AV7: 0.04081066686 | AW7: 0.08837585581 | AX7: 0.1437582122 | AY7: 0.0577237525 | AZ7: 0.02215678822 | BA7: 0.03094563227 | BB7: 0.06532834545 | BC7: 0.01903501173 | BD7: 0.04879692887 | BE7: 0.03716154501
C8: Fabricated Metals | D8: 1.124576773e-06 | E8: 4.390845948e-07 | F8: 9.565433436e-07 | G8: 6.010669205e-07 | H8: 1.859574413e-06 | I8: 1.223899791e-06 | J8: 6.605104667e-07 | K8: 1.605972056e-07 | L8: 4.762379372e-10 | M8: 9.658091649e-07 | N8: 7.556860275e-07 | O8: 2.81068995e-07 | P8: 5.338386941e-07 | Q8: 1.02481144e-06 | R8: 1.066130651e-06 | S8: 6.078364364e-07 | T8: 6.578107747e-07 | U8: 4.918720961e-07 | V8: 1.193632829e-06 | W8: 3.587796833e-07 | X8: 2.364265729e-07 | Y8: 8.710747453e-07 | Z8: 1.320824718e-06 | AA8: 1.43898867e-06 | AB8: 4.438984913e-07 | AC8: 4.881579697e-07 | AD8: 2.968145928e-07 | AE8: ='User Add-in Location'!E13 -> 0 | AF8: ='User Add-in Location'!F13 -> 0 | AG8: 7.868117458e-07 | AH8: 2.892156947e-07 | AI8: 6.236808163e-07 | AJ8: 5.276479165e-07 | AK8: 2.485846872e-07 | AL8: 7.205077775e-07 | AM8: 1.174243993e-06 | AN8: 2.19869449e-07 | AO8: 1.21269199e-06 | AP8: 1.349960827e-06 | AQ8: 1.245413612e-06 | AR8: 1.386643675e-06 | AS8: 1.424880068e-07 | AT8: 1.01362734e-06 | AU8: 3.369006909e-07 | AV8: 8.38763205e-07 | AW8: 2.42447799e-06 | AX8: 3.410079261e-06 | AY8: 1.811724918e-06 | AZ8: 2.150720866e-07 | BA8: 9.552529812e-07 | BB8: 1.413516415e-06 | BC8: 2.14343243e-07 | BD8: 1.301580095e-06 | BE8: 1.011573689e-07
A9: Although the data and formulas are available for review they must not be changed. | C9: Machinery | D9: 1.307928247e-05 | E9: 2.900514522e-08 | F9: 5.103683399e-06 | G9: 1.391998166e-05 | H9: 1.210247519e-05 | I9: 8.706528041e-06 | J9: 1.570700562e-06 | K9: 9.758902935e-07 | L9: 1.606295756e-08 | M9: 3.301582381e-06 | N9: 1.035649193e-05 | O9: 2.520304913e-06 | P9: 1.886711376e-05 | Q9: 1.484023893e-05 | R9: 1.819948194e-05 | S9: 2.203164679e-05 | T9: 1.877686928e-05 | U9: 7.584942784e-06 | V9: 8.161308805e-06 | W9: 1.70012645e-06 | X9: 8.199209748e-07 | Y9: 1.423799777e-06 | Z9: 9.153174283e-06 | AA9: 1.663820865e-05 | AB9: 1.177562923e-05 | AC9: 5.427090201e-06 | AD9: 3.251735408e-06 | AE9: ='User Add-in Location'!E14 -> 0 | AF9: ='User Add-in Location'!F14 -> 0 | AG9: 2.383829285e-05 | AH9: 3.121221969e-07 | AI9: 1.011786691e-06 | AJ9: 1.546109172e-06 | AK9: 3.616975678e-06 | AL9: 5.591949379e-06 | AM9: 9.547878173e-06 | AN9: 2.835510013e-05 | AO9: 1.252876363e-05 | AP9: 6.62272691e-06 | AQ9: 1.634150813e-05 | AR9: 8.659070921e-06 | AS9: 3.41083948e-07 | AT9: 4.936522279e-06 | AU9: 2.363174601e-05 | AV9: 4.939401124e-06 | AW9: 1.130864428e-05 | AX9: 4.373952927e-05 | AY9: 2.372495433e-06 | AZ9: 6.296237229e-07 | BA9: 3.759250661e-06 | BB9: 8.426869107e-06 | BC9: 4.133355552e-07 | BD9: 2.046187369e-05 | BE9: 2.331583356e-06
C10: Electrical Equipment | D10: 2.918616822e-07 | E10: 5.499958101e-09 | F10: 2.186621283e-05 | G10: 6.000474649e-07 | H10: 3.252797091e-05 | I10: 9.854241956e-06 | J10: 2.417312934e-06 | K10: 4.735816086e-08 | L10: 2.792982139e-09 | M10: 1.238023624e-05 | N10: 1.481671304e-06 | O10: 1.895089834e-07 | P10: 2.402038417e-05 | Q10: 1.924691101e-06 | R10: 5.235843839e-07 | S10: 4.195261504e-07 | T10: 1.624167057e-06 | U10: 3.069342669e-07 | V10: 6.250753927e-08 | W10: 2.94946301e-06 | X10: 9.738756564e-07 | Y10: 2.266155337e-05 | Z10: 1.536595897e-06 | AA10: 8.834900949e-06 | AB10: 2.713905008e-07 | AC10: 4.145611169e-06 | AD10: 1.167844336e-07 | AE10: ='User Add-in Location'!E15 -> 0 | AF10: ='User Add-in Location'!F15 -> 0 | AG10: 3.727665999e-07 | AH10: 1.69319091e-05 | AI10: 5.549750234e-06 | AJ10: 3.311717294e-06 | AK10: 2.261643457e-05 | AL10: 8.19297219e-06 | AM10: 1.016658211e-05 | AN10: 2.442368364e-07 | AO10: 2.181530376e-06 | AP10: 2.837204351e-07 | AQ10: 2.987625035e-05 | AR10: 3.145417892e-06 | AS10: 1.253802612e-06 | AT10: 4.721131875e-07 | AU10: 7.020724617e-07 | AV10: 3.45949342e-07 | AW10: 2.206647345e-05 | AX10: 2.912657396e-05 | AY10: 6.855421196e-06 | AZ10: 1.563965999e-05 | BA10: 4.791699098e-06 | BB10: 4.679602927e-06 | BC10: 8.159716628e-08 | BD10: 1.344261444e-06 | BE10: 3.113559667e-09
A11: Any changes to the data or formulas will impact the analysis and may invalidate the model results. | C11: TCPU | D11: 0.04910826769 | E11: 0.04835386398 | F11: 0.04216965163 | G11: 0.04794139656 | H11: 0.02876079667 | I11: 0.0400811386 | J11: 0.03439142139 | K11: 0.03415905229 | L11: 0.02616570636 | M11: 0.0403257064 | N11: 0.04115556621 | O11: 0.03535262521 | P11: 0.0449418335 | Q11: 0.04044798461 | R11: 0.04401526211 | S11: 0.04636094916 | T11: 0.03601811672 | U11: 0.04388881668 | V11: 0.04192266253 | W11: 0.04142866034 | X11: 0.03738629091 | Y11: 0.03318106721 | Z11: 0.04059482442 | AA11: 0.04620491451 | AB11: 0.05042339249 | AC11: 0.04488649008 | AD11: 0.05237250038 | AE11: ='User Add-in Location'!E16 -> 0 | AF11: ='User Add-in Location'!F16 -> 0 | AG11: 0.04382999187 | AH11: 0.06021540961 | AI11: 0.03388921465 | AJ11: 0.03734646317 | AK11: 0.04115653129 | AL11: 0.03844284718 | AM11: 0.037083272 | AN11: 0.05218752319 | AO11: 0.04175786561 | AP11: 0.05035585175 | AQ11: 0.0447057481 | AR11: 0.03895277857 | AS11: 0.03128476433 | AT11: 0.03862322921 | AU11: 0.04531526911 | AV11: 0.04065908017 | AW11: 0.04501976605 | AX11: 0.04060037507 | AY11: 0.03851929391 | AZ11: 0.04674274773 | BA11: 0.04197815136 | BB11: 0.03879307875 | BC11: 0.0449439744 | BD11: 0.04122486426 | BE11: 0.05499510085
C12: Wholesale Trade | D12: 0.04078921789 | E12: 0.02951692186 | F12: 0.04754833718 | G12: 0.0474622171 | H12: 0.04446895456 | I12: 0.04756537449 | J12: 0.04947347602 | K12: 0.03700805424 | L12: 0.02273244424 | M12: 0.04818623027 | N12: 0.04745430716 | O12: 0.03917455688 | P12: 0.04587526894 | Q12: 0.04676870526 | R12: 0.03965390501 | S12: 0.04203630956 | T12: 0.04117300303 | U12: 0.0451014901 | V12: 0.03432619036 | W12: 0.04270168495 | X12: 0.04397547696 | Y12: 0.04923105077 | Z12: 0.04424976936 | AA12: 0.0478424641 | AB12: 0.03513748371 | AC12: 0.04626068316 | AD12: 0.04312295421 | AE12: ='User Add-in Location'!E17 -> 0 | AF12: ='User Add-in Location'!F17 -> 0 | AG12: 0.04386616679 | AH12: 0.1037791601 | AI12: 0.05338174907 | AJ12: 0.04921855155 | AK12: 0.03771081743 | AL12: 0.04738991625 | AM12: 0.0469533378 | AN12: 0.05924934108 | AO12: 0.04438023987 | AP12: 0.0455380824 | AQ12: 0.04558880983 | AR12: 0.04674839908 | AS12: 0.04882621324 | AT12: 0.04330633857 | AU12: 0.05310626102 | AV12: 0.04711474199 | AW12: 0.04387452626 | AX12: 0.03921366992 | AY12: 0.04178039593 | AZ12: 0.03629905598 | BA12: 0.04218881739 | BB12: 0.04500803773 | BC12: 0.0415127776 | BD12: 0.04531418813 | BE12: 0.042292843
C13: Retail Trade | D13: 0.1151295514 | E13: 0.1090847846 | F13: 0.1092415844 | G13: 0.1092664302 | H13: 0.0958165568 | I13: 0.09414097933 | J13: 0.1006055347 | K13: 0.1076609856 | L13: 0.07824600187 | M13: 0.1047842408 | N13: 0.1032883753 | O13: 0.1129557974 | P13: 0.1185999134 | Q13: 0.09538325744 | R13: 0.1118705409 | S13: 0.1126937907 | T13: 0.1135284211 | U13: 0.1104511696 | V13: 0.1121974306 | W13: 0.1129882696 | X13: 0.09801724209 | Y13: 0.08809832473 | Z13: 0.1070901649 | AA13: 0.09800682089 | AB13: 0.1191690879 | AC13: 0.1038885433 | AD13: 0.112637871 | AE13: ='User Add-in Location'!E18 -> 0 | AF13: ='User Add-in Location'!F18 -> 0 | AG13: 0.1129912306 | AH13: 0.7945738712 | AI13: 0.1103240457 | AJ13: 0.1004493015 | AK13: 0.1178309824 | AL13: 0.09394311761 | AM13: 0.1003219116 | AN13: 0.1153770187 | AO13: 0.1035244776 | AP13: 0.1083776876 | AQ13: 0.1011224312 | AR13: 0.09763034216 | AS13: 0.09537728365 | AT13: 0.1166012205 | AU13: 0.1190922675 | AV13: 0.1110808563 | AW13: 0.1006792258 | AX13: 0.08667908637 | AY13: 0.1018476793 | AZ13: 0.1087484127 | BA13: 0.1039600408 | BB13: 0.1008403261 | BC13: 0.1236364348 | BD13: 0.1040048097 | BE13: 0.1153686743
C14: FIRE | D14: 0.1249465985 | E14: 0.1141976709 | F14: 0.140537736 | G14: 0.1136069109 | H14: 0.1195631163 | I14: 0.1306090754 | J14: 0.1414132647 | K14: 0.1612698163 | L14: 0.1625997792 | M14: 0.1333966401 | N14: 0.1287445953 | O14: 0.1250249885 | P14: 0.1340643121 | Q14: 0.1370516427 | R14: 0.117816163 | S14: 0.1426880107 | T14: 0.1222340576 | U14: 0.1185538929 | V14: 0.1118676834 | W14: 0.1335688862 | X14: 0.1321333103 | Y14: 0.1414593148 | Z14: 0.1197437119 | AA14: 0.1308916887 | AB14: 0.1151213884 | AC14: 0.1258752802 | AD14: 0.1272501893 | AE14: ='User Add-in Location'!E19 -> 0 | AF14: ='User Add-in Location'!F19 -> 0 | AG14: 0.1345509208 | AH14: 0.01108952917 | AI14: 0.1429205652 | AJ14: 0.1353698486 | AK14: 0.1237713709 | AL14: 0.1432728602 | AM14: 0.129960827 | AN14: 0.1311120114 | AO14: 0.1311621089 | AP14: 0.120536059 | AQ14: 0.1252608657 | AR14: 0.1291927022 | AS14: 0.151296094 | AT14: 0.1201525482 | AU14: 0.1419129173 | AV14: 0.1206724579 | AW14: 0.1255628291 | AX14: 0.1200748833 | AY14: 0.1352166842 | AZ14: 0.1314002906 | BA14: 0.1285480146 | BB14: 0.1192889483 | BC14: 0.1113922117 | BD14: 0.1299396082 | BE14: 0.1330434427
C15: Misc. Services | D15: 0.6018238326 | E15: 0.6334737062 | F15: 0.613332561 | G15: 0.6190500136 | H15: 0.606319932 | I15: 0.6163870582 | J15: 0.6283612429 | K15: 0.6090744044 | L15: 0.6896865499 | M15: 0.6174779079 | N15: 0.6180286829 | O15: 0.6204023664 | P15: 0.5945808906 | Q15: 0.6067366571 | R15: 0.612340947 | S15: 0.5965963501 | T15: 0.6177794415 | U15: 0.6202673616 | V15: 0.6259100026 | W15: 0.6147601995 | X15: 0.6465592442 | Y15: 0.6335044281 | Z15: 0.6084009495 | AA15: 0.596166288 | AB15: 0.617747213 | AC15: 0.6257068968 | AD15: 0.5999510311 | AE15: ='User Add-in Location'!E20 -> 0 | AF15: ='User Add-in Location'!F20 -> 0 | AG15: 0.6123817683 | AH15: 0.01141061326 | AI15: 0.6224434252 | AJ15: 0.6195378096 | AK15: 0.6191561379 | AL15: 0.6256972783 | AM15: 0.613204367 | AN15: 0.5899893759 | AO15: 0.5995911005 | AP15: 0.6099028098 | AQ15: 0.6216366078 | AR15: 0.6137686639 | AS15: 0.6413069436 | AT15: 0.6262824194 | AU15: 0.5977993414 | AV15: 0.6204157343 | AW15: 0.5771804508 | AX15: 0.5490881243 | AY15: 0.6049829643 | AZ15: 0.62756152 | BA15: 0.6304515603 | BB15: 0.6090215844 | BC15: 0.6371578019 | BD15: 0.606554321 | BE15: 0.5960737486
C16: Professional Services | D16: 0.00934341492 | E16: 0.007512323512 | F16: 0.008757965134 | G16: 0.006907223896 | H16: 0.009913895599 | I16: 0.0100882752 | J16: 0.01032451331 | K16: 0.01092017967 | L16: 0.009569306515 | M16: 0.009259718899 | N16: 0.008817609427 | O16: 0.0060651887 | P16: 0.008700813603 | Q16: 0.01021379651 | R16: 0.009104180137 | S16: 0.007077533703 | T16: 0.008608287113 | U16: 0.007619201119 | V16: 0.008484477275 | W16: 0.008606286097 | X16: 0.01023903517 | Y16: 0.01166573006 | Z16: 0.01008650401 | AA16: 0.009151465092 | AB16: 0.006820621005 | AC16: 0.008988197697 | AD16: 0.007868477056 | AE16: ='User Add-in Location'!E21 -> 0 | AF16: ='User Add-in Location'!F21 -> 0 | AG16: 0.007832492896 | AH16: 0 | AI16: 0.01006916311 | AJ16: 0.01083201281 | AK16: 0.009281309958 | AL16: 0.01049806108 | AM16: 0.009353089705 | AN16: 0.006444352277 | AO16: 0.009014277993 | AP16: 0.007686993373 | AQ16: 0.009288579202 | AR16: 0.01033121994 | AS16: 0.009493852475 | AT16: 0.008993842757 | AU16: 0.006569221685 | AV16: 0.009028809194 | AW16: 0.0088012448 | AX16: 0.008905399586 | AY16: 0.009233047842 | AZ16: 0.009866140945 | BA16: 0.009805343665 | BB16: 0.01007900324 | BC16: 0.009346395967 | BD16: 0.008463657009 | BE16: 0.006544897326
C17: Government | D17: 0.009068914188 | E17: 0.008908514871 | F17: 0.007799551977 | G17: 0.008849115104 | H17: 0.006876420645 | I17: 0.007290599771 | J17: 0.007749161625 | K17: 0.007703430608 | L17: 0.009164285633 | M17: 0.007207978093 | N17: 0.006910742365 | O17: 0.008359353228 | P17: 0.008857424526 | Q17: 0.006891199812 | R17: 0.008125813337 | S17: 0.008650407803 | T17: 0.008387324013 | U17: 0.009176576679 | V17: 0.009178743736 | W17: 0.008491052168 | X17: 0.007884292005 | Y17: 0.007188288222 | Z17: 0.007700480933 | AA17: 0.007506351909 | AB17: 0.009529199643 | AC17: 0.00797863831 | AD17: 0.009221122133 | AE17: ='User Add-in Location'!E22 -> 0 | AF17: ='User Add-in Location'!F22 -> 0 | AG17: 0.008119876567 | AH17: 0 | AI17: 0.008111091045 | AJ17: 0.007210855321 | AK17: 0.009564292753 | AL17: 0.007564879108 | AM17: 0.007503345123 | AN17: 0.009051211995 | AO17: 0.007430810136 | AP17: 0.008646721594 | AQ17: 0.00816722948 | AR17: 0.007669324536 | AS17: 0.007630671708 | AT17: 0.008808601474 | AU17: 0.009027858199 | AV17: 0.008113295549 | AW17: 0.007433988167 | AX17: 0.00606603566 | AY17: 0.007348094254 | AZ17: 0.008452621276 | BA17: 0.008373457733 | BB17: 0.007773975567 | BC17: 0.01025369845 | BD17: 0.008171907784 | BE17: 0.01050111326
A18: To view the data and formulas simply scroll over to the adjacent columns to the right. | C18: Total | D18: =SUM(D4:D17) -> 1 | E18: =SUM(E4:E17) -> 1 | F18: 1 | G18: 1 | H18: 1 | I18: 1 | J18: 1 | K18: 1 | L18: 1 | M18: 1 | N18: 1 | O18: 1 | P18: 1 | Q18: 1 | R18: 1 | S18: 1 | T18: 1 | U18: 1 | V18: 1 | W18: 1 | X18: 1 | Y18: 1 | Z18: 1 | AA18: 1 | AB18: 1 | AC18: 1 | AD18: 1 | AE18: 0 | AF18: 0 | AG18: 1 | AH18: 1 | AI18: 1 | AJ18: 1 | AK18: 1 | AL18: 1 | AM18: 1 | AN18: 1 | AO18: 1 | AP18: 1 | AQ18: 1 | AR18: 1 | AS18: 1 | AT18: 1 | AU18: 1 | AV18: 1 | AW18: 1 | AY18: 1 | AZ18: 1 | BA18: 1 | BB18: 1 | BC18: 1 | BD18: 1 | BE18: 1
C20: =CONCATENATE("Source: All values are averages for all income classes and are derived from IMPLAN™ using ", D2," state data.") -> Source: All values are averages for all income classes and are derived from IMPLAN™ using 2014 state data.

Sheet Multipliers (hidden)
C1: Multipliers For Economic Input-Output Analysis
C2: Year of Data | D2: 2014
C3: Jobs Per Million Dollars Change in Final Demand
C4: Jobs Direct Multipliers | D4: Alabama | E4: Alaska | F4: Arizona | G4: Arkansas | H4: California | I4: Colorado | J4: Connecticut | K4: Delaware | L4: District of Columbia | M4: Florida | N4: Georgia | O4: Hawaii | P4: Idaho | Q4: Illinois | R4: Indiana | S4: Iowa | T4: Kansas | U4: Kentucky | V4: Louisiana | W4: Maine | X4: Maryland | Y4: Massachusetts | Z4: Michigan | AA4: Minnesota | AB4: Mississippi | AC4: Missouri | AD4: Montana | AE4: MyCounty | AF4: MyRegion | AG4: Nebraska | AH4: Nevada | AI4: New Hampshire | AJ4: New Jersey | AK4: New Mexico | AL4: New York | AM4: North Carolina | AN4: North Dakota | AO4: Ohio | AP4: Oklahoma | AQ4: Oregon | AR4: Pennsylvania | AS4: Rhode Island | AT4: South Carolina | AU4: South Dakota | AV4: Tennessee | AW4: Texas | AX4: United States | AY4: Utah | AZ4: Vermont | BA4: Virginia | BB4: Washington | BC4: West Virginia | BD4: Wisconsin | BE4: Wyoming
A5: Warning | C5: Agriculture | D5: 6.566301505 | E5: 15.00798786 | F5: 7.084637135 | G5: 4.826203119 | H5: 6.406473951 | I5: 5.332756246 | J5: 10.92911051 | K5: 2.142725394 | L5: 32.54869104 | M5: 9.84666822 | N5: 5.300310796 | O5: 15.7001553 | P5: 4.394204329 | Q5: 3.975800704 | R5: 4.925988671 | S5: 2.856584219 | T5: 3.3648776 | U5: 11.00036025 | V5: 8.009157392 | W5: 12.25358869 | X5: 6.770732962 | Y5: 14.2032497 | Z5: 7.462780943 | AA5: 4.183273309 | AB5: 5.943993734 | AC5: 8.067411278 | AD5: 5.871679553 | AE5: ='User Add-in Location'!B9 -> 0 | AF5: ='User Add-in Location'!C9 -> 0 | AG5: 1.94009228 | AH5: 5.058456534 | AI5: 14.27052803 | AJ5: 14.39903185 | AK5: 7.201252905 | AL5: 7.847738493 | AM5: 4.672248817 | AN5: 3.677496627 | AO5: 7.389474319 | AP5: 9.555810332 | AQ5: 10.97362891 | AR5: 7.962284287 | AS5: 12.47815987 | AT5: 8.890139416 | AU5: 2.873845819 | AV5: 14.21344577 | AW5: 9.068770211 | AX5: 6.185195093 | AY5: 6.982782015 | AZ5: 8.757503827 | BA5: 10.05915581 | BB5: 8.553233958 | BC5: 18.06799576 | BD5: 6.072027102 | BE5: 6.086522665
C6: Mining | D6: 2.121725317 | E6: 1.154506435 | F6: 2.257920818 | G6: 3.381585273 | H6: 1.900933183 | I6: 2.470654419 | J6: 4.560099781 | K6: 4.344126743 | L6: 5.427036589 | M6: 3.862160282 | N6: 4.170659024 | O6: 5.132557634 | P6: 3.974133422 | Q6: 2.999673208 | R6: 2.51679321 | S6: 4.757555837 | T6: 4.857676022 | U6: 2.209793768 | V6: 2.309223161 | W6: 7.269813786 | X6: 3.08386688 | Y6: 3.960562886 | Z6: 4.143467668 | AA6: 2.358541005 | AB6: 3.56174451 | AC6: 3.018330229 | AD6: 2.715247624 | AE6: ='User Add-in Location'!B10 -> 0 | AF6: ='User Add-in Location'!C10 -> 0 | AG6: 4.362795982 | AH6: 2.315334555 | AI6: 5.067094526 | AJ6: 3.732540932 | AK6: 2.586908354 | AL6: 5.273916687 | AM6: 3.413465555 | AN6: 2.540094044 | AO6: 3.120457235 | AP6: 3.08392656 | AQ6: 5.288848601 | AR6: 2.282537681 | AS6: 5.233906207 | AT6: 4.847757754 | AU6: 4.918396162 | AV6: 3.488801583 | AW6: 1.876195431 | AX6: 2.300683422 | AY6: 2.686323415 | AZ6: 4.407466253 | BA6: 2.471554798 | BB6: 4.319209361 | BC6: 2.090407537 | BD6: 3.808428889 | BE6: 1.692485077
A7: This Worksheet contains Data and Formulas that are an integral part of the JEDI model. | C7: Construction | D7: 5.658464877 | E7: 4.605736505 | F7: 5.424763932 | G7: 5.864647721 | H7: 5.290770034 | I7: 5.648863013 | J7: 5.165300016 | K7: 5.752076231 | L7: 5.172071493 | M7: 5.679083343 | N7: 5.624088496 | O7: 4.746385538 | P7: 6.161492008 | Q7: 5.076730913 | R7: 5.737118538 | S7: 5.598390968 | T7: 5.830203625 | U7: 5.636659357 | V7: 5.459092594 | W7: 6.096579447 | X7: 5.354560075 | Y7: 5.231740932 | Z7: 5.650198221 | AA7: 5.140882706 | AB7: 5.682670408 | AC7: 5.812212401 | AD7: 5.7962149 | AE7: ='User Add-in Location'!B11 -> 0 | AF7: ='User Add-in Location'!C11 -> 0 | AG7: 5.473703533 | AH7: 5.319873297 | AI7: 5.791518949 | AJ7: 4.96365179 | AK7: 5.826582475 | AL7: 4.978394977 | AM7: 5.833846589 | AN7: 5.408876865 | AO7: 5.690305362 | AP7: 5.765250162 | AQ7: 5.625962241 | AR7: 5.575375672 | AS7: 5.034845465 | AT7: 5.725158019 | AU7: 6.013969244 | AV7: 5.782569692 | AW7: 5.177427777 | AX7: 5.439894321 | AY7: 5.59366275 | AZ7: 6.152719537 | BA7: 5.648744399 | BB7: 5.28734203 | BC7: 5.382394936 | BD7: 5.665991669 | BE7: 5.147663727
C8: Manufacturing | D8: 1.722263429 | E8: 2.026583535 | F8: 2.356520262 | G8: 2.108720256 | H8: 1.775246229 | I8: 2.085765814 | J8: 2.169984453 | K8: 1.528338099 | L8: 3.089486298 | M8: 2.451248791 | N8: 1.993219047 | O8: 1.99791402 | P8: 1.907363004 | Q8: 1.715457132 | R8: 1.65804698 | S8: 1.754338829 | T8: 1.633724235 | U8: 1.547241314 | V8: 0.6666777554 | W8: 2.413729585 | X8: 2.140737982 | Y8: 2.090552425 | Z8: 1.734994975 | AA8: 2.060976559 | AB8: 1.766480426 | AC8: 1.81842181 | AD8: 1.142202462 | AE8: ='User Add-in Location'!B12 -> 0 | AF8: ='User Add-in Location'!C12 -> 0 | AG8: 1.7157333 | AH8: 2.668537629 | AI8: 2.702337968 | AJ8: 1.618079873 | AK8: 1.639213519 | AL8: 2.23001883 | AM8: 1.823091252 | AN8: 1.712811708 | AO8: 1.811331708 | AP8: 1.820484808 | AQ8: 2.5514421 | AR8: 1.988448393 | AS8: 2.674774722 | AT8: 1.879663326 | AU8: 2.254838632 | AV8: 1.860522353 | AW8: 1.045759592 | AX8: 1.739941611 | AY8: 1.884202263 | AZ8: 2.515819028 | BA8: 2.070320913 | BB8: 1.575458679 | BC8: 1.388108271 | BD8: 2.299952633 | BE8: 0.7000990042
A9: Although the data and formulas are available for review they must not be changed. | C9: Fabricated Metals | D9: 3.720983504 | E9: 4.038309568 | F9: 4.430362292 | G9: 3.585653411 | H9: 4.163223421 | I9: 3.70814309 | J9: 3.917571749 | K9: 4.144720426 | L9: 0 | M9: 4.178092585 | N9: 4.096107755 | O9: 4.56051251 | P9: 4.631162456 | Q9: 3.962268143 | R9: 3.973712765 | S9: 3.867207218 | T9: 3.953798003 | U9: 3.997935524 | V9: 3.471644522 | W9: 3.916482248 | X9: 4.112196994 | Y9: 3.784932533 | Z9: 4.069965751 | AA9: 4.114231994 | AB9: 4.104337122 | AC9: 4.067109805 | AD9: 4.133525838 | AE9: ='User Add-in Location'!B13 -> 0 | AF9: ='User Add-in Location'!C13 -> 0 | AG9: 3.686296813 | AH9: 4.061259467 | AI9: 3.824423122 | AJ9: 3.99466841 | AK9: 4.472397211 | AL9: 3.912603939 | AM9: 3.916370196 | AN9: 3.868533557 | AO9: 3.864503839 | AP9: 3.361617197 | AQ9: 3.910300847 | AR9: 3.980617413 | AS9: 4.538269651 | AT9: 3.64737019 | AU9: 3.730272044 | AV9: 3.714427051 | AW9: 3.677903535 | AX9: 3.869482298 | AY9: 3.8157599 | AZ9: 4.484955411 | BA9: 3.616452533 | BB9: 4.024883193 | BC9: 4.146812842 | BD9: 3.979422342 | BE9: 3.623728297
C10: Machinery | D10: 1.886453153 | E10: 2.3926353 | F10: 2.133516161 | G10: 2.373938912 | H10: 2.113626381 | I10: 1.671733698 | J10: 2.025134587 | K10: 2.981434556 | L10: 2.482101585 | M10: 2.296220139 | N10: 1.900483916 | O10: 1.895837443 | P10: 2.021468989 | Q10: 1.738677709 | R10: 1.371589495 | S10: 1.539954945 | T10: 2.011445987 | U10: 2.350756106 | V10: 2.137380697 | W10: 2.44305185 | X10: 1.463423528 | Y10: 2.484971202 | Z10: 2.293084266 | AA10: 2.234651032 | AB10: 1.49963951 | AC10: 1.672030595 | AD10: 2.074005137 | AE10: ='User Add-in Location'!B14 -> 0 | AF10: ='User Add-in Location'!C14 -> 0 | AG10: 1.540550944 | AH10: 2.192826854 | AI10: 2.734187584 | AJ10: 2.767154296 | AK10: 2.106585813 | AL10: 1.955293451 | AM10: 1.795432163 | AN10: 1.548158959 | AO10: 2.384861194 | AP10: 1.964364015 | AQ10: 2.479930453 | AR10: 2.248830128 | AS10: 3.264932214 | AT10: 1.841499949 | AU10: 1.886563183 | AV10: 1.797522049 | AW10: 2.051071177 | AX10: 1.905029876 | AY10: 1.86629677 | AZ10: 3.196590884 | BA10: 2.828091539 | BB10: 2.50362186 | BC10: 3.165161351 | BD10: 1.729062911 | BE10: 2.333420941
A11: Any changes to the data or formulas will impact the analysis and may invalidate the model results. | C11: Electrical Equipment | D11: 3.747754946 | E11: 0 | F11: 1.170886574 | G11: 3.016914665 | H11: 1.319321895 | I11: 1.513755961 | J11: 2.455377145 | K11: 3.570936006 | L11: 0.6757981732 | M11: 1.676763706 | N11: 2.53584118 | O11: 1.149847782 | P11: 1.124117735 | Q11: 3.009896796 | R11: 3.262094721 | S11: 2.501515165 | T11: 2.668945997 | U11: 3.702867134 | V11: 2.838088487 | W11: 1.522556992 | X11: 3.052604501 | Y11: 1.369327418 | Z11: 2.930208455 | AA11: 2.311043319 | AB11: 2.755542794 | AC11: 1.927473116 | AD11: 1.756795569 | AE11: ='User Add-in Location'!B15 -> 0 | AF11: ='User Add-in Location'!C15 -> 0 | AG11: 4.064168633 | AH11: 3.329947961 | AI11: 2.722707277 | AJ11: 2.342255595 | AK11: 0.983826263 | AL11: 1.835241634 | AM11: 1.326298005 | AN11: 3.220841821 | AO11: 2.312894485 | AP11: 3.186727167 | AQ11: 0.5630010725 | AR11: 2.427348829 | AS11: 1.843139595 | AT11: 3.682804549 | AU11: 3.062733776 | AV11: 3.014649407 | AW11: 1.240553771 | AX11: 1.358589253 | AY11: 1.456675529 | AZ11: 1.459853074 | BA11: 1.696150796 | BB11: 1.836212943 | BC11: 2.476933028 | BD11: 3.439866422 | BE11: 5.032342916
C12: TCPU | D12: 2.283608886 | E12: 1.645986495 | F12: 2.459674264 | G12: 3.284334276 | H12: 3.202737095 | I12: 2.710833008 | J12: 3.011261121 | K12: 2.707828264 | L12: 4.166595066 | M12: 2.710778823 | N12: 2.804426209 | O12: 2.241599856 | P12: 3.414317561 | Q12: 3.452649813 | R12: 3.190412521 | S12: 3.26513922 | T12: 2.578994344 | U12: 2.854591237 | V12: 2.430578727 | W12: 3.315745535 | X12: 2.814767977 | Y12: 3.1121429 | Z12: 2.675160416 | AA12: 3.042009531 | AB12: 2.789842394 | AC12: 3.14421563 | AD12: 2.605081233 | AE12: ='User Add-in Location'!B16 -> 0 | AF12: ='User Add-in Location'!C16 -> 0 | AG12: 2.744033063 | AH12: 0 | AI12: 2.785416439 | AJ12: 3.517803437 | AK12: 2.672647469 | AL12: 3.564482713 | AM12: 3.051091727 | AN12: 2.750117172 | AO12: 3.010500463 | AP12: 2.130499603 | AQ12: 2.94509543 | AR12: 3.460524784 | AS12: 3.389656015 | AT12: 2.458988455 | AU12: 3.14367906 | AV12: 3.182802276 | AW12: 2.625546652 | AX12: 2.970278852 | AY12: 3.56663037 | AZ12: 2.614791149 | BA12: 3.26818116 | BB12: 2.960805881 | BC12: 2.501016312 | BD12: 3.306148811 | BE12: 2.111241179
C13: Wholesale Trade | D13: 3.940881736 | E13: 3.514911845 | F13: 3.685652831 | G13: 3.481172608 | H13: 3.375396676 | I13: 3.662646963 | J13: 3.025677558 | K13: 3.366370311 | L13: 3.137867347 | M13: 3.576838971 | N13: 3.462482362 | O13: 4.387286957 | P13: 4.234213406 | Q13: 3.389059468 | R13: 3.87941033 | S13: 3.999720777 | T13: 3.713357157 | U13: 3.667716795 | V13: 3.716003035 | W13: 3.915924831 | X13: 3.536271716 | Y13: 3.380872889 | Z13: 3.564893215 | AA13: 3.657934173 | AB13: 4.049456476 | AC13: 3.852700561 | AD13: 4.083031113 | AE13: ='User Add-in Location'!B17 -> 0 | AF13: ='User Add-in Location'!C17 -> 0 | AG13: 3.970727496 | AH13: 3.826737223 | AI13: 3.677236958 | AJ13: 3.130205071 | AK13: 4.384957995 | AL13: 3.205602342 | AM13: 3.826758924 | AN13: 3.557794549 | AO13: 3.767327816 | AP13: 3.813662199 | AQ13: 3.862045889 | AR13: 3.456788526 | AS13: 3.712679924 | AT13: 3.72062247 | AU13: 3.93382074 | AV13: 3.701558395 | AW13: 3.261407345 | AX13: 3.523543088 | AY13: 4.037879636 | AZ13: 4.188429735 | BA13: 3.63958541 | BB13: 3.455734597 | BC13: 3.925528932 | BD13: 3.973483106 | BE13: 3.522505128
C14: Retail Trade | D14: 11.95631014 | E14: 12.34929243 | F14: 11.11949076 | G14: 12.82827608 | H14: 10.24403121 | I14: 12.19017333 | J14: 11.05452269 | K14: 13.11178238 | L14: 11.22845538 | M14: 11.93067004 | N14: 12.37445878 | O14: 10.96384825 | P14: 12.6050209 | Q14: 11.98193502 | R14: 12.7164949 | S14: 13.69820281 | T14: 12.32988458 | U14: 13.61372301 | V14: 11.97193869 | W14: 12.81210034 | X14: 11.81415757 | Y14: 12.58433866 | Z14: 11.82613669 | AA14: 12.21553939 | AB14: 12.63467494 | AC14: 12.99716225 | AD14: 14.28571584 | AE14: ='User Add-in Location'!B18 -> 0 | AF14: ='User Add-in Location'!C18 -> 0 | AG14: 13.05087213 | AH14: 7.792341105 | AI14: 12.73738223 | AJ14: 10.86196578 | AK14: 12.9524967 | AL14: 10.8873793 | AM14: 13.45326683 | AN14: 12.23223456 | AO14: 12.20490631 | AP14: 12.48480974 | AQ14: 13.78582606 | AR14: 13.02342298 | AS14: 12.02415208 | AT14: 12.66643177 | AU14: 12.82805309 | AV14: 12.0195632 | AW14: 11.10307679 | AX14: 11.76465954 | AY14: 11.81232614 | AZ14: 12.46919014 | BA14: 12.34015495 | BB14: 9.576041566 | BC14: 12.8113006 | BD14: 12.8448405 | BE14: 12.38982135
C15: FIRE | D15: 5.57680298 | E15: 4.538493312 | F15: 5.628341884 | G15: 5.553065675 | H15: 4.406329268 | I15: 5.424818837 | J15: 3.437540676 | K15: 2.967515542 | L15: 3.269774774 | M15: 5.780774123 | N15: 4.710104015 | O15: 4.556523754 | P15: 5.707009331 | Q15: 4.129217207 | R15: 4.855444572 | S15: 4.085347867 | T15: 5.315893908 | U15: 5.191717741 | V15: 5.743036973 | W15: 4.561257007 | X15: 4.372383638 | Y15: 3.631232683 | Z15: 5.082985895 | AA15: 4.472011919 | AB15: 5.5064103 | AC15: 4.959296987 | AD15: 5.911714098 | AE15: ='User Add-in Location'!B19 -> 0 | AF15: ='User Add-in Location'!C19 -> 0 | AG15: 4.46843033 | AH15: 0 | AI15: 4.220286105 | AJ15: 4.306843067 | AK15: 5.00978851 | AL15: 2.82839939 | AM15: 4.251653355 | AN15: 4.954991795 | AO15: 4.059830469 | AP15: 5.569875235 | AQ15: 5.112114936 | AR15: 4.318733122 | AS15: 4.046045564 | AT15: 5.562812242 | AU15: 3.981673962 | AV15: 5.020840205 | AW15: 5.513486955 | AX15: 4.469860689 | AY15: 5.235307932 | AZ15: 4.655335988 | BA15: 4.598234123 | BB15: 4.492445418 | BC15: 5.064781041 | BD15: 4.323031029 | BE15: 5.696082867
C16: Misc. Services | D16: 5.966384458 | E16: 5.421060997 | F16: 6.186165631 | G16: 7.014538529 | H16: 5.033424977 | I16: 5.613721645 | J16: 5.238210305 | K16: 4.074880673 | L16: 3.300984228 | M16: 6.254501876 | N16: 6.054370402 | O16: 5.902937884 | P16: 5.926176543 | Q16: 4.899407697 | R16: 5.345679638 | S16: 6.279439239 | T16: 6.458609542 | U16: 6.631448385 | V16: 6.184171536 | W16: 6.463589402 | X16: 5.008065627 | Y16: 4.342149864 | Z16: 5.649893792 | AA16: 5.606170974 | AB16: 6.954467438 | AC16: 5.711629249 | AD16: 7.079556797 | AE16: ='User Add-in Location'!B20 -> 0 | AF16: ='User Add-in Location'!C20 -> 0 | AG16: 6.065710269 | AH16: 6.245225195 | AI16: 5.778699946 | AJ16: 4.92410552 | AK16: 4.868187278 | AL16: 4.57377853 | AM16: 5.4841042 | AN16: 5.983771563 | AO16: 5.925975065 | AP16: 6.710986316 | AQ16: 5.591995106 | AR16: 5.122834921 | AS16: 5.923428663 | AT16: 6.295337806 | AU16: 6.718101348 | AV16: 5.79021109 | AW16: 5.476999097 | AX16: 5.328985501 | AY16: 6.319458501 | AZ16: 6.513734697 | BA16: 5.018896626 | BB16: 5.316556743 | BC16: 6.069555315 | BD16: 5.947434759 | BE16: 6.698138467
C17: Professional Services | D17: 8.676103089 | E17: 7.050957372 | F17: 7.873900538 | G17: 7.724927774 | H17: 6.730931978 | I17: 7.01002572 | J17: 6.636015356 | K17: 7.565920304 | L17: 6.255980836 | M17: 8.215776058 | N17: 7.399140396 | O17: 8.055422579 | P17: 9.126508033 | Q17: 7.400240448 | R17: 8.566045667 | S17: 8.719636666 | T17: 7.72315742 | U17: 8.484307593 | V17: 8.181339305 | W17: 8.694315657 | X17: 7.102651242 | Y17: 6.917442091 | Z17: 8.33230856 | AA17: 7.572606203 | AB17: 8.973313448 | AC17: 7.515239094 | AD17: 9.292308615 | AE17: ='User Add-in Location'!B21 -> 0 | AF17: ='User Add-in Location'!C21 -> 0 | AG17: 8.277221287 | AH17: 7.905510131 | AI17: 7.550501111 | AJ17: 6.694155475 | AK17: 7.923336194 | AL17: 6.570752831 | AM17: 8.204395343 | AN17: 7.848705661 | AO17: 8.074757722 | AP17: 8.149709892 | AQ17: 8.060584083 | AR17: 7.436002488 | AS17: 7.519260454 | AT17: 8.464939115 | AU17: 8.546069053 | AV17: 7.997073892 | AW17: 7.503820539 | AX17: 7.444977234 | AY17: 7.941773096 | AZ17: 8.726917188 | BA17: 7.037438719 | BB17: 5.968075419 | BC17: 8.531529631 | BD17: 8.065657294 | BE17: 8.344410029
A18: To view the data and formulas simply scroll over to the adjacent columns to the right. | C18: Government | D18: 8.657383336 | E18: 7.868630479 | F18: 8.181833948 | G18: 11.91821956 | H18: 6.770617173 | I18: 9.711362017 | J18: 6.58025484 | K18: 8.582900024 | L18: 4.369121568 | M18: 8.689600875 | N18: 10.18366731 | O18: 8.098019677 | P18: 11.16642991 | Q18: 9.243610901 | R18: 11.81268678 | S18: 10.93198947 | T18: 11.40573171 | U18: 10.06286351 | V18: 10.26485663 | W18: 10.41489398 | X18: 5.81563841 | Y18: 6.468442506 | Z18: 9.650036194 | AA18: 9.588872337 | AB18: 11.85901764 | AC18: 10.39527543 | AD18: 10.62671193 | AE18: ='User Add-in Location'!B22 -> 0 | AF18: ='User Add-in Location'!C22 -> 0 | AG18: 11.16511823 | AH18: 7.310316005 | AI18: 8.182084476 | AJ18: 8.001138872 | AK18: 6.370609457 | AL18: 6.644235538 | AM18: 10.440893 | AN18: 10.32477024 | AO18: 9.061888183 | AP18: 9.041431881 | AQ18: 8.744981851 | AR18: 8.422181737 | AS18: 6.85620269 | AT18: 10.1753975 | AU18: 10.56980784 | AV18: 9.989033641 | AW18: 9.540162258 | AX18: 8.370479687 | AY18: 10.32011234 | AZ18: 10.72922721 | BA18: 7.09368457 | BB18: 7.405113601 | BC18: 10.04400053 | BD18: 9.213557155 | BE18: 10.03858865
C20: Jobs Per Million Dollars Change in Final Demand
C21: Jobs Indirect Multipliers | D21: Alabama | E21: Alaska | F21: Arizona | G21: Arkansas | H21: California | I21: Colorado | J21: Connecticut | K21: Delaware | L21: District of Columbia | M21: Florida | N21: Georgia | O21: Hawaii | P21: Idaho | Q21: Illinois | R21: Indiana | S21: Iowa | T21: Kansas | U21: Kentucky | V21: Louisiana | W21: Maine | X21: Maryland | Y21: Massachusetts | Z21: Michigan | AA21: Minnesota | AB21: Mississippi | AC21: Missouri | AD21: Montana | AE21: MyCounty | AF21: MyRegion | AG21: Nebraska | AH21: Nevada | AI21: New Hampshire | AJ21: New Jersey | AK21: New Mexico | AL21: New York | AM21: North Carolina | AN21: North Dakota | AO21: Ohio | AP21: Oklahoma | AQ21: Oregon | AR21: Pennsylvania | AS21: Rhode Island | AT21: South Carolina | AU21: South Dakota | AV21: Tennessee | AW21: Texas | AX21: United States | AY21: Utah | AZ21: Vermont | BA21: Virginia | BB21: Washington | BC21: West Virginia | BD21: Wisconsin | BE21: Wyoming
C22: Agriculture | D22: 1.319513921 | E22: 0.5703235415 | F22: 1.165353439 | G22: 1.834331818 | H22: 0.7834669005 | I22: 2.026241145 | J22: 0.4780140413 | K22: 0.9070569782 | L22: 0.5029372137 | M22: 0.9565018046 | N22: 1.305311264 | O22: 1.165347712 | P22: 1.66038997 | Q22: 1.168718992 | R22: 0.9044684848 | S22: 1.210844038 | T22: 1.742841513 | U22: 1.22197098 | V22: 0.7252396053 | W22: 1.457319133 | X22: 0.8659669208 | Y22: 0.4385928514 | Z22: 1.00593579 | AA22: 1.436992863 | AB22: 1.358500661 | AC22: 1.47400249 | AD22: 1.824493293 | AE22: ='User Add-in Location'!B26 -> 0 | AF22: ='User Add-in Location'!C26 -> 0 | AG22: 1.366329141 | AH22: 0.503640433 | AI22: 0.8668947284 | AJ22: 0.4255577263 | AK22: 1.483500655 | AL22: 0.9745106007 | AM22: 1.009163481 | AN22: 1.251393692 | AO22: 1.061526524 | AP22: 1.723134396 | AQ22: 1.677969634 | AR22: 1.162707469 | AS22: 0.4827201699 | AT22: 0.9600256738 | AU22: 1.490908389 | AV22: 1.286478159 | AW22: 1.528496873 | AX22: 2.516047916 | AY22: 1.234952924 | AZ22: 2.177824792 | BA22: 1.273794848 | BB22: 0.8879994894 | BC22: 1.305237219 | BD22: 1.935772124 | BE22: 0.907689221
C23: Mining | D23: 1.346741372 | E23: 0.3854762229 | F23: 1.760999887 | G23: 1.57240124 | H23: 1.065665425 | I23: 1.442883395 | J23: 1.620188063 | K23: 1.49295829 | L23: 1.247215879 | M23: 2.813005724 | N23: 1.640434376 | O23: 1.758629343 | P23: 1.918676432 | Q23: 1.814276626 | R23: 1.691773373 | S23: 1.5867199 | T23: 2.89075083 | U23: 1.582600524 | V23: 0.9860352088 | W23: 2.762200093 | X23: 2.09805794 | Y23: 2.13432945 | Z23: 2.277222813 | AA23: 1.544520503 | AB23: 1.609170872 | AC23: 1.824329763 | AD23: 1.887356067 | AE23: ='User Add-in Location'!B27 -> 0 | AF23: ='User Add-in Location'!C27 -> 0 | AG23: 1.635139244 | AH23: 1.025620405 | AI23: 1.80153128 | AJ23: 1.841913002 | AK23: 1.413369428 | AL23: 1.90174686 | AM23: 1.591698301 | AN23: 0.9860312144 | AO23: 1.964549949 | AP23: 1.87621693 | AQ23: 2.258830361 | AR23: 1.354896711 | AS23: 1.924752111 | AT23: 1.754068706 | AU23: 1.959714171 | AV23: 1.68396202 | AW23: 1.09131178 | AX23: 2.057463107 | AY23: 1.717369328 | AZ23: 1.506530237 | BA23: 1.58902348 | BB23: 1.709575598 | BC23: 1.549169955 | BD23: 1.401150164 | BE23: 0.8881504639
